Workbook

Sheet Vejledning
A1: BrugerVejledning Net-Løn*Beregning
A3: Zoom = 75% | B3: Afhængig af skærmstørrelse og opløsning kan det
B4: være nødvendigt at gøre visningen på skærmen mindre,
B5: da de enkelte skærmbilleder er meget bredde.
B6: Gå op under Vis > Zoom > 75% eller evt. mindre
A8: Vigtigt FIF: | B8: Brug TabulatorTasten, når du har udfyldt et felt,
B9: så kommer du videre til næste mulige indtastningsfelt.
A11: Klik på Fanebladene nederst på skærmen og indtast stamdata :
A13: FaneBladet Virksomhed : | B13: Her indtastes Virksomhedens Stamdata
B14: Se vejledningen på Fanebladet
A16: Fanebladet Lønmodtager : | B16: Her indtastes Lønmodtagerens Stamdata
B17: Ny lønmodtager oprettes på en række (ÅÅÅ overskrives)
B18: Se vejledningen på Fanebladet nederste linier (linie 100 - linie 120)
B19: Afslut altid med at trykke på knappen øverst
A21: Fanebladet Lønseddel : | B21: Her indtastes data til beregning af løn
B23: Tryk på knappen Lav Ny Lønseddel
B24: i omegnen af række 7 kolonne G
B26: Cellen F7 : Tast de første bogstaver i navnet
B27: på den lønmodtager du vil lave løn for.
B29: Eks. Tes + TabulatorTasten og Alle data for
B30: Testperson indsættes automatisk i arket.
B32: Følg vejledningerne ved indtastningsfelterne
B34: F8 : Her kan evt. indtastes bogføringsdato
B35: F9 : Her kan evt. indtastes dato for udbetaling af løn
B37: D10 : Månedens navn. Udfyldes ALTID. Vælg fra Liste
B39: B12 : Timelønnen hentes fra fanebladet Lønmodtager
B41: C12 : Periodens Timetal (Måned = 160,3333 t)
B43: E12 : Hvis det er en 1, 2 el. 3-ugers lønseddel
B44: indtastes KUN STARTUGENUMMER, evt.
B45: efterfølgende ugenumre beregnes automatisk
B47: A13,A14 indtastes tekst f.eks. Overarbejde ol.
B48: B13,B14 indtastes timeløn
B49: C13,C14 indtastes antal timer
B51: B15 indtastes lønperiodens beløb til multimediebeskatning
B53: B16 indtastes B-indkomst (der kan ikke samtidig udbetales A-indkomst)
B55: C17 : Timer med dagpenge/sygeløn
B56: C18 : Antal dage med dagpengegodtgørelse for
B57: første og anden ledighedsdag
B59: C22: Fri bil, Multimediebeskatning
B61: Hvis du fortryder en lønseddel, efter at du har opdateret År-Til-Dato,
B62: så lav en lønseddel med minus-tal og opdater År-Til-Dato felterne igen
A64: Fanebladet Lønseddel : | B64: C39 : Her indtastes evt. antal km., hvis lønmodtageren
A65: fortsat | B65: skal have udbetalt skattefri kørselsgodtgørelse
B66: Der opsummeres på automatisk på fanebladet oplysningssedler
B68: A54,A55,A56 indtastes tekst v/skattefrie udbetalinger
B69: B54,B55,B56 indtastes beløbet v/skattefrie udbetalinger
B70: Summen af beløbene overføres automatisk til E38
B72: A57 indtastes tekst v/skattefrie rejsegodtgørelse
B73: B57 indtastes beløbet v/skattefrie rejsegodtgørelse
B74: Summen af beløbene overføres automatisk til E38
B75: Der opsummeres automatisk på fanebladet oplysningssedler
B77: Udskriv Lønseddel og Konteringsvejledning :
B78: Ctrl+P og vælg fra side 1 til 2 (kopi til regnskabet)
B79: Ctrl+P og vælg fra side 1 til 1 (kopi til Lønmodtager)
B80: Tjek om lønsedlen ser korrekt ud
B82: Opdater År-Til-Datofelter :
B83: Må først gøres, når lønsedlen er godkendt
B84: Tryk på Knappen Opdater År-Til-Datofelter
B86: Tryk herefter på Knappen Lav-Ny-Lønseddel
A88: Afregning af A-skat,AM,SP : | B88: Når alle lønsedler for måneden er lavet, og
B89: År-Til-Datofelter er opdateret, så
B90: Klik på Fanebladet AskatAMSP og udskriv siden
B92: Klik tilbage på Fanebladet Lønseddel
B94: Tryk herefter på Knappen :
B95: Nulstil Efter Afregning Måned A-skat-AM-SP
B96: (Denne knap befinder sig i positionen F20)
B98: Nu er de månedlige afregningsbeløb vedr.
B99: A-skat/AM/SP nulstillet.
A101: Fanebladet ATP-Feriepenge-SH : | B101: Når alle lønsedler for Kvartalet er lavet, og
B102: År-Til-Datofelter er opdateret, så
B103: Klik på Fanebladet ATP-Feriepenge-SH og udskriv siden
B105: Klik tilbage på Fanebladet Lønseddel
B107: Tryk herefter på Knappen :
B108: Nulstil Efter Afregning Kvartal ATP-Feriepenge
B109: (Denne knap befinder sig i positionen F27)
B111: Nu er de kvartalsvise afregningsbeløb vedr.
B112: ATP, feriepenge og feriedage nulstillet.
A114: Fanebladet ATP-Feriepenge-SH : | B114: Klik på Fanebladet ATP-Feriepenge-SH og udskriv siden
A115: Afregning af SøgneH. : | B115: BEMÆRK : Du styrer selv udbetaling af skyldig SH.
B116: Når du har udbetalt helt eller delvis skyldig SH, så læg
B117: udbetalingen til tallet i kolonne V på Lønmodtagerfaneblad
A119: Afregning af Pension : | B119: Når alle lønsedler for pensionsafregningsperioden er lavet,
B120: og År-Til-Datofelter er opdateret, så
B121: Klik på Fanebladet Pension og udskriv siden
B123: Tryk herefter på Knappen :
B124: Udskriv Afregning af Pension og opdater Indbetalingerne
B125: (Denne knap befinder sig øverst på arket)
B127: Klik tilbage på Fanebladet Lønseddel
A129: Fanebladet Oplysningssedler : | B129: Klik på Fanebladet Oplysningssedler
B130: Sørg for, at År-Til-Datofelter er opdateret
B131: Udskriv oplysningerne til Årsindberetning af lønoplysninger
A133: Nulstil Alle Lønmodtagernes | B133: Klik på Fanebladet Lønseddel
A134: Oplysningssedler
A135: !! Ultimo året !! | B135: Tryk herefter på Knappen :
B136: Nulstil Alle Lønmodtageres Oplysningssedler
B137: (Denne knap befinder sig i positionen F42)
B139: Nu er alle Lønmodtageres År-Til-Dato Felter Nulstillet
A141: Skift af årstal : | B141: Celle B120 indeholder årstal for lønsedlen.
B142: Tjek øvrige stamdata for året, hvis du skifter årstal
A144: Næste års lønseddel | B144: Jeg satser på at have Net-Løn for det
B145: nye år klar i starten af januar, og du kan så
B146: gå ind på www.stjernerevision.dk og hente det
B147: nye års version.
A149: For de øvede brugere : | B149: Fanebladene : Data v/Virksomhed og Lønmodtager kan så
B150: kopieres over i det nye ark, så du slipper for at
B151: taste dem ind igen.
B152: Kopier linier og brug Indsæt Speciel (værdier)
A154: For ikke øvede brugere : | B154: Du kan sende mig en email, hvor du vedhæfter dit
B155: gamle regneark, så skal jeg opdatere det for dig,
B156: mod et gebyr på 300 kr. + moms

Sheet Virksomhed
A1: Virksomheder indtastes i stigende SE-NR. orden | I1: Kontoplan systematik for lønkonti v/lønmodtager--------- | P1: Kontonumre for lønkonti v/virksomheden-------------------------- | W1: Lønnen Hæves | X1: Skyldig | Y1: Ej skatpl. | Z1: Skyldig | AA1: Pensionsb. | AB1: Pensions | AC1: Skyldig
A2: Virk.navn | B2: SE-nr. | C2: Indehaver | D2: Adresse | E2: Postnr. & By | F2: Lønkladdenavn | G2: Navigatorver. | I2: Dagpenge | J2: ATP | K2: Feriep.&SH | L2: AM-bidrag | M2: SP-bidrag | N2: KM.godtg. | O2: Lønindeh. | P2: ATP | Q2: AM-bid. | R2: SP-bid. | S2: Sky.ATP | T2: Sky.AM-bid. | U2: Sky.SP-bid. | V2: Sky.A-skat | W2: Normalt på | X2: Lønindeh. | Y2: Regulering | Z2: SH-bet. | AA2: Lønm.del | AB2: Afregning | AC2: Pension
A3: A | B3: 00 00 00 00 | C3: Må ikke slettes | H3: Standard | I3: 1 | J3: 2 | K3: 5 | L3: 6 | M3: 7 | N3: 8 | O3: 9 | P3: 2623 | Q3: 2626 | R3: 2632 | S3: 6921 | T3: 6930 | U3: 6932 | V3: 6920 | W3: 5810 | X3: 6950 | Y3: 2702 | Z3: 6924 | AA3: 3 | AB3: 2600 | AC3: 6925
A4: TestVirk.navn | B4: 12 34 56 78 | C4: Test.Indehaver | D4: Test.Adr.Virk | E4: 1234 Testby | F4: Løn | G4: Navision | I4: 1 | J4: 2 | K4: 5 | L4: 6 | M4: 7 | N4: 8 | P4: 2623 | Q4: 2626 | R4: 2631 | S4: 6921 | T4: 6930 | U4: 6932 | V4: 6920 | W4: 5810 | X4: 6950 | Y4: 5800 | Z4: 6924 | AA4: 3 | AB4: 2600 | AC4: 6925
A5: * | B5: Å | C5: Må ikke slettes
A8: Indtast Virksomhedens Stamdata på linie 4 i Kolonne A til E
A10: Kolonne I til N indtastes Lønmodtager kontonummer systematik : | G10: Lønkonto
B11: Eks. Lønmodtager Kontonr. : | D11: Ferieberettiget løn : | F11: 2210 | G11: Systematik
D12: Dagpenge : | F12: 2211 | G12: 1
D13: ATP : | F13: 2212 | G13: 2
D14: Pensionsbidrag lønm.del : | F14: 2213 | G14: 3
D15: Feriepenge & SøgneH. : | F15: 2215 | G15: 5
D16: AM-bidrag : | F16: 2216 | G16: 6
D17: SP-bidrag : | F17: 2217 | G17: 7
D18: Skattefri Kørepenge : | F18: 2218 | G18: 8
B19: Næste Lønmodtager bruger så kontonumrene 2220-2228 og så fremdeles
C20: Kontonummeret for den enkelte lønmodtagers konto for
C21: Ferieberettiget løn indtastes på Fanebladet Lønmodtager
A23: Kolonne P til AC indtastes Virksomheds-kontonumre vedr. lønrelaterede konti

Sheet Lønmodtager
K1: Løninde- | M1: Perioden | N1: Betaler | O1: Timeløn | P1: LønPeriode | Q1: dd-mm-åå | R1: dd-mm-åå | S1: Beregn | T1: Beregn | V1: Summeret | W1: Feriepenge | Y1: Løn overføres | AA1: Skal starte i AA
B2: Løn- | C2: Ferie- | D2: Skyldig | E2: Spc.K. | J2: Måneds | K2: holdelses | L2: Perioden | M2: Antal | N2: SP-bid.? | O2: Fast Løn for lønperioden i | P2: Løs | Q2: Dato | R2: Dato | S2: Pension | T2: SøgneH. | U2: Beregnet | V2: Indbetalt | W2: Funktionær=0 | X2: Lønmodt. | Y2: Til Bankkonto | Z2: d7 | AA2: År Til Dato felter | AB2: Excl. AM & SP-bid. | AC2: Lønmodtager | AD2: A-skat | AE2: Lønmodtager | AF2: lønm. + arb.giver | AG2: SP-bidrag dagpenge | AH2: Til betaling | AI2: Udbetalt | AJ2: Antal gange udb. | AK2: Skattefri | AL2: Skattefri | AM2: Lønindeh. | AN2: Indbetalt | AO2: Summering | AP2: Skattefri | AR2: Ej pensionsb.
A3: Navn | B3: KontoNr. | C3: KontoNr. | D3: løn | E3: 6400 | F3: Adresse | G3: Postnr. Og By | H3: Cpr.nr. | I3: Træk% | J3: fradrag | K3: Procent | L3: Feriepenge | M3: Feriedage | N3: Ja = 1 | O3: kolonne P | P3: Uge(1,2,3) | Q3: Ansat | R3: Fratrådt | S3: Ja=1 | T3: Ja=1 | U3: SøgneH. | V3: SøgneH. | W3: Timeløn = 1 | X3: Række.nr | Y3: Reg.nr. Kontonr. | Z3: d7 | AA3: AM-indk. | AB3: Dagpenge & Sygedp. | AC3: AM-bid. | AD3: A-skat | AE3: SP-bid. | AF3: Pensionsbid. | AG3: ATP lønm.bid. + arbg.bid. | AH3: Feriepenge | AI3: Løn netto | AJ3: Dagpengegodtg. | AK3: Bef.godtg. kr. | AL3: Bef.godtg. km. | AM3: Kr. | AN3: Pension | AO3: Timer | AP3: Rejsegodtg. | AQ3: B-Indkomst | AR3: Fri Bil ol.
A4: 0 : Må ikke slettes | B4: 2200 | C4: 6923 | D4: 6940 | E4: 0 | I4: 0 | J4: 0 | L4: 0 | M4: 27.5 | N4: Nej = 0 | P4: Måned | S4: Nej=0 | T4: Nej=0 | U4: 0 | V4: 0 | W4: Fastløn+feriep.=2 | X4: 4 | Y4: 1234 1234567890
A5: Søgenavn indtastes i celle F7 | B5: 2200 | C5: 6923 | D5: 6940 | E5: 0 | F5: Lønm.adr Mangler i Fanebladet Lønmodtager | G5: Lønm. Postnr.&By mangler i Fanebladet Lønmodtager | H5: 000000-0000 | I5: 60 | J5: 0 | K5: 0 | L5: 0 | M5: 0 | N5: 0 | O5: 0 | P5: Måned | Q5: 2007-01-01 | S5: 0 | T5: 0 | U5: 0 | V5: 0 | W5: 1 | X5: 5
A6: Testperson | B6: 2200 | C6: 6923 | D6: 6940 | E6: 0 | F6: Lønm.adr Mangler i Fanebladet Lønmodtager | G6: Lønm. Postnr.&By mangler i Fanebladet Lønmodtager | H6: 12345678-1234 | I6: 46 | J6: 0 | K6: 0 | L6: 0 | M6: 0 | N6: 0 | O6: 200 | P6: Måned | Q6: 2007-01-01 | S6: 0 | T6: 0 | U6: 0 | V6: 0 | W6: 1 | X6: 6
A7: ÅÅÅ | B7: 2200 | C7: 6923 | D7: 6940 | E7: 0 | F7: Lønm.adr Mangler i Fanebladet Lønmodtager | G7: Lønm. Postnr.&By mangler i Fanebladet Lønmodtager | H7: 000000-0000 | I7: 60 | J7: 0 | K7: 0 | L7: 0 | M7: 0 | N7: 0 | O7: 0 | P7: Måned | Q7: 2007-01-01 | S7: 0 | T7: 0 | U7: 0 | V7: 0 | W7: 1 | X7: 7
A8: ÅÅÅ | B8: 2200 | C8: 6923 | D8: 6940 | E8: 0 | F8: Lønm.adr Mangler i Fanebladet Lønmodtager | G8: Lønm. Postnr.&By mangler i Fanebladet Lønmodtager | H8: 000000-0000 | I8: 60 | J8: 0 | K8: 0 | L8: 0 | M8: 0 | N8: 0 | O8: 0 | P8: Måned | Q8: 2007-01-01 | S8: 0 | T8: 0 | U8: 0 | V8: 0 | W8: 1 | X8: 8
A9: ÅÅÅ | B9: 2200 | C9: 6923 | D9: 6940 | E9: 0 | F9: Lønm.adr Mangler i Fanebladet Lønmodtager | G9: Lønm. Postnr.&By mangler i Fanebladet Lønmodtager | H9: 000000-0000 | I9: 60 | J9: 0 | K9: 0 | L9: 0 | M9: 0 | N9: 0 | O9: 0 | P9: Måned | Q9: 2007-01-01 | S9: 0 | T9: 0 | U9: 0 | V9: 0 | W9: 1 | X9: 9
A10: ÅÅÅ | B10: 2200 | C10: 6923 | D10: 6940 | E10: 0 | F10: Lønm.adr Mangler i Fanebladet Lønmodtager | G10: Lønm. Postnr.&By mangler i Fanebladet Lønmodtager | H10: 000000-0000 | I10: 60 | J10: 0 | K10: 0 | L10: 0 | M10: 0 | N10: 0 | O10: 0 | P10: Måned | Q10: 2007-01-01 | S10: 0 | T10: 0 | U10: 0 | V10: 0 | W10: 1 | X10: 10
A11: ÅÅÅ | B11: 2200 | C11: 6923 | D11: 6940 | E11: 0 | F11: Lønm.adr Mangler i Fanebladet Lønmodtager | G11: Lønm. Postnr.&By mangler i Fanebladet Lønmodtager | H11: 000000-0000 | I11: 60 | J11: 0 | K11: 0 | L11: 0 | M11: 0 | N11: 0 | O11: 0 | P11: Måned | Q11: 2007-01-01 | S11: 0 | T11: 0 | U11: 0 | V11: 0 | W11: 1 | X11: 11
A12: ÅÅÅ | B12: 2200 | C12: 6923 | D12: 6940 | E12: 0 | F12: Lønm.adr Mangler i Fanebladet Lønmodtager | G12: Lønm. Postnr.&By mangler i Fanebladet Lønmodtager | H12: 000000-0000 | I12: 60 | J12: 0 | K12: 0 | L12: 0 | M12: 0 | N12: 0 | O12: 0 | P12: Måned | Q12: 2007-01-01 | S12: 0 | T12: 0 | U12: 0 | V12: 0 | W12: 1 | X12: 12
A13: ÅÅÅ | B13: 2200 | C13: 6923 | D13: 6940 | E13: 0 | F13: Lønm.adr Mangler i Fanebladet Lønmodtager | G13: Lønm. Postnr.&By mangler i Fanebladet Lønmodtager | H13: 000000-0000 | I13: 60 | J13: 0 | K13: 0 | L13: 0 | M13: 0 | N13: 0 | O13: 0 | P13: Måned | Q13: 2007-01-01 | S13: 0 | T13: 0 | U13: 0 | V13: 0 | W13: 1 | X13: 13
A14: ÅÅÅ | B14: 2200 | C14: 6923 | D14: 6940 | E14: 0 | F14: Lønm.adr Mangler i Fanebladet Lønmodtager | G14: Lønm. Postnr.&By mangler i Fanebladet Lønmodtager | H14: 000000-0000 | I14: 60 | J14: 0 | K14: 0 | L14: 0 | M14: 0 | N14: 0 | O14: 0 | P14: Måned | Q14: 2007-01-01 | S14: 0 | T14: 0 | U14: 0 | V14: 0 | W14: 1 | X14: 14
A15: ÅÅÅ | B15: 2200 | C15: 6923 | D15: 6940 | E15: 0 | F15: Lønm.adr Mangler i Fanebladet Lønmodtager | G15: Lønm. Postnr.&By mangler i Fanebladet Lønmodtager | H15: 000000-0000 | I15: 60 | J15: 0 | K15: 0 | L15: 0 | M15: 0 | N15: 0 | O15: 0 | P15: Måned | Q15: 2007-01-01 | S15: 0 | T15: 0 | U15: 0 | V15: 0 | W15: 1 | X15: 15
A16: ÅÅÅ | B16: 2200 | C16: 6923 | D16: 6940 | E16: 0 | F16: Lønm.adr Mangler i Fanebladet Lønmodtager | G16: Lønm. Postnr.&By mangler i Fanebladet Lønmodtager | H16: 000000-0000 | I16: 60 | J16: 0 | K16: 0 | L16: 0 | M16: 0 | N16: 0 | O16: 0 | P16: Måned | Q16: 2007-01-01 | S16: 0 | T16: 0 | U16: 0 | V16: 0 | W16: 1 | X16: 16
A17: ÅÅÅ | B17: 2200 | C17: 6923 | D17: 6940 | E17: 0 | F17: Lønm.adr Mangler i Fanebladet Lønmodtager | G17: Lønm. Postnr.&By mangler i Fanebladet Lønmodtager | H17: 000000-0000 | I17: 60 | J17: 0 | K17: 0 | L17: 0 | M17: 0 | N17: 0 | O17: 0 | P17: Måned | Q17: 2007-01-01 | S17: 0 | T17: 0 | U17: 0 | V17: 0 | W17: 1 | X17: 17
A18: ÅÅÅ | B18: 2200 | C18: 6923 | D18: 6940 | E18: 0 | F18: Lønm.adr Mangler i Fanebladet Lønmodtager | G18: Lønm. Postnr.&By mangler i Fanebladet Lønmodtager | H18: 000000-0000 | I18: 60 | J18: 0 | K18: 0 | L18: 0 | M18: 0 | N18: 0 | O18: 0 | P18: Måned | Q18: 2007-01-01 | S18: 0 | T18: 0 | U18: 0 | V18: 0 | W18: 1 | X18: 18
A19: ÅÅÅ | B19: 2200 | C19: 6923 | D19: 6940 | E19: 0 | F19: Lønm.adr Mangler i Fanebladet Lønmodtager | G19: Lønm. Postnr.&By mangler i Fanebladet Lønmodtager | H19: 000000-0000 | I19: 60 | J19: 0 | K19: 0 | L19: 0 | M19: 0 | N19: 0 | O19: 0 | P19: Måned | Q19: 2007-01-01 | S19: 0 | T19: 0 | U19: 0 | V19: 0 | W19: 1 | X19: 19
A20: ÅÅÅ | B20: 2200 | C20: 6923 | D20: 6940 | E20: 0 | F20: Lønm.adr Mangler i Fanebladet Lønmodtager | G20: Lønm. Postnr.&By mangler i Fanebladet Lønmodtager | H20: 000000-0000 | I20: 60 | J20: 0 | K20: 0 | L20: 0 | M20: 0 | N20: 0 | O20: 0 | P20: Måned | Q20: 2007-01-01 | S20: 0 | T20: 0 | U20: 0 | V20: 0 | W20: 1 | X20: 20
A21: ÅÅÅ | B21: 2200 | C21: 6923 | D21: 6940 | E21: 0 | F21: Lønm.adr Mangler i Fanebladet Lønmodtager | G21: Lønm. Postnr.&By mangler i Fanebladet Lønmodtager | H21: 000000-0000 | I21: 60 | J21: 0 | K21: 0 | L21: 0 | M21: 0 | N21: 0 | O21: 0 | P21: Måned | Q21: 2007-01-01 | S21: 0 | T21: 0 | U21: 0 | V21: 0 | W21: 1 | X21: 21
A22: ÅÅÅ | B22: 2200 | C22: 6923 | D22: 6940 | E22: 0 | F22: Lønm.adr Mangler i Fanebladet Lønmodtager | G22: Lønm. Postnr.&By mangler i Fanebladet Lønmodtager | H22: 000000-0000 | I22: 60 | J22: 0 | K22: 0 | L22: 0 | M22: 0 | N22: 0 | O22: 0 | P22: Måned | Q22: 2007-01-01 | S22: 0 | T22: 0 | U22: 0 | V22: 0 | W22: 1 | X22: 22
A23: ÅÅÅ | B23: 2200 | C23: 6923 | D23: 6940 | E23: 0 | F23: Lønm.adr Mangler i Fanebladet Lønmodtager | G23: Lønm. Postnr.&By mangler i Fanebladet Lønmodtager | H23: 000000-0000 | I23: 60 | J23: 0 | K23: 0 | L23: 0 | M23: 0 | N23: 0 | O23: 0 | P23: Måned | Q23: 2007-01-01 | S23: 0 | T23: 0 | U23: 0 | V23: 0 | W23: 1 | X23: 23
A24: ÅÅÅ | B24: 2200 | C24: 6923 | D24: 6940 | E24: 0 | F24: Lønm.adr Mangler i Fanebladet Lønmodtager | G24: Lønm. Postnr.&By mangler i Fanebladet Lønmodtager | H24: 000000-0000 | I24: 60 | J24: 0 | K24: 0 | L24: 0 | M24: 0 | N24: 0 | O24: 0 | P24: Måned | Q24: 2007-01-01 | S24: 0 | T24: 0 | U24: 0 | V24: 0 | W24: 1 | X24: 24
A25: ÅÅÅ | B25: 2200 | C25: 6923 | D25: 6940 | E25: 0 | F25: Lønm.adr Mangler i Fanebladet Lønmodtager | G25: Lønm. Postnr.&By mangler i Fanebladet Lønmodtager | H25: 000000-0000 | I25: 60 | J25: 0 | K25: 0 | L25: 0 | M25: 0 | N25: 0 | O25: 0 | P25: Måned | Q25: 2007-01-01 | S25: 0 | T25: 0 | U25: 0 | V25: 0 | W25: 1 | X25: 25
A26: ÅÅÅ | B26: 2200 | C26: 6923 | D26: 6940 | E26: 0 | F26: Lønm.adr Mangler i Fanebladet Lønmodtager | G26: Lønm. Postnr.&By mangler i Fanebladet Lønmodtager | H26: 000000-0000 | I26: 60 | J26: 0 | K26: 0 | L26: 0 | M26: 0 | N26: 0 | O26: 0 | P26: Måned | Q26: 2007-01-01 | S26: 0 | T26: 0 | U26: 0 | V26: 0 | W26: 1 | X26: 26
A27: ÅÅÅ | B27: 2200 | C27: 6923 | D27: 6940 | E27: 0 | F27: Lønm.adr Mangler i Fanebladet Lønmodtager | G27: Lønm. Postnr.&By mangler i Fanebladet Lønmodtager | H27: 000000-0000 | I27: 60 | J27: 0 | K27: 0 | L27: 0 | M27: 0 | N27: 0 | O27: 0 | P27: Måned | Q27: 2007-01-01 | S27: 0 | T27: 0 | U27: 0 | V27: 0 | W27: 1 | X27: 27
A28: ÅÅÅ | B28: 2200 | C28: 6923 | D28: 6940 | E28: 0 | F28: Lønm.adr Mangler i Fanebladet Lønmodtager | G28: Lønm. Postnr.&By mangler i Fanebladet Lønmodtager | H28: 000000-0000 | I28: 60 | J28: 0 | K28: 0 | L28: 0 | M28: 0 | N28: 0 | O28: 0 | P28: Måned | Q28: 2007-01-01 | S28: 0 | T28: 0 | U28: 0 | V28: 0 | W28: 1 | X28: 28
A29: ÅÅÅ | B29: 2200 | C29: 6923 | D29: 6940 | E29: 0 | F29: Lønm.adr Mangler i Fanebladet Lønmodtager | G29: Lønm. Postnr.&By mangler i Fanebladet Lønmodtager | H29: 000000-0000 | I29: 60 | J29: 0 | K29: 0 | L29: 0 | M29: 0 | N29: 0 | O29: 0 | P29: Måned | Q29: 2007-01-01 | S29: 0 | T29: 0 | U29: 0 | V29: 0 | W29: 1 | X29: 29
A30: ÅÅÅ | B30: 2200 | C30: 6923 | D30: 6940 | E30: 0 | F30: Lønm.adr Mangler i Fanebladet Lønmodtager | G30: Lønm. Postnr.&By mangler i Fanebladet Lønmodtager | H30: 000000-0000 | I30: 60 | J30: 0 | K30: 0 | L30: 0 | M30: 0 | N30: 0 | O30: 0 | P30: Måned | Q30: 2007-01-01 | S30: 0 | T30: 0 | U30: 0 | V30: 0 | W30: 1 | X30: 30
A31: ÅÅÅ | B31: 2200 | C31: 6923 | D31: 6940 | E31: 0 | F31: Lønm.adr Mangler i Fanebladet Lønmodtager | G31: Lønm. Postnr.&By mangler i Fanebladet Lønmodtager | H31: 000000-0000 | I31: 60 | J31: 0 | K31: 0 | L31: 0 | M31: 0 | N31: 0 | O31: 0 | P31: Måned | Q31: 2007-01-01 | S31: 0 | T31: 0 | U31: 0 | V31: 0 | W31: 1 | X31: 31
A32: ÅÅÅ | B32: 2200 | C32: 6923 | D32: 6940 | E32: 0 | F32: Lønm.adr Mangler i Fanebladet Lønmodtager | G32: Lønm. Postnr.&By mangler i Fanebladet Lønmodtager | H32: 000000-0000 | I32: 60 | J32: 0 | K32: 0 | L32: 0 | M32: 0 | N32: 0 | O32: 0 | P32: Måned | Q32: 2007-01-01 | S32: 0 | T32: 0 | U32: 0 | V32: 0 | W32: 1 | X32: 32
A33: ÅÅÅ | B33: 2200 | C33: 6923 | D33: 6940 | E33: 0 | F33: Lønm.adr Mangler i Fanebladet Lønmodtager | G33: Lønm. Postnr.&By mangler i Fanebladet Lønmodtager | H33: 000000-0000 | I33: 60 | J33: 0 | K33: 0 | L33: 0 | M33: 0 | N33: 0 | O33: 0 | P33: Måned | Q33: 2007-01-01 | S33: 0 | T33: 0 | U33: 0 | V33: 0 | W33: 1 | X33: 33
A34: ÅÅÅ | B34: 2200 | C34: 6923 | D34: 6940 | E34: 0 | F34: Lønm.adr Mangler i Fanebladet Lønmodtager | G34: Lønm. Postnr.&By mangler i Fanebladet Lønmodtager | H34: 000000-0000 | I34: 60 | J34: 0 | K34: 0 | L34: 0 | M34: 0 | N34: 0 | O34: 0 | P34: Måned | Q34: 2007-01-01 | S34: 0 | T34: 0 | U34: 0 | V34: 0 | W34: 1 | X34: 34
A35: ÅÅÅ | B35: 2200 | C35: 6923 | D35: 6940 | E35: 0 | F35: Lønm.adr Mangler i Fanebladet Lønmodtager | G35: Lønm. Postnr.&By mangler i Fanebladet Lønmodtager | H35: 000000-0000 | I35: 60 | J35: 0 | K35: 0 | L35: 0 | M35: 0 | N35: 0 | O35: 0 | P35: Måned | Q35: 2007-01-01 | S35: 0 | T35: 0 | U35: 0 | V35: 0 | W35: 1 | X35: 35
A36: ÅÅÅ | B36: 2200 | C36: 6923 | D36: 6940 | E36: 0 | F36: Lønm.adr Mangler i Fanebladet Lønmodtager | G36: Lønm. Postnr.&By mangler i Fanebladet Lønmodtager | H36: 000000-0000 | I36: 60 | J36: 0 | K36: 0 | L36: 0 | M36: 0 | N36: 0 | O36: 0 | P36: Måned | Q36: 2007-01-01 | S36: 0 | T36: 0 | U36: 0 | V36: 0 | W36: 1 | X36: 36
A37: ÅÅÅ | B37: 2200 | C37: 6923 | D37: 6940 | E37: 0 | F37: Lønm.adr Mangler i Fanebladet Lønmodtager | G37: Lønm. Postnr.&By mangler i Fanebladet Lønmodtager | H37: 000000-0000 | I37: 60 | J37: 0 | K37: 0 | L37: 0 | M37: 0 | N37: 0 | O37: 0 | P37: Måned | Q37: 2007-01-01 | S37: 0 | T37: 0 | U37: 0 | V37: 0 | W37: 1 | X37: 37
A38: ÅÅÅ | B38: 2200 | C38: 6923 | D38: 6940 | E38: 0 | F38: Lønm.adr Mangler i Fanebladet Lønmodtager | G38: Lønm. Postnr.&By mangler i Fanebladet Lønmodtager | H38: 000000-0000 | I38: 60 | J38: 0 | K38: 0 | L38: 0 | M38: 0 | N38: 0 | O38: 0 | P38: Måned | Q38: 2007-01-01 | S38: 0 | T38: 0 | U38: 0 | V38: 0 | W38: 1 | X38: 38
A39: ÅÅÅ | B39: 2200 | C39: 6923 | D39: 6940 | E39: 0 | F39: Lønm.adr Mangler i Fanebladet Lønmodtager | G39: Lønm. Postnr.&By mangler i Fanebladet Lønmodtager | H39: 000000-0000 | I39: 60 | J39: 0 | K39: 0 | L39: 0 | M39: 0 | N39: 0 | O39: 0 | P39: Måned | Q39: 2007-01-01 | S39: 0 | T39: 0 | U39: 0 | V39: 0 | W39: 1 | X39: 39
A40: ÅÅÅ | B40: 2200 | C40: 6923 | D40: 6940 | E40: 0 | F40: Lønm.adr Mangler i Fanebladet Lønmodtager | G40: Lønm. Postnr.&By mangler i Fanebladet Lønmodtager | H40: 000000-0000 | I40: 60 | J40: 0 | K40: 0 | L40: 0 | M40: 0 | N40: 0 | O40: 0 | P40: Måned | Q40: 2007-01-01 | S40: 0 | T40: 0 | U40: 0 | V40: 0 | W40: 1 | X40: 40
A41: ÅÅÅ | B41: 2200 | C41: 6923 | D41: 6940 | E41: 0 | F41: Lønm.adr Mangler i Fanebladet Lønmodtager | G41: Lønm. Postnr.&By mangler i Fanebladet Lønmodtager | H41: 000000-0000 | I41: 60 | J41: 0 | K41: 0 | L41: 0 | M41: 0 | N41: 0 | O41: 0 | P41: Måned | Q41: 2007-01-01 | S41: 0 | T41: 0 | U41: 0 | V41: 0 | W41: 1 | X41: 41
A42: ÅÅÅ | B42: 2200 | C42: 6923 | D42: 6940 | E42: 0 | F42: Lønm.adr Mangler i Fanebladet Lønmodtager | G42: Lønm. Postnr.&By mangler i Fanebladet Lønmodtager | H42: 000000-0000 | I42: 60 | J42: 0 | K42: 0 | L42: 0 | M42: 0 | N42: 0 | O42: 0 | P42: Måned | Q42: 2007-01-01 | S42: 0 | T42: 0 | U42: 0 | V42: 0 | W42: 1 | X42: 42
A43: ÅÅÅ | B43: 2200 | C43: 6923 | D43: 6940 | E43: 0 | F43: Lønm.adr Mangler i Fanebladet Lønmodtager | G43: Lønm. Postnr.&By mangler i Fanebladet Lønmodtager | H43: 000000-0000 | I43: 60 | J43: 0 | K43: 0 | L43: 0 | M43: 0 | N43: 0 | O43: 0 | P43: Måned | Q43: 2007-01-01 | S43: 0 | T43: 0 | U43: 0 | V43: 0 | W43: 1 | X43: 43
A44: ÅÅÅ | B44: 2200 | C44: 6923 | D44: 6940 | E44: 0 | F44: Lønm.adr Mangler i Fanebladet Lønmodtager | G44: Lønm. Postnr.&By mangler i Fanebladet Lønmodtager | H44: 000000-0000 | I44: 60 | J44: 0 | K44: 0 | L44: 0 | M44: 0 | N44: 0 | O44: 0 | P44: Måned | Q44: 2007-01-01 | S44: 0 | T44: 0 | U44: 0 | V44: 0 | W44: 1 | X44: 44
A45: ÅÅÅ | B45: 2200 | C45: 6923 | D45: 6940 | E45: 0 | F45: Lønm.adr Mangler i Fanebladet Lønmodtager | G45: Lønm. Postnr.&By mangler i Fanebladet Lønmodtager | H45: 000000-0000 | I45: 60 | J45: 0 | K45: 0 | L45: 0 | M45: 0 | N45: 0 | O45: 0 | P45: Måned | Q45: 2007-01-01 | S45: 0 | T45: 0 | U45: 0 | V45: 0 | W45: 1 | X45: 45
A46: ÅÅÅ | B46: 2200 | C46: 6923 | D46: 6940 | E46: 0 | F46: Lønm.adr Mangler i Fanebladet Lønmodtager | G46: Lønm. Postnr.&By mangler i Fanebladet Lønmodtager | H46: 000000-0000 | I46: 60 | J46: 0 | K46: 0 | L46: 0 | M46: 0 | N46: 0 | O46: 0 | P46: Måned | Q46: 2007-01-01 | S46: 0 | T46: 0 | U46: 0 | V46: 0 | W46: 1 | X46: 46
A47: ÅÅÅ | B47: 2200 | C47: 6923 | D47: 6940 | E47: 0 | F47: Lønm.adr Mangler i Fanebladet Lønmodtager | G47: Lønm. Postnr.&By mangler i Fanebladet Lønmodtager | H47: 000000-0000 | I47: 60 | J47: 0 | K47: 0 | L47: 0 | M47: 0 | N47: 0 | O47: 0 | P47: Måned | Q47: 2007-01-01 | S47: 0 | T47: 0 | U47: 0 | V47: 0 | W47: 1 | X47: 47
A48: ÅÅÅ | B48: 2200 | C48: 6923 | D48: 6940 | E48: 0 | F48: Lønm.adr Mangler i Fanebladet Lønmodtager | G48: Lønm. Postnr.&By mangler i Fanebladet Lønmodtager | H48: 000000-0000 | I48: 60 | J48: 0 | K48: 0 | L48: 0 | M48: 0 | N48: 0 | O48: 0 | P48: Måned | Q48: 2007-01-01 | S48: 0 | T48: 0 | U48: 0 | V48: 0 | W48: 1 | X48: 48
A49: ÅÅÅ | B49: 2200 | C49: 6923 | D49: 6940 | E49: 0 | F49: Lønm.adr Mangler i Fanebladet Lønmodtager | G49: Lønm. Postnr.&By mangler i Fanebladet Lønmodtager | H49: 000000-0000 | I49: 60 | J49: 0 | K49: 0 | L49: 0 | M49: 0 | N49: 0 | O49: 0 | P49: Måned | Q49: 2007-01-01 | S49: 0 | T49: 0 | U49: 0 | V49: 0 | W49: 1 | X49: 49
A50: ÅÅÅ | B50: 2200 | C50: 6923 | D50: 6940 | E50: 0 | F50: Lønm.adr Mangler i Fanebladet Lønmodtager | G50: Lønm. Postnr.&By mangler i Fanebladet Lønmodtager | H50: 000000-0000 | I50: 60 | J50: 0 | K50: 0 | L50: 0 | M50: 0 | N50: 0 | O50: 0 | P50: Måned | Q50: 2007-01-01 | S50: 0 | T50: 0 | U50: 0 | V50: 0 | W50: 1 | X50: 50
A51: ÅÅÅ | B51: 2200 | C51: 6923 | D51: 6940 | E51: 0 | F51: Lønm.adr Mangler i Fanebladet Lønmodtager | G51: Lønm. Postnr.&By mangler i Fanebladet Lønmodtager | H51: 000000-0000 | I51: 60 | J51: 0 | K51: 0 | L51: 0 | M51: 0 | N51: 0 | O51: 0 | P51: Måned | Q51: 2007-01-01 | S51: 0 | T51: 0 | U51: 0 | V51: 0 | W51: 1 | X51: 51
A52: ÅÅÅ | B52: 2200 | C52: 6923 | D52: 6940 | E52: 0 | F52: Lønm.adr Mangler i Fanebladet Lønmodtager | G52: Lønm. Postnr.&By mangler i Fanebladet Lønmodtager | H52: 000000-0000 | I52: 60 | J52: 0 | K52: 0 | L52: 0 | M52: 0 | N52: 0 | O52: 0 | P52: Måned | Q52: 2007-01-01 | S52: 0 | T52: 0 | U52: 0 | V52: 0 | W52: 1 | X52: 52
A53: ÅÅÅ | B53: 2200 | C53: 6923 | D53: 6940 | E53: 0 | F53: Lønm.adr Mangler i Fanebladet Lønmodtager | G53: Lønm. Postnr.&By mangler i Fanebladet Lønmodtager | H53: 000000-0000 | I53: 60 | J53: 0 | K53: 0 | L53: 0 | M53: 0 | N53: 0 | O53: 0 | P53: Måned | Q53: 2007-01-01 | S53: 0 | T53: 0 | U53: 0 | V53: 0 | W53: 1 | X53: 53
A54: ÅÅÅ | B54: 2200 | C54: 6923 | D54: 6940 | E54: 0 | F54: Lønm.adr Mangler i Fanebladet Lønmodtager | G54: Lønm. Postnr.&By mangler i Fanebladet Lønmodtager | H54: 000000-0000 | I54: 60 | J54: 0 | K54: 0 | L54: 0 | M54: 0 | N54: 0 | O54: 0 | P54: Måned | Q54: 2007-01-01 | S54: 0 | T54: 0 | U54: 0 | V54: 0 | W54: 1 | X54: 54
A55: ÅÅÅ | B55: 2200 | C55: 6923 | D55: 6940 | E55: 0 | F55: Lønm.adr Mangler i Fanebladet Lønmodtager | G55: Lønm. Postnr.&By mangler i Fanebladet Lønmodtager | H55: 000000-0000 | I55: 60 | J55: 0 | K55: 0 | L55: 0 | M55: 0 | N55: 0 | O55: 0 | P55: Måned | Q55: 2007-01-01 | S55: 0 | T55: 0 | U55: 0 | V55: 0 | W55: 1 | X55: 55
A56: ÅÅÅ | B56: 2200 | C56: 6923 | D56: 6940 | E56: 0 | F56: Lønm.adr Mangler i Fanebladet Lønmodtager | G56: Lønm. Postnr.&By mangler i Fanebladet Lønmodtager | H56: 000000-0000 | I56: 60 | J56: 0 | K56: 0 | L56: 0 | M56: 0 | N56: 0 | O56: 0 | P56: Måned | Q56: 2007-01-01 | S56: 0 | T56: 0 | U56: 0 | V56: 0 | W56: 1 | X56: 56
A57: ÅÅÅ | B57: 2200 | C57: 6923 | D57: 6940 | E57: 0 | F57: Lønm.adr Mangler i Fanebladet Lønmodtager | G57: Lønm. Postnr.&By mangler i Fanebladet Lønmodtager | H57: 000000-0000 | I57: 60 | J57: 0 | K57: 0 | L57: 0 | M57: 0 | N57: 0 | O57: 0 | P57: Måned | Q57: 2007-01-01 | S57: 0 | T57: 0 | U57: 0 | V57: 0 | W57: 1 | X57: 57
A58: ÅÅÅ | B58: 2200 | C58: 6923 | D58: 6940 | E58: 0 | F58: Lønm.adr Mangler i Fanebladet Lønmodtager | G58: Lønm. Postnr.&By mangler i Fanebladet Lønmodtager | H58: 000000-0000 | I58: 60 | J58: 0 | K58: 0 | L58: 0 | M58: 0 | N58: 0 | O58: 0 | P58: Måned | Q58: 2007-01-01 | S58: 0 | T58: 0 | U58: 0 | V58: 0 | W58: 1 | X58: 58
A59: ÅÅÅ | B59: 2200 | C59: 6923 | D59: 6940 | E59: 0 | F59: Lønm.adr Mangler i Fanebladet Lønmodtager | G59: Lønm. Postnr.&By mangler i Fanebladet Lønmodtager | H59: 000000-0000 | I59: 60 | J59: 0 | K59: 0 | L59: 0 | M59: 0 | N59: 0 | O59: 0 | P59: Måned | Q59: 2007-01-01 | S59: 0 | T59: 0 | U59: 0 | V59: 0 | W59: 1 | X59: 59
A60: ÅÅÅ | B60: 2200 | C60: 6923 | D60: 6940 | E60: 0 | F60: Lønm.adr Mangler i Fanebladet Lønmodtager | G60: Lønm. Postnr.&By mangler i Fanebladet Lønmodtager | H60: 000000-0000 | I60: 60 | J60: 0 | K60: 0 | L60: 0 | M60: 0 | N60: 0 | O60: 0 | P60: Måned | Q60: 2007-01-01 | S60: 0 | T60: 0 | U60: 0 | V60: 0 | W60: 1 | X60: 60
A61: ÅÅÅ | B61: 2200 | C61: 6923 | D61: 6940 | E61: 0 | F61: Lønm.adr Mangler i Fanebladet Lønmodtager | G61: Lønm. Postnr.&By mangler i Fanebladet Lønmodtager | H61: 000000-0000 | I61: 60 | J61: 0 | K61: 0 | L61: 0 | M61: 0 | N61: 0 | O61: 0 | P61: Måned | Q61: 2007-01-01 | S61: 0 | T61: 0 | U61: 0 | V61: 0 | W61: 1 | X61: 61
A62: ÅÅÅ | B62: 2200 | C62: 6923 | D62: 6940 | E62: 0 | F62: Lønm.adr Mangler i Fanebladet Lønmodtager | G62: Lønm. Postnr.&By mangler i Fanebladet Lønmodtager | H62: 000000-0000 | I62: 60 | J62: 0 | K62: 0 | L62: 0 | M62: 0 | N62: 0 | O62: 0 | P62: Måned | Q62: 2007-01-01 | S62: 0 | T62: 0 | U62: 0 | V62: 0 | W62: 1 | X62: 62
A63: ÅÅÅ | B63: 2200 | C63: 6923 | D63: 6940 | E63: 0 | F63: Lønm.adr Mangler i Fanebladet Lønmodtager | G63: Lønm. Postnr.&By mangler i Fanebladet Lønmodtager | H63: 000000-0000 | I63: 60 | J63: 0 | K63: 0 | L63: 0 | M63: 0 | N63: 0 | O63: 0 | P63: Måned | Q63: 2007-01-01 | S63: 0 | T63: 0 | U63: 0 | V63: 0 | W63: 1 | X63: 63
A64: ÅÅÅ | B64: 2200 | C64: 6923 | D64: 6940 | E64: 0 | F64: Lønm.adr Mangler i Fanebladet Lønmodtager | G64: Lønm. Postnr.&By mangler i Fanebladet Lønmodtager | H64: 000000-0000 | I64: 60 | J64: 0 | K64: 0 | L64: 0 | M64: 0 | N64: 0 | O64: 0 | P64: Måned | Q64: 2007-01-01 | S64: 0 | T64: 0 | U64: 0 | V64: 0 | W64: 1 | X64: 64
A65: ÅÅÅ | B65: 2200 | C65: 6923 | D65: 6940 | E65: 0 | F65: Lønm.adr Mangler i Fanebladet Lønmodtager | G65: Lønm. Postnr.&By mangler i Fanebladet Lønmodtager | H65: 000000-0000 | I65: 60 | J65: 0 | K65: 0 | L65: 0 | M65: 0 | N65: 0 | O65: 0 | P65: Måned | Q65: 2007-01-01 | S65: 0 | T65: 0 | U65: 0 | V65: 0 | W65: 1 | X65: 65
A66: ÅÅÅ | B66: 2200 | C66: 6923 | D66: 6940 | E66: 0 | F66: Lønm.adr Mangler i Fanebladet Lønmodtager | G66: Lønm. Postnr.&By mangler i Fanebladet Lønmodtager | H66: 000000-0000 | I66: 60 | J66: 0 | K66: 0 | L66: 0 | M66: 0 | N66: 0 | O66: 0 | P66: Måned | Q66: 2007-01-01 | S66: 0 | T66: 0 | U66: 0 | V66: 0 | W66: 1 | X66: 66
A67: ÅÅÅ | B67: 2200 | C67: 6923 | D67: 6940 | E67: 0 | F67: Lønm.adr Mangler i Fanebladet Lønmodtager | G67: Lønm. Postnr.&By mangler i Fanebladet Lønmodtager | H67: 000000-0000 | I67: 60 | J67: 0 | K67: 0 | L67: 0 | M67: 0 | N67: 0 | O67: 0 | P67: Måned | Q67: 2007-01-01 | S67: 0 | T67: 0 | U67: 0 | V67: 0 | W67: 1 | X67: 67
A68: ÅÅÅ | B68: 2200 | C68: 6923 | D68: 6940 | E68: 0 | F68: Lønm.adr Mangler i Fanebladet Lønmodtager | G68: Lønm. Postnr.&By mangler i Fanebladet Lønmodtager | H68: 000000-0000 | I68: 60 | J68: 0 | K68: 0 | L68: 0 | M68: 0 | N68: 0 | O68: 0 | P68: Måned | Q68: 2007-01-01 | S68: 0 | T68: 0 | U68: 0 | V68: 0 | W68: 1 | X68: 68
A69: ÅÅÅ | B69: 2200 | C69: 6923 | D69: 6940 | E69: 0 | F69: Lønm.adr Mangler i Fanebladet Lønmodtager | G69: Lønm. Postnr.&By mangler i Fanebladet Lønmodtager | H69: 000000-0000 | I69: 60 | J69: 0 | K69: 0 | L69: 0 | M69: 0 | N69: 0 | O69: 0 | P69: Måned | Q69: 2007-01-01 | S69: 0 | T69: 0 | U69: 0 | V69: 0 | W69: 1 | X69: 69
A70: ÅÅÅ | B70: 2200 | C70: 6923 | D70: 6940 | E70: 0 | F70: Lønm.adr Mangler i Fanebladet Lønmodtager | G70: Lønm. Postnr.&By mangler i Fanebladet Lønmodtager | H70: 000000-0000 | I70: 60 | J70: 0 | K70: 0 | L70: 0 | M70: 0 | N70: 0 | O70: 0 | P70: Måned | Q70: 2007-01-01 | S70: 0 | T70: 0 | U70: 0 | V70: 0 | W70: 1 | X70: 70
A71: ÅÅÅ | B71: 2200 | C71: 6923 | D71: 6940 | E71: 0 | F71: Lønm.adr Mangler i Fanebladet Lønmodtager | G71: Lønm. Postnr.&By mangler i Fanebladet Lønmodtager | H71: 000000-0000 | I71: 60 | J71: 0 | K71: 0 | L71: 0 | M71: 0 | N71: 0 | O71: 0 | P71: Måned | Q71: 2007-01-01 | S71: 0 | T71: 0 | U71: 0 | V71: 0 | W71: 1 | X71: 71
A72: ÅÅÅ | B72: 2200 | C72: 6923 | D72: 6940 | E72: 0 | F72: Lønm.adr Mangler i Fanebladet Lønmodtager | G72: Lønm. Postnr.&By mangler i Fanebladet Lønmodtager | H72: 000000-0000 | I72: 60 | J72: 0 | K72: 0 | L72: 0 | M72: 0 | N72: 0 | O72: 0 | P72: Måned | Q72: 2007-01-01 | S72: 0 | T72: 0 | U72: 0 | V72: 0 | W72: 1 | X72: 72
A73: ÅÅÅ | B73: 2200 | C73: 6923 | D73: 6940 | E73: 0 | F73: Lønm.adr Mangler i Fanebladet Lønmodtager | G73: Lønm. Postnr.&By mangler i Fanebladet Lønmodtager | H73: 000000-0000 | I73: 60 | J73: 0 | K73: 0 | L73: 0 | M73: 0 | N73: 0 | O73: 0 | P73: Måned | Q73: 2007-01-01 | S73: 0 | T73: 0 | U73: 0 | V73: 0 | W73: 1 | X73: 73
A74: ÅÅÅ | B74: 2200 | C74: 6923 | D74: 6940 | E74: 0 | F74: Lønm.adr Mangler i Fanebladet Lønmodtager | G74: Lønm. Postnr.&By mangler i Fanebladet Lønmodtager | H74: 000000-0000 | I74: 60 | J74: 0 | K74: 0 | L74: 0 | M74: 0 | N74: 0 | O74: 0 | P74: Måned | Q74: 2007-01-01 | S74: 0 | T74: 0 | U74: 0 | V74: 0 | W74: 1 | X74: 74
A75: ÅÅÅ | B75: 2200 | C75: 6923 | D75: 6940 | E75: 0 | F75: Lønm.adr Mangler i Fanebladet Lønmodtager | G75: Lønm. Postnr.&By mangler i Fanebladet Lønmodtager | H75: 000000-0000 | I75: 60 | J75: 0 | K75: 0 | L75: 0 | M75: 0 | N75: 0 | O75: 0 | P75: Måned | Q75: 2007-01-01 | S75: 0 | T75: 0 | U75: 0 | V75: 0 | W75: 1 | X75: 75
A76: ÅÅÅ | B76: 2200 | C76: 6923 | D76: 6940 | E76: 0 | F76: Lønm.adr Mangler i Fanebladet Lønmodtager | G76: Lønm. Postnr.&By mangler i Fanebladet Lønmodtager | H76: 000000-0000 | I76: 60 | J76: 0 | K76: 0 | L76: 0 | M76: 0 | N76: 0 | O76: 0 | P76: Måned | Q76: 2007-01-01 | S76: 0 | T76: 0 | U76: 0 | V76: 0 | W76: 1 | X76: 76
A77: ÅÅÅ | B77: 2200 | C77: 6923 | D77: 6940 | E77: 0 | F77: Lønm.adr Mangler i Fanebladet Lønmodtager | G77: Lønm. Postnr.&By mangler i Fanebladet Lønmodtager | H77: 000000-0000 | I77: 60 | J77: 0 | K77: 0 | L77: 0 | M77: 0 | N77: 0 | O77: 0 | P77: Måned | Q77: 2007-01-01 | S77: 0 | T77: 0 | U77: 0 | V77: 0 | W77: 1 | X77: 77
A78: ÅÅÅ | B78: 2200 | C78: 6923 | D78: 6940 | E78: 0 | F78: Lønm.adr Mangler i Fanebladet Lønmodtager | G78: Lønm. Postnr.&By mangler i Fanebladet Lønmodtager | H78: 000000-0000 | I78: 60 | J78: 0 | K78: 0 | L78: 0 | M78: 0 | N78: 0 | O78: 0 | P78: Måned | Q78: 2007-01-01 | S78: 0 | T78: 0 | U78: 0 | V78: 0 | W78: 1 | X78: 78
A79: ÅÅÅ | B79: 2200 | C79: 6923 | D79: 6940 | E79: 0 | F79: Lønm.adr Mangler i Fanebladet Lønmodtager | G79: Lønm. Postnr.&By mangler i Fanebladet Lønmodtager | H79: 000000-0000 | I79: 60 | J79: 0 | K79: 0 | L79: 0 | M79: 0 | N79: 0 | O79: 0 | P79: Måned | Q79: 2007-01-01 | S79: 0 | T79: 0 | U79: 0 | V79: 0 | W79: 1 | X79: 79
A80: ÅÅÅ | B80: 2200 | C80: 6923 | D80: 6940 | E80: 0 | F80: Lønm.adr Mangler i Fanebladet Lønmodtager | G80: Lønm. Postnr.&By mangler i Fanebladet Lønmodtager | H80: 000000-0000 | I80: 60 | J80: 0 | K80: 0 | L80: 0 | M80: 0 | N80: 0 | O80: 0 | P80: Måned | Q80: 2007-01-01 | S80: 0 | T80: 0 | U80: 0 | V80: 0 | W80: 1 | X80: 80
A81: ÅÅÅ | B81: 2200 | C81: 6923 | D81: 6940 | E81: 0 | F81: Lønm.adr Mangler i Fanebladet Lønmodtager | G81: Lønm. Postnr.&By mangler i Fanebladet Lønmodtager | H81: 000000-0000 | I81: 60 | J81: 0 | K81: 0 | L81: 0 | M81: 0 | N81: 0 | O81: 0 | P81: Måned | Q81: 2007-01-01 | S81: 0 | T81: 0 | U81: 0 | V81: 0 | W81: 1 | X81: 81
A82: ÅÅÅ | B82: 2200 | C82: 6923 | D82: 6940 | E82: 0 | F82: Lønm.adr Mangler i Fanebladet Lønmodtager | G82: Lønm. Postnr.&By mangler i Fanebladet Lønmodtager | H82: 000000-0000 | I82: 60 | J82: 0 | K82: 0 | L82: 0 | M82: 0 | N82: 0 | O82: 0 | P82: Måned | Q82: 2007-01-01 | S82: 0 | T82: 0 | U82: 0 | V82: 0 | W82: 1 | X82: 82
A83: ÅÅÅ | B83: 2200 | C83: 6923 | D83: 6940 | E83: 0 | F83: Lønm.adr Mangler i Fanebladet Lønmodtager | G83: Lønm. Postnr.&By mangler i Fanebladet Lønmodtager | H83: 000000-0000 | I83: 60 | J83: 0 | K83: 0 | L83: 0 | M83: 0 | N83: 0 | O83: 0 | P83: Måned | Q83: 2007-01-01 | S83: 0 | T83: 0 | U83: 0 | V83: 0 | W83: 1 | X83: 83
A84: ÅÅÅ | B84: 2200 | C84: 6923 | D84: 6940 | E84: 0 | F84: Lønm.adr Mangler i Fanebladet Lønmodtager | G84: Lønm. Postnr.&By mangler i Fanebladet Lønmodtager | H84: 000000-0000 | I84: 60 | J84: 0 | K84: 0 | L84: 0 | M84: 0 | N84: 0 | O84: 0 | P84: Måned | Q84: 2007-01-01 | S84: 0 | T84: 0 | U84: 0 | V84: 0 | W84: 1 | X84: 84
A85: ÅÅÅ | B85: 2200 | C85: 6923 | D85: 6940 | E85: 0 | F85: Lønm.adr Mangler i Fanebladet Lønmodtager | G85: Lønm. Postnr.&By mangler i Fanebladet Lønmodtager | H85: 000000-0000 | I85: 60 | J85: 0 | K85: 0 | L85: 0 | M85: 0 | N85: 0 | O85: 0 | P85: Måned | Q85: 2007-01-01 | S85: 0 | T85: 0 | U85: 0 | V85: 0 | W85: 1 | X85: 85
A86: ÅÅÅ | B86: 2200 | C86: 6923 | D86: 6940 | E86: 0 | F86: Lønm.adr Mangler i Fanebladet Lønmodtager | G86: Lønm. Postnr.&By mangler i Fanebladet Lønmodtager | H86: 000000-0000 | I86: 60 | J86: 0 | K86: 0 | L86: 0 | M86: 0 | N86: 0 | O86: 0 | P86: Måned | Q86: 2007-01-01 | S86: 0 | T86: 0 | U86: 0 | V86: 0 | W86: 1 | X86: 86
A87: ÅÅÅ | B87: 2200 | C87: 6923 | D87: 6940 | E87: 0 | F87: Lønm.adr Mangler i Fanebladet Lønmodtager | G87: Lønm. Postnr.&By mangler i Fanebladet Lønmodtager | H87: 000000-0000 | I87: 60 | J87: 0 | K87: 0 | L87: 0 | M87: 0 | N87: 0 | O87: 0 | P87: Måned | Q87: 2007-01-01 | S87: 0 | T87: 0 | U87: 0 | V87: 0 | W87: 1 | X87: 87
A88: ÅÅÅ | B88: 2200 | C88: 6923 | D88: 6940 | E88: 0 | F88: Lønm.adr Mangler i Fanebladet Lønmodtager | G88: Lønm. Postnr.&By mangler i Fanebladet Lønmodtager | H88: 000000-0000 | I88: 60 | J88: 0 | K88: 0 | L88: 0 | M88: 0 | N88: 0 | O88: 0 | P88: Måned | Q88: 2007-01-01 | S88: 0 | T88: 0 | U88: 0 | V88: 0 | W88: 1 | X88: 88
A89: ÅÅÅ | B89: 2200 | C89: 6923 | D89: 6940 | E89: 0 | F89: Lønm.adr Mangler i Fanebladet Lønmodtager | G89: Lønm. Postnr.&By mangler i Fanebladet Lønmodtager | H89: 000000-0000 | I89: 60 | J89: 0 | K89: 0 | L89: 0 | M89: 0 | N89: 0 | O89: 0 | P89: Måned | Q89: 2007-01-01 | S89: 0 | T89: 0 | U89: 0 | V89: 0 | W89: 1 | X89: 89
A90: ÅÅÅ | B90: 2200 | C90: 6923 | D90: 6940 | E90: 0 | F90: Lønm.adr Mangler i Fanebladet Lønmodtager | G90: Lønm. Postnr.&By mangler i Fanebladet Lønmodtager | H90: 000000-0000 | I90: 60 | J90: 0 | K90: 0 | L90: 0 | M90: 0 | N90: 0 | O90: 0 | P90: Måned | Q90: 2007-01-01 | S90: 0 | T90: 0 | U90: 0 | V90: 0 | W90: 1 | X90: 90
A91: ÅÅÅ | B91: 2200 | C91: 6923 | D91: 6940 | E91: 0 | F91: Lønm.adr Mangler i Fanebladet Lønmodtager | G91: Lønm. Postnr.&By mangler i Fanebladet Lønmodtager | H91: 000000-0000 | I91: 60 | J91: 0 | K91: 0 | L91: 0 | M91: 0 | N91: 0 | O91: 0 | P91: Måned | Q91: 2007-01-01 | S91: 0 | T91: 0 | U91: 0 | V91: 0 | W91: 1 | X91: 91
A92: ÅÅÅ | B92: 2200 | C92: 6923 | D92: 6940 | E92: 0 | F92: Lønm.adr Mangler i Fanebladet Lønmodtager | G92: Lønm. Postnr.&By mangler i Fanebladet Lønmodtager | H92: 000000-0000 | I92: 60 | J92: 0 | K92: 0 | L92: 0 | M92: 0 | N92: 0 | O92: 0 | P92: Måned | Q92: 2007-01-01 | S92: 0 | T92: 0 | U92: 0 | V92: 0 | W92: 1 | X92: 92
A93: ÅÅÅ | B93: 2200 | C93: 6923 | D93: 6940 | E93: 0 | F93: Lønm.adr Mangler i Fanebladet Lønmodtager | G93: Lønm. Postnr.&By mangler i Fanebladet Lønmodtager | H93: 000000-0000 | I93: 60 | J93: 0 | K93: 0 | L93: 0 | M93: 0 | N93: 0 | O93: 0 | P93: Måned | Q93: 2007-01-01 | S93: 0 | T93: 0 | U93: 0 | V93: 0 | W93: 1 | X93: 93
A94: ÅÅÅ | B94: 2200 | C94: 6923 | D94: 6940 | E94: 0 | F94: Lønm.adr Mangler i Fanebladet Lønmodtager | G94: Lønm. Postnr.&By mangler i Fanebladet Lønmodtager | H94: 000000-0000 | I94: 60 | J94: 0 | K94: 0 | L94: 0 | M94: 0 | N94: 0 | O94: 0 | P94: Måned | Q94: 2007-01-01 | S94: 0 | T94: 0 | U94: 0 | V94: 0 | W94: 1 | X94: 94
A95: ÅÅÅ | B95: 2200 | C95: 6923 | D95: 6940 | E95: 0 | F95: Lønm.adr Mangler i Fanebladet Lønmodtager | G95: Lønm. Postnr.&By mangler i Fanebladet Lønmodtager | H95: 000000-0000 | I95: 60 | J95: 0 | K95: 0 | L95: 0 | M95: 0 | N95: 0 | O95: 0 | P95: Måned | Q95: 2007-01-01 | S95: 0 | T95: 0 | U95: 0 | V95: 0 | W95: 1 | X95: 95
A96: ÅÅÅ | B96: 2200 | C96: 6923 | D96: 6940 | E96: 0 | F96: Lønm.adr Mangler i Fanebladet Lønmodtager | G96: Lønm. Postnr.&By mangler i Fanebladet Lønmodtager | H96: 000000-0000 | I96: 60 | J96: 0 | K96: 0 | L96: 0 | M96: 0 | N96: 0 | O96: 0 | P96: Måned | Q96: 2007-01-01 | S96: 0 | T96: 0 | U96: 0 | V96: 0 | W96: 1 | X96: 96
A97: ÅÅÅ | B97: 2200 | C97: 6923 | D97: 6940 | E97: 0 | F97: Lønm.adr Mangler i Fanebladet Lønmodtager | G97: Lønm. Postnr.&By mangler i Fanebladet Lønmodtager | H97: 000000-0000 | I97: 60 | J97: 0 | K97: 0 | L97: 0 | M97: 0 | N97: 0 | O97: 0 | P97: Måned | Q97: 2007-01-01 | S97: 0 | T97: 0 | U97: 0 | V97: 0 | W97: 1 | X97: 97
A98: ÅÅÅ | B98: 2200 | C98: 6923 | D98: 6940 | E98: 0 | F98: Lønm.adr Mangler i Fanebladet Lønmodtager | G98: Lønm. Postnr.&By mangler i Fanebladet Lønmodtager | H98: 000000-0000 | I98: 60 | J98: 0 | K98: 0 | L98: 0 | M98: 0 | N98: 0 | O98: 0 | P98: Måned | Q98: 2007-01-01 | S98: 0 | T98: 0 | U98: 0 | V98: 0 | W98: 1 | X98: 98
A99: ÅÅÅ | B99: 2200 | C99: 6923 | D99: 6940 | E99: 0 | F99: Lønm.adr Mangler i Fanebladet Lønmodtager | G99: Lønm. Postnr.&By mangler i Fanebladet Lønmodtager | H99: 000000-0000 | I99: 60 | J99: 0 | K99: 0 | L99: 0 | M99: 0 | N99: 0 | O99: 0 | P99: Måned | Q99: 2007-01-01 | S99: 0 | T99: 0 | U99: 0 | V99: 0 | W99: 1 | X99: 99
A100: ÅÅÅÅ : Må ikke slettes, skal være sidste post Indtast Navn i Celle F7 | I100: 100% | J100: 0 | K100: 0 | N100: 0 | O100: 0 | P100: Måned | Q100: 2007-01-01 | S100: 0 | T100: 0 | U100: 0 | V100: 0 | W100: 1 | X100: 24
L101: 0 | M101: 0
L102: =SUM(L2:L101) -> 0 | N102: Betaler ikke SP-bidrag ? | P102: Lønperiode
N103: Ja = 1 & Nej = 0 | P103: Måned
P104: Løs
P105: 1 | Q105: = 1 uge
P106: 2 | Q106: = 2 uger
P107: 3 | Q107: = 3 uger
P108: B-Indkomst
B109: AFSLUT MED AT TRYKKE PÅ KNAPPEN : "Når du er færdig med at indtaste/opdatere Lønmodtager Fanebladet"
B111: HUSK også at indtaste data yderst til højre i regnearket : Timeløn, Lønperiode, Ansættelses/Fratrådt Dato, SH
B112: Træk% og månedsfradrag fra skattekortet, og evt. lønindeholdelses%.
B113: Betaler SP-bidrag ? Lønmodtager født efter 1.7.39 & fylder 65 i år betaler ikke SP.
B114: Betaler SP-bidrag ? Lønmodtager født før 30.06.39 & fylder 67 i år betaler ikke SP.
B115: Bemærk kolonne W : Funktionær=0 (ingen beregning af feriepenge) ellers =1 beregn feriepenge
B116: Bemærk kolonne Y : Hvis du indsætter lønudbetalingen på lønmodtagerens bankkonto så skriv kontonummeret her
B117: Bemærk kolonne Y : Hvis du bruger bankoverførsel så HUSK dato i felt F9 på lønsedlen !

Sheet Lønseddel
F1: Antal Lønsedler | H1: =D2 -> SE-NR.......................... | I1: =E2 -> 12 34 56 78
D2: ="SE-NR."&REPT(".",25) -> SE-NR.......................... | E2: =LOOKUP(D3,Virksomhed!A4:A6,Virksomhed!B4:B6) -> 12 34 56 78 | F2: Godkendt | G2: =R2 -> 0 | H2: =D3 -> TestVirk.navn | R2: 0 | S2: Antal godkendte lønsedler
D3: =Virksomhed!A4 -> TestVirk.navn | H3: =D4 -> v/Test.Indehaver | R3: 100 | S3: Maxantal lønsedler Licens
D4: ="v/"&LOOKUP($D$3,Virksomhed!A4:A6,Virksomhed!C4:C6) -> v/Test.Indehaver | H4: =D5 -> Test.Adr.Virk
A5: =R5 -> 0 | D5: =LOOKUP($D$3,Virksomhed!A4:A6,Virksomhed!D4:D6) -> Test.Adr.Virk | F5: =IF(MID(T(A7),1,7)="Indtast","Indtast SøgeNavn","") ->  | H5: =D6 -> 1234 Testby
D6: =LOOKUP($D$3,Virksomhed!A4:A6,Virksomhed!E4:E6) -> 1234 Testby | F6: =IF(MID(T(A7),1,7)="Indtast","¯¯¯ ","") ->  | G6: =A5 -> 0
A7: =IF(F7<>MID(H7,1,LEN(F7)),"Indtast Lønmodtager/SøgeNavn F7",H7) -> Testperson | D7: ="CPR-NR."&REPT(".",100) -> CPR-NR..................................................................................................... | E7: =LOOKUP(A7,Lønmodtager!A4:A105,Lønmodtager!H4:H105) -> 12345678-1234 | F7: test | H7: =LOOKUP(MID(F7,1,LEN(F7)),MID(Lønmodtager!A4:A100,1,LEN(F7)),Lønmodtager!A4:A100) -> Testperson
A8: =IF(F7<>"SøgeNavn",LOOKUP(A7,Lønmodtager!A4:A100,Lønmodtager!F4:F100),"") -> Lønm.adr Mangler i Fanebladet Lønmodtager | F8: 31-01-2019 | H8: =A8 -> Lønm.adr Mangler i Fanebladet Lønmodtager
A9: =IF(F7<>"SøgeNavn",LOOKUP(A7,Lønmodtager!A4:A100,Lønmodtager!G4:G100),"") -> Lønm. Postnr.&By mangler i Fanebladet Lønmodtager | B9: =IF((T(B20)="Fejl")*(L_NPER<>"B-Indkomst")=1,"Fejl Lønart","") ->  | C9: =IF(F7<>"SøgeNavn",IF(D12<>"",IF((E12<LOOKUP(D10,Startuge!A3:A16,Startuge!B3:B16)),"Fejl i Måned eller startugenr. Ret celle D10 eller E12",IF(E12>(LOOKUP(D10,Startuge!A3:A16,Startuge!B3:B16)+4),"Fejl i Måned eller startugenr. Ret celle D10 eller E12","")),""),"") ->  | F9: 31-01-2019 | H9: =A9 -> Lønm. Postnr.&By mangler i Fanebladet Lønmodtager
A10: =IF(LOOKUP(A7,Lønmodtager!A4:A100,Lønmodtager!I4:I100)="%","Træk% ej indtastet. ","")&IF(B28<>0,IF(OR(E10="2004",E10="2005"),"Nul SP-bidrag i 2004/2005, Tjek på lønmodtagerfaneblad kolonne N. ",""),"")&IF(AND(K11<>1,C12<>""),"Der kan ikke indtastes timer for en funktionær eller lønmodtager med fast fast løn. ","") ->  | B10: =IF(T(B9)<>"","¯¯","") ->  | D10: Januar | E10: =B122 -> 2019 | F10: =IF(MID(A7,1,7)="Indtast","Navnet findes ikke i lønmodtager oversigten","Navnet er ok") -> Navnet er ok | K10: Funktionær=0 Timeløn =1 Fast Løn =2 | L10: Lønkonto: | M10: =LOOKUP(A7,Lønmodtager!A4:A100,Lønmodtager!B4:B100) -> 2200
A11: ="Lønperiode"&REPT(".",200) -> Lønperiode........................................................................................................................................................................................................ | B11: =LOOKUP(A7,Lønmodtager!A4:A100,Lønmodtager!P4:P100) -> Måned | C11: =IF(B11="1","Uge",IF(B11="2","Uger",IF(B11="3","Uger",""))) ->  | D11: =T(IF(D12="",IF(E12<>0,"Slet ugennr.",""))) ->  | E11: =IF(T(D11)<>"","¯¯¯ ",IF(T(C9)<>"","¯¯¯ ","")) ->  | F11: =IF(F10="Navnet er ok","","Opret lønmodtageren i lønmodtageroversigten") ->  | K11: =LOOKUP(A7,Lønmodtager!A4:A100,Lønmodtager!W4:W100) -> 1
A12: =IF(LOOKUP(A7,Lønmodtager!A4:A100,Lønmodtager!W4:W100)<>1,"Fast Løn","Timeløn")&REPT(".",300) -> Timeløn............................................................................................................................................................................................................................................................................................................ | B12: =LOOKUP(A7,Lønmodtager!A4:A100,Lønmodtager!O4:O100) -> 200 | C12: 0 | D12: =IF(B11="1","Ugenr.",IF(B11="2","Ugenr.",IF(B11="3","Ugenr.",""))) ->  | F12: =D10 -> Januar | G12: =E10 -> 2019 | H12: Timer summeres | I12: Lønmodtager bankkontonr. : | K12: =LOOKUP(A7,Lønmodtager!A4:A100,Lønmodtager!Y4:Y100) -> 0
B13: 0 | C13: 0 | D13: =IF($B$11="2","Ugenr.",IF($B$11="3","Ugenr.","")) ->  | E13: =IF($D$13<>"",IF($E$12>0,IF($E$12<52,$E$12+1,"Fejl ugenr."),""),"") ->  | F13: Timer ialt | G13: =SUM(C12:C17)+0.000000000000001+IF(AND(C12=0,K11<>1),IF(B12<>0,C134*4.111111111,0)) -> 1e-15 | H13: =SUM(C12:C13)+0.000000000000001+IF(AND(C12=0,K11<>1),IF(B12<>0,C134*4.111111111,0)) -> 1e-15 | I13: Lønmodtager rækkenr. : | L13: =LOOKUP(A7,Lønmodtager!A4:A100,Lønmodtager!X4:X19) -> 6 | N13: Fortegn timer | O13: =IF(TIMER<=0,-1,1) -> 1
B14: 0 | C14: 0 | D14: =IF($B$11="3","Ugenr.","") ->  | E14: =IF($D$14<>"",IF($E$12>0,IF($E$12<51,$E$12+2,"Fejl ugenr."),""),"") ->  | F14: Virksomhedens | G14: KONTERINGSVEJLEDNING
A15: =IF(B15<>0,"Multimediebeskatning"&REPT(".",300),"") ->  | C15: 0 | F15: andel
A16: =IF(L_NPER="B-Indkomst","B-Indkomst","") ->  | B16: 0 | C16: 0 | F16: lønudgift | G16: konto | H16: beløb | I16: modkonto
A17: =IF(C17<>0,"Periodens timer på sygedagpenge"&REPT(".",100),"") ->  | B17: =B151*5/B155 -> 117.7027027 | C17: 0
A18: =IF(C18<>0,"Dagpengegodtgørelse 1.&2. ledighedsdag / dage"&REPT(".",100),"") ->  | B18: =B152 -> 871 | C18: 0
A19: =IF(B11="Feriepenge","Feriepenge",IF(L_NPER="B-Indkomst","B-Indkomst","Ferieberettiget løn")&REPT(".",300)) -> Ferieberettiget løn............................................................................................................................................................................................................................................................................................................ | C19: =C12*B12+IF(AND(C12=0,K11<>1),B12,0)+C13*B13+IF(C13=0,B13,0)+C14*B14+IF(C14=0,B14,0)+C15*B15+IF(C15=0,B15,0)+C16*B16+IF(C16=0,B16,0) -> 0 | F19: =C19 -> 0 | G19: =IF(H19<>0,LOOKUP(A7,Lønmodtager!A4:A100,Lønmodtager!B4:B100),"") ->  | H19: =C19 -> 0
A20: =IF(C20<>0,"ATP Lønmodtagerbidrag" &REPT(".",300)&"max/lønm./arbg. v/løn/andel sygedagp."&REPT(".",100),"") ->  | B20: =ATPKR*IF(B11="Løs",3,1) -> 284 | C20: =IF(TIMER*FortegnTimer<ATPUG,0,(IF(TIMER*FortegnTimer<ATPUG*2,-B20/9,(IF(TIMER*FortegnTimer<ATPUG*3,-B20*2/9,-B20/3)))))*FortegnTimer+0.01*(TIMER>=117)*(B11="Måned")+0.01*(TIMER>=39)*(B11="Måned") -> 0 | D20: =C20*2 -> 0 | F20: =-D20 -> 0 | G20: =IF(H20<>0,M10+VALUE(LOOKUP(D3,Virksomhed!A4:A6,Virksomhed!J4:J6)),"") ->  | H20: =SUM(C20:C20)*IF(C24*FortegnTimer<0,0,1) -> 0
A21: =IF(C21<>0,"Pensionsbidrag lønmodtager"&REPT(".",100),"") ->  | B21: =B157*(C19+C42) -> 0 | C21: =(INT(-B21*B158*100+0.5)/100)*LOOKUP(A7,Lønmodtager!A4:A100,Lønmodtager!S4:S100) -> 0 | D21: =(INT(-B21*B159*100+0.5)/100)*LOOKUP(A7,Lønmodtager!A4:A100,Lønmodtager!S4:S100) -> 0
A22: =IF(C22<>0,"Fri Bil, Ferietillæg ol. ej pensionsberettiget" &REPT(".",300),"") ->  | F22: =C22 -> 0 | H22: =C22 -> 0
C23: ——————————
C24: =SUM(C19:C23) -> 0 | D24: ——————————> | E24: =C24 -> 0
E25: ——————————
A26: =IF(L_NPER<>"B-Indkomst","Beregningsgrundlag AM/SP-bidrag"&REPT(".",300),"") -> Beregningsgrundlag AM/SP-bidrag............................................................................................................................................................................................................................................................................................................ | E26: =SUM(E19:E25)-IF(C24*FortegnTimer<0,C24,0)*IF(L_NPER="B-Indkomst",0,1) -> 0 | F26: =C64+H26 -> 0 | G26: =IF(H26<>0,G19+VALUE(LOOKUP(D3,Virksomhed!A4:A6,Virksomhed!AA4:AA6)),"") ->  | H26: =C21 -> 0
A27: =IF(L_NPER<>"B-Indkomst","AM-bidrag"&REPT(".",200),"") -> AM-bidrag........................................................................................................................................................................................................ | B27: =IF(L_NPER<>"B-Indkomst",B149,"") -> 0.08 | C27: =IF(B27<>0,REPT(".",300),"") -> ............................................................................................................................................................................................................................................................................................................ | E27: =-TRUNC(E26*B27+0.5*FortegnTimer) -> 0
A28: =IF(B28<>0,"SP-bidrag v/løn"&REPT(".",100),"") ->  | B28: =IF(L_NPER<>"B-Indkomst",B150,"") -> 0 | C28: =IF(B28<>0,REPT(".",300),"") ->  | E28: =-TRUNC(E26*B28+0.5) -> 0
E29: ——————————
A30: =IF(L_NPER="B-Indkomst","B-Indkomst","A-indkomst v/løn")&REPT(".",300) -> A-indkomst v/løn............................................................................................................................................................................................................................................................................................................ | D30: =IF(L_NPER<>"B-Indkomst",E30,"") -> 0 | E30: =SUM(E26:E29) -> 0
A31: =IF(D31<>0,"Dagpengegodtgørelse 1.& 2. ledighedsdag"&REPT(".",200),"") ->  | D31: =IF(D68>=B153,0,B152*C18) -> 0 | E31: =D31 -> 0 | F31: =E31 -> 0 | G31: =IF(D31<>0,G19+VALUE(LOOKUP(D3,Virksomhed!A4:A6,Virksomhed!I4:I6)),"") ->  | H31: =D31 -> 0
A32: =IF(D32<>0,"Sygedagpenge"&REPT(".",200),"") ->  | D32: =B17*C17 -> 0 | E32: =D32 -> 0 | F32: =E32 -> 0 | G32: =IF(D32<>0,M10+VALUE(LOOKUP(D3,Virksomhed!A4:A6,Virksomhed!I4:I6)),"") ->  | H32: =D32 -> 0
A33: =IF(D33<>0,IF(B28<>0,"SP-bidrag og ","")&IF(C24<0,"ATP","")&" af Dagpenge indbetales til ATP"&REPT(".",200),"") ->  | D33: =(TRUNC((-SUM(D32:D32))*B28-0.5)+IF(C24*FortegnTimer<=0,C24,0))*IF(L_NPER="B-Indkomst",0,1) -> 0 | E33: =D33 -> 0 | G33: =IF(D33<>0,M10+VALUE(LOOKUP(D3,Virksomhed!A4:A6,Virksomhed!J4:J6)),"") ->  | H33: =D33 -> 0
A34: =IF(L_NPER<>"B-Indkomst","Fradrag ifgl. Skattekort"&REPT(".",200),"") -> Fradrag ifgl. Skattekort........................................................................................................................................................................................................ | D34: =IF(B11="Måned",-B139,IF(B11="14 DG",-C139,IF(B11="1",-D139,IF(B11="2",-C139,IF(B11="3",-D139*3,IF(B11="Løs",-DAGFRD*TIMER/E155,IF(B11="Feriepenge",0,0)))))))*IF(L_NPER<>"Løs",FortegnTimer,1) -> 0
D35: =IF(L_NPER<>"B-Indkomst","——————————","") -> ——————————
A36: =IF(L_NPER<>"B-Indkomst","Trækgrundlag"&REPT(".",300),"") -> Trækgrundlag............................................................................................................................................................................................................................................................................................................ | D36: =MAXA(SUM(D30:D35)*FortegnTimer,0) -> 0
A37: =IF(L_NPER<>"B-Indkomst","Reguleret trækgrundlag"&REPT(".",200),"") -> Reguleret trækgrundlag........................................................................................................................................................................................................ | D37: =D36 -> 0
A38: =IF(L_NPER<>"B-Indkomst","A-skat af løn"&REPT(".",200),"") -> A-skat af løn........................................................................................................................................................................................................ | B38: =IF(L_NPER<>"B-Indkomst",B143,0) -> 0.46 | D38: =-TRUNC(D37*B38+0.99*0)*FortegnTimer -> 0 | E38: =D38 -> 0
A39: =IF(E39<>0,"Skattefrie udbetalinger & reguleringer - se specifikation nedenfor"&REPT(".",160),"") ->  | E39: =SUM(B55:B58) -> 0
A40: =IF(C40<>0,"Skattefri befordringsgodtgørelse sats / km."&REPT(".",200),"") ->  | B40: =IF(C40<>0,IF(D70<=B160,B161,B164),"") ->  | C40: 0 | D40: =IF(E40<>0,REPT(".",160),"") ->  | E40: =IF(C40<>"",B40*(C40-D164)+D164*B164,"") ->  | F40: =E40 ->  | G40: =IF(C40<>"",G19+LOOKUP(D3,Virksomhed!A4:A6,Virksomhed!N4:N6),"") ->  | H40: =E40 -> 
A41: =IF(C41<>"","Lønindeholdelse"&REPT(".",200),"") ->  | C41: =IF(LOOKUP(A7,Lønmodtager!A4:A100,Lønmodtager!K4:K100)<>"",LOOKUP(A7,Lønmodtager!A4:A100,Lønmodtager!K4:K100),"") ->  | D41: =IF(E41<>0,REPT(".",160),"") ->  | E41: =IF((-SUM(E30:E38))*C41<>0,(-SUM(E30:E38))*C41,"") ->  | F41: =E41 ->  | G41: =IF(C41<>"",LOOKUP(D3,Virksomhed!A4:A6,Virksomhed!X4:X6),"") ->  | H41: =E41 -> 
A42: =IF(L_NPER<>"B-Indkomst",IF(B168*B144<>0,"Søgnehelligdag","")&IF((B154*LOOKUP(A7,Lønmodtager!A4:A100,Lønmodtager!W4:W100)<>0)*(B168*B144<>0)," & ","")&IF(B154*LOOKUP(A7,Lønmodtager!A4:A100,Lønmodtager!W4:W100)<>0,"Feriepenge","")&IF((B154+B168*B144)*LOOKUP(A7,Lønmodtager!A4:A100,Lønmodtager!W4:W100)<>0,REPT(".",200),""),"") -> Feriepenge........................................................................................................................................................................................................ | B42: =IF((B154+B168*B144)*LOOKUP(A7,Lønmodtager!A4:A100,Lønmodtager!W4:W100)<>0,IF(B134<>"Feriepenge",B154+B168*B144,0),"")*(IF(L_NPER<>"B-Indkomst",1,0)) -> 0.125 | C42: =INT(L_N*B42*100+0.5)/100 -> 0 | F42: =C42 -> 0 | G42: =IF(C42<>0,G19+LOOKUP(D3,Virksomhed!A4:A6,Virksomhed!K4:K6),"") ->  | H42: =C42 -> 0
A43: =IF(B42<>0,"AM-bidrag"&REPT(".",200),"") -> AM-bidrag........................................................................................................................................................................................................ | B43: =IF(B42<>0,B27,"") -> 0.08 | C43: =-TRUNC(C42*B43) -> 0
A44: =IF(B44<>0,"SP-bidrag"&REPT(".",200),"") ->  | B44: =IF(B42<>0,B150,"") -> 0 | C44: =-TRUNC(C42*B44) -> 0
A45: =IF(B42<>0,"Beregnet feriepenge fradrag"&REPT(".",100),"") -> Beregnet feriepenge fradrag.................................................................................................... | B45: =IF(B42<>0,IF(L_NPER="Feriepenge"," ",L_NPER&" "&MID(D12,1,3)),"") -> Måned | C45: =IF(C42<>0,IF(B11="Måned",-B141,(IF(B11="14 DG",-C141,(IF(B11="1",-D141,(IF(B11="2",-D141*2,(IF(B11="3",-D141*3,(IF(B11="Feriepenge",0,-E141*TIMER/E155)))))))))))*B166,0)*IF(L_NPER<>"Løs",FortegnTimer,1) -> 0
C46: =IF(B42<>0,"——————————","") -> ——————————
A47: =IF(B42<>0,"Trækgrundlag"&REPT(".",200),"") -> Trækgrundlag........................................................................................................................................................................................................ | C47: =MAXA(SUM(C42:C46)*FortegnTimer,0) -> 0
A48: =IF(B42<>0,"Nedrundet trækgrundlag"&REPT(".",200),"") -> Nedrundet trækgrundlag........................................................................................................................................................................................................ | C48: =TRUNC(C47)*FortegnTimer -> 0
A49: =IF(B42<>0,"A-skat af "&A42&REPT(".",200),"") -> A-skat af Feriepenge................................................................................................................................................................................................................................................................................................................................................................................................................ | B49: =IF(B42<>0,B38,"") -> 0.46 | C49: =-TRUNC(C48*B49+0.5) -> 0 | D49: =C49 -> 0
C50: =IF(B42<>0,"——————————","") -> ——————————
A51: =A42 -> Feriepenge........................................................................................................................................................................................................ | B51: =(IF((B168+B154)<>0,INT(100*(C42+C43+C44+C49)*B168/(B168+B154)+0.5)/100,0))*LOOKUP(A7,Lønmodtager!A4:A100,Lønmodtager!T4:T100) -> 0 | C51: =INT(((C42+C43+C44+C49)-B51)*100)/100 -> 0 | D51: =IF(L_NPER<>"B-Indkomst","——————————","") -> —————————— | G51: =IF(C51<>0,LOOKUP(A7,Lønmodtager!A4:A100,Lønmodtager!C4:C100),"") ->  | H51: =-C51 -> 0
A52: =IF(L_NPER<>"B-Indkomst","A-skat"&REPT(".",300),"") -> A-skat............................................................................................................................................................................................................................................................................................................ | D52: =-D38-D49 -> 0 | E52: —————————— | F52: —————————— | G52: =IF(B51<>0,LOOKUP(D3,Virksomhed!A4:A6,Virksomhed!Z4:Z6),"") ->  | H52: =-B51 -> 0
A53: =IF(B11="Feriepenge","Feriepenge",IF(K12="","Udbetaling"&REPT(".",300),"Lønudbetaling overføres d. "&F9&" til Bankkontonr. "&K12&REPT(".",300))) -> Udbetaling............................................................................................................................................................................................................................................................................................................ | E53: =SUM(E30:E52) -> 0 | F53: =SUM(F14:F52) -> 0 | G53: =IF(E53<>0,LOOKUP(A7,Lønmodtager!A4:A100,Lønmodtager!D4:D100),"") ->  | H53: =-E53 -> 0
A54: =IF(SUM(B55:B58)<>0,"Skattefrie udbetalinger & reguleringer :","") ->  | E54: —————————— | F54: ——————————
B55: 0
B56: 0 | G56: =IF(LOOKUP(A7,Lønmodtager!A4:A100,Lønmodtager!E4:E100)=0,"",LOOKUP(A7,Lønmodtager!A4:A100,Lønmodtager!E4:E100)) ->  | H56: =IF(G56<>"",F53,"") ->  | I56: =IF(G56<>"",6098,"") -> 
A57: =IF(B57<>0,"Modregning v/Fri Bil og Multimediebeskatning"&REPT(".",200),"") ->  | B57: =-B15-C22+(-(C22+B15)+(INT((C22+B15)*B27+0.5)+INT((C22+B15)*(100%-B27)*B38+0.5)))*0 -> 0 | D57: Sidste md. | E57: Indev. år | F57: =IF(E39<>"","Ej skpl.reg.","") ->  | G57: =IF(E39<>"",LOOKUP(D3,Virksomhed!A4:A6,Virksomhed!Y4:Y6),"") ->  | H57: =E39 -> 0
B58: 0 | C58: Perioden | D58: År t. dato | E58: til dato | F58: =IF(E39<>"","Tjek kontonr.","") -> 
A59: =IF(E59<>0,"AM-indkomst"&REPT(".",200),"") ->  | C59: =IF(L_NPER<>"B-Indkomst",E26+C42,0) -> 0 | D59: =LOOKUP(A7,Lønmodtager!A4:A100,Lønmodtager!AA4:AA100) -> 0 | E59: =SUM(C59:D59) -> 0 | F59: =IF(C64<>0,"Pensionsafr.","") ->  | G59: =IF(H59<>0,LOOKUP(D3,Virksomhed!A4:A8,Virksomhed!AB4:AB8),"") ->  | H59: =C64 -> 0 | I59: =IF(H59<>0,LOOKUP(D3,Virksomhed!A4:A6,Virksomhed!AC4:AC6),"") -> 
A60: =IF(E60<>0,"Dagp.godtg. & Sygedp. uden AM-bidrag"&IF(B44<>0," & fratrukket SP-bid.","")&REPT(".",200),"") ->  | C60: =D31+D32+D33 -> 0 | D60: =LOOKUP(A7,Lønmodtager!A4:A100,Lønmodtager!AB4:AB100) -> 0 | E60: 0 | F60: =IF(H60<>0,"AM-bidrag","") ->  | G60: =IF(H60<>0,G19+LOOKUP(D3,Virksomhed!A4:A8,Virksomhed!L4:L8),"") ->  | H60: =-C61 -> 0
A61: =IF(E61<>0,"AM-bidrag"&REPT(".",200),"") ->  | C61: =-(E27+C43) -> 0 | D61: =LOOKUP(A7,Lønmodtager!A4:A100,Lønmodtager!AC4:AC100) -> 0 | E61: 0 | F61: =IF(H61<>0,"AM-bidrag","") ->  | G61: =IF(H61<>0,LOOKUP(D3,Virksomhed!A4:A6,Virksomhed!Q4:Q6),"") ->  | H61: =C61 -> 0 | I61: =IF(H61<>0,LOOKUP(D3,Virksomhed!A4:A6,Virksomhed!T4:T6),"") -> 
A62: =IF(E62<>0,"A-skat"&REPT(".",200),"") ->  | C62: =D52 -> 0 | D62: =LOOKUP(A7,Lønmodtager!A4:A100,Lønmodtager!AD4:AD100) -> 0 | E62: 0 | F62: =IF(H62<>0,"A-Skat","") ->  | G62: =IF(H62<>0,LOOKUP(D3,Virksomhed!A4:A6,Virksomhed!V4:V6),"") ->  | H62: =-C62 -> 0
A63: =IF(E63<>0,"SP-bidrag"&REPT(".",200),"") ->  | C63: =-E28-C44 -> 0 | D63: =LOOKUP(A7,Lønmodtager!A4:A100,Lønmodtager!AE4:AE100) -> 0 | E63: 0 | F63: =IF(H63<>0,"SP-bidrag","") ->  | G63: =IF(H63<>0,G19+LOOKUP(D3,Virksomhed!A4:A6,Virksomhed!M4:M6),"") ->  | H63: =-C63 -> 0
A64: =IF(E64<>0,"Pensionsbidrag lønmodtager + arb.giver"&REPT(".",200),"") ->  | C64: =-C21-D21 -> 0 | D64: =LOOKUP(A7,Lønmodtager!A4:A100,Lønmodtager!AF4:AF100) -> 0 | E64: 0 | F64: =IF(H64<>0,"SP-bidrag","") ->  | G64: =IF(H64<>0,LOOKUP(D3,Virksomhed!A4:A6,Virksomhed!R4:R6),"") ->  | H64: =C63 -> 0 | I64: =IF(H64<>0,LOOKUP(D3,Virksomhed!A4:A6,Virksomhed!U4:U6),"") -> 
A65: =IF(E65<>0,"ATP lønm.bid. + arbg.bid."&IF(B44<>0," + SP-bidrag af dagpenge","")&REPT(".",200),"") ->  | C65: =-C20-D20-D33+IF(C24*FortegnTimer<0,C20,0)+0.01*(TIMER>=117)*(B11="Måned")+0.04*(TIMER>=78)*(B11="Måned")+0.01*(TIMER>=39)*(B11="Måned") -> 0 | D65: =LOOKUP(A7,Lønmodtager!A4:A100,Lønmodtager!AG4:AG100) -> 0 | E65: 0 | F65: =IF(H65<>0,"ATP-bidrag","") ->  | G65: =IF(H65<>0,LOOKUP(D3,Virksomhed!A4:A6,Virksomhed!P4:P6),"") ->  | H65: =C65 -> 0 | I65: =IF(H65<>0,LOOKUP(D3,Virksomhed!A4:A6,Virksomhed!S4:S6),"") -> 
A66: =IF(E66<>0,"Feriepenge efter skat"&REPT(".",200),"") ->  | C66: =C51+E53*(B11="Feriepenge") -> 0 | D66: =LOOKUP(A7,Lønmodtager!A4:A100,Lønmodtager!AH4:AH100) -> 0 | E66: 0 | H66: ——————————
A67: =IF(E67<>0,"Udbetalt løn incl. skattefri udbetalinger & reguleringer"&REPT(".",200),"") ->  | C67: =E53*(B11<>"Feriepenge") -> 0 | D67: =LOOKUP(A7,Lønmodtager!A4:A100,Lønmodtager!AI4:AI100) -> 0 | E67: 0 | G67: =IF(H67<>0,"Tjek","") ->  | H67: =SUM(H14:H66)-H56-H59-H61-H64-H65 -> 0 | I67: =IF(TRUNC(H67*100)<>0," Fejl",IF(H67=0,""," OK")) -> 
A68: =IF(E68<>0,"Antal gange dagpengegodtgørelse"&REPT(".",200),"") ->  | C68: =IF(D31=0,0,1)*IF(C18<0,-1,1) -> 0 | D68: =LOOKUP(A7,Lønmodtager!A4:A100,Lønmodtager!AJ4:AJ100) -> 0 | E68: 0
A69: =IF(E69<>0,"Skattefri befordringsgodtgørelse kr."&REPT(".",200),"") ->  | C69: =E40 ->  | D69: =LOOKUP(A7,Lønmodtager!A4:A100,Lønmodtager!AK4:AK100) -> 0 | E69: =SUM(C69:D69) -> 0 | F69: =REPT(F9,1) -> 31-01-2019 | G69: =G53 ->  | H69: =-H53 -> 0 | I69: =IF(H69<>0,LOOKUP(D3,Virksomhed!A4:A6,Virksomhed!W4:W6),"") -> 
A70: =IF(E70<>0,"Skattefri befordringsgodtgørelse km."&REPT(".",200),"") ->  | C70: =SUM(C40) -> 0 | D70: =LOOKUP(A7,Lønmodtager!A4:A100,Lønmodtager!AL4:AL100) -> 0 | E70: 0 | F70: løn hævet
A71: =IF(E71<>0,"Lønindeholdelse"&REPT(".",200),"") ->  | C71: =-E41 -> 0 | D71: =LOOKUP(A7,Lønmodtager!A4:A100,Lønmodtager!AM4:AM100) -> 0 | E71: 0
A72: =IF(E72<>0,"Saldo SøgneHelligdagsbetaling"&REPT(".",200),"") ->  | C72: =B51 -> 0 | D72: =LOOKUP(A7,Lønmodtager!A4:A100,Lønmodtager!U4:U100)-LOOKUP(A7,Lønmodtager!A4:A100,Lønmodtager!V4:V100) -> 0 | E72: 0
A73: =IF(E73<>0,"Skattefri Rejsegodtgørelse"&REPT(".",200),"") ->  | C73: =B58 -> 0 | D73: =LOOKUP(A7,Lønmodtager!A4:A100,Lønmodtager!AP4:AP100) -> 0 | E73: 0
A74: =IF(E74<>0,"B-Indkomst"&REPT(".",200),"") ->  | C74: =IF(L_NPER="B-Indkomst",E30,0) -> 0 | D74: =LOOKUP(A7,Lønmodtager!A4:A100,Lønmodtager!AQ4:AQ100) -> 0 | E74: 0 | F74: =IF(P118<>0,"Feriepengeafregning :","") ->  | H74: =IF(J118<>0,"Cpr-nr.","") ->  | I74: =IF(J118<>0,"Feriedage","") ->  | J74: =IF(J118<>0,"Feriepenge","") ->  | K74: =IF(K118<>0,"Sky.SH-Betaling","") ->  | L74: =IF(P113<>0,"Feriepengeafregning :","") ->  | N74: =IF(P113<>0,"Cpr-nr.","") ->  | O74: =IF(P113<>0,"Feriedage","") ->  | P74: =IF(P113<>0,"Feriepenge","") ->  | Q74: =IF(Q113<>0,"Sky.SH-Betaling","") -> 
A75: =IF(E75<>0,"Fri Bil, Multimediebeskatning, Ferietillæg ol. "&"medtaget i AM-indkomst"&REPT(".",200),"") ->  | C75: =C22 -> 0 | D75: =LOOKUP(A7,Lønmodtager!A4:A100,Lønmodtager!AR4:AR100) -> 0 | E75: 0
A76: Månedlig Afregning A-skat/AM/SP-bidrag & Pension | C76: Perioden | D76: Summeret | E76: Afregning
A77: =IF(E77<>0,"AM-bidrag"&REPT(".",200),"") ->  | C77: =C61 -> 0 | D77: 0 | E77: =SUM(C77:D77) -> 0 | F77: =IF(Lønmodtager!A25="ÅÅÅ","",Lønmodtager!A25&REPT(".",200)) ->  | H77: =IF(F77<>"",Lønmodtager!H25,"") ->  | I77: =Lønmodtager!M25 -> 0 | J77: =Lønmodtager!L25 -> 0 | K77: =Lønmodtager!U25-Lønmodtager!V25 -> 0 | L77: =IF(Lønmodtager!A65="ÅÅÅ","",Lønmodtager!A65&REPT(".",200)) ->  | N77: =IF(L77<>"",Lønmodtager!H65,"") ->  | O77: =Lønmodtager!M65 -> 0 | P77: =Lønmodtager!L65 -> 0 | Q77: =Lønmodtager!U65-Lønmodtager!V65 -> 0
A78: =IF(E78<>0,"A-skat"&REPT(".",200),"") ->  | C78: =C62 -> 0 | D78: 0 | E78: =SUM(C78:D78) -> 0 | F78: =IF(Lønmodtager!A26="ÅÅÅ","",Lønmodtager!A26&REPT(".",200)) ->  | H78: =IF(F78<>"",Lønmodtager!H26,"") ->  | I78: =Lønmodtager!M26 -> 0 | J78: =Lønmodtager!L26 -> 0 | K78: =Lønmodtager!U26-Lønmodtager!V26 -> 0 | L78: =IF(Lønmodtager!A66="ÅÅÅ","",Lønmodtager!A66&REPT(".",200)) ->  | N78: =IF(L78<>"",Lønmodtager!H66,"") ->  | O78: =Lønmodtager!M66 -> 0 | P78: =Lønmodtager!L66 -> 0 | Q78: =Lønmodtager!U66-Lønmodtager!V66 -> 0
A79: =IF(E79<>0,"SP-bidrag"&REPT(".",200),"") ->  | C79: =C63 -> 0 | D79: 0 | E79: =SUM(C79:D79) -> 0 | F79: =IF(Lønmodtager!A27="ÅÅÅ","",Lønmodtager!A27&REPT(".",200)) ->  | H79: =IF(F79<>"",Lønmodtager!H27,"") ->  | I79: =Lønmodtager!M27 -> 0 | J79: =Lønmodtager!L27 -> 0 | K79: =Lønmodtager!U27-Lønmodtager!V27 -> 0 | L79: =IF(Lønmodtager!A67="ÅÅÅ","",Lønmodtager!A67&REPT(".",200)) ->  | N79: =IF(L79<>"",Lønmodtager!H67,"") ->  | O79: =Lønmodtager!M67 -> 0 | P79: =Lønmodtager!L67 -> 0 | Q79: =Lønmodtager!U67-Lønmodtager!V67 -> 0
A80: =IF(E80<>0,"Pensionsbidrag lønmodtager + arb.giver"&REPT(".",100),"") ->  | C80: =C64 -> 0 | D80: 0 | E80: =SUM(C80:D80) -> 0 | F80: =IF(Lønmodtager!A28="ÅÅÅ","",Lønmodtager!A28&REPT(".",200)) ->  | H80: =IF(F80<>"",Lønmodtager!H28,"") ->  | I80: =Lønmodtager!M28 -> 0 | J80: =Lønmodtager!L28 -> 0 | K80: =Lønmodtager!U28-Lønmodtager!V28 -> 0 | L80: =IF(Lønmodtager!A68="ÅÅÅ","",Lønmodtager!A68&REPT(".",200)) ->  | N80: =IF(L80<>"",Lønmodtager!H68,"") ->  | O80: =Lønmodtager!M68 -> 0 | P80: =Lønmodtager!L68 -> 0 | Q80: =Lønmodtager!U68-Lønmodtager!V68 -> 0
A81: =IF(C81<>0,"Indberetning af månedlig AM + SP bidrag "&REPT(".",200),"") ->  | C81: =E77+E79 -> 0 | D81: =IF(E81<>0,"Sum indb.","") ->  | E81: =SUM(E76:E80) -> 0 | F81: =IF(Lønmodtager!A29="ÅÅÅ","",Lønmodtager!A29&REPT(".",200)) ->  | H81: =IF(F81<>"",Lønmodtager!H29,"") ->  | I81: =Lønmodtager!M29 -> 0 | J81: =Lønmodtager!L29 -> 0 | K81: =Lønmodtager!U29-Lønmodtager!V29 -> 0 | L81: =IF(Lønmodtager!A69="ÅÅÅ","",Lønmodtager!A69&REPT(".",200)) ->  | N81: =IF(L81<>"",Lønmodtager!H69,"") ->  | O81: =Lønmodtager!M69 -> 0 | P81: =Lønmodtager!L69 -> 0 | Q81: =Lønmodtager!U69-Lønmodtager!V69 -> 0
F82: =IF(Lønmodtager!A30="ÅÅÅ","",Lønmodtager!A30&REPT(".",200)) ->  | H82: =IF(F82<>"",Lønmodtager!H30,"") ->  | I82: =Lønmodtager!M30 -> 0 | J82: =Lønmodtager!L30 -> 0 | K82: =Lønmodtager!U30-Lønmodtager!V30 -> 0 | L82: =IF(Lønmodtager!A70="ÅÅÅ","",Lønmodtager!A70&REPT(".",200)) ->  | N82: =IF(L82<>"",Lønmodtager!H70,"") ->  | O82: =Lønmodtager!M70 -> 0 | P82: =Lønmodtager!L70 -> 0 | Q82: =Lønmodtager!U70-Lønmodtager!V70 -> 0
A83: KvartalsAfregning ATP & Feriepenge | C83: Perioden | D83: Summeret | E83: Afregning | F83: =IF(Lønmodtager!A31="ÅÅÅ","",Lønmodtager!A31&REPT(".",200)) ->  | H83: =IF(F83<>"",Lønmodtager!H31,"") ->  | I83: =Lønmodtager!M31 -> 0 | J83: =Lønmodtager!L31 -> 0 | K83: =Lønmodtager!U31-Lønmodtager!V31 -> 0 | L83: =IF(Lønmodtager!A71="ÅÅÅ","",Lønmodtager!A71&REPT(".",200)) ->  | N83: =IF(L83<>"",Lønmodtager!H71,"") ->  | O83: =Lønmodtager!M71 -> 0 | P83: =Lønmodtager!L71 -> 0 | Q83: =Lønmodtager!U71-Lønmodtager!V71 -> 0
A84: =IF(E84<>0,"ATP lønmodtager + arbejdsgiver"&REPT(".",200),"") ->  | C84: =C65 -> 0 | D84: 0 | E84: =SUM(C84:D84) -> 0 | F84: =IF(Lønmodtager!A32="ÅÅÅ","",Lønmodtager!A32&REPT(".",200)) ->  | H84: =IF(F84<>"",Lønmodtager!H32,"") ->  | I84: =Lønmodtager!M32 -> 0 | J84: =Lønmodtager!L32 -> 0 | K84: =Lønmodtager!U32-Lønmodtager!V32 -> 0 | L84: =IF(Lønmodtager!A72="ÅÅÅ","",Lønmodtager!A72&REPT(".",200)) ->  | N84: =IF(L84<>"",Lønmodtager!H72,"") ->  | O84: =Lønmodtager!M72 -> 0 | P84: =Lønmodtager!L72 -> 0 | Q84: =Lønmodtager!U72-Lønmodtager!V72 -> 0
A85: =IF(E85<>0,"Feriepenge"&REPT(".",200),"") ->  | C85: =C66 -> 0 | D85: 0 | E85: =SUM(C85:D85) -> 0 | F85: =IF(Lønmodtager!A33="ÅÅÅ","",Lønmodtager!A33&REPT(".",200)) ->  | H85: =IF(F85<>"",Lønmodtager!H33,"") ->  | I85: =Lønmodtager!M33 -> 0 | J85: =Lønmodtager!L33 -> 0 | K85: =Lønmodtager!U33-Lønmodtager!V33 -> 0 | L85: =IF(Lønmodtager!A73="ÅÅÅ","",Lønmodtager!A73&REPT(".",200)) ->  | N85: =IF(L85<>"",Lønmodtager!H73,"") ->  | O85: =Lønmodtager!M73 -> 0 | P85: =Lønmodtager!L73 -> 0 | Q85: =Lønmodtager!U73-Lønmodtager!V73 -> 0
F86: =IF(Lønmodtager!A34="ÅÅÅ","",Lønmodtager!A34&REPT(".",200)) ->  | H86: =IF(F86<>"",Lønmodtager!H34,"") ->  | I86: =Lønmodtager!M34 -> 0 | J86: =Lønmodtager!L34 -> 0 | K86: =Lønmodtager!U34-Lønmodtager!V34 -> 0 | L86: =IF(Lønmodtager!A74="ÅÅÅ","",Lønmodtager!A74&REPT(".",200)) ->  | N86: =IF(L86<>"",Lønmodtager!H74,"") ->  | O86: =Lønmodtager!M74 -> 0 | P86: =Lønmodtager!L74 -> 0 | Q86: =Lønmodtager!U74-Lønmodtager!V74 -> 0
A87: SøgneHelligdagsbetaling beregnet hele året | C87: Perioden | D87: År-Til-Dato | E87: År-Til-Dato | F87: =IF(Lønmodtager!A35="ÅÅÅ","",Lønmodtager!A35&REPT(".",200)) ->  | H87: =IF(F87<>"",Lønmodtager!H35,"") ->  | I87: =Lønmodtager!M35 -> 0 | J87: =Lønmodtager!L35 -> 0 | K87: =Lønmodtager!U35-Lønmodtager!V35 -> 0 | L87: =IF(Lønmodtager!A75="ÅÅÅ","",Lønmodtager!A75&REPT(".",200)) ->  | N87: =IF(L87<>"",Lønmodtager!H75,"") ->  | O87: =Lønmodtager!M75 -> 0 | P87: =Lønmodtager!L75 -> 0 | Q87: =Lønmodtager!U75-Lønmodtager!V75 -> 0
A88: =IF(E88<>0,"SøgneHelligdagsbetaling"&REPT(".",200),"") ->  | C88: =C72 -> 0 | E88: =SUM(C88:D88) -> 0 | F88: =IF(Lønmodtager!A36="ÅÅÅ","",Lønmodtager!A36&REPT(".",200)) ->  | H88: =IF(F88<>"",Lønmodtager!H36,"") ->  | I88: =Lønmodtager!M36 -> 0 | J88: =Lønmodtager!L36 -> 0 | K88: =Lønmodtager!U36-Lønmodtager!V36 -> 0 | L88: =IF(Lønmodtager!A76="ÅÅÅ","",Lønmodtager!A76&REPT(".",200)) ->  | N88: =IF(L88<>"",Lønmodtager!H76,"") ->  | O88: =Lønmodtager!M76 -> 0 | P88: =Lønmodtager!L76 -> 0 | Q88: =Lønmodtager!U76-Lønmodtager!V76 -> 0
F89: =IF(Lønmodtager!A37="ÅÅÅ","",Lønmodtager!A37&REPT(".",200)) ->  | H89: =IF(F89<>"",Lønmodtager!H37,"") ->  | I89: =Lønmodtager!M37 -> 0 | J89: =Lønmodtager!L37 -> 0 | K89: =Lønmodtager!U37-Lønmodtager!V37 -> 0 | L89: =IF(Lønmodtager!A77="ÅÅÅ","",Lønmodtager!A77&REPT(".",200)) ->  | N89: =IF(L89<>"",Lønmodtager!H77,"") ->  | O89: =Lønmodtager!M77 -> 0 | P89: =Lønmodtager!L77 -> 0 | Q89: =Lønmodtager!U77-Lønmodtager!V77 -> 0
A90: =D2&TEXT(E2,"STANDARD") -> SE-NR..........................12 34 56 78 | F90: =IF(Lønmodtager!A38="ÅÅÅ","",Lønmodtager!A38&REPT(".",200)) ->  | H90: =IF(F90<>"",Lønmodtager!H38,"") ->  | I90: =Lønmodtager!M38 -> 0 | J90: =Lønmodtager!L38 -> 0 | K90: =Lønmodtager!U38-Lønmodtager!V38 -> 0 | L90: =IF(Lønmodtager!A78="ÅÅÅ","",Lønmodtager!A78&REPT(".",200)) ->  | N90: =IF(L90<>"",Lønmodtager!H78,"") ->  | O90: =Lønmodtager!M78 -> 0 | P90: =Lønmodtager!L78 -> 0 | Q90: =Lønmodtager!U78-Lønmodtager!V78 -> 0
A91: =D3 -> TestVirk.navn | F91: =IF(Lønmodtager!A39="ÅÅÅ","",Lønmodtager!A39&REPT(".",200)) ->  | H91: =IF(F91<>"",Lønmodtager!H39,"") ->  | I91: =Lønmodtager!M39 -> 0 | J91: =Lønmodtager!L39 -> 0 | K91: =Lønmodtager!U39-Lønmodtager!V39 -> 0 | L91: =IF(Lønmodtager!A79="ÅÅÅ","",Lønmodtager!A79&REPT(".",200)) ->  | N91: =IF(L91<>"",Lønmodtager!H79,"") ->  | O91: =Lønmodtager!M79 -> 0 | P91: =Lønmodtager!L79 -> 0 | Q91: =Lønmodtager!U79-Lønmodtager!V79 -> 0
A92: =D4 -> v/Test.Indehaver | F92: =IF(Lønmodtager!A40="ÅÅÅ","",Lønmodtager!A40&REPT(".",200)) ->  | H92: =IF(F92<>"",Lønmodtager!H40,"") ->  | I92: =Lønmodtager!M40 -> 0 | J92: =Lønmodtager!L40 -> 0 | K92: =Lønmodtager!U40-Lønmodtager!V40 -> 0 | L92: =IF(Lønmodtager!A80="ÅÅÅ","",Lønmodtager!A80&REPT(".",200)) ->  | N92: =IF(L92<>"",Lønmodtager!H80,"") ->  | O92: =Lønmodtager!M80 -> 0 | P92: =Lønmodtager!L80 -> 0 | Q92: =Lønmodtager!U80-Lønmodtager!V80 -> 0
A93: =D5 -> Test.Adr.Virk | F93: =IF(Lønmodtager!A41="ÅÅÅ","",Lønmodtager!A41&REPT(".",200)) ->  | H93: =IF(F93<>"",Lønmodtager!H41,"") ->  | I93: =Lønmodtager!M41 -> 0 | J93: =Lønmodtager!L41 -> 0 | K93: =Lønmodtager!U41-Lønmodtager!V41 -> 0 | L93: =IF(Lønmodtager!A81="ÅÅÅ","",Lønmodtager!A81&REPT(".",200)) ->  | N93: =IF(L93<>"",Lønmodtager!H81,"") ->  | O93: =Lønmodtager!M81 -> 0 | P93: =Lønmodtager!L81 -> 0 | Q93: =Lønmodtager!U81-Lønmodtager!V81 -> 0
A94: =D6 -> 1234 Testby | F94: =IF(Lønmodtager!A42="ÅÅÅ","",Lønmodtager!A42&REPT(".",200)) ->  | H94: =IF(F94<>"",Lønmodtager!H42,"") ->  | I94: =Lønmodtager!M42 -> 0 | J94: =Lønmodtager!L42 -> 0 | K94: =Lønmodtager!U42-Lønmodtager!V42 -> 0 | L94: =IF(Lønmodtager!A82="ÅÅÅ","",Lønmodtager!A82&REPT(".",200)) ->  | N94: =IF(L94<>"",Lønmodtager!H82,"") ->  | O94: =Lønmodtager!M82 -> 0 | P94: =Lønmodtager!L82 -> 0 | Q94: =Lønmodtager!U82-Lønmodtager!V82 -> 0
F95: =IF(Lønmodtager!A43="ÅÅÅ","",Lønmodtager!A43&REPT(".",200)) ->  | H95: =IF(F95<>"",Lønmodtager!H43,"") ->  | I95: =Lønmodtager!M43 -> 0 | J95: =Lønmodtager!L43 -> 0 | K95: =Lønmodtager!U43-Lønmodtager!V43 -> 0 | L95: =IF(Lønmodtager!A83="ÅÅÅ","",Lønmodtager!A83&REPT(".",200)) ->  | N95: =IF(L95<>"",Lønmodtager!H83,"") ->  | O95: =Lønmodtager!M83 -> 0 | P95: =Lønmodtager!L83 -> 0 | Q95: =Lønmodtager!U83-Lønmodtager!V83 -> 0
A96: Feriepengeafregning : | B96: Cpr-nr. | C96: Feriedage | D96: Feriepenge | E96: Sky.SH-betaling | F96: =IF(Lønmodtager!A44="ÅÅÅ","",Lønmodtager!A44&REPT(".",200)) ->  | H96: =IF(F96<>"",Lønmodtager!H44,"") ->  | I96: =Lønmodtager!M44 -> 0 | J96: =Lønmodtager!L44 -> 0 | K96: =Lønmodtager!U44-Lønmodtager!V44 -> 0 | L96: =IF(Lønmodtager!A84="ÅÅÅ","",Lønmodtager!A84&REPT(".",200)) ->  | N96: =IF(L96<>"",Lønmodtager!H84,"") ->  | O96: =Lønmodtager!M84 -> 0 | P96: =Lønmodtager!L84 -> 0 | Q96: =Lønmodtager!U84-Lønmodtager!V84 -> 0
A97: =IF(Lønmodtager!A5="ÅÅÅ","",Lønmodtager!A5&REPT(".",200)) -> Søgenavn indtastes i celle F7........................................................................................................................................................................................................ | B97: =IF(Lønmodtager!A5="ÅÅÅ","",Lønmodtager!H5&REPT(".",200)) -> 000000-0000........................................................................................................................................................................................................ | C97: =Lønmodtager!M5 -> 0 | D97: =Lønmodtager!L5 -> 0 | E97: =Lønmodtager!U5-Lønmodtager!V5 -> 0 | F97: =IF(Lønmodtager!A45="ÅÅÅ","",Lønmodtager!A45&REPT(".",200)) ->  | H97: =IF(F97<>"",Lønmodtager!H45,"") ->  | I97: =Lønmodtager!M45 -> 0 | J97: =Lønmodtager!L45 -> 0 | K97: =Lønmodtager!U45-Lønmodtager!V45 -> 0 | L97: =IF(Lønmodtager!A85="ÅÅÅ","",Lønmodtager!A85&REPT(".",200)) ->  | N97: =IF(L97<>"",Lønmodtager!H85,"") ->  | O97: =Lønmodtager!M85 -> 0 | P97: =Lønmodtager!L85 -> 0 | Q97: =Lønmodtager!U85-Lønmodtager!V85 -> 0
A98: =IF(Lønmodtager!A6="ÅÅÅ","",Lønmodtager!A6&REPT(".",200)) -> Testperson........................................................................................................................................................................................................ | B98: =IF(Lønmodtager!A6="ÅÅÅ","",Lønmodtager!H6&REPT(".",200)) -> 12345678-1234........................................................................................................................................................................................................ | C98: =Lønmodtager!M6 -> 0 | D98: =Lønmodtager!L6 -> 0 | E98: =Lønmodtager!U6-Lønmodtager!V6 -> 0 | F98: =IF(Lønmodtager!A46="ÅÅÅ","",Lønmodtager!A46&REPT(".",200)) ->  | H98: =IF(F98<>"",Lønmodtager!H46,"") ->  | I98: =Lønmodtager!M46 -> 0 | J98: =Lønmodtager!L46 -> 0 | K98: =Lønmodtager!U46-Lønmodtager!V46 -> 0 | L98: =IF(Lønmodtager!A86="ÅÅÅ","",Lønmodtager!A86&REPT(".",200)) ->  | N98: =IF(L98<>"",Lønmodtager!H86,"") ->  | O98: =Lønmodtager!M86 -> 0 | P98: =Lønmodtager!L86 -> 0 | Q98: =Lønmodtager!U86-Lønmodtager!V86 -> 0
A99: =IF(Lønmodtager!A7="ÅÅÅ","",Lønmodtager!A7&REPT(".",200)) ->  | B99: =IF(Lønmodtager!A7="ÅÅÅ","",Lønmodtager!H7&REPT(".",200)) ->  | C99: =Lønmodtager!M7 -> 0 | D99: =Lønmodtager!L7 -> 0 | E99: =Lønmodtager!U7-Lønmodtager!V7 -> 0 | F99: =IF(Lønmodtager!A47="ÅÅÅ","",Lønmodtager!A47&REPT(".",200)) ->  | H99: =IF(F99<>"",Lønmodtager!H47,"") ->  | I99: =Lønmodtager!M47 -> 0 | J99: =Lønmodtager!L47 -> 0 | K99: =Lønmodtager!U47-Lønmodtager!V47 -> 0 | L99: =IF(Lønmodtager!A87="ÅÅÅ","",Lønmodtager!A87&REPT(".",200)) ->  | N99: =IF(L99<>"",Lønmodtager!H87,"") ->  | O99: =Lønmodtager!M87 -> 0 | P99: =Lønmodtager!L87 -> 0 | Q99: =Lønmodtager!U87-Lønmodtager!V87 -> 0
A100: =IF(Lønmodtager!A8="ÅÅÅ","",Lønmodtager!A8&REPT(".",200)) ->  | B100: =IF(Lønmodtager!A8="ÅÅÅ","",Lønmodtager!H8&REPT(".",200)) ->  | C100: =Lønmodtager!M8 -> 0 | D100: =Lønmodtager!L8 -> 0 | E100: =Lønmodtager!U8-Lønmodtager!V8 -> 0 | F100: =IF(Lønmodtager!A48="ÅÅÅ","",Lønmodtager!A48&REPT(".",200)) ->  | H100: =IF(F100<>"",Lønmodtager!H48,"") ->  | I100: =Lønmodtager!M48 -> 0 | J100: =Lønmodtager!L48 -> 0 | K100: =Lønmodtager!U48-Lønmodtager!V48 -> 0 | L100: =IF(Lønmodtager!A88="ÅÅÅ","",Lønmodtager!A88&REPT(".",200)) ->  | N100: =IF(L100<>"",Lønmodtager!H88,"") ->  | O100: =Lønmodtager!M88 -> 0 | P100: =Lønmodtager!L88 -> 0 | Q100: =Lønmodtager!U88-Lønmodtager!V88 -> 0
A101: =IF(Lønmodtager!A9="ÅÅÅ","",Lønmodtager!A9&REPT(".",200)) ->  | B101: =IF(Lønmodtager!A9="ÅÅÅ","",Lønmodtager!H9&REPT(".",200)) ->  | C101: =Lønmodtager!M9 -> 0 | D101: =Lønmodtager!L9 -> 0 | E101: =Lønmodtager!U9-Lønmodtager!V9 -> 0 | F101: =IF(Lønmodtager!A49="ÅÅÅ","",Lønmodtager!A49&REPT(".",200)) ->  | H101: =IF(F101<>"",Lønmodtager!H49,"") ->  | I101: =Lønmodtager!M49 -> 0 | J101: =Lønmodtager!L49 -> 0 | K101: =Lønmodtager!U49-Lønmodtager!V49 -> 0 | L101: =IF(Lønmodtager!A89="ÅÅÅ","",Lønmodtager!A89&REPT(".",200)) ->  | N101: =IF(L101<>"",Lønmodtager!H89,"") ->  | O101: =Lønmodtager!M89 -> 0 | P101: =Lønmodtager!L89 -> 0 | Q101: =Lønmodtager!U89-Lønmodtager!V89 -> 0
A102: =IF(Lønmodtager!A10="ÅÅÅ","",Lønmodtager!A10&REPT(".",200)) ->  | B102: =IF(Lønmodtager!A10="ÅÅÅ","",Lønmodtager!H10&REPT(".",200)) ->  | C102: =Lønmodtager!M10 -> 0 | D102: =Lønmodtager!L10 -> 0 | E102: =Lønmodtager!U10-Lønmodtager!V10 -> 0 | F102: =IF(Lønmodtager!A50="ÅÅÅ","",Lønmodtager!A50&REPT(".",200)) ->  | H102: =IF(F102<>"",Lønmodtager!H50,"") ->  | I102: =Lønmodtager!M50 -> 0 | J102: =Lønmodtager!L50 -> 0 | K102: =Lønmodtager!U50-Lønmodtager!V50 -> 0 | L102: =IF(Lønmodtager!A90="ÅÅÅ","",Lønmodtager!A90&REPT(".",200)) ->  | N102: =IF(L102<>"",Lønmodtager!H90,"") ->  | O102: =Lønmodtager!M90 -> 0 | P102: =Lønmodtager!L90 -> 0 | Q102: =Lønmodtager!U90-Lønmodtager!V90 -> 0
A103: =IF(Lønmodtager!A11="ÅÅÅ","",Lønmodtager!A11&REPT(".",200)) ->  | B103: =IF(Lønmodtager!A11="ÅÅÅ","",Lønmodtager!H11&REPT(".",200)) ->  | C103: =Lønmodtager!M11 -> 0 | D103: =Lønmodtager!L11 -> 0 | E103: =Lønmodtager!U11-Lønmodtager!V11 -> 0 | F103: =IF(Lønmodtager!A51="ÅÅÅ","",Lønmodtager!A51&REPT(".",200)) ->  | H103: =IF(F103<>"",Lønmodtager!H51,"") ->  | I103: =Lønmodtager!M51 -> 0 | J103: =Lønmodtager!L51 -> 0 | K103: =Lønmodtager!U51-Lønmodtager!V51 -> 0 | L103: =IF(Lønmodtager!A91="ÅÅÅ","",Lønmodtager!A91&REPT(".",200)) ->  | N103: =IF(L103<>"",Lønmodtager!H91,"") ->  | O103: =Lønmodtager!M91 -> 0 | P103: =Lønmodtager!L91 -> 0 | Q103: =Lønmodtager!U91-Lønmodtager!V91 -> 0
A104: =IF(Lønmodtager!A12="ÅÅÅ","",Lønmodtager!A12&REPT(".",200)) ->  | B104: =IF(Lønmodtager!A12="ÅÅÅ","",Lønmodtager!H12&REPT(".",200)) ->  | C104: =Lønmodtager!M12 -> 0 | D104: =Lønmodtager!L12 -> 0 | E104: =Lønmodtager!U12-Lønmodtager!V12 -> 0 | F104: =IF(Lønmodtager!A52="ÅÅÅ","",Lønmodtager!A52&REPT(".",200)) ->  | H104: =IF(F104<>"",Lønmodtager!H52,"") ->  | I104: =Lønmodtager!M52 -> 0 | J104: =Lønmodtager!L52 -> 0 | K104: =Lønmodtager!U52-Lønmodtager!V52 -> 0 | L104: =IF(Lønmodtager!A92="ÅÅÅ","",Lønmodtager!A92&REPT(".",200)) ->  | N104: =IF(L104<>"",Lønmodtager!H92,"") ->  | O104: =Lønmodtager!M92 -> 0 | P104: =Lønmodtager!L92 -> 0 | Q104: =Lønmodtager!U92-Lønmodtager!V92 -> 0
A105: =IF(Lønmodtager!A13="ÅÅÅ","",Lønmodtager!A13&REPT(".",200)) ->  | B105: =IF(Lønmodtager!A13="ÅÅÅ","",Lønmodtager!H13&REPT(".",200)) ->  | C105: =Lønmodtager!M13 -> 0 | D105: =Lønmodtager!L13 -> 0 | E105: =Lønmodtager!U13-Lønmodtager!V13 -> 0 | F105: =IF(Lønmodtager!A53="ÅÅÅ","",Lønmodtager!A53&REPT(".",200)) ->  | H105: =IF(F105<>"",Lønmodtager!H53,"") ->  | I105: =Lønmodtager!M53 -> 0 | J105: =Lønmodtager!L53 -> 0 | K105: =Lønmodtager!U53-Lønmodtager!V53 -> 0 | L105: =IF(Lønmodtager!A93="ÅÅÅ","",Lønmodtager!A93&REPT(".",200)) ->  | N105: =IF(L105<>"",Lønmodtager!H93,"") ->  | O105: =Lønmodtager!M93 -> 0 | P105: =Lønmodtager!L93 -> 0 | Q105: =Lønmodtager!U93-Lønmodtager!V93 -> 0
A106: =IF(Lønmodtager!A14="ÅÅÅ","",Lønmodtager!A14&REPT(".",200)) ->  | B106: =IF(Lønmodtager!A14="ÅÅÅ","",Lønmodtager!H14&REPT(".",200)) ->  | C106: =Lønmodtager!M14 -> 0 | D106: =Lønmodtager!L14 -> 0 | E106: =Lønmodtager!U14-Lønmodtager!V14 -> 0 | F106: =IF(Lønmodtager!A54="ÅÅÅ","",Lønmodtager!A54&REPT(".",200)) ->  | H106: =IF(F106<>"",Lønmodtager!H54,"") ->  | I106: =Lønmodtager!M54 -> 0 | J106: =Lønmodtager!L54 -> 0 | K106: =Lønmodtager!U54-Lønmodtager!V54 -> 0 | L106: =IF(Lønmodtager!A94="ÅÅÅ","",Lønmodtager!A94&REPT(".",200)) ->  | N106: =IF(L106<>"",Lønmodtager!H94,"") ->  | O106: =Lønmodtager!M94 -> 0 | P106: =Lønmodtager!L94 -> 0 | Q106: =Lønmodtager!U94-Lønmodtager!V94 -> 0
A107: =IF(Lønmodtager!A15="ÅÅÅ","",Lønmodtager!A15&REPT(".",200)) ->  | B107: =IF(Lønmodtager!A15="ÅÅÅ","",Lønmodtager!H15&REPT(".",200)) ->  | C107: =Lønmodtager!M15 -> 0 | D107: =Lønmodtager!L15 -> 0 | E107: =Lønmodtager!U15-Lønmodtager!V15 -> 0 | F107: =IF(Lønmodtager!A55="ÅÅÅ","",Lønmodtager!A55&REPT(".",200)) ->  | H107: =IF(F107<>"",Lønmodtager!H55,"") ->  | I107: =Lønmodtager!M55 -> 0 | J107: =Lønmodtager!L55 -> 0 | K107: =Lønmodtager!U55-Lønmodtager!V55 -> 0 | L107: =IF(Lønmodtager!A95="ÅÅÅ","",Lønmodtager!A95&REPT(".",200)) ->  | N107: =IF(L107<>"",Lønmodtager!H95,"") ->  | O107: =Lønmodtager!M95 -> 0 | P107: =Lønmodtager!L95 -> 0 | Q107: =Lønmodtager!U95-Lønmodtager!V95 -> 0
A108: =IF(Lønmodtager!A16="ÅÅÅ","",Lønmodtager!A16&REPT(".",200)) ->  | B108: =IF(Lønmodtager!A16="ÅÅÅ","",Lønmodtager!H16&REPT(".",200)) ->  | C108: =Lønmodtager!M16 -> 0 | D108: =Lønmodtager!L16 -> 0 | E108: =Lønmodtager!U16-Lønmodtager!V16 -> 0 | F108: =IF(Lønmodtager!A56="ÅÅÅ","",Lønmodtager!A56&REPT(".",200)) ->  | H108: =IF(F108<>"",Lønmodtager!H56,"") ->  | I108: =Lønmodtager!M56 -> 0 | J108: =Lønmodtager!L56 -> 0 | K108: =Lønmodtager!U56-Lønmodtager!V56 -> 0 | L108: =IF(Lønmodtager!A96="ÅÅÅ","",Lønmodtager!A96&REPT(".",200)) ->  | N108: =IF(L108<>"",Lønmodtager!H96,"") ->  | O108: =Lønmodtager!M96 -> 0 | P108: =Lønmodtager!L96 -> 0 | Q108: =Lønmodtager!U96-Lønmodtager!V96 -> 0
A109: =IF(Lønmodtager!A17="ÅÅÅ","",Lønmodtager!A17&REPT(".",200)) ->  | B109: =IF(Lønmodtager!A17="ÅÅÅ","",Lønmodtager!H17&REPT(".",200)) ->  | C109: =Lønmodtager!M17 -> 0 | D109: =Lønmodtager!L17 -> 0 | E109: =Lønmodtager!U17-Lønmodtager!V17 -> 0 | F109: =IF(Lønmodtager!A57="ÅÅÅ","",Lønmodtager!A57&REPT(".",200)) ->  | H109: =IF(F109<>"",Lønmodtager!H57,"") ->  | I109: =Lønmodtager!M57 -> 0 | J109: =Lønmodtager!L57 -> 0 | K109: =Lønmodtager!U57-Lønmodtager!V57 -> 0 | L109: =IF(Lønmodtager!A97="ÅÅÅ","",Lønmodtager!A97&REPT(".",200)) ->  | N109: =IF(L109<>"",Lønmodtager!H97,"") ->  | O109: =Lønmodtager!M97 -> 0 | P109: =Lønmodtager!L97 -> 0 | Q109: =Lønmodtager!U97-Lønmodtager!V97 -> 0
A110: =IF(Lønmodtager!A18="ÅÅÅ","",Lønmodtager!A18&REPT(".",200)) ->  | B110: =IF(Lønmodtager!A18="ÅÅÅ","",Lønmodtager!H18&REPT(".",200)) ->  | C110: =Lønmodtager!M18 -> 0 | D110: =Lønmodtager!L18 -> 0 | E110: =Lønmodtager!U18-Lønmodtager!V18 -> 0 | F110: =IF(Lønmodtager!A58="ÅÅÅ","",Lønmodtager!A58&REPT(".",200)) ->  | H110: =IF(F110<>"",Lønmodtager!H58,"") ->  | I110: =Lønmodtager!M58 -> 0 | J110: =Lønmodtager!L58 -> 0 | K110: =Lønmodtager!U58-Lønmodtager!V58 -> 0 | L110: =IF(Lønmodtager!A98="ÅÅÅ","",Lønmodtager!A98&REPT(".",200)) ->  | N110: =IF(L110<>"",Lønmodtager!H98,"") ->  | O110: =Lønmodtager!M98 -> 0 | P110: =Lønmodtager!L98 -> 0 | Q110: =Lønmodtager!U98-Lønmodtager!V98 -> 0
A111: =IF(Lønmodtager!A19="ÅÅÅ","",Lønmodtager!A19&REPT(".",200)) ->  | B111: =IF(Lønmodtager!A19="ÅÅÅ","",Lønmodtager!H19&REPT(".",200)) ->  | C111: =Lønmodtager!M19 -> 0 | D111: =Lønmodtager!L19 -> 0 | E111: =Lønmodtager!U19-Lønmodtager!V19 -> 0 | F111: =IF(Lønmodtager!A59="ÅÅÅ","",Lønmodtager!A59&REPT(".",200)) ->  | H111: =IF(F111<>"",Lønmodtager!H59,"") ->  | I111: =Lønmodtager!M59 -> 0 | J111: =Lønmodtager!L59 -> 0 | K111: =Lønmodtager!U59-Lønmodtager!V59 -> 0 | L111: =IF(Lønmodtager!A99="ÅÅÅ","",Lønmodtager!A99&REPT(".",200)) ->  | N111: =IF(L111<>"",Lønmodtager!H99,"") ->  | O111: =Lønmodtager!M99 -> 0 | P111: =Lønmodtager!L99 -> 0 | Q111: =Lønmodtager!U99-Lønmodtager!V99 -> 0
A112: =IF(Lønmodtager!A20="ÅÅÅ","",Lønmodtager!A20&REPT(".",200)) ->  | B112: =IF(Lønmodtager!A20="ÅÅÅ","",Lønmodtager!H20&REPT(".",200)) ->  | C112: =Lønmodtager!M20 -> 0 | D112: =Lønmodtager!L20 -> 0 | E112: =Lønmodtager!U20-Lønmodtager!V20 -> 0 | F112: =IF(Lønmodtager!A60="ÅÅÅ","",Lønmodtager!A60&REPT(".",200)) ->  | H112: =IF(F112<>"",Lønmodtager!H60,"") ->  | I112: =Lønmodtager!M60 -> 0 | J112: =Lønmodtager!L60 -> 0 | K112: =Lønmodtager!U60-Lønmodtager!V60 -> 0 | P112: =IF(P113<>0,"------------","") ->  | Q112: =IF(Q113<>0,"------------","") -> 
A113: =IF(Lønmodtager!A21="ÅÅÅ","",Lønmodtager!A21&REPT(".",200)) ->  | B113: =IF(Lønmodtager!A21="ÅÅÅ","",Lønmodtager!H21&REPT(".",200)) ->  | C113: =Lønmodtager!M21 -> 0 | D113: =Lønmodtager!L21 -> 0 | E113: =Lønmodtager!U21-Lønmodtager!V21 -> 0 | F113: =IF(Lønmodtager!A61="ÅÅÅ","",Lønmodtager!A61&REPT(".",200)) ->  | H113: =IF(F113<>"",Lønmodtager!H61,"") ->  | I113: =Lønmodtager!M61 -> 0 | J113: =Lønmodtager!L61 -> 0 | K113: =Lønmodtager!U61-Lønmodtager!V61 -> 0 | L113: =IF(P113+Q113<>0,"Indbetaling af feriepenge & Skyldig SH"&REPT(".",200),"") ->  | P113: =SUM(P77:P111) -> 0 | Q113: =SUM(Q77:Q111) -> 0
A114: =IF(Lønmodtager!A22="ÅÅÅ","",Lønmodtager!A22&REPT(".",200)) ->  | B114: =IF(Lønmodtager!A22="ÅÅÅ","",Lønmodtager!H22&REPT(".",200)) ->  | C114: =Lønmodtager!M22 -> 0 | D114: =Lønmodtager!L22 -> 0 | E114: =Lønmodtager!U22-Lønmodtager!V22 -> 0 | F114: =IF(Lønmodtager!A62="ÅÅÅ","",Lønmodtager!A62&REPT(".",200)) ->  | H114: =IF(F114<>"",Lønmodtager!H62,"") ->  | I114: =Lønmodtager!M62 -> 0 | J114: =Lønmodtager!L62 -> 0 | K114: =Lønmodtager!U62-Lønmodtager!V62 -> 0
A115: =IF(Lønmodtager!A23="ÅÅÅ","",Lønmodtager!A23&REPT(".",200)) ->  | B115: =IF(Lønmodtager!A23="ÅÅÅ","",Lønmodtager!H23&REPT(".",200)) ->  | C115: =Lønmodtager!M23 -> 0 | D115: =Lønmodtager!L23 -> 0 | E115: =Lønmodtager!U23-Lønmodtager!V23 -> 0 | F115: =IF(Lønmodtager!A63="ÅÅÅ","",Lønmodtager!A63&REPT(".",200)) ->  | H115: =IF(F115<>"",Lønmodtager!H63,"") ->  | I115: =Lønmodtager!M63 -> 0 | J115: =Lønmodtager!L63 -> 0 | K115: =Lønmodtager!U63-Lønmodtager!V63 -> 0
A116: =IF(Lønmodtager!A24="ÅÅÅ","",Lønmodtager!A24&REPT(".",200)) ->  | B116: =IF(Lønmodtager!A24="ÅÅÅ","",Lønmodtager!H24&REPT(".",200)) ->  | C116: =Lønmodtager!M24 -> 0 | D116: =Lønmodtager!L24 -> 0 | E116: =Lønmodtager!U24-Lønmodtager!V24 -> 0 | F116: =IF(Lønmodtager!A64="ÅÅÅ","",Lønmodtager!A64&REPT(".",200)) ->  | H116: =IF(F116<>"",Lønmodtager!H64,"") ->  | I116: =Lønmodtager!M64 -> 0 | J116: =Lønmodtager!L64 -> 0 | K116: =Lønmodtager!U64-Lønmodtager!V64 -> 0
D117: =IF(D118=0,"","------------") ->  | E117: =IF(E118=0,"","------------") ->  | J117: =IF(J118<>0,"------------","") ->  | K117: =IF(K118<>0,"------------","") -> 
A118: =IF(D118+E118=0,"","Indbetaling af Feriepenge & Skyldig SH"&REPT(".",200)) ->  | D118: =SUM(D97:D116) -> 0 | E118: =SUM(E97:E116) -> 0 | F118: =IF(J118+K118<>0,"Indbetaling af Feriepenge & Skyldig SH"&REPT(".",200),"") ->  | J118: =SUM(I77:I116) -> 0 | K118: =SUM(J77:J116) -> 0
A122: Stamdata : | B122: 2019 | C122: Årstal på lønsedlen
A123: Intern ATP-Tabel :
A124: Tjek satserne : http://www.atp.dk/web/portal.nsf/mainfrms!readform&Area=ATP
A125: ATP pr. time v/sygedagpenge | B125: 1.62 | C125: <--- Ophævet pr. 1.7.2002, herefter alm. ATP-beregning
C126: Under | D126: ATP-total | E126: ATP/time | F126: Antal feriedage | H126: Fuld Tid Perioden | I126: Timelønnet
A127: ="Månedslønnet"&REPT(".",200) -> Månedslønnet........................................................................................................................................................................................................ | B127: Måned | C127: 39 | D127: =B171 -> 284 | E127: 0 | F127: =INT(25/12*100)/100*FortegnTimer -> 2.08 | H127: =$B$155*52/12 -> 160.3333333 | I127: =IF(K11=1,"Ja","Nej") -> Ja
A128: ="14-dages lønnede"&REPT(".",200) -> 14-dages lønnede........................................................................................................................................................................................................ | B128: 14 DG | C128: 18 | D128: =B172 -> 149.4 | E128: 0 | F128: =INT(25/26*100)/100*FortegnTimer -> 0.96 | H128: =$B$155*2 -> 74
A129: ="Ugelønnede"&REPT(".",200) -> Ugelønnede........................................................................................................................................................................................................ | B129: Uge | C129: 9 | D129: =B173 -> 74.7 | E129: 0 | F129: =INT(25/52*100)/100*FortegnTimer -> 0.48 | H129: =$B$155 -> 37
A130: ="Løsarbejder"&REPT(".",200) -> Løsarbejder........................................................................................................................................................................................................ | B130: Løs | D130: =B174 -> 2.01 | E130: =B174 -> 2.01 | F130: =(TIMER/(52*37))*25 -> 1.299376299e-17
D132: Løsarbejder : | F132: Antal feriedage | H132: Ferieberet.
D133: timer*E100 | F133: Beregnet | H133: Timer
A134: ="Aktuelle lønmodtager"&REPT(".",100) -> Aktuelle lønmodtager.................................................................................................... | B134: =L_NPER&" "&MID(D12,1,3) -> Måned | C134: =IF(L_NPER="Måned",C127,(IF(L_NPER="Feriepenge",C130,(IF(L_NPER="Fejl",0,(IF(L_NPER="Løs",TIMER*FortegnTimer,(IF(((L_NPER="1")+(L_NPER="2")+(L_NPER="3"))=1,(C129*VALUE(L_NPER)),""))))))))) -> 39 | D134: =IF(L_NPER="Måned",D127,(IF(L_NPER="Løs",(E130*TIMER*FortegnTimer),(IF(L_NPER="Feriepenge",0,(IF(((L_NPER="1")+(L_NPER="2")+(L_NPER="3"))=1,(D129*VALUE(L_NPER)),IF(L_NPER="B-Indkomst",0,"Fejl")))))))) -> 284 | F134: =IF(L_NPER="Måned",F127,(IF(L_NPER="Løs",(F130),(IF(L_NPER="Feriepenge",0,(IF(((L_NPER="1")+(L_NPER="2")+(L_NPER="3"))=1,(F129*VALUE(L_NPER)),(IF(L_NPER="B-Indkomst",0,"Fejl"))))))))) -> 2.08 | H134: =ABS(H13) -> 1e-15
A137: Lønmodtager :
B138: Måned | C138: 14 DG | D138: Uge | E138: Dag
A139: ="Skattekort lønmodtager fradrag"&REPT(".",100) -> Skattekort lønmodtager fradrag.................................................................................................... | B139: =IF(F7<>"SøgeNavn",VALUE(LOOKUP(A7,Lønmodtager!A4:A100,Lønmodtager!J4:J100)),"") -> 0 | C139: =TRUNC(B139/4.33333333*2) -> 0 | D139: =TRUNC(C139/2) -> 0 | E139: =TRUNC(D139/7) -> 0
A141: ="Beregnet feriepenge fradrag"&REPT(".",100) -> Beregnet feriepenge fradrag.................................................................................................... | B141: =TRUNC(B148*DAGFRD) -> 0 | C141: =TRUNC(C148*DAGFRD) -> 0 | D141: =TRUNC(D148*DAGFRD) -> 0 | E141: =TRUNC(E148*DAGFRD) -> 0
A143: ="Skattekort lønmodtager træk-%"&REPT(".",100) -> Skattekort lønmodtager træk-%.................................................................................................... | B143: =VALUE(LOOKUP(A7,Lønmodtager!A4:A100,Lønmodtager!I4:I100))/100 -> 0.46
A144: =IF(B144=1,"Beregn Søgnehelligdagsbetaling"&REPT(".",200),"") ->  | B144: =LOOKUP(A7,Lønmodtager!A4:A100,Lønmodtager!T4:T100) -> 0
A146: Årsbestemte satser :
B147: Måned | C147: 14 DG | D147: Uge | E147: Dag
A148: ="Feriep. fradrag sats * Dagsfrd"&REPT(".",100) -> Feriep. fradrag sats * Dagsfrd.................................................................................................... | B148: 3.25 | C148: 1.5 | D148: 0.75 | E148: =D148/5 -> 0.15
A149: ="AM-bidrag lønmodtager"&REPT(".",100) -> AM-bidrag lønmodtager.................................................................................................... | B149: 0.08
A150: ="Midlertid pensionsops. løn.modt."&REPT(".",100) -> Midlertid pensionsops. løn.modt..................................................................................................... | B150: =LOOKUP(A7,Lønmodtager!A4:A100,Lønmodtager!N4:N100)/100 -> 0 | C150: korrigeres automatisk ift. lønmodtager kolonne N
A151: ="Dagpengesats max. pr. dag"&REPT(".",100) -> Dagpengesats max. pr. dag.................................................................................................... | B151: 871 | C151: Tjek den aktuelle sats : Klik på dette link ----> | E151: http://www.3f.dk/haandboeger/a_kassen/arbejdsloeshedskassen/dagpengesatser/dagpengesatser-2014
A152: ="Daggodtg. 1.-2.-3. ledighedsdag"&REPT(".",100) -> Daggodtg. 1.-2.-3. ledighedsdag.................................................................................................... | B152: 871 | C152: pr. dag - kan ændre sig i løbet af året
A153: ="Max. gange pr. år Dagp.godtg."&REPT(".",100) -> Max. gange pr. år Dagp.godtg..................................................................................................... | B153: 16
A154: ="Feriepengesats"&REPT(".",200) -> Feriepengesats........................................................................................................................................................................................................ | B154: 0.125 | C154: Fra 1.12.03 skal der løbende indeholdes A-skat/AM/SP af feriepenge.
A155: ="Arbejdstimer pr. Uge"&REPT(".",200) -> Arbejdstimer pr. Uge........................................................................................................................................................................................................ | B155: 37 | C155: -----> | D155: Timer/dg | E155: =B155/5 -> 7.4
A156: Pension : | C156: Ønskes pensionsberegning sæt 1 i Lønmodtager kol. S
A157: ="Pension %-af Ferieberet. Løn + Feriepenge"&REPT(".",200) -> Pension %-af Ferieberet. Løn + Feriepenge........................................................................................................................................................................................................ | B157: 0.1 | C157: Summen af %'er for lønmodtager og arbejdsgiver
A158: ="Pension %-andel lønmodtager"&REPT(".",200) -> Pension %-andel lønmodtager........................................................................................................................................................................................................ | B158: 0.3333333333 | C158: Lønmodtager % beregnet --------------> | E158: =B157*B158 -> 0.03333333333
A159: ="Pension %-andel arbejdsgiver"&REPT(".",200) -> Pension %-andel arbejdsgiver........................................................................................................................................................................................................ | B159: =2/3 -> 0.6666666667 | C159: Arbejdsgiver % beregnet ---------------> | E159: =B157*B159 -> 0.06666666667
A160: ="Skattefri befordringsgodtgørelse indtil "&REPT(".",200) -> Skattefri befordringsgodtgørelse indtil ........................................................................................................................................................................................................ | B160: 20000
A161: ="Skattefri befordringsgodtg. 01.01-31.12"&REPT(".",100) -> Skattefri befordringsgodtg. 01.01-31.12.................................................................................................... | B161: 3.56
A163: ="Skattefri befordringsgodtgørelse over "&REPT(".",200) -> Skattefri befordringsgodtgørelse over ........................................................................................................................................................................................................ | B163: 20000 | D163: =IF(E70>B160,"km > grænse","") -> 
A164: ="Skattefri befordringsgodtg. 01.01-31.12. Over grænse"&REPT(".",100) -> Skattefri befordringsgodtg. 01.01-31.12. Over grænse.................................................................................................... | B164: 1.98 | D164: =IF(E70>B160,E70-B160,"") -> 
A166: ="Skal der bruges skattefradrag v/feriepenge 0/1"&REPT(".",200) -> Skal der bruges skattefradrag v/feriepenge 0/1........................................................................................................................................................................................................ | B166: 1 | C166: Sættes til 1 hvis lønmodtageren ikke bruger sit fradrag under ferie.
A168: Søgnehelligdagsbetaling | B168: 0.0575 | C168: Hvis bruges sæt kolonne T til 1 på Lønmodtager-fanebladet
A170: ATP-satser: Indtastes som Samlet bidrag lønmodtager+arbejdsgiver | C170: Tjek den aktuelle sats : Klik på dette link ----> | E170: https://indberet.virk.dk/sites/default/files/atp-satser_offentlige.pdf
A171: Månedslønnede mindst 117 timer (fuldtid) | B171: 284
A172: 14-dages lønnede mindst 54 timer (fuldtid) | B172: 149.4
A173: Ugelønnede mindst 27 timer (fuldtid) | B173: 74.7
A174: Løsarbejdere pr. time | B174: 2.01

Sheet AskatAMSP
A1: =Lønseddel!D2 -> SE-NR.......................... | C1: =Lønseddel!E2 -> 12 34 56 78 | H1: =Lønseddel!B122 -> 2019
H2: =Lønseddel!D10 -> Januar
A3: =Lønseddel!D3 -> TestVirk.navn
A4: =Lønseddel!D4 -> v/Test.Indehaver
A5: =Lønseddel!D5 -> Test.Adr.Virk
A6: =Lønseddel!D6 -> 1234 Testby
A8: =IF(SUM(Lønseddel!C77:'Lønseddel'!C79)<>0,"Afregningen indeholder den ikke År-Til-Dato opdaterede lønseddel","") -> 
A10: Månedlig Afregning A-skat/AM
A12: =Lønseddel!A77 ->  | F12: =Lønseddel!E77 -> 0
A13: =Lønseddel!A79 ->  | F13: =Lønseddel!E79 -> 0
A14: =Lønseddel!A81 ->  | F14: -------- | G14: > | H14: =SUM(F12:F13) -> 0
A16: =Lønseddel!A78 ->  | H16: =Lønseddel!E78 -> 0
H17: ----------
A18: ="AM + A-skat"&REPT(".",200) -> AM + A-skat........................................................................................................................................................................................................ | H18: =SUM(H14:H17) -> 0
H19: ----------

Sheet ATP-Feriepenge-SH
A3: =Lønseddel!D2 -> SE-NR.......................... | B3: =Lønseddel!E2 -> 12 34 56 78 | G3: =AskatAMSP!A10 -> Månedlig Afregning A-skat/AM | K3: =Lønseddel!E10 -> 2019
A4: =Lønseddel!D3 -> TestVirk.navn | G4: Indberetning elektronisk : | H4: http://www.toldskat.dk/basic.php?source=/tastselverhverv/tastselverhverv.cnt | K4: =Lønseddel!D10 -> Januar
A5: =Lønseddel!D4 -> v/Test.Indehaver | G5: =AskatAMSP!A12 ->  | J5: =AskatAMSP!F12 -> 0
A6: =Lønseddel!D5 -> Test.Adr.Virk | G6: =AskatAMSP!A13 ->  | J6: =AskatAMSP!F13 -> 0
A7: =Lønseddel!D6 -> 1234 Testby | G7: =AskatAMSP!A14 ->  | J7: ------> | K7: =SUM(J5:J6) -> 0
G9: =AskatAMSP!A16 ->  | K9: =AskatAMSP!H16 -> 0
A10: =IF(Lønseddel!C84<>0,"ATP indeholder den ikke År-Til-Dato opdaterede lønseddel","") ->  | K10: ---------
A11: =Lønseddel!A84 ->  | E11: =Lønseddel!E84 -> 0 | G11: =AskatAMSP!A18 -> AM + A-skat........................................................................................................................................................................................................ | K11: =SUM(K7:K10) -> 0
K12: ---------
A14: KvartalsAfregning ATP & Feriepenge & Skyldig SH. | G14: =IF((Lønseddel!C85+Lønseddel!C88)<>0,"Feriepenge/SH indeholder IKKE ","") -> 
A15: Indberetning elektronisk : | B15: http://www.arbejdsgiver.net/ | G15: =IF((Lønseddel!C85+Lønseddel!C88)<>0,"tal fra den ikke År-Til-Dato opdaterede lønseddel","") -> 
C16: Ferie | D16: Ferie | E16: Skyldig | I16: =IF(G68<>"","Ferie","") ->  | J16: =IF(G68<>"","Ferie","") ->  | K16: =IF(G68<>"","Skyldig","") -> 
A17: Feriepengeafregning | B17: Cpr-nr. | C17: Dage | D17: Penge | E17: SH-Saldo | G17: =IF(G68<>"","Feriepengeafregning","") ->  | H17: =IF(G68<>"","Cpr-nr.","") ->  | I17: =IF(G68<>"","Dage","") ->  | J17: =IF(G68<>"","Penge","") ->  | K17: =IF(G68<>"","SH-Saldo","") -> 
A18: =IF(Lønmodtager!A5="ÅÅÅ","",Lønmodtager!A5&REPT(".",200)) -> Søgenavn indtastes i celle F7........................................................................................................................................................................................................ | B18: =IF(Lønmodtager!A5="ÅÅÅ","",Lønmodtager!H5) -> 000000-0000 | C18: =Lønmodtager!M5 -> 0 | D18: =Lønmodtager!L5 -> 0 | E18: =Lønmodtager!U5-Lønmodtager!V5 -> 0 | G18: =IF(Lønmodtager!A54="ÅÅÅ","",Lønmodtager!A54&REPT(".",200)) ->  | H18: =IF(Lønmodtager!A54="ÅÅÅ","",Lønmodtager!H54) ->  | I18: =Lønmodtager!M54 -> 0 | J18: =Lønmodtager!L54 -> 0 | K18: =Lønmodtager!U54-Lønmodtager!V54 -> 0
A19: =IF(Lønmodtager!A6="ÅÅÅ","",Lønmodtager!A6&REPT(".",200)) -> Testperson........................................................................................................................................................................................................ | B19: =IF(Lønmodtager!A6="ÅÅÅ","",Lønmodtager!H6) -> 12345678-1234 | C19: =Lønmodtager!M6 -> 0 | D19: =Lønmodtager!L6 -> 0 | E19: =Lønmodtager!U6-Lønmodtager!V6 -> 0 | G19: =IF(Lønmodtager!A55="ÅÅÅ","",Lønmodtager!A55&REPT(".",200)) ->  | H19: =IF(Lønmodtager!A55="ÅÅÅ","",Lønmodtager!H55) ->  | I19: =Lønmodtager!M55 -> 0 | J19: =Lønmodtager!L55 -> 0 | K19: =Lønmodtager!U55-Lønmodtager!V55 -> 0
A20: =IF(Lønmodtager!A7="ÅÅÅ","",Lønmodtager!A7&REPT(".",200)) ->  | B20: =IF(Lønmodtager!A7="ÅÅÅ","",Lønmodtager!H7) ->  | C20: =Lønmodtager!M7 -> 0 | D20: =Lønmodtager!L7 -> 0 | E20: =Lønmodtager!U7-Lønmodtager!V7 -> 0 | G20: =IF(Lønmodtager!A56="ÅÅÅ","",Lønmodtager!A56&REPT(".",200)) ->  | H20: =IF(Lønmodtager!A56="ÅÅÅ","",Lønmodtager!H56) ->  | I20: =Lønmodtager!M56 -> 0 | J20: =Lønmodtager!L56 -> 0 | K20: =Lønmodtager!U56-Lønmodtager!V56 -> 0
A21: =IF(Lønmodtager!A8="ÅÅÅ","",Lønmodtager!A8&REPT(".",200)) ->  | B21: =IF(Lønmodtager!A8="ÅÅÅ","",Lønmodtager!H8) ->  | C21: =Lønmodtager!M8 -> 0 | D21: =Lønmodtager!L8 -> 0 | E21: =Lønmodtager!U8-Lønmodtager!V8 -> 0 | G21: =IF(Lønmodtager!A57="ÅÅÅ","",Lønmodtager!A57&REPT(".",200)) ->  | H21: =IF(Lønmodtager!A57="ÅÅÅ","",Lønmodtager!H57) ->  | I21: =Lønmodtager!M57 -> 0 | J21: =Lønmodtager!L57 -> 0 | K21: =Lønmodtager!U57-Lønmodtager!V57 -> 0
A22: =IF(Lønmodtager!A9="ÅÅÅ","",Lønmodtager!A9&REPT(".",200)) ->  | B22: =IF(Lønmodtager!A9="ÅÅÅ","",Lønmodtager!H9) ->  | C22: =Lønmodtager!M9 -> 0 | D22: =Lønmodtager!L9 -> 0 | E22: =Lønmodtager!U9-Lønmodtager!V9 -> 0 | G22: =IF(Lønmodtager!A58="ÅÅÅ","",Lønmodtager!A58&REPT(".",200)) ->  | H22: =IF(Lønmodtager!A58="ÅÅÅ","",Lønmodtager!H58) ->  | I22: =Lønmodtager!M58 -> 0 | J22: =Lønmodtager!L58 -> 0 | K22: =Lønmodtager!U58-Lønmodtager!V58 -> 0
A23: =IF(Lønmodtager!A10="ÅÅÅ","",Lønmodtager!A10&REPT(".",200)) ->  | B23: =IF(Lønmodtager!A10="ÅÅÅ","",Lønmodtager!H10) ->  | C23: =Lønmodtager!M10 -> 0 | D23: =Lønmodtager!L10 -> 0 | E23: =Lønmodtager!U10-Lønmodtager!V10 -> 0 | G23: =IF(Lønmodtager!A59="ÅÅÅ","",Lønmodtager!A59&REPT(".",200)) ->  | H23: =IF(Lønmodtager!A59="ÅÅÅ","",Lønmodtager!H59) ->  | I23: =Lønmodtager!M59 -> 0 | J23: =Lønmodtager!L59 -> 0 | K23: =Lønmodtager!U59-Lønmodtager!V59 -> 0
A24: =IF(Lønmodtager!A11="ÅÅÅ","",Lønmodtager!A11&REPT(".",200)) ->  | B24: =IF(Lønmodtager!A11="ÅÅÅ","",Lønmodtager!H11) ->  | C24: =Lønmodtager!M11 -> 0 | D24: =Lønmodtager!L11 -> 0 | E24: =Lønmodtager!U11-Lønmodtager!V11 -> 0 | G24: =IF(Lønmodtager!A60="ÅÅÅ","",Lønmodtager!A60&REPT(".",200)) ->  | H24: =IF(Lønmodtager!A60="ÅÅÅ","",Lønmodtager!H60) ->  | I24: =Lønmodtager!M60 -> 0 | J24: =Lønmodtager!L60 -> 0 | K24: =Lønmodtager!U60-Lønmodtager!V60 -> 0
A25: =IF(Lønmodtager!A12="ÅÅÅ","",Lønmodtager!A12&REPT(".",200)) ->  | B25: =IF(Lønmodtager!A12="ÅÅÅ","",Lønmodtager!H12) ->  | C25: =Lønmodtager!M12 -> 0 | D25: =Lønmodtager!L12 -> 0 | E25: =Lønmodtager!U12-Lønmodtager!V12 -> 0 | G25: =IF(Lønmodtager!A61="ÅÅÅ","",Lønmodtager!A61&REPT(".",200)) ->  | H25: =IF(Lønmodtager!A61="ÅÅÅ","",Lønmodtager!H61) ->  | I25: =Lønmodtager!M61 -> 0 | J25: =Lønmodtager!L61 -> 0 | K25: =Lønmodtager!U61-Lønmodtager!V61 -> 0
A26: =IF(Lønmodtager!A13="ÅÅÅ","",Lønmodtager!A13&REPT(".",200)) ->  | B26: =IF(Lønmodtager!A13="ÅÅÅ","",Lønmodtager!H13) ->  | C26: =Lønmodtager!M13 -> 0 | D26: =Lønmodtager!L13 -> 0 | E26: =Lønmodtager!U13-Lønmodtager!V13 -> 0 | G26: =IF(Lønmodtager!A62="ÅÅÅ","",Lønmodtager!A62&REPT(".",200)) ->  | H26: =IF(Lønmodtager!A62="ÅÅÅ","",Lønmodtager!H62) ->  | I26: =Lønmodtager!M62 -> 0 | J26: =Lønmodtager!L62 -> 0 | K26: =Lønmodtager!U62-Lønmodtager!V62 -> 0
A27: =IF(Lønmodtager!A14="ÅÅÅ","",Lønmodtager!A14&REPT(".",200)) ->  | B27: =IF(Lønmodtager!A14="ÅÅÅ","",Lønmodtager!H14) ->  | C27: =Lønmodtager!M14 -> 0 | D27: =Lønmodtager!L14 -> 0 | E27: =Lønmodtager!U14-Lønmodtager!V14 -> 0 | G27: =IF(Lønmodtager!A63="ÅÅÅ","",Lønmodtager!A63&REPT(".",200)) ->  | H27: =IF(Lønmodtager!A63="ÅÅÅ","",Lønmodtager!H63) ->  | I27: =Lønmodtager!M63 -> 0 | J27: =Lønmodtager!L63 -> 0 | K27: =Lønmodtager!U63-Lønmodtager!V63 -> 0
A28: =IF(Lønmodtager!A15="ÅÅÅ","",Lønmodtager!A15&REPT(".",200)) ->  | B28: =IF(Lønmodtager!A15="ÅÅÅ","",Lønmodtager!H15) ->  | C28: =Lønmodtager!M15 -> 0 | D28: =Lønmodtager!L15 -> 0 | E28: =Lønmodtager!U15-Lønmodtager!V15 -> 0 | G28: =IF(Lønmodtager!A64="ÅÅÅ","",Lønmodtager!A64&REPT(".",200)) ->  | H28: =IF(Lønmodtager!A64="ÅÅÅ","",Lønmodtager!H64) ->  | I28: =Lønmodtager!M64 -> 0 | J28: =Lønmodtager!L64 -> 0 | K28: =Lønmodtager!U64-Lønmodtager!V64 -> 0
A29: =IF(Lønmodtager!A16="ÅÅÅ","",Lønmodtager!A16&REPT(".",200)) ->  | B29: =IF(Lønmodtager!A16="ÅÅÅ","",Lønmodtager!H16) ->  | C29: =Lønmodtager!M16 -> 0 | D29: =Lønmodtager!L16 -> 0 | E29: =Lønmodtager!U16-Lønmodtager!V16 -> 0 | G29: =IF(Lønmodtager!A65="ÅÅÅ","",Lønmodtager!A65&REPT(".",200)) ->  | H29: =IF(Lønmodtager!A65="ÅÅÅ","",Lønmodtager!H65) ->  | I29: =Lønmodtager!M65 -> 0 | J29: =Lønmodtager!L65 -> 0 | K29: =Lønmodtager!U65-Lønmodtager!V65 -> 0
A30: =IF(Lønmodtager!A17="ÅÅÅ","",Lønmodtager!A17&REPT(".",200)) ->  | B30: =IF(Lønmodtager!A17="ÅÅÅ","",Lønmodtager!H17) ->  | C30: =Lønmodtager!M17 -> 0 | D30: =Lønmodtager!L17 -> 0 | E30: =Lønmodtager!U17-Lønmodtager!V17 -> 0 | G30: =IF(Lønmodtager!A66="ÅÅÅ","",Lønmodtager!A66&REPT(".",200)) ->  | H30: =IF(Lønmodtager!A66="ÅÅÅ","",Lønmodtager!H66) ->  | I30: =Lønmodtager!M66 -> 0 | J30: =Lønmodtager!L66 -> 0 | K30: =Lønmodtager!U66-Lønmodtager!V66 -> 0
A31: =IF(Lønmodtager!A18="ÅÅÅ","",Lønmodtager!A18&REPT(".",200)) ->  | B31: =IF(Lønmodtager!A18="ÅÅÅ","",Lønmodtager!H18) ->  | C31: =Lønmodtager!M18 -> 0 | D31: =Lønmodtager!L18 -> 0 | E31: =Lønmodtager!U18-Lønmodtager!V18 -> 0 | G31: =IF(Lønmodtager!A67="ÅÅÅ","",Lønmodtager!A67&REPT(".",200)) ->  | H31: =IF(Lønmodtager!A67="ÅÅÅ","",Lønmodtager!H67) ->  | I31: =Lønmodtager!M67 -> 0 | J31: =Lønmodtager!L67 -> 0 | K31: =Lønmodtager!U67-Lønmodtager!V67 -> 0
A32: =IF(Lønmodtager!A19="ÅÅÅ","",Lønmodtager!A19&REPT(".",200)) ->  | B32: =IF(Lønmodtager!A19="ÅÅÅ","",Lønmodtager!H19) ->  | C32: =Lønmodtager!M19 -> 0 | D32: =Lønmodtager!L19 -> 0 | E32: =Lønmodtager!U19-Lønmodtager!V19 -> 0 | G32: =IF(Lønmodtager!A68="ÅÅÅ","",Lønmodtager!A68&REPT(".",200)) ->  | H32: =IF(Lønmodtager!A68="ÅÅÅ","",Lønmodtager!H68) ->  | I32: =Lønmodtager!M68 -> 0 | J32: =Lønmodtager!L68 -> 0 | K32: =Lønmodtager!U68-Lønmodtager!V68 -> 0
A33: =IF(Lønmodtager!A20="ÅÅÅ","",Lønmodtager!A20&REPT(".",200)) ->  | B33: =IF(Lønmodtager!A20="ÅÅÅ","",Lønmodtager!H20) ->  | C33: =Lønmodtager!M20 -> 0 | D33: =Lønmodtager!L20 -> 0 | E33: =Lønmodtager!U20-Lønmodtager!V20 -> 0 | G33: =IF(Lønmodtager!A69="ÅÅÅ","",Lønmodtager!A69&REPT(".",200)) ->  | H33: =IF(Lønmodtager!A69="ÅÅÅ","",Lønmodtager!H69) ->  | I33: =Lønmodtager!M69 -> 0 | J33: =Lønmodtager!L69 -> 0 | K33: =Lønmodtager!U69-Lønmodtager!V69 -> 0
A34: =IF(Lønmodtager!A21="ÅÅÅ","",Lønmodtager!A21&REPT(".",200)) ->  | B34: =IF(Lønmodtager!A21="ÅÅÅ","",Lønmodtager!H21) ->  | C34: =Lønmodtager!M21 -> 0 | D34: =Lønmodtager!L21 -> 0 | E34: =Lønmodtager!U21-Lønmodtager!V21 -> 0 | G34: =IF(Lønmodtager!A70="ÅÅÅ","",Lønmodtager!A70&REPT(".",200)) ->  | H34: =IF(Lønmodtager!A70="ÅÅÅ","",Lønmodtager!H70) ->  | I34: =Lønmodtager!M70 -> 0 | J34: =Lønmodtager!L70 -> 0 | K34: =Lønmodtager!U70-Lønmodtager!V70 -> 0
A35: =IF(Lønmodtager!A22="ÅÅÅ","",Lønmodtager!A22&REPT(".",200)) ->  | B35: =IF(Lønmodtager!A22="ÅÅÅ","",Lønmodtager!H22) ->  | C35: =Lønmodtager!M22 -> 0 | D35: =Lønmodtager!L22 -> 0 | E35: =Lønmodtager!U22-Lønmodtager!V22 -> 0 | G35: =IF(Lønmodtager!A71="ÅÅÅ","",Lønmodtager!A71&REPT(".",200)) ->  | H35: =IF(Lønmodtager!A71="ÅÅÅ","",Lønmodtager!H71) ->  | I35: =Lønmodtager!M71 -> 0 | J35: =Lønmodtager!L71 -> 0 | K35: =Lønmodtager!U71-Lønmodtager!V71 -> 0
A36: =IF(Lønmodtager!A23="ÅÅÅ","",Lønmodtager!A23&REPT(".",200)) ->  | B36: =IF(Lønmodtager!A23="ÅÅÅ","",Lønmodtager!H23) ->  | C36: =Lønmodtager!M23 -> 0 | D36: =Lønmodtager!L23 -> 0 | E36: =Lønmodtager!U23-Lønmodtager!V23 -> 0 | G36: =IF(Lønmodtager!A72="ÅÅÅ","",Lønmodtager!A72&REPT(".",200)) ->  | H36: =IF(Lønmodtager!A72="ÅÅÅ","",Lønmodtager!H72) ->  | I36: =Lønmodtager!M72 -> 0 | J36: =Lønmodtager!L72 -> 0 | K36: =Lønmodtager!U72-Lønmodtager!V72 -> 0
A37: =IF(Lønmodtager!A24="ÅÅÅ","",Lønmodtager!A24&REPT(".",200)) ->  | B37: =IF(Lønmodtager!A24="ÅÅÅ","",Lønmodtager!H24) ->  | C37: =Lønmodtager!M24 -> 0 | D37: =Lønmodtager!L24 -> 0 | E37: =Lønmodtager!U24-Lønmodtager!V24 -> 0 | G37: =IF(Lønmodtager!A73="ÅÅÅ","",Lønmodtager!A73&REPT(".",200)) ->  | H37: =IF(Lønmodtager!A73="ÅÅÅ","",Lønmodtager!H73) ->  | I37: =Lønmodtager!M73 -> 0 | J37: =Lønmodtager!L73 -> 0 | K37: =Lønmodtager!U73-Lønmodtager!V73 -> 0
A38: =IF(Lønmodtager!A25="ÅÅÅ","",Lønmodtager!A25&REPT(".",200)) ->  | B38: =IF(Lønmodtager!A25="ÅÅÅ","",Lønmodtager!H25) ->  | C38: =Lønmodtager!M25 -> 0 | D38: =Lønmodtager!L25 -> 0 | E38: =Lønmodtager!U25-Lønmodtager!V25 -> 0 | G38: =IF(Lønmodtager!A74="ÅÅÅ","",Lønmodtager!A74&REPT(".",200)) ->  | H38: =IF(Lønmodtager!A74="ÅÅÅ","",Lønmodtager!H74) ->  | I38: =Lønmodtager!M74 -> 0 | J38: =Lønmodtager!L74 -> 0 | K38: =Lønmodtager!U74-Lønmodtager!V74 -> 0
A39: =IF(Lønmodtager!A26="ÅÅÅ","",Lønmodtager!A26&REPT(".",200)) ->  | B39: =IF(Lønmodtager!A26="ÅÅÅ","",Lønmodtager!H26) ->  | C39: =Lønmodtager!M26 -> 0 | D39: =Lønmodtager!L26 -> 0 | E39: =Lønmodtager!U26-Lønmodtager!V26 -> 0 | G39: =IF(Lønmodtager!A75="ÅÅÅ","",Lønmodtager!A75&REPT(".",200)) ->  | H39: =IF(Lønmodtager!A75="ÅÅÅ","",Lønmodtager!H75) ->  | I39: =Lønmodtager!M75 -> 0 | J39: =Lønmodtager!L75 -> 0 | K39: =Lønmodtager!U75-Lønmodtager!V75 -> 0
A40: =IF(Lønmodtager!A27="ÅÅÅ","",Lønmodtager!A27&REPT(".",200)) ->  | B40: =IF(Lønmodtager!A27="ÅÅÅ","",Lønmodtager!H27) ->  | C40: =Lønmodtager!M27 -> 0 | D40: =Lønmodtager!L27 -> 0 | E40: =Lønmodtager!U27-Lønmodtager!V27 -> 0 | G40: =IF(Lønmodtager!A76="ÅÅÅ","",Lønmodtager!A76&REPT(".",200)) ->  | H40: =IF(Lønmodtager!A76="ÅÅÅ","",Lønmodtager!H76) ->  | I40: =Lønmodtager!M76 -> 0 | J40: =Lønmodtager!L76 -> 0 | K40: =Lønmodtager!U76-Lønmodtager!V76 -> 0
A41: =IF(Lønmodtager!A28="ÅÅÅ","",Lønmodtager!A28&REPT(".",200)) ->  | B41: =IF(Lønmodtager!A28="ÅÅÅ","",Lønmodtager!H28) ->  | C41: =Lønmodtager!M28 -> 0 | D41: =Lønmodtager!L28 -> 0 | E41: =Lønmodtager!U28-Lønmodtager!V28 -> 0 | G41: =IF(Lønmodtager!A77="ÅÅÅ","",Lønmodtager!A77&REPT(".",200)) ->  | H41: =IF(Lønmodtager!A77="ÅÅÅ","",Lønmodtager!H77) ->  | I41: =Lønmodtager!M77 -> 0 | J41: =Lønmodtager!L77 -> 0 | K41: =Lønmodtager!U77-Lønmodtager!V77 -> 0
A42: =IF(Lønmodtager!A29="ÅÅÅ","",Lønmodtager!A29&REPT(".",200)) ->  | B42: =IF(Lønmodtager!A29="ÅÅÅ","",Lønmodtager!H29) ->  | C42: =Lønmodtager!M29 -> 0 | D42: =Lønmodtager!L29 -> 0 | E42: =Lønmodtager!U29-Lønmodtager!V29 -> 0 | G42: =IF(Lønmodtager!A78="ÅÅÅ","",Lønmodtager!A78&REPT(".",200)) ->  | H42: =IF(Lønmodtager!A78="ÅÅÅ","",Lønmodtager!H78) ->  | I42: =Lønmodtager!M78 -> 0 | J42: =Lønmodtager!L78 -> 0 | K42: =Lønmodtager!U78-Lønmodtager!V78 -> 0
A43: =IF(Lønmodtager!A30="ÅÅÅ","",Lønmodtager!A30&REPT(".",200)) ->  | B43: =IF(Lønmodtager!A30="ÅÅÅ","",Lønmodtager!H30) ->  | C43: =Lønmodtager!M30 -> 0 | D43: =Lønmodtager!L30 -> 0 | E43: =Lønmodtager!U30-Lønmodtager!V30 -> 0 | G43: =IF(Lønmodtager!A79="ÅÅÅ","",Lønmodtager!A79&REPT(".",200)) ->  | H43: =IF(Lønmodtager!A79="ÅÅÅ","",Lønmodtager!H79) ->  | I43: =Lønmodtager!M79 -> 0 | J43: =Lønmodtager!L79 -> 0 | K43: =Lønmodtager!U79-Lønmodtager!V79 -> 0
A44: =IF(Lønmodtager!A31="ÅÅÅ","",Lønmodtager!A31&REPT(".",200)) ->  | B44: =IF(Lønmodtager!A31="ÅÅÅ","",Lønmodtager!H31) ->  | C44: =Lønmodtager!M31 -> 0 | D44: =Lønmodtager!L31 -> 0 | E44: =Lønmodtager!U31-Lønmodtager!V31 -> 0 | G44: =IF(Lønmodtager!A80="ÅÅÅ","",Lønmodtager!A80&REPT(".",200)) ->  | H44: =IF(Lønmodtager!A80="ÅÅÅ","",Lønmodtager!H80) ->  | I44: =Lønmodtager!M80 -> 0 | J44: =Lønmodtager!L80 -> 0 | K44: =Lønmodtager!U80-Lønmodtager!V80 -> 0
A45: =IF(Lønmodtager!A32="ÅÅÅ","",Lønmodtager!A32&REPT(".",200)) ->  | B45: =IF(Lønmodtager!A32="ÅÅÅ","",Lønmodtager!H32) ->  | C45: =Lønmodtager!M32 -> 0 | D45: =Lønmodtager!L32 -> 0 | E45: =Lønmodtager!U32-Lønmodtager!V32 -> 0 | G45: =IF(Lønmodtager!A81="ÅÅÅ","",Lønmodtager!A81&REPT(".",200)) ->  | H45: =IF(Lønmodtager!A81="ÅÅÅ","",Lønmodtager!H81) ->  | I45: =Lønmodtager!M81 -> 0 | J45: =Lønmodtager!L81 -> 0 | K45: =Lønmodtager!U81-Lønmodtager!V81 -> 0
A46: =IF(Lønmodtager!A33="ÅÅÅ","",Lønmodtager!A33&REPT(".",200)) ->  | B46: =IF(Lønmodtager!A33="ÅÅÅ","",Lønmodtager!H33) ->  | C46: =Lønmodtager!M33 -> 0 | D46: =Lønmodtager!L33 -> 0 | E46: =Lønmodtager!U33-Lønmodtager!V33 -> 0 | G46: =IF(Lønmodtager!A82="ÅÅÅ","",Lønmodtager!A82&REPT(".",200)) ->  | H46: =IF(Lønmodtager!A82="ÅÅÅ","",Lønmodtager!H82) ->  | I46: =Lønmodtager!M82 -> 0 | J46: =Lønmodtager!L82 -> 0 | K46: =Lønmodtager!U82-Lønmodtager!V82 -> 0
A47: =IF(Lønmodtager!A34="ÅÅÅ","",Lønmodtager!A34&REPT(".",200)) ->  | B47: =IF(Lønmodtager!A34="ÅÅÅ","",Lønmodtager!H34) ->  | C47: =Lønmodtager!M34 -> 0 | D47: =Lønmodtager!L34 -> 0 | E47: =Lønmodtager!U34-Lønmodtager!V34 -> 0 | G47: =IF(Lønmodtager!A83="ÅÅÅ","",Lønmodtager!A83&REPT(".",200)) ->  | H47: =IF(Lønmodtager!A83="ÅÅÅ","",Lønmodtager!H83) ->  | I47: =Lønmodtager!M83 -> 0 | J47: =Lønmodtager!L83 -> 0 | K47: =Lønmodtager!U83-Lønmodtager!V83 -> 0
A48: =IF(Lønmodtager!A35="ÅÅÅ","",Lønmodtager!A35&REPT(".",200)) ->  | B48: =IF(Lønmodtager!A35="ÅÅÅ","",Lønmodtager!H35) ->  | C48: =Lønmodtager!M35 -> 0 | D48: =Lønmodtager!L35 -> 0 | E48: =Lønmodtager!U35-Lønmodtager!V35 -> 0 | G48: =IF(Lønmodtager!A84="ÅÅÅ","",Lønmodtager!A84&REPT(".",200)) ->  | H48: =IF(Lønmodtager!A84="ÅÅÅ","",Lønmodtager!H84) ->  | I48: =Lønmodtager!M84 -> 0 | J48: =Lønmodtager!L84 -> 0 | K48: =Lønmodtager!U84-Lønmodtager!V84 -> 0
A49: =IF(Lønmodtager!A36="ÅÅÅ","",Lønmodtager!A36&REPT(".",200)) ->  | B49: =IF(Lønmodtager!A36="ÅÅÅ","",Lønmodtager!H36) ->  | C49: =Lønmodtager!M36 -> 0 | D49: =Lønmodtager!L36 -> 0 | E49: =Lønmodtager!U36-Lønmodtager!V36 -> 0 | G49: =IF(Lønmodtager!A85="ÅÅÅ","",Lønmodtager!A85&REPT(".",200)) ->  | H49: =IF(Lønmodtager!A85="ÅÅÅ","",Lønmodtager!H85) ->  | I49: =Lønmodtager!M85 -> 0 | J49: =Lønmodtager!L85 -> 0 | K49: =Lønmodtager!U85-Lønmodtager!V85 -> 0
A50: =IF(Lønmodtager!A37="ÅÅÅ","",Lønmodtager!A37&REPT(".",200)) ->  | B50: =IF(Lønmodtager!A37="ÅÅÅ","",Lønmodtager!H37) ->  | C50: =Lønmodtager!M37 -> 0 | D50: =Lønmodtager!L37 -> 0 | E50: =Lønmodtager!U37-Lønmodtager!V37 -> 0 | G50: =IF(Lønmodtager!A86="ÅÅÅ","",Lønmodtager!A86&REPT(".",200)) ->  | H50: =IF(Lønmodtager!A86="ÅÅÅ","",Lønmodtager!H86) ->  | I50: =Lønmodtager!M86 -> 0 | J50: =Lønmodtager!L86 -> 0 | K50: =Lønmodtager!U86-Lønmodtager!V86 -> 0
A51: =IF(Lønmodtager!A38="ÅÅÅ","",Lønmodtager!A38&REPT(".",200)) ->  | B51: =IF(Lønmodtager!A38="ÅÅÅ","",Lønmodtager!H38) ->  | C51: =Lønmodtager!M38 -> 0 | D51: =Lønmodtager!L38 -> 0 | E51: =Lønmodtager!U38-Lønmodtager!V38 -> 0 | G51: =IF(Lønmodtager!A87="ÅÅÅ","",Lønmodtager!A87&REPT(".",200)) ->  | H51: =IF(Lønmodtager!A87="ÅÅÅ","",Lønmodtager!H87) ->  | I51: =Lønmodtager!M87 -> 0 | J51: =Lønmodtager!L87 -> 0 | K51: =Lønmodtager!U87-Lønmodtager!V87 -> 0
A52: =IF(Lønmodtager!A39="ÅÅÅ","",Lønmodtager!A39&REPT(".",200)) ->  | B52: =IF(Lønmodtager!A39="ÅÅÅ","",Lønmodtager!H39) ->  | C52: =Lønmodtager!M39 -> 0 | D52: =Lønmodtager!L39 -> 0 | E52: =Lønmodtager!U39-Lønmodtager!V39 -> 0 | G52: =IF(Lønmodtager!A88="ÅÅÅ","",Lønmodtager!A88&REPT(".",200)) ->  | H52: =IF(Lønmodtager!A88="ÅÅÅ","",Lønmodtager!H88) ->  | I52: =Lønmodtager!M88 -> 0 | J52: =Lønmodtager!L88 -> 0 | K52: =Lønmodtager!U88-Lønmodtager!V88 -> 0
A53: =IF(Lønmodtager!A40="ÅÅÅ","",Lønmodtager!A40&REPT(".",200)) ->  | B53: =IF(Lønmodtager!A40="ÅÅÅ","",Lønmodtager!H40) ->  | C53: =Lønmodtager!M40 -> 0 | D53: =Lønmodtager!L40 -> 0 | E53: =Lønmodtager!U40-Lønmodtager!V40 -> 0 | G53: =IF(Lønmodtager!A89="ÅÅÅ","",Lønmodtager!A89&REPT(".",200)) ->  | H53: =IF(Lønmodtager!A89="ÅÅÅ","",Lønmodtager!H89) ->  | I53: =Lønmodtager!M89 -> 0 | J53: =Lønmodtager!L89 -> 0 | K53: =Lønmodtager!U89-Lønmodtager!V89 -> 0
A54: =IF(Lønmodtager!A41="ÅÅÅ","",Lønmodtager!A41&REPT(".",200)) ->  | B54: =IF(Lønmodtager!A41="ÅÅÅ","",Lønmodtager!H41) ->  | C54: =Lønmodtager!M41 -> 0 | D54: =Lønmodtager!L41 -> 0 | E54: =Lønmodtager!U41-Lønmodtager!V41 -> 0 | G54: =IF(Lønmodtager!A90="ÅÅÅ","",Lønmodtager!A90&REPT(".",200)) ->  | H54: =IF(Lønmodtager!A90="ÅÅÅ","",Lønmodtager!H90) ->  | I54: =Lønmodtager!M90 -> 0 | J54: =Lønmodtager!L90 -> 0 | K54: =Lønmodtager!U90-Lønmodtager!V90 -> 0
A55: =IF(Lønmodtager!A42="ÅÅÅ","",Lønmodtager!A42&REPT(".",200)) ->  | B55: =IF(Lønmodtager!A42="ÅÅÅ","",Lønmodtager!H42) ->  | C55: =Lønmodtager!M42 -> 0 | D55: =Lønmodtager!L42 -> 0 | E55: =Lønmodtager!U42-Lønmodtager!V42 -> 0 | G55: =IF(Lønmodtager!A91="ÅÅÅ","",Lønmodtager!A91&REPT(".",200)) ->  | H55: =IF(Lønmodtager!A91="ÅÅÅ","",Lønmodtager!H91) ->  | I55: =Lønmodtager!M91 -> 0 | J55: =Lønmodtager!L91 -> 0 | K55: =Lønmodtager!U91-Lønmodtager!V91 -> 0
A56: =IF(Lønmodtager!A43="ÅÅÅ","",Lønmodtager!A43&REPT(".",200)) ->  | B56: =IF(Lønmodtager!A43="ÅÅÅ","",Lønmodtager!H43) ->  | C56: =Lønmodtager!M43 -> 0 | D56: =Lønmodtager!L43 -> 0 | E56: =Lønmodtager!U43-Lønmodtager!V43 -> 0 | G56: =IF(Lønmodtager!A92="ÅÅÅ","",Lønmodtager!A92&REPT(".",200)) ->  | H56: =IF(Lønmodtager!A92="ÅÅÅ","",Lønmodtager!H92) ->  | I56: =Lønmodtager!M92 -> 0 | J56: =Lønmodtager!L92 -> 0 | K56: =Lønmodtager!U92-Lønmodtager!V92 -> 0
A57: =IF(Lønmodtager!A44="ÅÅÅ","",Lønmodtager!A44&REPT(".",200)) ->  | B57: =IF(Lønmodtager!A44="ÅÅÅ","",Lønmodtager!H44) ->  | C57: =Lønmodtager!M44 -> 0 | D57: =Lønmodtager!L44 -> 0 | E57: =Lønmodtager!U44-Lønmodtager!V44 -> 0 | G57: =IF(Lønmodtager!A93="ÅÅÅ","",Lønmodtager!A93&REPT(".",200)) ->  | H57: =IF(Lønmodtager!A93="ÅÅÅ","",Lønmodtager!H93) ->  | I57: =Lønmodtager!M93 -> 0 | J57: =Lønmodtager!L93 -> 0 | K57: =Lønmodtager!U93-Lønmodtager!V93 -> 0
A58: =IF(Lønmodtager!A45="ÅÅÅ","",Lønmodtager!A45&REPT(".",200)) ->  | B58: =IF(Lønmodtager!A45="ÅÅÅ","",Lønmodtager!H45) ->  | C58: =Lønmodtager!M45 -> 0 | D58: =Lønmodtager!L45 -> 0 | E58: =Lønmodtager!U45-Lønmodtager!V45 -> 0 | G58: =IF(Lønmodtager!A94="ÅÅÅ","",Lønmodtager!A94&REPT(".",200)) ->  | H58: =IF(Lønmodtager!A94="ÅÅÅ","",Lønmodtager!H94) ->  | I58: =Lønmodtager!M94 -> 0 | J58: =Lønmodtager!L94 -> 0 | K58: =Lønmodtager!U94-Lønmodtager!V94 -> 0
A59: =IF(Lønmodtager!A46="ÅÅÅ","",Lønmodtager!A46&REPT(".",200)) ->  | B59: =IF(Lønmodtager!A46="ÅÅÅ","",Lønmodtager!H46) ->  | C59: =Lønmodtager!M46 -> 0 | D59: =Lønmodtager!L46 -> 0 | E59: =Lønmodtager!U46-Lønmodtager!V46 -> 0 | G59: =IF(Lønmodtager!A95="ÅÅÅ","",Lønmodtager!A95&REPT(".",200)) ->  | H59: =IF(Lønmodtager!A95="ÅÅÅ","",Lønmodtager!H95) ->  | I59: =Lønmodtager!M95 -> 0 | J59: =Lønmodtager!L95 -> 0 | K59: =Lønmodtager!U95-Lønmodtager!V95 -> 0
A60: =IF(Lønmodtager!A47="ÅÅÅ","",Lønmodtager!A47&REPT(".",200)) ->  | B60: =IF(Lønmodtager!A47="ÅÅÅ","",Lønmodtager!H47) ->  | C60: =Lønmodtager!M47 -> 0 | D60: =Lønmodtager!L47 -> 0 | E60: =Lønmodtager!U47-Lønmodtager!V47 -> 0 | G60: =IF(Lønmodtager!A96="ÅÅÅ","",Lønmodtager!A96&REPT(".",200)) ->  | H60: =IF(Lønmodtager!A96="ÅÅÅ","",Lønmodtager!H96) ->  | I60: =Lønmodtager!M96 -> 0 | J60: =Lønmodtager!L96 -> 0 | K60: =Lønmodtager!U96-Lønmodtager!V96 -> 0
A61: =IF(Lønmodtager!A48="ÅÅÅ","",Lønmodtager!A48&REPT(".",200)) ->  | B61: =IF(Lønmodtager!A48="ÅÅÅ","",Lønmodtager!H48) ->  | C61: =Lønmodtager!M48 -> 0 | D61: =Lønmodtager!L48 -> 0 | E61: =Lønmodtager!U48-Lønmodtager!V48 -> 0 | G61: =IF(Lønmodtager!A97="ÅÅÅ","",Lønmodtager!A97&REPT(".",200)) ->  | H61: =IF(Lønmodtager!A97="ÅÅÅ","",Lønmodtager!H97) ->  | I61: =Lønmodtager!M97 -> 0 | J61: =Lønmodtager!L97 -> 0 | K61: =Lønmodtager!U97-Lønmodtager!V97 -> 0
A62: =IF(Lønmodtager!A49="ÅÅÅ","",Lønmodtager!A49&REPT(".",200)) ->  | B62: =IF(Lønmodtager!A49="ÅÅÅ","",Lønmodtager!H49) ->  | C62: =Lønmodtager!M49 -> 0 | D62: =Lønmodtager!L49 -> 0 | E62: =Lønmodtager!U49-Lønmodtager!V49 -> 0 | G62: =IF(Lønmodtager!A98="ÅÅÅ","",Lønmodtager!A98&REPT(".",200)) ->  | H62: =IF(Lønmodtager!A98="ÅÅÅ","",Lønmodtager!H98) ->  | I62: =Lønmodtager!M98 -> 0 | J62: =Lønmodtager!L98 -> 0 | K62: =Lønmodtager!U98-Lønmodtager!V98 -> 0
A63: =IF(Lønmodtager!A50="ÅÅÅ","",Lønmodtager!A50&REPT(".",200)) ->  | B63: =IF(Lønmodtager!A50="ÅÅÅ","",Lønmodtager!H50) ->  | C63: =Lønmodtager!M50 -> 0 | D63: =Lønmodtager!L50 -> 0 | E63: =Lønmodtager!U50-Lønmodtager!V50 -> 0 | G63: =IF(Lønmodtager!A99="ÅÅÅ","",Lønmodtager!A99&REPT(".",200)) ->  | H63: =IF(Lønmodtager!A99="ÅÅÅ","",Lønmodtager!H99) ->  | I63: =Lønmodtager!M99 -> 0 | J63: =Lønmodtager!L99 -> 0 | K63: =Lønmodtager!U99-Lønmodtager!V99 -> 0
A64: =IF(Lønmodtager!A51="ÅÅÅ","",Lønmodtager!A51&REPT(".",200)) ->  | B64: =IF(Lønmodtager!A51="ÅÅÅ","",Lønmodtager!H51) ->  | C64: =Lønmodtager!M51 -> 0 | D64: =Lønmodtager!L51 -> 0 | E64: =Lønmodtager!U51-Lønmodtager!V51 -> 0
A65: =IF(Lønmodtager!A52="ÅÅÅ","",Lønmodtager!A52&REPT(".",200)) ->  | B65: =IF(Lønmodtager!A52="ÅÅÅ","",Lønmodtager!H52) ->  | C65: =Lønmodtager!M52 -> 0 | D65: =Lønmodtager!L52 -> 0 | E65: =Lønmodtager!U52-Lønmodtager!V52 -> 0
A66: =IF(Lønmodtager!A53="ÅÅÅ","",Lønmodtager!A53&REPT(".",200)) ->  | B66: =IF(Lønmodtager!A53="ÅÅÅ","",Lønmodtager!H53) ->  | C66: =Lønmodtager!M53 -> 0 | D66: =Lønmodtager!L53 -> 0 | E66: =Lønmodtager!U53-Lønmodtager!V53 -> 0
D67: =IF(D68<>0,"-------------","") ->  | E67: =IF(E68<>0,"-------------","") ->  | J67: =IF(J68<>0,"-------------","") ->  | K67: =IF(K68<>0,"-------------","") -> 
A68: =IF(D68<>0,"Feriepenge","")&IF((D68<>0)*(E68<>0)," & ","")&IF(E68<>0,"Skyldig SH","") ->  | D68: =SUM(D18:D66) -> 0 | E68: =SUM(E18:E66) -> 0 | G68: =IF(J68<>0,"Feriepenge","")&IF((J68<>0)*(K68<>0)," & ","")&IF(K68<>0,"Skyldig SH","") ->  | J68: =SUM(J18:J66) -> 0 | K68: =SUM(K18:K66) -> 0

Sheet Afholdt-Ferie
A1: ="Afholdt ferie i kalenderåret "&'ATP-Feriepenge-SH'!K3 -> Afholdt ferie i kalenderåret 2019 | D1: Oplyst i antal dage
D2: 1 uge = 5 dage
A3: ='ATP-Feriepenge-SH'!A3 -> SE-NR..........................
A4: ='ATP-Feriepenge-SH'!A4 -> TestVirk.navn | C4: S | D4: J | E4: F | F4: M | G4: A | H4: M | I4: J | J4: J | K4: A | L4: S | M4: O | N4: N | O4: D | P4: S | Q4: S | R4: S
A5: ='ATP-Feriepenge-SH'!A5 -> v/Test.Indehaver | C5: u | D5: a | E5: e | F5: a | G5: p | H5: a | I5: u | J5: u | K5: u | L5: e | M5: k | N5: o | O5: e | P5: u | Q5: u | R5: u
A6: ='ATP-Feriepenge-SH'!A6 -> Test.Adr.Virk | C6: m | D6: n | E6: b | F6: r | G6: r | H6: j | I6: n | J6: l | K6: g | L6: p | M6: t | N6: v | O6: c | P6: m | Q6: m | R6: m
A7: ='ATP-Feriepenge-SH'!A7 -> 1234 Testby | D7: u | E7: r | F7: t | G7: i | I7: i | J7: i | K7: u | L7: t | M7: o | N7: e | O7: e
C8: A | D8: a | E8: u | F8: s | G8: l | K8: s | L8: e | M8: b | N8: m | O8: m | P8: A | Q8: A | R8: A
C9: n | D9: r | E9: a | K9: t | L9: m | M9: e | N9: b | O9: b | P9: n | Q9: n | R9: n
C10: t | E10: r | L10: b | M10: r | N10: e | O10: e | P10: t | Q10: t | R10: t
C11: a | L11: e | N11: r | O11: r | P11: a | Q11: a | R11: a
C12: l | L12: r | P12: l | Q12: l | R12: l
C14: Dage | P14: Dage | Q14: Dage | R14: Dage
C15: ='ATP-Feriepenge-SH'!K3-1 -> 2018 | P15: ='ATP-Feriepenge-SH'!K3 -> 2019 | Q15: ferieåret | R15: ='ATP-Feriepenge-SH'!K3 -> 2019
C16: 0105- | P16: 0101- | Q16: ="01.05."&RIGHT(C15,2) -> 01.05.18 | R16: 0105-
C17: 3112 | P17: 3004 | Q17: ="30.04."&RIGHT(R15,2) -> 30.04.19 | R17: 3112
A18: =IF(LEFT('ATP-Feriepenge-SH'!A18,2)<>"ÅÅ",'ATP-Feriepenge-SH'!A18,"") -> Søgenavn indtastes i celle F7........................................................................................................................................................................................................ | P18: =SUM(D18:G18) -> 0 | Q18: =SUM(C18:G18) -> 0 | R18: =SUM(H18:O18) -> 0
A19: =IF(LEFT('ATP-Feriepenge-SH'!A19,2)<>"ÅÅ",'ATP-Feriepenge-SH'!A19,"") -> Testperson........................................................................................................................................................................................................ | P19: 0 | Q19: 0 | R19: =SUM(H19:O19) -> 0
A20: =IF(LEFT('ATP-Feriepenge-SH'!A20,2)<>"ÅÅ",'ATP-Feriepenge-SH'!A20,"") ->  | P20: 0 | Q20: 0 | R20: =SUM(H20:O20) -> 0
A21: =IF(LEFT('ATP-Feriepenge-SH'!A21,2)<>"ÅÅ",'ATP-Feriepenge-SH'!A21,"") ->  | P21: 0 | Q21: 0 | R21: =SUM(H21:O21) -> 0
A22: =IF(LEFT('ATP-Feriepenge-SH'!A22,2)<>"ÅÅ",'ATP-Feriepenge-SH'!A22,"") ->  | P22: 0 | Q22: 0 | R22: =SUM(H22:O22) -> 0
A23: =IF(LEFT('ATP-Feriepenge-SH'!A23,2)<>"ÅÅ",'ATP-Feriepenge-SH'!A23,"") ->  | P23: 0 | Q23: 0 | R23: =SUM(H23:O23) -> 0
A24: =IF(LEFT('ATP-Feriepenge-SH'!A24,2)<>"ÅÅ",'ATP-Feriepenge-SH'!A24,"") ->  | P24: 0 | Q24: 0 | R24: =SUM(H24:O24) -> 0
A25: =IF(LEFT('ATP-Feriepenge-SH'!A25,2)<>"ÅÅ",'ATP-Feriepenge-SH'!A25,"") ->  | P25: 0 | Q25: 0 | R25: =SUM(H25:O25) -> 0
A26: =IF(LEFT('ATP-Feriepenge-SH'!A26,2)<>"ÅÅ",'ATP-Feriepenge-SH'!A26,"") ->  | P26: 0 | Q26: 0 | R26: =SUM(H26:O26) -> 0
A27: =IF(LEFT('ATP-Feriepenge-SH'!A27,2)<>"ÅÅ",'ATP-Feriepenge-SH'!A27,"") ->  | P27: 0 | Q27: 0 | R27: =SUM(H27:O27) -> 0
A28: =IF(LEFT('ATP-Feriepenge-SH'!A28,2)<>"ÅÅ",'ATP-Feriepenge-SH'!A28,"") ->  | P28: 0 | Q28: 0 | R28: =SUM(H28:O28) -> 0
A29: =IF(LEFT('ATP-Feriepenge-SH'!A29,2)<>"ÅÅ",'ATP-Feriepenge-SH'!A29,"") ->  | P29: 0 | Q29: 0 | R29: =SUM(H29:O29) -> 0
A30: =IF(LEFT('ATP-Feriepenge-SH'!A30,2)<>"ÅÅ",'ATP-Feriepenge-SH'!A30,"") ->  | P30: 0 | Q30: 0 | R30: =SUM(H30:O30) -> 0
A31: =IF(LEFT('ATP-Feriepenge-SH'!A31,2)<>"ÅÅ",'ATP-Feriepenge-SH'!A31,"") ->  | P31: 0 | Q31: 0 | R31: =SUM(H31:O31) -> 0
A32: =IF(LEFT('ATP-Feriepenge-SH'!A32,2)<>"ÅÅ",'ATP-Feriepenge-SH'!A32,"") ->  | P32: 0 | Q32: 0 | R32: =SUM(H32:O32) -> 0
A33: =IF(LEFT('ATP-Feriepenge-SH'!A33,2)<>"ÅÅ",'ATP-Feriepenge-SH'!A33,"") ->  | P33: 0 | Q33: 0 | R33: =SUM(H33:O33) -> 0
A34: =IF(LEFT('ATP-Feriepenge-SH'!A34,2)<>"ÅÅ",'ATP-Feriepenge-SH'!A34,"") ->  | P34: 0 | Q34: 0 | R34: =SUM(H34:O34) -> 0
A35: =IF(LEFT('ATP-Feriepenge-SH'!A35,2)<>"ÅÅ",'ATP-Feriepenge-SH'!A35,"") ->  | P35: 0 | Q35: 0 | R35: =SUM(H35:O35) -> 0
A36: =IF(LEFT('ATP-Feriepenge-SH'!A36,2)<>"ÅÅ",'ATP-Feriepenge-SH'!A36,"") ->  | P36: 0 | Q36: 0 | R36: =SUM(H36:O36) -> 0
A37: =IF(LEFT('ATP-Feriepenge-SH'!A37,2)<>"ÅÅ",'ATP-Feriepenge-SH'!A37,"") ->  | P37: 0 | Q37: 0 | R37: =SUM(H37:O37) -> 0
A38: =IF(LEFT('ATP-Feriepenge-SH'!A38,2)<>"ÅÅ",'ATP-Feriepenge-SH'!A38,"") ->  | P38: 0 | Q38: 0 | R38: =SUM(H38:O38) -> 0
A39: =IF(LEFT('ATP-Feriepenge-SH'!A39,2)<>"ÅÅ",'ATP-Feriepenge-SH'!A39,"") ->  | P39: 0 | Q39: 0 | R39: =SUM(H39:O39) -> 0
A40: =IF(LEFT('ATP-Feriepenge-SH'!A40,2)<>"ÅÅ",'ATP-Feriepenge-SH'!A40,"") ->  | P40: 0 | Q40: 0 | R40: =SUM(H40:O40) -> 0
A41: =IF(LEFT('ATP-Feriepenge-SH'!A41,2)<>"ÅÅ",'ATP-Feriepenge-SH'!A41,"") ->  | P41: 0 | Q41: 0 | R41: =SUM(H41:O41) -> 0
A42: =IF(LEFT('ATP-Feriepenge-SH'!A42,2)<>"ÅÅ",'ATP-Feriepenge-SH'!A42,"") ->  | P42: 0 | Q42: 0 | R42: =SUM(H42:O42) -> 0
A43: =IF(LEFT('ATP-Feriepenge-SH'!A43,2)<>"ÅÅ",'ATP-Feriepenge-SH'!A43,"") ->  | P43: 0 | Q43: 0 | R43: =SUM(H43:O43) -> 0
A44: =IF(LEFT('ATP-Feriepenge-SH'!A44,2)<>"ÅÅ",'ATP-Feriepenge-SH'!A44,"") ->  | P44: 0 | Q44: 0 | R44: =SUM(H44:O44) -> 0
A45: =IF(LEFT('ATP-Feriepenge-SH'!A45,2)<>"ÅÅ",'ATP-Feriepenge-SH'!A45,"") ->  | P45: 0 | Q45: 0 | R45: =SUM(H45:O45) -> 0
A46: =IF(LEFT('ATP-Feriepenge-SH'!A46,2)<>"ÅÅ",'ATP-Feriepenge-SH'!A46,"") ->  | P46: 0 | Q46: 0 | R46: =SUM(H46:O46) -> 0
A47: =IF(LEFT('ATP-Feriepenge-SH'!A47,2)<>"ÅÅ",'ATP-Feriepenge-SH'!A47,"") ->  | P47: 0 | Q47: 0 | R47: =SUM(H47:O47) -> 0
A48: =IF(LEFT('ATP-Feriepenge-SH'!A48,2)<>"ÅÅ",'ATP-Feriepenge-SH'!A48,"") ->  | P48: 0 | Q48: 0 | R48: =SUM(H48:O48) -> 0
A49: =IF(LEFT('ATP-Feriepenge-SH'!A49,2)<>"ÅÅ",'ATP-Feriepenge-SH'!A49,"") ->  | P49: 0 | Q49: 0 | R49: =SUM(H49:O49) -> 0

Sheet Pension
A1: =Lønseddel!D2 -> SE-NR.......................... | B1: =Lønseddel!E2 -> 12 34 56 78 | E1: =Lønseddel!D10 -> Januar
A2: =Lønseddel!D3 -> TestVirk.navn | E2: =Lønseddel!E10 -> 2019
A3: =Lønseddel!D4 -> v/Test.Indehaver
A4: =Lønseddel!D5 -> Test.Adr.Virk
A5: =Lønseddel!D6 -> 1234 Testby
A7: =IF(Lønseddel!C80<>0,"Pension indeholder IKKE den ej År-Til-Dato opdaterede lønseddel","") -> 
A9: Afregning af Pension | B9: Cpr-nr. | C9: Pension ÅTD | D9: Tidl. Indb. | E9: Indbetales
A11: =IF(Lønmodtager!A5="ÅÅÅ","",Lønmodtager!A5&REPT(".",200)) -> Søgenavn indtastes i celle F7........................................................................................................................................................................................................ | B11: =IF(Lønmodtager!A5="ÅÅÅ","",Lønmodtager!H5) -> 000000-0000 | C11: =IF(Lønmodtager!A5="ÅÅÅ",0,Lønmodtager!AF5) -> 0 | D11: =IF(Lønmodtager!A5="ÅÅÅ",0,Lønmodtager!AN5) -> 0 | E11: =C11-D11 -> 0
A12: =IF(Lønmodtager!A6="ÅÅÅ","",Lønmodtager!A6&REPT(".",200)) -> Testperson........................................................................................................................................................................................................ | B12: =IF(Lønmodtager!A6="ÅÅÅ","",Lønmodtager!H6) -> 12345678-1234 | C12: =IF(Lønmodtager!A6="ÅÅÅ",0,Lønmodtager!AF6) -> 0 | D12: =IF(Lønmodtager!A6="ÅÅÅ",0,Lønmodtager!AN6) -> 0 | E12: =C12-D12 -> 0
A13: =IF(Lønmodtager!A7="ÅÅÅ","",Lønmodtager!A7&REPT(".",200)) ->  | B13: =IF(Lønmodtager!A7="ÅÅÅ","",Lønmodtager!H7) ->  | C13: =IF(Lønmodtager!A7="ÅÅÅ",0,Lønmodtager!AF7) -> 0 | D13: =IF(Lønmodtager!A7="ÅÅÅ",0,Lønmodtager!AN7) -> 0 | E13: =C13-D13 -> 0
A14: =IF(Lønmodtager!A8="ÅÅÅ","",Lønmodtager!A8&REPT(".",200)) ->  | B14: =IF(Lønmodtager!A8="ÅÅÅ","",Lønmodtager!H8) ->  | C14: =IF(Lønmodtager!A8="ÅÅÅ",0,Lønmodtager!AF8) -> 0 | D14: =IF(Lønmodtager!A8="ÅÅÅ",0,Lønmodtager!AN8) -> 0 | E14: =C14-D14 -> 0
A15: =IF(Lønmodtager!A9="ÅÅÅ","",Lønmodtager!A9&REPT(".",200)) ->  | B15: =IF(Lønmodtager!A9="ÅÅÅ","",Lønmodtager!H9) ->  | C15: =IF(Lønmodtager!A9="ÅÅÅ",0,Lønmodtager!AF9) -> 0 | D15: =IF(Lønmodtager!A9="ÅÅÅ",0,Lønmodtager!AN9) -> 0 | E15: =C15-D15 -> 0
A16: =IF(Lønmodtager!A10="ÅÅÅ","",Lønmodtager!A10&REPT(".",200)) ->  | B16: =IF(Lønmodtager!A10="ÅÅÅ","",Lønmodtager!H10) ->  | C16: =IF(Lønmodtager!A10="ÅÅÅ",0,Lønmodtager!AF10) -> 0 | D16: =IF(Lønmodtager!A10="ÅÅÅ",0,Lønmodtager!AN10) -> 0 | E16: =C16-D16 -> 0
A17: =IF(Lønmodtager!A11="ÅÅÅ","",Lønmodtager!A11&REPT(".",200)) ->  | B17: =IF(Lønmodtager!A11="ÅÅÅ","",Lønmodtager!H11) ->  | C17: =IF(Lønmodtager!A11="ÅÅÅ",0,Lønmodtager!AF11) -> 0 | D17: =IF(Lønmodtager!A11="ÅÅÅ",0,Lønmodtager!AN11) -> 0 | E17: =C17-D17 -> 0
A18: =IF(Lønmodtager!A12="ÅÅÅ","",Lønmodtager!A12&REPT(".",200)) ->  | B18: =IF(Lønmodtager!A12="ÅÅÅ","",Lønmodtager!H12) ->  | C18: =IF(Lønmodtager!A12="ÅÅÅ",0,Lønmodtager!AF12) -> 0 | D18: =IF(Lønmodtager!A12="ÅÅÅ",0,Lønmodtager!AN12) -> 0 | E18: =C18-D18 -> 0
A19: =IF(Lønmodtager!A13="ÅÅÅ","",Lønmodtager!A13&REPT(".",200)) ->  | B19: =IF(Lønmodtager!A13="ÅÅÅ","",Lønmodtager!H13) ->  | C19: =IF(Lønmodtager!A13="ÅÅÅ",0,Lønmodtager!AF13) -> 0 | D19: =IF(Lønmodtager!A13="ÅÅÅ",0,Lønmodtager!AN13) -> 0 | E19: =C19-D19 -> 0
A20: =IF(Lønmodtager!A14="ÅÅÅ","",Lønmodtager!A14&REPT(".",200)) ->  | B20: =IF(Lønmodtager!A14="ÅÅÅ","",Lønmodtager!H14) ->  | C20: =IF(Lønmodtager!A14="ÅÅÅ",0,Lønmodtager!AF14) -> 0 | D20: =IF(Lønmodtager!A14="ÅÅÅ",0,Lønmodtager!AN14) -> 0 | E20: =C20-D20 -> 0
A21: =IF(Lønmodtager!A15="ÅÅÅ","",Lønmodtager!A15&REPT(".",200)) ->  | B21: =IF(Lønmodtager!A15="ÅÅÅ","",Lønmodtager!H15) ->  | C21: =IF(Lønmodtager!A15="ÅÅÅ",0,Lønmodtager!AF15) -> 0 | D21: =IF(Lønmodtager!A15="ÅÅÅ",0,Lønmodtager!AN15) -> 0 | E21: =C21-D21 -> 0
A22: =IF(Lønmodtager!A16="ÅÅÅ","",Lønmodtager!A16&REPT(".",200)) ->  | B22: =IF(Lønmodtager!A16="ÅÅÅ","",Lønmodtager!H16) ->  | C22: =IF(Lønmodtager!A16="ÅÅÅ",0,Lønmodtager!AF16) -> 0 | D22: =IF(Lønmodtager!A16="ÅÅÅ",0,Lønmodtager!AN16) -> 0 | E22: =C22-D22 -> 0
A23: =IF(Lønmodtager!A17="ÅÅÅ","",Lønmodtager!A17&REPT(".",200)) ->  | B23: =IF(Lønmodtager!A17="ÅÅÅ","",Lønmodtager!H17) ->  | C23: =IF(Lønmodtager!A17="ÅÅÅ",0,Lønmodtager!AF17) -> 0 | D23: =IF(Lønmodtager!A17="ÅÅÅ",0,Lønmodtager!AN17) -> 0 | E23: =C23-D23 -> 0
A24: =IF(Lønmodtager!A18="ÅÅÅ","",Lønmodtager!A18&REPT(".",200)) ->  | B24: =IF(Lønmodtager!A18="ÅÅÅ","",Lønmodtager!H18) ->  | C24: =IF(Lønmodtager!A18="ÅÅÅ",0,Lønmodtager!AF18) -> 0 | D24: =IF(Lønmodtager!A18="ÅÅÅ",0,Lønmodtager!AN18) -> 0 | E24: =C24-D24 -> 0
A25: =IF(Lønmodtager!A19="ÅÅÅ","",Lønmodtager!A19&REPT(".",200)) ->  | B25: =IF(Lønmodtager!A19="ÅÅÅ","",Lønmodtager!H19) ->  | C25: =IF(Lønmodtager!A19="ÅÅÅ",0,Lønmodtager!AF19) -> 0 | D25: =IF(Lønmodtager!A19="ÅÅÅ",0,Lønmodtager!AN19) -> 0 | E25: =C25-D25 -> 0
A26: =IF(Lønmodtager!A20="ÅÅÅ","",Lønmodtager!A20&REPT(".",200)) ->  | B26: =IF(Lønmodtager!A20="ÅÅÅ","",Lønmodtager!H20) ->  | C26: =IF(Lønmodtager!A20="ÅÅÅ",0,Lønmodtager!AF20) -> 0 | D26: =IF(Lønmodtager!A20="ÅÅÅ",0,Lønmodtager!AN20) -> 0 | E26: =C26-D26 -> 0
A27: =IF(Lønmodtager!A21="ÅÅÅ","",Lønmodtager!A21&REPT(".",200)) ->  | B27: =IF(Lønmodtager!A21="ÅÅÅ","",Lønmodtager!H21) ->  | C27: =IF(Lønmodtager!A21="ÅÅÅ",0,Lønmodtager!AF21) -> 0 | D27: =IF(Lønmodtager!A21="ÅÅÅ",0,Lønmodtager!AN21) -> 0 | E27: =C27-D27 -> 0
A28: =IF(Lønmodtager!A22="ÅÅÅ","",Lønmodtager!A22&REPT(".",200)) ->  | B28: =IF(Lønmodtager!A22="ÅÅÅ","",Lønmodtager!H22) ->  | C28: =IF(Lønmodtager!A22="ÅÅÅ",0,Lønmodtager!AF22) -> 0 | D28: =IF(Lønmodtager!A22="ÅÅÅ",0,Lønmodtager!AN22) -> 0 | E28: =C28-D28 -> 0
A29: =IF(Lønmodtager!A23="ÅÅÅ","",Lønmodtager!A23&REPT(".",200)) ->  | B29: =IF(Lønmodtager!A23="ÅÅÅ","",Lønmodtager!H23) ->  | C29: =IF(Lønmodtager!A23="ÅÅÅ",0,Lønmodtager!AF23) -> 0 | D29: =IF(Lønmodtager!A23="ÅÅÅ",0,Lønmodtager!AN23) -> 0 | E29: =C29-D29 -> 0
A30: =IF(Lønmodtager!A24="ÅÅÅ","",Lønmodtager!A24&REPT(".",200)) ->  | B30: =IF(Lønmodtager!A24="ÅÅÅ","",Lønmodtager!H24) ->  | C30: =IF(Lønmodtager!A24="ÅÅÅ",0,Lønmodtager!AF24) -> 0 | D30: =IF(Lønmodtager!A24="ÅÅÅ",0,Lønmodtager!AN24) -> 0 | E30: =C30-D30 -> 0
A31: =IF(Lønmodtager!A25="ÅÅÅ","",Lønmodtager!A25&REPT(".",200)) ->  | B31: =IF(Lønmodtager!A25="ÅÅÅ","",Lønmodtager!H25) ->  | C31: =IF(Lønmodtager!A25="ÅÅÅ",0,Lønmodtager!AF25) -> 0 | D31: =IF(Lønmodtager!A25="ÅÅÅ",0,Lønmodtager!AN25) -> 0 | E31: =C31-D31 -> 0
A32: =IF(Lønmodtager!A26="ÅÅÅ","",Lønmodtager!A26&REPT(".",200)) ->  | B32: =IF(Lønmodtager!A26="ÅÅÅ","",Lønmodtager!H26) ->  | C32: =IF(Lønmodtager!A26="ÅÅÅ",0,Lønmodtager!AF26) -> 0 | D32: =IF(Lønmodtager!A26="ÅÅÅ",0,Lønmodtager!AN26) -> 0 | E32: =C32-D32 -> 0
A33: =IF(Lønmodtager!A27="ÅÅÅ","",Lønmodtager!A27&REPT(".",200)) ->  | B33: =IF(Lønmodtager!A27="ÅÅÅ","",Lønmodtager!H27) ->  | C33: =IF(Lønmodtager!A27="ÅÅÅ",0,Lønmodtager!AF27) -> 0 | D33: =IF(Lønmodtager!A27="ÅÅÅ",0,Lønmodtager!AN27) -> 0 | E33: =C33-D33 -> 0
A34: =IF(Lønmodtager!A28="ÅÅÅ","",Lønmodtager!A28&REPT(".",200)) ->  | B34: =IF(Lønmodtager!A28="ÅÅÅ","",Lønmodtager!H28) ->  | C34: =IF(Lønmodtager!A28="ÅÅÅ",0,Lønmodtager!AF28) -> 0 | D34: =IF(Lønmodtager!A28="ÅÅÅ",0,Lønmodtager!AN28) -> 0 | E34: =C34-D34 -> 0
A35: =IF(Lønmodtager!A29="ÅÅÅ","",Lønmodtager!A29&REPT(".",200)) ->  | B35: =IF(Lønmodtager!A29="ÅÅÅ","",Lønmodtager!H29) ->  | C35: =IF(Lønmodtager!A29="ÅÅÅ",0,Lønmodtager!AF29) -> 0 | D35: =IF(Lønmodtager!A29="ÅÅÅ",0,Lønmodtager!AN29) -> 0 | E35: =C35-D35 -> 0
A36: =IF(Lønmodtager!A30="ÅÅÅ","",Lønmodtager!A30&REPT(".",200)) ->  | B36: =IF(Lønmodtager!A30="ÅÅÅ","",Lønmodtager!H30) ->  | C36: =IF(Lønmodtager!A30="ÅÅÅ",0,Lønmodtager!AF30) -> 0 | D36: =IF(Lønmodtager!A30="ÅÅÅ",0,Lønmodtager!AN30) -> 0 | E36: =C36-D36 -> 0
A37: =IF(Lønmodtager!A31="ÅÅÅ","",Lønmodtager!A31&REPT(".",200)) ->  | B37: =IF(Lønmodtager!A31="ÅÅÅ","",Lønmodtager!H31) ->  | C37: =IF(Lønmodtager!A31="ÅÅÅ",0,Lønmodtager!AF31) -> 0 | D37: =IF(Lønmodtager!A31="ÅÅÅ",0,Lønmodtager!AN31) -> 0 | E37: =C37-D37 -> 0
A38: =IF(Lønmodtager!A32="ÅÅÅ","",Lønmodtager!A32&REPT(".",200)) ->  | B38: =IF(Lønmodtager!A32="ÅÅÅ","",Lønmodtager!H32) ->  | C38: =IF(Lønmodtager!A32="ÅÅÅ",0,Lønmodtager!AF32) -> 0 | D38: =IF(Lønmodtager!A32="ÅÅÅ",0,Lønmodtager!AN32) -> 0 | E38: =C38-D38 -> 0
A39: =IF(Lønmodtager!A33="ÅÅÅ","",Lønmodtager!A33&REPT(".",200)) ->  | B39: =IF(Lønmodtager!A33="ÅÅÅ","",Lønmodtager!H33) ->  | C39: =IF(Lønmodtager!A33="ÅÅÅ",0,Lønmodtager!AF33) -> 0 | D39: =IF(Lønmodtager!A33="ÅÅÅ",0,Lønmodtager!AN33) -> 0 | E39: =C39-D39 -> 0
A40: =IF(Lønmodtager!A34="ÅÅÅ","",Lønmodtager!A34&REPT(".",200)) ->  | B40: =IF(Lønmodtager!A34="ÅÅÅ","",Lønmodtager!H34) ->  | C40: =IF(Lønmodtager!A34="ÅÅÅ",0,Lønmodtager!AF34) -> 0 | D40: =IF(Lønmodtager!A34="ÅÅÅ",0,Lønmodtager!AN34) -> 0 | E40: =C40-D40 -> 0
A41: =IF(Lønmodtager!A35="ÅÅÅ","",Lønmodtager!A35&REPT(".",200)) ->  | B41: =IF(Lønmodtager!A35="ÅÅÅ","",Lønmodtager!H35) ->  | C41: =IF(Lønmodtager!A35="ÅÅÅ",0,Lønmodtager!AF35) -> 0 | D41: =IF(Lønmodtager!A35="ÅÅÅ",0,Lønmodtager!AN35) -> 0 | E41: =C41-D41 -> 0
A42: =IF(Lønmodtager!A36="ÅÅÅ","",Lønmodtager!A36&REPT(".",200)) ->  | B42: =IF(Lønmodtager!A36="ÅÅÅ","",Lønmodtager!H36) ->  | C42: =IF(Lønmodtager!A36="ÅÅÅ",0,Lønmodtager!AF36) -> 0 | D42: =IF(Lønmodtager!A36="ÅÅÅ",0,Lønmodtager!AN36) -> 0 | E42: =C42-D42 -> 0
A43: =IF(Lønmodtager!A37="ÅÅÅ","",Lønmodtager!A37&REPT(".",200)) ->  | B43: =IF(Lønmodtager!A37="ÅÅÅ","",Lønmodtager!H37) ->  | C43: =IF(Lønmodtager!A37="ÅÅÅ",0,Lønmodtager!AF37) -> 0 | D43: =IF(Lønmodtager!A37="ÅÅÅ",0,Lønmodtager!AN37) -> 0 | E43: =C43-D43 -> 0
A44: =IF(Lønmodtager!A38="ÅÅÅ","",Lønmodtager!A38&REPT(".",200)) ->  | B44: =IF(Lønmodtager!A38="ÅÅÅ","",Lønmodtager!H38) ->  | C44: =IF(Lønmodtager!A38="ÅÅÅ",0,Lønmodtager!AF38) -> 0 | D44: =IF(Lønmodtager!A38="ÅÅÅ",0,Lønmodtager!AN38) -> 0 | E44: =C44-D44 -> 0
A45: =IF(Lønmodtager!A39="ÅÅÅ","",Lønmodtager!A39&REPT(".",200)) ->  | B45: =IF(Lønmodtager!A39="ÅÅÅ","",Lønmodtager!H39) ->  | C45: =IF(Lønmodtager!A39="ÅÅÅ",0,Lønmodtager!AF39) -> 0 | D45: =IF(Lønmodtager!A39="ÅÅÅ",0,Lønmodtager!AN39) -> 0 | E45: =C45-D45 -> 0
A46: =IF(Lønmodtager!A40="ÅÅÅ","",Lønmodtager!A40&REPT(".",200)) ->  | B46: =IF(Lønmodtager!A40="ÅÅÅ","",Lønmodtager!H40) ->  | C46: =IF(Lønmodtager!A40="ÅÅÅ",0,Lønmodtager!AF40) -> 0 | D46: =IF(Lønmodtager!A40="ÅÅÅ",0,Lønmodtager!AN40) -> 0 | E46: =C46-D46 -> 0
A47: =IF(Lønmodtager!A41="ÅÅÅ","",Lønmodtager!A41&REPT(".",200)) ->  | B47: =IF(Lønmodtager!A41="ÅÅÅ","",Lønmodtager!H41) ->  | C47: =IF(Lønmodtager!A41="ÅÅÅ",0,Lønmodtager!AF41) -> 0 | D47: =IF(Lønmodtager!A41="ÅÅÅ",0,Lønmodtager!AN41) -> 0 | E47: =C47-D47 -> 0
A48: =IF(Lønmodtager!A42="ÅÅÅ","",Lønmodtager!A42&REPT(".",200)) ->  | B48: =IF(Lønmodtager!A42="ÅÅÅ","",Lønmodtager!H42) ->  | C48: =IF(Lønmodtager!A42="ÅÅÅ",0,Lønmodtager!AF42) -> 0 | D48: =IF(Lønmodtager!A42="ÅÅÅ",0,Lønmodtager!AN42) -> 0 | E48: =C48-D48 -> 0
A49: =IF(Lønmodtager!A43="ÅÅÅ","",Lønmodtager!A43&REPT(".",200)) ->  | B49: =IF(Lønmodtager!A43="ÅÅÅ","",Lønmodtager!H43) ->  | C49: =IF(Lønmodtager!A43="ÅÅÅ",0,Lønmodtager!AF43) -> 0 | D49: =IF(Lønmodtager!A43="ÅÅÅ",0,Lønmodtager!AN43) -> 0 | E49: =C49-D49 -> 0
A50: =IF(Lønmodtager!A44="ÅÅÅ","",Lønmodtager!A44&REPT(".",200)) ->  | B50: =IF(Lønmodtager!A44="ÅÅÅ","",Lønmodtager!H44) ->  | C50: =IF(Lønmodtager!A44="ÅÅÅ",0,Lønmodtager!AF44) -> 0 | D50: =IF(Lønmodtager!A44="ÅÅÅ",0,Lønmodtager!AN44) -> 0 | E50: =C50-D50 -> 0
A51: =IF(Lønmodtager!A45="ÅÅÅ","",Lønmodtager!A45&REPT(".",200)) ->  | B51: =IF(Lønmodtager!A45="ÅÅÅ","",Lønmodtager!H45) ->  | C51: =IF(Lønmodtager!A45="ÅÅÅ",0,Lønmodtager!AF45) -> 0 | D51: =IF(Lønmodtager!A45="ÅÅÅ",0,Lønmodtager!AN45) -> 0 | E51: =C51-D51 -> 0
A52: =IF(Lønmodtager!A46="ÅÅÅ","",Lønmodtager!A46&REPT(".",200)) ->  | B52: =IF(Lønmodtager!A46="ÅÅÅ","",Lønmodtager!H46) ->  | C52: =IF(Lønmodtager!A46="ÅÅÅ",0,Lønmodtager!AF46) -> 0 | D52: =IF(Lønmodtager!A46="ÅÅÅ",0,Lønmodtager!AN46) -> 0 | E52: =C52-D52 -> 0
A53: =IF(Lønmodtager!A47="ÅÅÅ","",Lønmodtager!A47&REPT(".",200)) ->  | B53: =IF(Lønmodtager!A47="ÅÅÅ","",Lønmodtager!H47) ->  | C53: =IF(Lønmodtager!A47="ÅÅÅ",0,Lønmodtager!AF47) -> 0 | D53: =IF(Lønmodtager!A47="ÅÅÅ",0,Lønmodtager!AN47) -> 0 | E53: =C53-D53 -> 0
A54: =IF(Lønmodtager!A48="ÅÅÅ","",Lønmodtager!A48&REPT(".",200)) ->  | B54: =IF(Lønmodtager!A48="ÅÅÅ","",Lønmodtager!H48) ->  | C54: =IF(Lønmodtager!A48="ÅÅÅ",0,Lønmodtager!AF48) -> 0 | D54: =IF(Lønmodtager!A48="ÅÅÅ",0,Lønmodtager!AN48) -> 0 | E54: =C54-D54 -> 0
A55: =IF(Lønmodtager!A49="ÅÅÅ","",Lønmodtager!A49&REPT(".",200)) ->  | B55: =IF(Lønmodtager!A49="ÅÅÅ","",Lønmodtager!H49) ->  | C55: =IF(Lønmodtager!A49="ÅÅÅ",0,Lønmodtager!AF49) -> 0 | D55: =IF(Lønmodtager!A49="ÅÅÅ",0,Lønmodtager!AN49) -> 0 | E55: =C55-D55 -> 0
A56: =IF(Lønmodtager!A50="ÅÅÅ","",Lønmodtager!A50&REPT(".",200)) ->  | B56: =IF(Lønmodtager!A50="ÅÅÅ","",Lønmodtager!H50) ->  | C56: =IF(Lønmodtager!A50="ÅÅÅ",0,Lønmodtager!AF50) -> 0 | D56: =IF(Lønmodtager!A50="ÅÅÅ",0,Lønmodtager!AN50) -> 0 | E56: =C56-D56 -> 0
A57: =IF(Lønmodtager!A51="ÅÅÅ","",Lønmodtager!A51&REPT(".",200)) ->  | B57: =IF(Lønmodtager!A51="ÅÅÅ","",Lønmodtager!H51) ->  | C57: =IF(Lønmodtager!A51="ÅÅÅ",0,Lønmodtager!AF51) -> 0 | D57: =IF(Lønmodtager!A51="ÅÅÅ",0,Lønmodtager!AN51) -> 0 | E57: =C57-D57 -> 0
A58: =IF(Lønmodtager!A52="ÅÅÅ","",Lønmodtager!A52&REPT(".",200)) ->  | B58: =IF(Lønmodtager!A52="ÅÅÅ","",Lønmodtager!H52) ->  | C58: =IF(Lønmodtager!A52="ÅÅÅ",0,Lønmodtager!AF52) -> 0 | D58: =IF(Lønmodtager!A52="ÅÅÅ",0,Lønmodtager!AN52) -> 0 | E58: =C58-D58 -> 0
A59: =IF(Lønmodtager!A53="ÅÅÅ","",Lønmodtager!A53&REPT(".",200)) ->  | B59: =IF(Lønmodtager!A53="ÅÅÅ","",Lønmodtager!H53) ->  | C59: =IF(Lønmodtager!A53="ÅÅÅ",0,Lønmodtager!AF53) -> 0 | D59: =IF(Lønmodtager!A53="ÅÅÅ",0,Lønmodtager!AN53) -> 0 | E59: =C59-D59 -> 0
A60: =IF(Lønmodtager!A54="ÅÅÅ","",Lønmodtager!A54&REPT(".",200)) ->  | B60: =IF(Lønmodtager!A54="ÅÅÅ","",Lønmodtager!H54) ->  | C60: =IF(Lønmodtager!A54="ÅÅÅ",0,Lønmodtager!AF54) -> 0 | D60: =IF(Lønmodtager!A54="ÅÅÅ",0,Lønmodtager!AN54) -> 0 | E60: =C60-D60 -> 0
A61: =IF(Lønmodtager!A55="ÅÅÅ","",Lønmodtager!A55&REPT(".",200)) ->  | B61: =IF(Lønmodtager!A55="ÅÅÅ","",Lønmodtager!H55) ->  | C61: =IF(Lønmodtager!A55="ÅÅÅ",0,Lønmodtager!AF55) -> 0 | D61: =IF(Lønmodtager!A55="ÅÅÅ",0,Lønmodtager!AN55) -> 0 | E61: =C61-D61 -> 0
A62: =IF(Lønmodtager!A56="ÅÅÅ","",Lønmodtager!A56&REPT(".",200)) ->  | B62: =IF(Lønmodtager!A56="ÅÅÅ","",Lønmodtager!H56) ->  | C62: =IF(Lønmodtager!A56="ÅÅÅ",0,Lønmodtager!AF56) -> 0 | D62: =IF(Lønmodtager!A56="ÅÅÅ",0,Lønmodtager!AN56) -> 0 | E62: =C62-D62 -> 0
A63: =IF(Lønmodtager!A57="ÅÅÅ","",Lønmodtager!A57&REPT(".",200)) ->  | B63: =IF(Lønmodtager!A57="ÅÅÅ","",Lønmodtager!H57) ->  | C63: =IF(Lønmodtager!A57="ÅÅÅ",0,Lønmodtager!AF57) -> 0 | D63: =IF(Lønmodtager!A57="ÅÅÅ",0,Lønmodtager!AN57) -> 0 | E63: =C63-D63 -> 0
A64: =IF(Lønmodtager!A58="ÅÅÅ","",Lønmodtager!A58&REPT(".",200)) ->  | B64: =IF(Lønmodtager!A58="ÅÅÅ","",Lønmodtager!H58) ->  | C64: =IF(Lønmodtager!A58="ÅÅÅ",0,Lønmodtager!AF58) -> 0 | D64: =IF(Lønmodtager!A58="ÅÅÅ",0,Lønmodtager!AN58) -> 0 | E64: =C64-D64 -> 0
A65: =IF(Lønmodtager!A59="ÅÅÅ","",Lønmodtager!A59&REPT(".",200)) ->  | B65: =IF(Lønmodtager!A59="ÅÅÅ","",Lønmodtager!H59) ->  | C65: =IF(Lønmodtager!A59="ÅÅÅ",0,Lønmodtager!AF59) -> 0 | D65: =IF(Lønmodtager!A59="ÅÅÅ",0,Lønmodtager!AN59) -> 0 | E65: =C65-D65 -> 0
A66: =IF(Lønmodtager!A60="ÅÅÅ","",Lønmodtager!A60&REPT(".",200)) ->  | B66: =IF(Lønmodtager!A60="ÅÅÅ","",Lønmodtager!H60) ->  | C66: =IF(Lønmodtager!A60="ÅÅÅ",0,Lønmodtager!AF60) -> 0 | D66: =IF(Lønmodtager!A60="ÅÅÅ",0,Lønmodtager!AN60) -> 0 | E66: =C66-D66 -> 0
A67: =IF(Lønmodtager!A61="ÅÅÅ","",Lønmodtager!A61&REPT(".",200)) ->  | B67: =IF(Lønmodtager!A61="ÅÅÅ","",Lønmodtager!H61) ->  | C67: =IF(Lønmodtager!A61="ÅÅÅ",0,Lønmodtager!AF61) -> 0 | D67: =IF(Lønmodtager!A61="ÅÅÅ",0,Lønmodtager!AN61) -> 0 | E67: =C67-D67 -> 0
A68: =IF(Lønmodtager!A62="ÅÅÅ","",Lønmodtager!A62&REPT(".",200)) ->  | B68: =IF(Lønmodtager!A62="ÅÅÅ","",Lønmodtager!H62) ->  | C68: =IF(Lønmodtager!A62="ÅÅÅ",0,Lønmodtager!AF62) -> 0 | D68: =IF(Lønmodtager!A62="ÅÅÅ",0,Lønmodtager!AN62) -> 0 | E68: =C68-D68 -> 0
A69: =IF(Lønmodtager!A63="ÅÅÅ","",Lønmodtager!A63&REPT(".",200)) ->  | B69: =IF(Lønmodtager!A63="ÅÅÅ","",Lønmodtager!H63) ->  | C69: =IF(Lønmodtager!A63="ÅÅÅ",0,Lønmodtager!AF63) -> 0 | D69: =IF(Lønmodtager!A63="ÅÅÅ",0,Lønmodtager!AN63) -> 0 | E69: =C69-D69 -> 0
A70: =IF(Lønmodtager!A64="ÅÅÅ","",Lønmodtager!A64&REPT(".",200)) ->  | B70: =IF(Lønmodtager!A64="ÅÅÅ","",Lønmodtager!H64) ->  | C70: =IF(Lønmodtager!A64="ÅÅÅ",0,Lønmodtager!AF64) -> 0 | D70: =IF(Lønmodtager!A64="ÅÅÅ",0,Lønmodtager!AN64) -> 0 | E70: =C70-D70 -> 0
A71: =IF(Lønmodtager!A65="ÅÅÅ","",Lønmodtager!A65&REPT(".",200)) ->  | B71: =IF(Lønmodtager!A65="ÅÅÅ","",Lønmodtager!H65) ->  | C71: =IF(Lønmodtager!A65="ÅÅÅ",0,Lønmodtager!AF65) -> 0 | D71: =IF(Lønmodtager!A65="ÅÅÅ",0,Lønmodtager!AN65) -> 0 | E71: =C71-D71 -> 0
A72: =IF(Lønmodtager!A66="ÅÅÅ","",Lønmodtager!A66&REPT(".",200)) ->  | B72: =IF(Lønmodtager!A66="ÅÅÅ","",Lønmodtager!H66) ->  | C72: =IF(Lønmodtager!A66="ÅÅÅ",0,Lønmodtager!AF66) -> 0 | D72: =IF(Lønmodtager!A66="ÅÅÅ",0,Lønmodtager!AN66) -> 0 | E72: =C72-D72 -> 0
A73: =IF(Lønmodtager!A67="ÅÅÅ","",Lønmodtager!A67&REPT(".",200)) ->  | B73: =IF(Lønmodtager!A67="ÅÅÅ","",Lønmodtager!H67) ->  | C73: =IF(Lønmodtager!A67="ÅÅÅ",0,Lønmodtager!AF67) -> 0 | D73: =IF(Lønmodtager!A67="ÅÅÅ",0,Lønmodtager!AN67) -> 0 | E73: =C73-D73 -> 0
A74: =IF(Lønmodtager!A68="ÅÅÅ","",Lønmodtager!A68&REPT(".",200)) ->  | B74: =IF(Lønmodtager!A68="ÅÅÅ","",Lønmodtager!H68) ->  | C74: =IF(Lønmodtager!A68="ÅÅÅ",0,Lønmodtager!AF68) -> 0 | D74: =IF(Lønmodtager!A68="ÅÅÅ",0,Lønmodtager!AN68) -> 0 | E74: =C74-D74 -> 0
A75: =IF(Lønmodtager!A69="ÅÅÅ","",Lønmodtager!A69&REPT(".",200)) ->  | B75: =IF(Lønmodtager!A69="ÅÅÅ","",Lønmodtager!H69) ->  | C75: =IF(Lønmodtager!A69="ÅÅÅ",0,Lønmodtager!AF69) -> 0 | D75: =IF(Lønmodtager!A69="ÅÅÅ",0,Lønmodtager!AN69) -> 0 | E75: =C75-D75 -> 0
A76: =IF(Lønmodtager!A70="ÅÅÅ","",Lønmodtager!A70&REPT(".",200)) ->  | B76: =IF(Lønmodtager!A70="ÅÅÅ","",Lønmodtager!H70) ->  | C76: =IF(Lønmodtager!A70="ÅÅÅ",0,Lønmodtager!AF70) -> 0 | D76: =IF(Lønmodtager!A70="ÅÅÅ",0,Lønmodtager!AN70) -> 0 | E76: =C76-D76 -> 0
A77: =IF(Lønmodtager!A71="ÅÅÅ","",Lønmodtager!A71&REPT(".",200)) ->  | B77: =IF(Lønmodtager!A71="ÅÅÅ","",Lønmodtager!H71) ->  | C77: =IF(Lønmodtager!A71="ÅÅÅ",0,Lønmodtager!AF71) -> 0 | D77: =IF(Lønmodtager!A71="ÅÅÅ",0,Lønmodtager!AN71) -> 0 | E77: =C77-D77 -> 0
A78: =IF(Lønmodtager!A72="ÅÅÅ","",Lønmodtager!A72&REPT(".",200)) ->  | B78: =IF(Lønmodtager!A72="ÅÅÅ","",Lønmodtager!H72) ->  | C78: =IF(Lønmodtager!A72="ÅÅÅ",0,Lønmodtager!AF72) -> 0 | D78: =IF(Lønmodtager!A72="ÅÅÅ",0,Lønmodtager!AN72) -> 0 | E78: =C78-D78 -> 0
A79: =IF(Lønmodtager!A73="ÅÅÅ","",Lønmodtager!A73&REPT(".",200)) ->  | B79: =IF(Lønmodtager!A73="ÅÅÅ","",Lønmodtager!H73) ->  | C79: =IF(Lønmodtager!A73="ÅÅÅ",0,Lønmodtager!AF73) -> 0 | D79: =IF(Lønmodtager!A73="ÅÅÅ",0,Lønmodtager!AN73) -> 0 | E79: =C79-D79 -> 0
A80: =IF(Lønmodtager!A74="ÅÅÅ","",Lønmodtager!A74&REPT(".",200)) ->  | B80: =IF(Lønmodtager!A74="ÅÅÅ","",Lønmodtager!H74) ->  | C80: =IF(Lønmodtager!A74="ÅÅÅ",0,Lønmodtager!AF74) -> 0 | D80: =IF(Lønmodtager!A74="ÅÅÅ",0,Lønmodtager!AN74) -> 0 | E80: =C80-D80 -> 0
A81: =IF(Lønmodtager!A75="ÅÅÅ","",Lønmodtager!A75&REPT(".",200)) ->  | B81: =IF(Lønmodtager!A75="ÅÅÅ","",Lønmodtager!H75) ->  | C81: =IF(Lønmodtager!A75="ÅÅÅ",0,Lønmodtager!AF75) -> 0 | D81: =IF(Lønmodtager!A75="ÅÅÅ",0,Lønmodtager!AN75) -> 0 | E81: =C81-D81 -> 0
A82: =IF(Lønmodtager!A76="ÅÅÅ","",Lønmodtager!A76&REPT(".",200)) ->  | B82: =IF(Lønmodtager!A76="ÅÅÅ","",Lønmodtager!H76) ->  | C82: =IF(Lønmodtager!A76="ÅÅÅ",0,Lønmodtager!AF76) -> 0 | D82: =IF(Lønmodtager!A76="ÅÅÅ",0,Lønmodtager!AN76) -> 0 | E82: =C82-D82 -> 0
A83: =IF(Lønmodtager!A77="ÅÅÅ","",Lønmodtager!A77&REPT(".",200)) ->  | B83: =IF(Lønmodtager!A77="ÅÅÅ","",Lønmodtager!H77) ->  | C83: =IF(Lønmodtager!A77="ÅÅÅ",0,Lønmodtager!AF77) -> 0 | D83: =IF(Lønmodtager!A77="ÅÅÅ",0,Lønmodtager!AN77) -> 0 | E83: =C83-D83 -> 0
A84: =IF(Lønmodtager!A78="ÅÅÅ","",Lønmodtager!A78&REPT(".",200)) ->  | B84: =IF(Lønmodtager!A78="ÅÅÅ","",Lønmodtager!H78) ->  | C84: =IF(Lønmodtager!A78="ÅÅÅ",0,Lønmodtager!AF78) -> 0 | D84: =IF(Lønmodtager!A78="ÅÅÅ",0,Lønmodtager!AN78) -> 0 | E84: =C84-D84 -> 0
A85: =IF(Lønmodtager!A79="ÅÅÅ","",Lønmodtager!A79&REPT(".",200)) ->  | B85: =IF(Lønmodtager!A79="ÅÅÅ","",Lønmodtager!H79) ->  | C85: =IF(Lønmodtager!A79="ÅÅÅ",0,Lønmodtager!AF79) -> 0 | D85: =IF(Lønmodtager!A79="ÅÅÅ",0,Lønmodtager!AN79) -> 0 | E85: =C85-D85 -> 0
A86: =IF(Lønmodtager!A80="ÅÅÅ","",Lønmodtager!A80&REPT(".",200)) ->  | B86: =IF(Lønmodtager!A80="ÅÅÅ","",Lønmodtager!H80) ->  | C86: =IF(Lønmodtager!A80="ÅÅÅ",0,Lønmodtager!AF80) -> 0 | D86: =IF(Lønmodtager!A80="ÅÅÅ",0,Lønmodtager!AN80) -> 0 | E86: =C86-D86 -> 0
A87: =IF(Lønmodtager!A81="ÅÅÅ","",Lønmodtager!A81&REPT(".",200)) ->  | B87: =IF(Lønmodtager!A81="ÅÅÅ","",Lønmodtager!H81) ->  | C87: =IF(Lønmodtager!A81="ÅÅÅ",0,Lønmodtager!AF81) -> 0 | D87: =IF(Lønmodtager!A81="ÅÅÅ",0,Lønmodtager!AN81) -> 0 | E87: =C87-D87 -> 0
A88: =IF(Lønmodtager!A82="ÅÅÅ","",Lønmodtager!A82&REPT(".",200)) ->  | B88: =IF(Lønmodtager!A82="ÅÅÅ","",Lønmodtager!H82) ->  | C88: =IF(Lønmodtager!A82="ÅÅÅ",0,Lønmodtager!AF82) -> 0 | D88: =IF(Lønmodtager!A82="ÅÅÅ",0,Lønmodtager!AN82) -> 0 | E88: =C88-D88 -> 0
A89: =IF(Lønmodtager!A83="ÅÅÅ","",Lønmodtager!A83&REPT(".",200)) ->  | B89: =IF(Lønmodtager!A83="ÅÅÅ","",Lønmodtager!H83) ->  | C89: =IF(Lønmodtager!A83="ÅÅÅ",0,Lønmodtager!AF83) -> 0 | D89: =IF(Lønmodtager!A83="ÅÅÅ",0,Lønmodtager!AN83) -> 0 | E89: =C89-D89 -> 0
A90: =IF(Lønmodtager!A84="ÅÅÅ","",Lønmodtager!A84&REPT(".",200)) ->  | B90: =IF(Lønmodtager!A84="ÅÅÅ","",Lønmodtager!H84) ->  | C90: =IF(Lønmodtager!A84="ÅÅÅ",0,Lønmodtager!AF84) -> 0 | D90: =IF(Lønmodtager!A84="ÅÅÅ",0,Lønmodtager!AN84) -> 0 | E90: =C90-D90 -> 0
A91: =IF(Lønmodtager!A85="ÅÅÅ","",Lønmodtager!A85&REPT(".",200)) ->  | B91: =IF(Lønmodtager!A85="ÅÅÅ","",Lønmodtager!H85) ->  | C91: =IF(Lønmodtager!A85="ÅÅÅ",0,Lønmodtager!AF85) -> 0 | D91: =IF(Lønmodtager!A85="ÅÅÅ",0,Lønmodtager!AN85) -> 0 | E91: =C91-D91 -> 0
A92: =IF(Lønmodtager!A86="ÅÅÅ","",Lønmodtager!A86&REPT(".",200)) ->  | B92: =IF(Lønmodtager!A86="ÅÅÅ","",Lønmodtager!H86) ->  | C92: =IF(Lønmodtager!A86="ÅÅÅ",0,Lønmodtager!AF86) -> 0 | D92: =IF(Lønmodtager!A86="ÅÅÅ",0,Lønmodtager!AN86) -> 0 | E92: =C92-D92 -> 0
A93: =IF(Lønmodtager!A87="ÅÅÅ","",Lønmodtager!A87&REPT(".",200)) ->  | B93: =IF(Lønmodtager!A87="ÅÅÅ","",Lønmodtager!H87) ->  | C93: =IF(Lønmodtager!A87="ÅÅÅ",0,Lønmodtager!AF87) -> 0 | D93: =IF(Lønmodtager!A87="ÅÅÅ",0,Lønmodtager!AN87) -> 0 | E93: =C93-D93 -> 0
A94: =IF(Lønmodtager!A88="ÅÅÅ","",Lønmodtager!A88&REPT(".",200)) ->  | B94: =IF(Lønmodtager!A88="ÅÅÅ","",Lønmodtager!H88) ->  | C94: =IF(Lønmodtager!A88="ÅÅÅ",0,Lønmodtager!AF88) -> 0 | D94: =IF(Lønmodtager!A88="ÅÅÅ",0,Lønmodtager!AN88) -> 0 | E94: =C94-D94 -> 0
A95: =IF(Lønmodtager!A89="ÅÅÅ","",Lønmodtager!A89&REPT(".",200)) ->  | B95: =IF(Lønmodtager!A89="ÅÅÅ","",Lønmodtager!H89) ->  | C95: =IF(Lønmodtager!A89="ÅÅÅ",0,Lønmodtager!AF89) -> 0 | D95: =IF(Lønmodtager!A89="ÅÅÅ",0,Lønmodtager!AN89) -> 0 | E95: =C95-D95 -> 0
A96: =IF(Lønmodtager!A90="ÅÅÅ","",Lønmodtager!A90&REPT(".",200)) ->  | B96: =IF(Lønmodtager!A90="ÅÅÅ","",Lønmodtager!H90) ->  | C96: =IF(Lønmodtager!A90="ÅÅÅ",0,Lønmodtager!AF90) -> 0 | D96: =IF(Lønmodtager!A90="ÅÅÅ",0,Lønmodtager!AN90) -> 0 | E96: =C96-D96 -> 0
A97: =IF(Lønmodtager!A91="ÅÅÅ","",Lønmodtager!A91&REPT(".",200)) ->  | B97: =IF(Lønmodtager!A91="ÅÅÅ","",Lønmodtager!H91) ->  | C97: =IF(Lønmodtager!A91="ÅÅÅ",0,Lønmodtager!AF91) -> 0 | D97: =IF(Lønmodtager!A91="ÅÅÅ",0,Lønmodtager!AN91) -> 0 | E97: =C97-D97 -> 0
A98: =IF(Lønmodtager!A92="ÅÅÅ","",Lønmodtager!A92&REPT(".",200)) ->  | B98: =IF(Lønmodtager!A92="ÅÅÅ","",Lønmodtager!H92) ->  | C98: =IF(Lønmodtager!A92="ÅÅÅ",0,Lønmodtager!AF92) -> 0 | D98: =IF(Lønmodtager!A92="ÅÅÅ",0,Lønmodtager!AN92) -> 0 | E98: =C98-D98 -> 0
A99: =IF(Lønmodtager!A93="ÅÅÅ","",Lønmodtager!A93&REPT(".",200)) ->  | B99: =IF(Lønmodtager!A93="ÅÅÅ","",Lønmodtager!H93) ->  | C99: =IF(Lønmodtager!A93="ÅÅÅ",0,Lønmodtager!AF93) -> 0 | D99: =IF(Lønmodtager!A93="ÅÅÅ",0,Lønmodtager!AN93) -> 0 | E99: =C99-D99 -> 0
A100: =IF(Lønmodtager!A94="ÅÅÅ","",Lønmodtager!A94&REPT(".",200)) ->  | B100: =IF(Lønmodtager!A94="ÅÅÅ","",Lønmodtager!H94) ->  | C100: =IF(Lønmodtager!A94="ÅÅÅ",0,Lønmodtager!AF94) -> 0 | D100: =IF(Lønmodtager!A94="ÅÅÅ",0,Lønmodtager!AN94) -> 0 | E100: =C100-D100 -> 0
A101: =IF(Lønmodtager!A95="ÅÅÅ","",Lønmodtager!A95&REPT(".",200)) ->  | B101: =IF(Lønmodtager!A95="ÅÅÅ","",Lønmodtager!H95) ->  | C101: =IF(Lønmodtager!A95="ÅÅÅ",0,Lønmodtager!AF95) -> 0 | D101: =IF(Lønmodtager!A95="ÅÅÅ",0,Lønmodtager!AN95) -> 0 | E101: =C101-D101 -> 0
A102: =IF(Lønmodtager!A96="ÅÅÅ","",Lønmodtager!A96&REPT(".",200)) ->  | B102: =IF(Lønmodtager!A96="ÅÅÅ","",Lønmodtager!H96) ->  | C102: =IF(Lønmodtager!A96="ÅÅÅ",0,Lønmodtager!AF96) -> 0 | D102: =IF(Lønmodtager!A96="ÅÅÅ",0,Lønmodtager!AN96) -> 0 | E102: =C102-D102 -> 0
A103: =IF(Lønmodtager!A97="ÅÅÅ","",Lønmodtager!A97&REPT(".",200)) ->  | B103: =IF(Lønmodtager!A97="ÅÅÅ","",Lønmodtager!H97) ->  | C103: =IF(Lønmodtager!A97="ÅÅÅ",0,Lønmodtager!AF97) -> 0 | D103: =IF(Lønmodtager!A97="ÅÅÅ",0,Lønmodtager!AN97) -> 0 | E103: =C103-D103 -> 0
A104: =IF(Lønmodtager!A98="ÅÅÅ","",Lønmodtager!A98&REPT(".",200)) ->  | B104: =IF(Lønmodtager!A98="ÅÅÅ","",Lønmodtager!H98) ->  | C104: =IF(Lønmodtager!A98="ÅÅÅ",0,Lønmodtager!AF98) -> 0 | D104: =IF(Lønmodtager!A98="ÅÅÅ",0,Lønmodtager!AN98) -> 0 | E104: =C104-D104 -> 0
A105: =IF(Lønmodtager!A99="ÅÅÅ","",Lønmodtager!A99&REPT(".",200)) ->  | B105: =IF(Lønmodtager!A99="ÅÅÅ","",Lønmodtager!H99) ->  | C105: =IF(Lønmodtager!A99="ÅÅÅ",0,Lønmodtager!AF99) -> 0 | D105: =IF(Lønmodtager!A99="ÅÅÅ",0,Lønmodtager!AN99) -> 0 | E105: =C105-D105 -> 0

Sheet Oplysningssedler
A2: =Lønmodtager!A3 -> Navn | B2: =Lønmodtager!F3 -> Adresse | C2: =Lønmodtager!G3 -> Postnr. Og By | D2: =Lønmodtager!H3 -> Cpr.nr. | E2: =Lønmodtager!Q3 -> Ansat | F2: =Lønmodtager!R3 -> Fratrådt | G2: =Lønmodtager!AA3 -> AM-indk. | H2: =MID(Lønmodtager!AB3,1,8) -> Dagpenge | I2: =Lønmodtager!AD3 -> A-skat | J2: =Lønmodtager!AC3 -> AM-bid. | K2: =Lønmodtager!AE3 -> SP-bid. | L2: =Lønmodtager!AF3 -> Pensionsbid. | M2: =MID(Lønmodtager!AG3,1,3) -> ATP | N2: =MID(Lønmodtager!AK3,1,10) -> Bef.godtg. | O2: =MID(Lønmodtager!AP3,1,10) -> Rejsegodtg | P2: =MID(Lønmodtager!AO3,1,10) -> Timer | Q2: =MID(Lønmodtager!AQ3,1,10) -> B-Indkomst | R2: =MID(Lønmodtager!AR3,1,10) -> Fri Bil ol
A4: =IF(Lønmodtager!$A5<>"ÅÅÅ",Lønmodtager!A5,"") -> Søgenavn indtastes i celle F7 | B4: =IF(Lønmodtager!$A5<>"ÅÅÅ",Lønmodtager!F5,"") -> Lønm.adr Mangler i Fanebladet Lønmodtager | C4: =IF(Lønmodtager!$A5<>"ÅÅÅ",Lønmodtager!G5,"") -> Lønm. Postnr.&By mangler i Fanebladet Lønmodtager | D4: =IF(Lønmodtager!$A5<>"ÅÅÅ",Lønmodtager!H5,"") -> 000000-0000 | E4: =IF(Lønmodtager!$A5<>"ÅÅÅ",Lønmodtager!Q5,"") -> 2007-01-01 | F4: =IF(Lønmodtager!$A5<>"ÅÅÅ",Lønmodtager!R5,"") -> 00:00:00 | G4: =IF(Lønmodtager!$A5<>"ÅÅÅ",Lønmodtager!AA5,"") -> 0 | H4: =IF(Lønmodtager!$A5<>"ÅÅÅ",Lønmodtager!AB5,"") -> 0 | I4: =IF(Lønmodtager!$A5<>"ÅÅÅ",Lønmodtager!AD5,"") -> 0 | J4: =IF(Lønmodtager!$A5<>"ÅÅÅ",Lønmodtager!AC5,"") -> 0 | K4: =IF(Lønmodtager!$A5<>"ÅÅÅ",Lønmodtager!AE5,"") -> 0 | L4: =IF(Lønmodtager!$A5<>"ÅÅÅ",Lønmodtager!AF5,"") -> 0 | M4: =IF(Lønmodtager!$A5<>"ÅÅÅ",Lønmodtager!AG5,"") -> 0 | N4: =IF(Lønmodtager!$A5<>"ÅÅÅ",Lønmodtager!AK5,"") -> 0 | O4: =IF(Lønmodtager!$A5<>"ÅÅÅ",Lønmodtager!AP5,"") -> 0 | P4: =IF(Lønmodtager!$A5<>"ÅÅÅ",Lønmodtager!AO5,"") -> 0 | Q4: =IF(Lønmodtager!$A5<>"ÅÅÅ",Lønmodtager!AQ5,"") -> 0 | R4: =IF(Lønmodtager!$A5<>"ÅÅÅ",Lønmodtager!AR5,"") -> 0
A5: =IF(Lønmodtager!$A6<>"ÅÅÅ",Lønmodtager!A6,"") -> Testperson | B5: =IF(Lønmodtager!$A6<>"ÅÅÅ",Lønmodtager!F6,"") -> Lønm.adr Mangler i Fanebladet Lønmodtager | C5: =IF(Lønmodtager!$A6<>"ÅÅÅ",Lønmodtager!G6,"") -> Lønm. Postnr.&By mangler i Fanebladet Lønmodtager | D5: =IF(Lønmodtager!$A6<>"ÅÅÅ",Lønmodtager!H6,"") -> 12345678-1234 | E5: =IF(Lønmodtager!$A6<>"ÅÅÅ",Lønmodtager!Q6,"") -> 2007-01-01 | F5: =IF(Lønmodtager!$A6<>"ÅÅÅ",Lønmodtager!R6,"") -> 00:00:00 | G5: =IF(Lønmodtager!$A6<>"ÅÅÅ",Lønmodtager!AA6,"") -> 0 | H5: =IF(Lønmodtager!$A6<>"ÅÅÅ",Lønmodtager!AB6,"") -> 0 | I5: =IF(Lønmodtager!$A6<>"ÅÅÅ",Lønmodtager!AD6,"") -> 0 | J5: =IF(Lønmodtager!$A6<>"ÅÅÅ",Lønmodtager!AC6,"") -> 0 | K5: =IF(Lønmodtager!$A6<>"ÅÅÅ",Lønmodtager!AE6,"") -> 0 | L5: =IF(Lønmodtager!$A6<>"ÅÅÅ",Lønmodtager!AF6,"") -> 0 | M5: =IF(Lønmodtager!$A6<>"ÅÅÅ",Lønmodtager!AG6,"") -> 0 | N5: =IF(Lønmodtager!$A6<>"ÅÅÅ",Lønmodtager!AK6,"") -> 0 | O5: =IF(Lønmodtager!$A6<>"ÅÅÅ",Lønmodtager!AP6,"") -> 0 | P5: =IF(Lønmodtager!$A6<>"ÅÅÅ",Lønmodtager!AO6,"") -> 0 | Q5: =IF(Lønmodtager!$A6<>"ÅÅÅ",Lønmodtager!AQ6,"") -> 0 | R5: =IF(Lønmodtager!$A6<>"ÅÅÅ",Lønmodtager!AR6,"") -> 0
A6: =IF(Lønmodtager!$A7<>"ÅÅÅ",Lønmodtager!A7,"") ->  | B6: =IF(Lønmodtager!$A7<>"ÅÅÅ",Lønmodtager!F7,"") ->  | C6: =IF(Lønmodtager!$A7<>"ÅÅÅ",Lønmodtager!G7,"") ->  | D6: =IF(Lønmodtager!$A7<>"ÅÅÅ",Lønmodtager!H7,"") ->  | E6: =IF(Lønmodtager!$A7<>"ÅÅÅ",Lønmodtager!Q7,"") ->  | F6: =IF(Lønmodtager!$A7<>"ÅÅÅ",Lønmodtager!R7,"") ->  | G6: =IF(Lønmodtager!$A7<>"ÅÅÅ",Lønmodtager!AA7,"") ->  | H6: =IF(Lønmodtager!$A7<>"ÅÅÅ",Lønmodtager!AB7,"") ->  | I6: =IF(Lønmodtager!$A7<>"ÅÅÅ",Lønmodtager!AD7,"") ->  | J6: =IF(Lønmodtager!$A7<>"ÅÅÅ",Lønmodtager!AC7,"") ->  | K6: =IF(Lønmodtager!$A7<>"ÅÅÅ",Lønmodtager!AE7,"") ->  | L6: =IF(Lønmodtager!$A7<>"ÅÅÅ",Lønmodtager!AF7,"") ->  | M6: =IF(Lønmodtager!$A7<>"ÅÅÅ",Lønmodtager!AG7,"") ->  | N6: =IF(Lønmodtager!$A7<>"ÅÅÅ",Lønmodtager!AK7,"") ->  | O6: =IF(Lønmodtager!$A7<>"ÅÅÅ",Lønmodtager!AP7,"") ->  | P6: =IF(Lønmodtager!$A7<>"ÅÅÅ",Lønmodtager!AO7,"") ->  | Q6: =IF(Lønmodtager!$A7<>"ÅÅÅ",Lønmodtager!AQ7,"") ->  | R6: =IF(Lønmodtager!$A7<>"ÅÅÅ",Lønmodtager!AR7,"") -> 
A7: =IF(Lønmodtager!$A8<>"ÅÅÅ",Lønmodtager!A8,"") ->  | B7: =IF(Lønmodtager!$A8<>"ÅÅÅ",Lønmodtager!F8,"") ->  | C7: =IF(Lønmodtager!$A8<>"ÅÅÅ",Lønmodtager!G8,"") ->  | D7: =IF(Lønmodtager!$A8<>"ÅÅÅ",Lønmodtager!H8,"") ->  | E7: =IF(Lønmodtager!$A8<>"ÅÅÅ",Lønmodtager!Q8,"") ->  | F7: =IF(Lønmodtager!$A8<>"ÅÅÅ",Lønmodtager!R8,"") ->  | G7: =IF(Lønmodtager!$A8<>"ÅÅÅ",Lønmodtager!AA8,"") ->  | H7: =IF(Lønmodtager!$A8<>"ÅÅÅ",Lønmodtager!AB8,"") ->  | I7: =IF(Lønmodtager!$A8<>"ÅÅÅ",Lønmodtager!AD8,"") ->  | J7: =IF(Lønmodtager!$A8<>"ÅÅÅ",Lønmodtager!AC8,"") ->  | K7: =IF(Lønmodtager!$A8<>"ÅÅÅ",Lønmodtager!AE8,"") ->  | L7: =IF(Lønmodtager!$A8<>"ÅÅÅ",Lønmodtager!AF8,"") ->  | M7: =IF(Lønmodtager!$A8<>"ÅÅÅ",Lønmodtager!AG8,"") ->  | N7: =IF(Lønmodtager!$A8<>"ÅÅÅ",Lønmodtager!AK8,"") ->  | O7: =IF(Lønmodtager!$A8<>"ÅÅÅ",Lønmodtager!AP8,"") ->  | P7: =IF(Lønmodtager!$A8<>"ÅÅÅ",Lønmodtager!AO8,"") ->  | Q7: =IF(Lønmodtager!$A8<>"ÅÅÅ",Lønmodtager!AQ8,"") ->  | R7: =IF(Lønmodtager!$A8<>"ÅÅÅ",Lønmodtager!AR8,"") -> 
A8: =IF(Lønmodtager!$A9<>"ÅÅÅ",Lønmodtager!A9,"") ->  | B8: =IF(Lønmodtager!$A9<>"ÅÅÅ",Lønmodtager!F9,"") ->  | C8: =IF(Lønmodtager!$A9<>"ÅÅÅ",Lønmodtager!G9,"") ->  | D8: =IF(Lønmodtager!$A9<>"ÅÅÅ",Lønmodtager!H9,"") ->  | E8: =IF(Lønmodtager!$A9<>"ÅÅÅ",Lønmodtager!Q9,"") ->  | F8: =IF(Lønmodtager!$A9<>"ÅÅÅ",Lønmodtager!R9,"") ->  | G8: =IF(Lønmodtager!$A9<>"ÅÅÅ",Lønmodtager!AA9,"") ->  | H8: =IF(Lønmodtager!$A9<>"ÅÅÅ",Lønmodtager!AB9,"") ->  | I8: =IF(Lønmodtager!$A9<>"ÅÅÅ",Lønmodtager!AD9,"") ->  | J8: =IF(Lønmodtager!$A9<>"ÅÅÅ",Lønmodtager!AC9,"") ->  | K8: =IF(Lønmodtager!$A9<>"ÅÅÅ",Lønmodtager!AE9,"") ->  | L8: =IF(Lønmodtager!$A9<>"ÅÅÅ",Lønmodtager!AF9,"") ->  | M8: =IF(Lønmodtager!$A9<>"ÅÅÅ",Lønmodtager!AG9,"") ->  | N8: =IF(Lønmodtager!$A9<>"ÅÅÅ",Lønmodtager!AK9,"") ->  | O8: =IF(Lønmodtager!$A9<>"ÅÅÅ",Lønmodtager!AP9,"") ->  | P8: =IF(Lønmodtager!$A9<>"ÅÅÅ",Lønmodtager!AO9,"") ->  | Q8: =IF(Lønmodtager!$A9<>"ÅÅÅ",Lønmodtager!AQ9,"") ->  | R8: =IF(Lønmodtager!$A9<>"ÅÅÅ",Lønmodtager!AR9,"") -> 
A9: =IF(Lønmodtager!$A10<>"ÅÅÅ",Lønmodtager!A10,"") ->  | B9: =IF(Lønmodtager!$A10<>"ÅÅÅ",Lønmodtager!F10,"") ->  | C9: =IF(Lønmodtager!$A10<>"ÅÅÅ",Lønmodtager!G10,"") ->  | D9: =IF(Lønmodtager!$A10<>"ÅÅÅ",Lønmodtager!H10,"") ->  | E9: =IF(Lønmodtager!$A10<>"ÅÅÅ",Lønmodtager!Q10,"") ->  | F9: =IF(Lønmodtager!$A10<>"ÅÅÅ",Lønmodtager!R10,"") ->  | G9: =IF(Lønmodtager!$A10<>"ÅÅÅ",Lønmodtager!AA10,"") ->  | H9: =IF(Lønmodtager!$A10<>"ÅÅÅ",Lønmodtager!AB10,"") ->  | I9: =IF(Lønmodtager!$A10<>"ÅÅÅ",Lønmodtager!AD10,"") ->  | J9: =IF(Lønmodtager!$A10<>"ÅÅÅ",Lønmodtager!AC10,"") ->  | K9: =IF(Lønmodtager!$A10<>"ÅÅÅ",Lønmodtager!AE10,"") ->  | L9: =IF(Lønmodtager!$A10<>"ÅÅÅ",Lønmodtager!AF10,"") ->  | M9: =IF(Lønmodtager!$A10<>"ÅÅÅ",Lønmodtager!AG10,"") ->  | N9: =IF(Lønmodtager!$A10<>"ÅÅÅ",Lønmodtager!AK10,"") ->  | O9: =IF(Lønmodtager!$A10<>"ÅÅÅ",Lønmodtager!AP10,"") ->  | P9: =IF(Lønmodtager!$A10<>"ÅÅÅ",Lønmodtager!AO10,"") ->  | Q9: =IF(Lønmodtager!$A10<>"ÅÅÅ",Lønmodtager!AQ10,"") ->  | R9: =IF(Lønmodtager!$A10<>"ÅÅÅ",Lønmodtager!AR10,"") -> 
A10: =IF(Lønmodtager!$A11<>"ÅÅÅ",Lønmodtager!A11,"") ->  | B10: =IF(Lønmodtager!$A11<>"ÅÅÅ",Lønmodtager!F11,"") ->  | C10: =IF(Lønmodtager!$A11<>"ÅÅÅ",Lønmodtager!G11,"") ->  | D10: =IF(Lønmodtager!$A11<>"ÅÅÅ",Lønmodtager!H11,"") ->  | E10: =IF(Lønmodtager!$A11<>"ÅÅÅ",Lønmodtager!Q11,"") ->  | F10: =IF(Lønmodtager!$A11<>"ÅÅÅ",Lønmodtager!R11,"") ->  | G10: =IF(Lønmodtager!$A11<>"ÅÅÅ",Lønmodtager!AA11,"") ->  | H10: =IF(Lønmodtager!$A11<>"ÅÅÅ",Lønmodtager!AB11,"") ->  | I10: =IF(Lønmodtager!$A11<>"ÅÅÅ",Lønmodtager!AD11,"") ->  | J10: =IF(Lønmodtager!$A11<>"ÅÅÅ",Lønmodtager!AC11,"") ->  | K10: =IF(Lønmodtager!$A11<>"ÅÅÅ",Lønmodtager!AE11,"") ->  | L10: =IF(Lønmodtager!$A11<>"ÅÅÅ",Lønmodtager!AF11,"") ->  | M10: =IF(Lønmodtager!$A11<>"ÅÅÅ",Lønmodtager!AG11,"") ->  | N10: =IF(Lønmodtager!$A11<>"ÅÅÅ",Lønmodtager!AK11,"") ->  | O10: =IF(Lønmodtager!$A11<>"ÅÅÅ",Lønmodtager!AP11,"") ->  | P10: =IF(Lønmodtager!$A11<>"ÅÅÅ",Lønmodtager!AO11,"") ->  | Q10: =IF(Lønmodtager!$A11<>"ÅÅÅ",Lønmodtager!AQ11,"") ->  | R10: =IF(Lønmodtager!$A11<>"ÅÅÅ",Lønmodtager!AR11,"") -> 
A11: =IF(Lønmodtager!$A12<>"ÅÅÅ",Lønmodtager!A12,"") ->  | B11: =IF(Lønmodtager!$A12<>"ÅÅÅ",Lønmodtager!F12,"") ->  | C11: =IF(Lønmodtager!$A12<>"ÅÅÅ",Lønmodtager!G12,"") ->  | D11: =IF(Lønmodtager!$A12<>"ÅÅÅ",Lønmodtager!H12,"") ->  | E11: =IF(Lønmodtager!$A12<>"ÅÅÅ",Lønmodtager!Q12,"") ->  | F11: =IF(Lønmodtager!$A12<>"ÅÅÅ",Lønmodtager!R12,"") ->  | G11: =IF(Lønmodtager!$A12<>"ÅÅÅ",Lønmodtager!AA12,"") ->  | H11: =IF(Lønmodtager!$A12<>"ÅÅÅ",Lønmodtager!AB12,"") ->  | I11: =IF(Lønmodtager!$A12<>"ÅÅÅ",Lønmodtager!AD12,"") ->  | J11: =IF(Lønmodtager!$A12<>"ÅÅÅ",Lønmodtager!AC12,"") ->  | K11: =IF(Lønmodtager!$A12<>"ÅÅÅ",Lønmodtager!AE12,"") ->  | L11: =IF(Lønmodtager!$A12<>"ÅÅÅ",Lønmodtager!AF12,"") ->  | M11: =IF(Lønmodtager!$A12<>"ÅÅÅ",Lønmodtager!AG12,"") ->  | N11: =IF(Lønmodtager!$A12<>"ÅÅÅ",Lønmodtager!AK12,"") ->  | O11: =IF(Lønmodtager!$A12<>"ÅÅÅ",Lønmodtager!AP12,"") ->  | P11: =IF(Lønmodtager!$A12<>"ÅÅÅ",Lønmodtager!AO12,"") ->  | Q11: =IF(Lønmodtager!$A12<>"ÅÅÅ",Lønmodtager!AQ12,"") ->  | R11: =IF(Lønmodtager!$A12<>"ÅÅÅ",Lønmodtager!AR12,"") -> 
A12: =IF(Lønmodtager!$A13<>"ÅÅÅ",Lønmodtager!A13,"") ->  | B12: =IF(Lønmodtager!$A13<>"ÅÅÅ",Lønmodtager!F13,"") ->  | C12: =IF(Lønmodtager!$A13<>"ÅÅÅ",Lønmodtager!G13,"") ->  | D12: =IF(Lønmodtager!$A13<>"ÅÅÅ",Lønmodtager!H13,"") ->  | E12: =IF(Lønmodtager!$A13<>"ÅÅÅ",Lønmodtager!Q13,"") ->  | F12: =IF(Lønmodtager!$A13<>"ÅÅÅ",Lønmodtager!R13,"") ->  | G12: =IF(Lønmodtager!$A13<>"ÅÅÅ",Lønmodtager!AA13,"") ->  | H12: =IF(Lønmodtager!$A13<>"ÅÅÅ",Lønmodtager!AB13,"") ->  | I12: =IF(Lønmodtager!$A13<>"ÅÅÅ",Lønmodtager!AD13,"") ->  | J12: =IF(Lønmodtager!$A13<>"ÅÅÅ",Lønmodtager!AC13,"") ->  | K12: =IF(Lønmodtager!$A13<>"ÅÅÅ",Lønmodtager!AE13,"") ->  | L12: =IF(Lønmodtager!$A13<>"ÅÅÅ",Lønmodtager!AF13,"") ->  | M12: =IF(Lønmodtager!$A13<>"ÅÅÅ",Lønmodtager!AG13,"") ->  | N12: =IF(Lønmodtager!$A13<>"ÅÅÅ",Lønmodtager!AK13,"") ->  | O12: =IF(Lønmodtager!$A13<>"ÅÅÅ",Lønmodtager!AP13,"") ->  | P12: =IF(Lønmodtager!$A13<>"ÅÅÅ",Lønmodtager!AO13,"") ->  | Q12: =IF(Lønmodtager!$A13<>"ÅÅÅ",Lønmodtager!AQ13,"") ->  | R12: =IF(Lønmodtager!$A13<>"ÅÅÅ",Lønmodtager!AR13,"") -> 
A13: =IF(Lønmodtager!$A14<>"ÅÅÅ",Lønmodtager!A14,"") ->  | B13: =IF(Lønmodtager!$A14<>"ÅÅÅ",Lønmodtager!F14,"") ->  | C13: =IF(Lønmodtager!$A14<>"ÅÅÅ",Lønmodtager!G14,"") ->  | D13: =IF(Lønmodtager!$A14<>"ÅÅÅ",Lønmodtager!H14,"") ->  | E13: =IF(Lønmodtager!$A14<>"ÅÅÅ",Lønmodtager!Q14,"") ->  | F13: =IF(Lønmodtager!$A14<>"ÅÅÅ",Lønmodtager!R14,"") ->  | G13: =IF(Lønmodtager!$A14<>"ÅÅÅ",Lønmodtager!AA14,"") ->  | H13: =IF(Lønmodtager!$A14<>"ÅÅÅ",Lønmodtager!AB14,"") ->  | I13: =IF(Lønmodtager!$A14<>"ÅÅÅ",Lønmodtager!AD14,"") ->  | J13: =IF(Lønmodtager!$A14<>"ÅÅÅ",Lønmodtager!AC14,"") ->  | K13: =IF(Lønmodtager!$A14<>"ÅÅÅ",Lønmodtager!AE14,"") ->  | L13: =IF(Lønmodtager!$A14<>"ÅÅÅ",Lønmodtager!AF14,"") ->  | M13: =IF(Lønmodtager!$A14<>"ÅÅÅ",Lønmodtager!AG14,"") ->  | N13: =IF(Lønmodtager!$A14<>"ÅÅÅ",Lønmodtager!AK14,"") ->  | O13: =IF(Lønmodtager!$A14<>"ÅÅÅ",Lønmodtager!AP14,"") ->  | P13: =IF(Lønmodtager!$A14<>"ÅÅÅ",Lønmodtager!AO14,"") ->  | Q13: =IF(Lønmodtager!$A14<>"ÅÅÅ",Lønmodtager!AQ14,"") ->  | R13: =IF(Lønmodtager!$A14<>"ÅÅÅ",Lønmodtager!AR14,"") -> 
A14: =IF(Lønmodtager!$A15<>"ÅÅÅ",Lønmodtager!A15,"") ->  | B14: =IF(Lønmodtager!$A15<>"ÅÅÅ",Lønmodtager!F15,"") ->  | C14: =IF(Lønmodtager!$A15<>"ÅÅÅ",Lønmodtager!G15,"") ->  | D14: =IF(Lønmodtager!$A15<>"ÅÅÅ",Lønmodtager!H15,"") ->  | E14: =IF(Lønmodtager!$A15<>"ÅÅÅ",Lønmodtager!Q15,"") ->  | F14: =IF(Lønmodtager!$A15<>"ÅÅÅ",Lønmodtager!R15,"") ->  | G14: =IF(Lønmodtager!$A15<>"ÅÅÅ",Lønmodtager!AA15,"") ->  | H14: =IF(Lønmodtager!$A15<>"ÅÅÅ",Lønmodtager!AB15,"") ->  | I14: =IF(Lønmodtager!$A15<>"ÅÅÅ",Lønmodtager!AD15,"") ->  | J14: =IF(Lønmodtager!$A15<>"ÅÅÅ",Lønmodtager!AC15,"") ->  | K14: =IF(Lønmodtager!$A15<>"ÅÅÅ",Lønmodtager!AE15,"") ->  | L14: =IF(Lønmodtager!$A15<>"ÅÅÅ",Lønmodtager!AF15,"") ->  | M14: =IF(Lønmodtager!$A15<>"ÅÅÅ",Lønmodtager!AG15,"") ->  | N14: =IF(Lønmodtager!$A15<>"ÅÅÅ",Lønmodtager!AK15,"") ->  | O14: =IF(Lønmodtager!$A15<>"ÅÅÅ",Lønmodtager!AP15,"") ->  | P14: =IF(Lønmodtager!$A15<>"ÅÅÅ",Lønmodtager!AO15,"") ->  | Q14: =IF(Lønmodtager!$A15<>"ÅÅÅ",Lønmodtager!AQ15,"") ->  | R14: =IF(Lønmodtager!$A15<>"ÅÅÅ",Lønmodtager!AR15,"") -> 
A15: =IF(Lønmodtager!$A16<>"ÅÅÅ",Lønmodtager!A16,"") ->  | B15: =IF(Lønmodtager!$A16<>"ÅÅÅ",Lønmodtager!F16,"") ->  | C15: =IF(Lønmodtager!$A16<>"ÅÅÅ",Lønmodtager!G16,"") ->  | D15: =IF(Lønmodtager!$A16<>"ÅÅÅ",Lønmodtager!H16,"") ->  | E15: =IF(Lønmodtager!$A16<>"ÅÅÅ",Lønmodtager!Q16,"") ->  | F15: =IF(Lønmodtager!$A16<>"ÅÅÅ",Lønmodtager!R16,"") ->  | G15: =IF(Lønmodtager!$A16<>"ÅÅÅ",Lønmodtager!AA16,"") ->  | H15: =IF(Lønmodtager!$A16<>"ÅÅÅ",Lønmodtager!AB16,"") ->  | I15: =IF(Lønmodtager!$A16<>"ÅÅÅ",Lønmodtager!AD16,"") ->  | J15: =IF(Lønmodtager!$A16<>"ÅÅÅ",Lønmodtager!AC16,"") ->  | K15: =IF(Lønmodtager!$A16<>"ÅÅÅ",Lønmodtager!AE16,"") ->  | L15: =IF(Lønmodtager!$A16<>"ÅÅÅ",Lønmodtager!AF16,"") ->  | M15: =IF(Lønmodtager!$A16<>"ÅÅÅ",Lønmodtager!AG16,"") ->  | N15: =IF(Lønmodtager!$A16<>"ÅÅÅ",Lønmodtager!AK16,"") ->  | O15: =IF(Lønmodtager!$A16<>"ÅÅÅ",Lønmodtager!AP16,"") ->  | P15: =IF(Lønmodtager!$A16<>"ÅÅÅ",Lønmodtager!AO16,"") ->  | Q15: =IF(Lønmodtager!$A16<>"ÅÅÅ",Lønmodtager!AQ16,"") ->  | R15: =IF(Lønmodtager!$A16<>"ÅÅÅ",Lønmodtager!AR16,"") -> 
A16: =IF(Lønmodtager!$A17<>"ÅÅÅ",Lønmodtager!A17,"") ->  | B16: =IF(Lønmodtager!$A17<>"ÅÅÅ",Lønmodtager!F17,"") ->  | C16: =IF(Lønmodtager!$A17<>"ÅÅÅ",Lønmodtager!G17,"") ->  | D16: =IF(Lønmodtager!$A17<>"ÅÅÅ",Lønmodtager!H17,"") ->  | E16: =IF(Lønmodtager!$A17<>"ÅÅÅ",Lønmodtager!Q17,"") ->  | F16: =IF(Lønmodtager!$A17<>"ÅÅÅ",Lønmodtager!R17,"") ->  | G16: =IF(Lønmodtager!$A17<>"ÅÅÅ",Lønmodtager!AA17,"") ->  | H16: =IF(Lønmodtager!$A17<>"ÅÅÅ",Lønmodtager!AB17,"") ->  | I16: =IF(Lønmodtager!$A17<>"ÅÅÅ",Lønmodtager!AD17,"") ->  | J16: =IF(Lønmodtager!$A17<>"ÅÅÅ",Lønmodtager!AC17,"") ->  | K16: =IF(Lønmodtager!$A17<>"ÅÅÅ",Lønmodtager!AE17,"") ->  | L16: =IF(Lønmodtager!$A17<>"ÅÅÅ",Lønmodtager!AF17,"") ->  | M16: =IF(Lønmodtager!$A17<>"ÅÅÅ",Lønmodtager!AG17,"") ->  | N16: =IF(Lønmodtager!$A17<>"ÅÅÅ",Lønmodtager!AK17,"") ->  | O16: =IF(Lønmodtager!$A17<>"ÅÅÅ",Lønmodtager!AP17,"") ->  | P16: =IF(Lønmodtager!$A17<>"ÅÅÅ",Lønmodtager!AO17,"") ->  | Q16: =IF(Lønmodtager!$A17<>"ÅÅÅ",Lønmodtager!AQ17,"") ->  | R16: =IF(Lønmodtager!$A17<>"ÅÅÅ",Lønmodtager!AR17,"") -> 
A17: =IF(Lønmodtager!$A18<>"ÅÅÅ",Lønmodtager!A18,"") ->  | B17: =IF(Lønmodtager!$A18<>"ÅÅÅ",Lønmodtager!F18,"") ->  | C17: =IF(Lønmodtager!$A18<>"ÅÅÅ",Lønmodtager!G18,"") ->  | D17: =IF(Lønmodtager!$A18<>"ÅÅÅ",Lønmodtager!H18,"") ->  | E17: =IF(Lønmodtager!$A18<>"ÅÅÅ",Lønmodtager!Q18,"") ->  | F17: =IF(Lønmodtager!$A18<>"ÅÅÅ",Lønmodtager!R18,"") ->  | G17: =IF(Lønmodtager!$A18<>"ÅÅÅ",Lønmodtager!AA18,"") ->  | H17: =IF(Lønmodtager!$A18<>"ÅÅÅ",Lønmodtager!AB18,"") ->  | I17: =IF(Lønmodtager!$A18<>"ÅÅÅ",Lønmodtager!AD18,"") ->  | J17: =IF(Lønmodtager!$A18<>"ÅÅÅ",Lønmodtager!AC18,"") ->  | K17: =IF(Lønmodtager!$A18<>"ÅÅÅ",Lønmodtager!AE18,"") ->  | L17: =IF(Lønmodtager!$A18<>"ÅÅÅ",Lønmodtager!AF18,"") ->  | M17: =IF(Lønmodtager!$A18<>"ÅÅÅ",Lønmodtager!AG18,"") ->  | N17: =IF(Lønmodtager!$A18<>"ÅÅÅ",Lønmodtager!AK18,"") ->  | O17: =IF(Lønmodtager!$A18<>"ÅÅÅ",Lønmodtager!AP18,"") ->  | P17: =IF(Lønmodtager!$A18<>"ÅÅÅ",Lønmodtager!AO18,"") ->  | Q17: =IF(Lønmodtager!$A18<>"ÅÅÅ",Lønmodtager!AQ18,"") ->  | R17: =IF(Lønmodtager!$A18<>"ÅÅÅ",Lønmodtager!AR18,"") -> 
A18: =IF(Lønmodtager!$A19<>"ÅÅÅ",Lønmodtager!A19,"") ->  | B18: =IF(Lønmodtager!$A19<>"ÅÅÅ",Lønmodtager!F19,"") ->  | C18: =IF(Lønmodtager!$A19<>"ÅÅÅ",Lønmodtager!G19,"") ->  | D18: =IF(Lønmodtager!$A19<>"ÅÅÅ",Lønmodtager!H19,"") ->  | E18: =IF(Lønmodtager!$A19<>"ÅÅÅ",Lønmodtager!Q19,"") ->  | F18: =IF(Lønmodtager!$A19<>"ÅÅÅ",Lønmodtager!R19,"") ->  | G18: =IF(Lønmodtager!$A19<>"ÅÅÅ",Lønmodtager!AA19,"") ->  | H18: =IF(Lønmodtager!$A19<>"ÅÅÅ",Lønmodtager!AB19,"") ->  | I18: =IF(Lønmodtager!$A19<>"ÅÅÅ",Lønmodtager!AD19,"") ->  | J18: =IF(Lønmodtager!$A19<>"ÅÅÅ",Lønmodtager!AC19,"") ->  | K18: =IF(Lønmodtager!$A19<>"ÅÅÅ",Lønmodtager!AE19,"") ->  | L18: =IF(Lønmodtager!$A19<>"ÅÅÅ",Lønmodtager!AF19,"") ->  | M18: =IF(Lønmodtager!$A19<>"ÅÅÅ",Lønmodtager!AG19,"") ->  | N18: =IF(Lønmodtager!$A19<>"ÅÅÅ",Lønmodtager!AK19,"") ->  | O18: =IF(Lønmodtager!$A19<>"ÅÅÅ",Lønmodtager!AP19,"") ->  | P18: =IF(Lønmodtager!$A19<>"ÅÅÅ",Lønmodtager!AO19,"") ->  | Q18: =IF(Lønmodtager!$A19<>"ÅÅÅ",Lønmodtager!AQ19,"") ->  | R18: =IF(Lønmodtager!$A19<>"ÅÅÅ",Lønmodtager!AR19,"") -> 
A19: =IF(Lønmodtager!$A20<>"ÅÅÅ",Lønmodtager!A20,"") ->  | B19: =IF(Lønmodtager!$A20<>"ÅÅÅ",Lønmodtager!F20,"") ->  | C19: =IF(Lønmodtager!$A20<>"ÅÅÅ",Lønmodtager!G20,"") ->  | D19: =IF(Lønmodtager!$A20<>"ÅÅÅ",Lønmodtager!H20,"") ->  | E19: =IF(Lønmodtager!$A20<>"ÅÅÅ",Lønmodtager!Q20,"") ->  | F19: =IF(Lønmodtager!$A20<>"ÅÅÅ",Lønmodtager!R20,"") ->  | G19: =IF(Lønmodtager!$A20<>"ÅÅÅ",Lønmodtager!AA20,"") ->  | H19: =IF(Lønmodtager!$A20<>"ÅÅÅ",Lønmodtager!AB20,"") ->  | I19: =IF(Lønmodtager!$A20<>"ÅÅÅ",Lønmodtager!AD20,"") ->  | J19: =IF(Lønmodtager!$A20<>"ÅÅÅ",Lønmodtager!AC20,"") ->  | K19: =IF(Lønmodtager!$A20<>"ÅÅÅ",Lønmodtager!AE20,"") ->  | L19: =IF(Lønmodtager!$A20<>"ÅÅÅ",Lønmodtager!AF20,"") ->  | M19: =IF(Lønmodtager!$A20<>"ÅÅÅ",Lønmodtager!AG20,"") ->  | N19: =IF(Lønmodtager!$A20<>"ÅÅÅ",Lønmodtager!AK20,"") ->  | O19: =IF(Lønmodtager!$A20<>"ÅÅÅ",Lønmodtager!AP20,"") ->  | P19: =IF(Lønmodtager!$A20<>"ÅÅÅ",Lønmodtager!AO20,"") ->  | Q19: =IF(Lønmodtager!$A20<>"ÅÅÅ",Lønmodtager!AQ20,"") ->  | R19: =IF(Lønmodtager!$A20<>"ÅÅÅ",Lønmodtager!AR20,"") -> 
A20: =IF(Lønmodtager!$A21<>"ÅÅÅ",Lønmodtager!A21,"") ->  | B20: =IF(Lønmodtager!$A21<>"ÅÅÅ",Lønmodtager!F21,"") ->  | C20: =IF(Lønmodtager!$A21<>"ÅÅÅ",Lønmodtager!G21,"") ->  | D20: =IF(Lønmodtager!$A21<>"ÅÅÅ",Lønmodtager!H21,"") ->  | E20: =IF(Lønmodtager!$A21<>"ÅÅÅ",Lønmodtager!Q21,"") ->  | F20: =IF(Lønmodtager!$A21<>"ÅÅÅ",Lønmodtager!R21,"") ->  | G20: =IF(Lønmodtager!$A21<>"ÅÅÅ",Lønmodtager!AA21,"") ->  | H20: =IF(Lønmodtager!$A21<>"ÅÅÅ",Lønmodtager!AB21,"") ->  | I20: =IF(Lønmodtager!$A21<>"ÅÅÅ",Lønmodtager!AD21,"") ->  | J20: =IF(Lønmodtager!$A21<>"ÅÅÅ",Lønmodtager!AC21,"") ->  | K20: =IF(Lønmodtager!$A21<>"ÅÅÅ",Lønmodtager!AE21,"") ->  | L20: =IF(Lønmodtager!$A21<>"ÅÅÅ",Lønmodtager!AF21,"") ->  | M20: =IF(Lønmodtager!$A21<>"ÅÅÅ",Lønmodtager!AG21,"") ->  | N20: =IF(Lønmodtager!$A21<>"ÅÅÅ",Lønmodtager!AK21,"") ->  | O20: =IF(Lønmodtager!$A21<>"ÅÅÅ",Lønmodtager!AP21,"") ->  | P20: =IF(Lønmodtager!$A21<>"ÅÅÅ",Lønmodtager!AO21,"") ->  | Q20: =IF(Lønmodtager!$A21<>"ÅÅÅ",Lønmodtager!AQ21,"") ->  | R20: =IF(Lønmodtager!$A21<>"ÅÅÅ",Lønmodtager!AR21,"") -> 
A21: =IF(Lønmodtager!$A22<>"ÅÅÅ",Lønmodtager!A22,"") ->  | B21: =IF(Lønmodtager!$A22<>"ÅÅÅ",Lønmodtager!F22,"") ->  | C21: =IF(Lønmodtager!$A22<>"ÅÅÅ",Lønmodtager!G22,"") ->  | D21: =IF(Lønmodtager!$A22<>"ÅÅÅ",Lønmodtager!H22,"") ->  | E21: =IF(Lønmodtager!$A22<>"ÅÅÅ",Lønmodtager!Q22,"") ->  | F21: =IF(Lønmodtager!$A22<>"ÅÅÅ",Lønmodtager!R22,"") ->  | G21: =IF(Lønmodtager!$A22<>"ÅÅÅ",Lønmodtager!AA22,"") ->  | H21: =IF(Lønmodtager!$A22<>"ÅÅÅ",Lønmodtager!AB22,"") ->  | I21: =IF(Lønmodtager!$A22<>"ÅÅÅ",Lønmodtager!AD22,"") ->  | J21: =IF(Lønmodtager!$A22<>"ÅÅÅ",Lønmodtager!AC22,"") ->  | K21: =IF(Lønmodtager!$A22<>"ÅÅÅ",Lønmodtager!AE22,"") ->  | L21: =IF(Lønmodtager!$A22<>"ÅÅÅ",Lønmodtager!AF22,"") ->  | M21: =IF(Lønmodtager!$A22<>"ÅÅÅ",Lønmodtager!AG22,"") ->  | N21: =IF(Lønmodtager!$A22<>"ÅÅÅ",Lønmodtager!AK22,"") ->  | O21: =IF(Lønmodtager!$A22<>"ÅÅÅ",Lønmodtager!AP22,"") ->  | P21: =IF(Lønmodtager!$A22<>"ÅÅÅ",Lønmodtager!AO22,"") ->  | Q21: =IF(Lønmodtager!$A22<>"ÅÅÅ",Lønmodtager!AQ22,"") ->  | R21: =IF(Lønmodtager!$A22<>"ÅÅÅ",Lønmodtager!AR22,"") -> 
A22: =IF(Lønmodtager!$A23<>"ÅÅÅ",Lønmodtager!A23,"") ->  | B22: =IF(Lønmodtager!$A23<>"ÅÅÅ",Lønmodtager!F23,"") ->  | C22: =IF(Lønmodtager!$A23<>"ÅÅÅ",Lønmodtager!G23,"") ->  | D22: =IF(Lønmodtager!$A23<>"ÅÅÅ",Lønmodtager!H23,"") ->  | E22: =IF(Lønmodtager!$A23<>"ÅÅÅ",Lønmodtager!Q23,"") ->  | F22: =IF(Lønmodtager!$A23<>"ÅÅÅ",Lønmodtager!R23,"") ->  | G22: =IF(Lønmodtager!$A23<>"ÅÅÅ",Lønmodtager!AA23,"") ->  | H22: =IF(Lønmodtager!$A23<>"ÅÅÅ",Lønmodtager!AB23,"") ->  | I22: =IF(Lønmodtager!$A23<>"ÅÅÅ",Lønmodtager!AD23,"") ->  | J22: =IF(Lønmodtager!$A23<>"ÅÅÅ",Lønmodtager!AC23,"") ->  | K22: =IF(Lønmodtager!$A23<>"ÅÅÅ",Lønmodtager!AE23,"") ->  | L22: =IF(Lønmodtager!$A23<>"ÅÅÅ",Lønmodtager!AF23,"") ->  | M22: =IF(Lønmodtager!$A23<>"ÅÅÅ",Lønmodtager!AG23,"") ->  | N22: =IF(Lønmodtager!$A23<>"ÅÅÅ",Lønmodtager!AK23,"") ->  | O22: =IF(Lønmodtager!$A23<>"ÅÅÅ",Lønmodtager!AP23,"") ->  | P22: =IF(Lønmodtager!$A23<>"ÅÅÅ",Lønmodtager!AO23,"") ->  | Q22: =IF(Lønmodtager!$A23<>"ÅÅÅ",Lønmodtager!AQ23,"") ->  | R22: =IF(Lønmodtager!$A23<>"ÅÅÅ",Lønmodtager!AR23,"") -> 
A23: =IF(Lønmodtager!$A24<>"ÅÅÅ",Lønmodtager!A24,"") ->  | B23: =IF(Lønmodtager!$A24<>"ÅÅÅ",Lønmodtager!F24,"") ->  | C23: =IF(Lønmodtager!$A24<>"ÅÅÅ",Lønmodtager!G24,"") ->  | D23: =IF(Lønmodtager!$A24<>"ÅÅÅ",Lønmodtager!H24,"") ->  | E23: =IF(Lønmodtager!$A24<>"ÅÅÅ",Lønmodtager!Q24,"") ->  | F23: =IF(Lønmodtager!$A24<>"ÅÅÅ",Lønmodtager!R24,"") ->  | G23: =IF(Lønmodtager!$A24<>"ÅÅÅ",Lønmodtager!AA24,"") ->  | H23: =IF(Lønmodtager!$A24<>"ÅÅÅ",Lønmodtager!AB24,"") ->  | I23: =IF(Lønmodtager!$A24<>"ÅÅÅ",Lønmodtager!AD24,"") ->  | J23: =IF(Lønmodtager!$A24<>"ÅÅÅ",Lønmodtager!AC24,"") ->  | K23: =IF(Lønmodtager!$A24<>"ÅÅÅ",Lønmodtager!AE24,"") ->  | L23: =IF(Lønmodtager!$A24<>"ÅÅÅ",Lønmodtager!AF24,"") ->  | M23: =IF(Lønmodtager!$A24<>"ÅÅÅ",Lønmodtager!AG24,"") ->  | N23: =IF(Lønmodtager!$A24<>"ÅÅÅ",Lønmodtager!AK24,"") ->  | O23: =IF(Lønmodtager!$A24<>"ÅÅÅ",Lønmodtager!AP24,"") ->  | P23: =IF(Lønmodtager!$A24<>"ÅÅÅ",Lønmodtager!AO24,"") ->  | Q23: =IF(Lønmodtager!$A24<>"ÅÅÅ",Lønmodtager!AQ24,"") ->  | R23: =IF(Lønmodtager!$A24<>"ÅÅÅ",Lønmodtager!AR24,"") -> 
A24: =IF(Lønmodtager!$A25<>"ÅÅÅ",Lønmodtager!A25,"") ->  | B24: =IF(Lønmodtager!$A25<>"ÅÅÅ",Lønmodtager!F25,"") ->  | C24: =IF(Lønmodtager!$A25<>"ÅÅÅ",Lønmodtager!G25,"") ->  | D24: =IF(Lønmodtager!$A25<>"ÅÅÅ",Lønmodtager!H25,"") ->  | E24: =IF(Lønmodtager!$A25<>"ÅÅÅ",Lønmodtager!Q25,"") ->  | F24: =IF(Lønmodtager!$A25<>"ÅÅÅ",Lønmodtager!R25,"") ->  | G24: =IF(Lønmodtager!$A25<>"ÅÅÅ",Lønmodtager!AA25,"") ->  | H24: =IF(Lønmodtager!$A25<>"ÅÅÅ",Lønmodtager!AB25,"") ->  | I24: =IF(Lønmodtager!$A25<>"ÅÅÅ",Lønmodtager!AD25,"") ->  | J24: =IF(Lønmodtager!$A25<>"ÅÅÅ",Lønmodtager!AC25,"") ->  | K24: =IF(Lønmodtager!$A25<>"ÅÅÅ",Lønmodtager!AE25,"") ->  | L24: =IF(Lønmodtager!$A25<>"ÅÅÅ",Lønmodtager!AF25,"") ->  | M24: =IF(Lønmodtager!$A25<>"ÅÅÅ",Lønmodtager!AG25,"") ->  | N24: =IF(Lønmodtager!$A25<>"ÅÅÅ",Lønmodtager!AK25,"") ->  | O24: =IF(Lønmodtager!$A25<>"ÅÅÅ",Lønmodtager!AP25,"") ->  | P24: =IF(Lønmodtager!$A25<>"ÅÅÅ",Lønmodtager!AO25,"") ->  | Q24: =IF(Lønmodtager!$A25<>"ÅÅÅ",Lønmodtager!AQ25,"") ->  | R24: =IF(Lønmodtager!$A25<>"ÅÅÅ",Lønmodtager!AR25,"") -> 
A25: =IF(Lønmodtager!$A26<>"ÅÅÅ",Lønmodtager!A26,"") ->  | B25: =IF(Lønmodtager!$A26<>"ÅÅÅ",Lønmodtager!F26,"") ->  | C25: =IF(Lønmodtager!$A26<>"ÅÅÅ",Lønmodtager!G26,"") ->  | D25: =IF(Lønmodtager!$A26<>"ÅÅÅ",Lønmodtager!H26,"") ->  | E25: =IF(Lønmodtager!$A26<>"ÅÅÅ",Lønmodtager!Q26,"") ->  | F25: =IF(Lønmodtager!$A26<>"ÅÅÅ",Lønmodtager!R26,"") ->  | G25: =IF(Lønmodtager!$A26<>"ÅÅÅ",Lønmodtager!AA26,"") ->  | H25: =IF(Lønmodtager!$A26<>"ÅÅÅ",Lønmodtager!AB26,"") ->  | I25: =IF(Lønmodtager!$A26<>"ÅÅÅ",Lønmodtager!AD26,"") ->  | J25: =IF(Lønmodtager!$A26<>"ÅÅÅ",Lønmodtager!AC26,"") ->  | K25: =IF(Lønmodtager!$A26<>"ÅÅÅ",Lønmodtager!AE26,"") ->  | L25: =IF(Lønmodtager!$A26<>"ÅÅÅ",Lønmodtager!AF26,"") ->  | M25: =IF(Lønmodtager!$A26<>"ÅÅÅ",Lønmodtager!AG26,"") ->  | N25: =IF(Lønmodtager!$A26<>"ÅÅÅ",Lønmodtager!AK26,"") ->  | O25: =IF(Lønmodtager!$A26<>"ÅÅÅ",Lønmodtager!AP26,"") ->  | P25: =IF(Lønmodtager!$A26<>"ÅÅÅ",Lønmodtager!AO26,"") ->  | Q25: =IF(Lønmodtager!$A26<>"ÅÅÅ",Lønmodtager!AQ26,"") ->  | R25: =IF(Lønmodtager!$A26<>"ÅÅÅ",Lønmodtager!AR26,"") -> 
A26: =IF(Lønmodtager!$A27<>"ÅÅÅ",Lønmodtager!A27,"") ->  | B26: =IF(Lønmodtager!$A27<>"ÅÅÅ",Lønmodtager!F27,"") ->  | C26: =IF(Lønmodtager!$A27<>"ÅÅÅ",Lønmodtager!G27,"") ->  | D26: =IF(Lønmodtager!$A27<>"ÅÅÅ",Lønmodtager!H27,"") ->  | E26: =IF(Lønmodtager!$A27<>"ÅÅÅ",Lønmodtager!Q27,"") ->  | F26: =IF(Lønmodtager!$A27<>"ÅÅÅ",Lønmodtager!R27,"") ->  | G26: =IF(Lønmodtager!$A27<>"ÅÅÅ",Lønmodtager!AA27,"") ->  | H26: =IF(Lønmodtager!$A27<>"ÅÅÅ",Lønmodtager!AB27,"") ->  | I26: =IF(Lønmodtager!$A27<>"ÅÅÅ",Lønmodtager!AD27,"") ->  | J26: =IF(Lønmodtager!$A27<>"ÅÅÅ",Lønmodtager!AC27,"") ->  | K26: =IF(Lønmodtager!$A27<>"ÅÅÅ",Lønmodtager!AE27,"") ->  | L26: =IF(Lønmodtager!$A27<>"ÅÅÅ",Lønmodtager!AF27,"") ->  | M26: =IF(Lønmodtager!$A27<>"ÅÅÅ",Lønmodtager!AG27,"") ->  | N26: =IF(Lønmodtager!$A27<>"ÅÅÅ",Lønmodtager!AK27,"") ->  | O26: =IF(Lønmodtager!$A27<>"ÅÅÅ",Lønmodtager!AP27,"") ->  | P26: =IF(Lønmodtager!$A27<>"ÅÅÅ",Lønmodtager!AO27,"") ->  | Q26: =IF(Lønmodtager!$A27<>"ÅÅÅ",Lønmodtager!AQ27,"") ->  | R26: =IF(Lønmodtager!$A27<>"ÅÅÅ",Lønmodtager!AR27,"") -> 
A27: =IF(Lønmodtager!$A28<>"ÅÅÅ",Lønmodtager!A28,"") ->  | B27: =IF(Lønmodtager!$A28<>"ÅÅÅ",Lønmodtager!F28,"") ->  | C27: =IF(Lønmodtager!$A28<>"ÅÅÅ",Lønmodtager!G28,"") ->  | D27: =IF(Lønmodtager!$A28<>"ÅÅÅ",Lønmodtager!H28,"") ->  | E27: =IF(Lønmodtager!$A28<>"ÅÅÅ",Lønmodtager!Q28,"") ->  | F27: =IF(Lønmodtager!$A28<>"ÅÅÅ",Lønmodtager!R28,"") ->  | G27: =IF(Lønmodtager!$A28<>"ÅÅÅ",Lønmodtager!AA28,"") ->  | H27: =IF(Lønmodtager!$A28<>"ÅÅÅ",Lønmodtager!AB28,"") ->  | I27: =IF(Lønmodtager!$A28<>"ÅÅÅ",Lønmodtager!AD28,"") ->  | J27: =IF(Lønmodtager!$A28<>"ÅÅÅ",Lønmodtager!AC28,"") ->  | K27: =IF(Lønmodtager!$A28<>"ÅÅÅ",Lønmodtager!AE28,"") ->  | L27: =IF(Lønmodtager!$A28<>"ÅÅÅ",Lønmodtager!AF28,"") ->  | M27: =IF(Lønmodtager!$A28<>"ÅÅÅ",Lønmodtager!AG28,"") ->  | N27: =IF(Lønmodtager!$A28<>"ÅÅÅ",Lønmodtager!AK28,"") ->  | O27: =IF(Lønmodtager!$A28<>"ÅÅÅ",Lønmodtager!AP28,"") ->  | P27: =IF(Lønmodtager!$A28<>"ÅÅÅ",Lønmodtager!AO28,"") ->  | Q27: =IF(Lønmodtager!$A28<>"ÅÅÅ",Lønmodtager!AQ28,"") ->  | R27: =IF(Lønmodtager!$A28<>"ÅÅÅ",Lønmodtager!AR28,"") -> 
A28: =IF(Lønmodtager!$A29<>"ÅÅÅ",Lønmodtager!A29,"") ->  | B28: =IF(Lønmodtager!$A29<>"ÅÅÅ",Lønmodtager!F29,"") ->  | C28: =IF(Lønmodtager!$A29<>"ÅÅÅ",Lønmodtager!G29,"") ->  | D28: =IF(Lønmodtager!$A29<>"ÅÅÅ",Lønmodtager!H29,"") ->  | E28: =IF(Lønmodtager!$A29<>"ÅÅÅ",Lønmodtager!Q29,"") ->  | F28: =IF(Lønmodtager!$A29<>"ÅÅÅ",Lønmodtager!R29,"") ->  | G28: =IF(Lønmodtager!$A29<>"ÅÅÅ",Lønmodtager!AA29,"") ->  | H28: =IF(Lønmodtager!$A29<>"ÅÅÅ",Lønmodtager!AB29,"") ->  | I28: =IF(Lønmodtager!$A29<>"ÅÅÅ",Lønmodtager!AD29,"") ->  | J28: =IF(Lønmodtager!$A29<>"ÅÅÅ",Lønmodtager!AC29,"") ->  | K28: =IF(Lønmodtager!$A29<>"ÅÅÅ",Lønmodtager!AE29,"") ->  | L28: =IF(Lønmodtager!$A29<>"ÅÅÅ",Lønmodtager!AF29,"") ->  | M28: =IF(Lønmodtager!$A29<>"ÅÅÅ",Lønmodtager!AG29,"") ->  | N28: =IF(Lønmodtager!$A29<>"ÅÅÅ",Lønmodtager!AK29,"") ->  | O28: =IF(Lønmodtager!$A29<>"ÅÅÅ",Lønmodtager!AP29,"") ->  | P28: =IF(Lønmodtager!$A29<>"ÅÅÅ",Lønmodtager!AO29,"") ->  | Q28: =IF(Lønmodtager!$A29<>"ÅÅÅ",Lønmodtager!AQ29,"") ->  | R28: =IF(Lønmodtager!$A29<>"ÅÅÅ",Lønmodtager!AR29,"") -> 
A29: =IF(Lønmodtager!$A30<>"ÅÅÅ",Lønmodtager!A30,"") ->  | B29: =IF(Lønmodtager!$A30<>"ÅÅÅ",Lønmodtager!F30,"") ->  | C29: =IF(Lønmodtager!$A30<>"ÅÅÅ",Lønmodtager!G30,"") ->  | D29: =IF(Lønmodtager!$A30<>"ÅÅÅ",Lønmodtager!H30,"") ->  | E29: =IF(Lønmodtager!$A30<>"ÅÅÅ",Lønmodtager!Q30,"") ->  | F29: =IF(Lønmodtager!$A30<>"ÅÅÅ",Lønmodtager!R30,"") ->  | G29: =IF(Lønmodtager!$A30<>"ÅÅÅ",Lønmodtager!AA30,"") ->  | H29: =IF(Lønmodtager!$A30<>"ÅÅÅ",Lønmodtager!AB30,"") ->  | I29: =IF(Lønmodtager!$A30<>"ÅÅÅ",Lønmodtager!AD30,"") ->  | J29: =IF(Lønmodtager!$A30<>"ÅÅÅ",Lønmodtager!AC30,"") ->  | K29: =IF(Lønmodtager!$A30<>"ÅÅÅ",Lønmodtager!AE30,"") ->  | L29: =IF(Lønmodtager!$A30<>"ÅÅÅ",Lønmodtager!AF30,"") ->  | M29: =IF(Lønmodtager!$A30<>"ÅÅÅ",Lønmodtager!AG30,"") ->  | N29: =IF(Lønmodtager!$A30<>"ÅÅÅ",Lønmodtager!AK30,"") ->  | O29: =IF(Lønmodtager!$A30<>"ÅÅÅ",Lønmodtager!AP30,"") ->  | P29: =IF(Lønmodtager!$A30<>"ÅÅÅ",Lønmodtager!AO30,"") ->  | Q29: =IF(Lønmodtager!$A30<>"ÅÅÅ",Lønmodtager!AQ30,"") ->  | R29: =IF(Lønmodtager!$A30<>"ÅÅÅ",Lønmodtager!AR30,"") -> 
A30: =IF(Lønmodtager!$A31<>"ÅÅÅ",Lønmodtager!A31,"") ->  | B30: =IF(Lønmodtager!$A31<>"ÅÅÅ",Lønmodtager!F31,"") ->  | C30: =IF(Lønmodtager!$A31<>"ÅÅÅ",Lønmodtager!G31,"") ->  | D30: =IF(Lønmodtager!$A31<>"ÅÅÅ",Lønmodtager!H31,"") ->  | E30: =IF(Lønmodtager!$A31<>"ÅÅÅ",Lønmodtager!Q31,"") ->  | F30: =IF(Lønmodtager!$A31<>"ÅÅÅ",Lønmodtager!R31,"") ->  | G30: =IF(Lønmodtager!$A31<>"ÅÅÅ",Lønmodtager!AA31,"") ->  | H30: =IF(Lønmodtager!$A31<>"ÅÅÅ",Lønmodtager!AB31,"") ->  | I30: =IF(Lønmodtager!$A31<>"ÅÅÅ",Lønmodtager!AD31,"") ->  | J30: =IF(Lønmodtager!$A31<>"ÅÅÅ",Lønmodtager!AC31,"") ->  | K30: =IF(Lønmodtager!$A31<>"ÅÅÅ",Lønmodtager!AE31,"") ->  | L30: =IF(Lønmodtager!$A31<>"ÅÅÅ",Lønmodtager!AF31,"") ->  | M30: =IF(Lønmodtager!$A31<>"ÅÅÅ",Lønmodtager!AG31,"") ->  | N30: =IF(Lønmodtager!$A31<>"ÅÅÅ",Lønmodtager!AK31,"") ->  | O30: =IF(Lønmodtager!$A31<>"ÅÅÅ",Lønmodtager!AP31,"") ->  | P30: =IF(Lønmodtager!$A31<>"ÅÅÅ",Lønmodtager!AO31,"") ->  | Q30: =IF(Lønmodtager!$A31<>"ÅÅÅ",Lønmodtager!AQ31,"") ->  | R30: =IF(Lønmodtager!$A31<>"ÅÅÅ",Lønmodtager!AR31,"") -> 
A31: =IF(Lønmodtager!$A32<>"ÅÅÅ",Lønmodtager!A32,"") ->  | B31: =IF(Lønmodtager!$A32<>"ÅÅÅ",Lønmodtager!F32,"") ->  | C31: =IF(Lønmodtager!$A32<>"ÅÅÅ",Lønmodtager!G32,"") ->  | D31: =IF(Lønmodtager!$A32<>"ÅÅÅ",Lønmodtager!H32,"") ->  | E31: =IF(Lønmodtager!$A32<>"ÅÅÅ",Lønmodtager!Q32,"") ->  | F31: =IF(Lønmodtager!$A32<>"ÅÅÅ",Lønmodtager!R32,"") ->  | G31: =IF(Lønmodtager!$A32<>"ÅÅÅ",Lønmodtager!AA32,"") ->  | H31: =IF(Lønmodtager!$A32<>"ÅÅÅ",Lønmodtager!AB32,"") ->  | I31: =IF(Lønmodtager!$A32<>"ÅÅÅ",Lønmodtager!AD32,"") ->  | J31: =IF(Lønmodtager!$A32<>"ÅÅÅ",Lønmodtager!AC32,"") ->  | K31: =IF(Lønmodtager!$A32<>"ÅÅÅ",Lønmodtager!AE32,"") ->  | L31: =IF(Lønmodtager!$A32<>"ÅÅÅ",Lønmodtager!AF32,"") ->  | M31: =IF(Lønmodtager!$A32<>"ÅÅÅ",Lønmodtager!AG32,"") ->  | N31: =IF(Lønmodtager!$A32<>"ÅÅÅ",Lønmodtager!AK32,"") ->  | O31: =IF(Lønmodtager!$A32<>"ÅÅÅ",Lønmodtager!AP32,"") ->  | P31: =IF(Lønmodtager!$A32<>"ÅÅÅ",Lønmodtager!AO32,"") ->  | Q31: =IF(Lønmodtager!$A32<>"ÅÅÅ",Lønmodtager!AQ32,"") ->  | R31: =IF(Lønmodtager!$A32<>"ÅÅÅ",Lønmodtager!AR32,"") -> 
A32: =IF(Lønmodtager!$A33<>"ÅÅÅ",Lønmodtager!A33,"") ->  | B32: =IF(Lønmodtager!$A33<>"ÅÅÅ",Lønmodtager!F33,"") ->  | C32: =IF(Lønmodtager!$A33<>"ÅÅÅ",Lønmodtager!G33,"") ->  | D32: =IF(Lønmodtager!$A33<>"ÅÅÅ",Lønmodtager!H33,"") ->  | E32: =IF(Lønmodtager!$A33<>"ÅÅÅ",Lønmodtager!Q33,"") ->  | F32: =IF(Lønmodtager!$A33<>"ÅÅÅ",Lønmodtager!R33,"") ->  | G32: =IF(Lønmodtager!$A33<>"ÅÅÅ",Lønmodtager!AA33,"") ->  | H32: =IF(Lønmodtager!$A33<>"ÅÅÅ",Lønmodtager!AB33,"") ->  | I32: =IF(Lønmodtager!$A33<>"ÅÅÅ",Lønmodtager!AD33,"") ->  | J32: =IF(Lønmodtager!$A33<>"ÅÅÅ",Lønmodtager!AC33,"") ->  | K32: =IF(Lønmodtager!$A33<>"ÅÅÅ",Lønmodtager!AE33,"") ->  | L32: =IF(Lønmodtager!$A33<>"ÅÅÅ",Lønmodtager!AF33,"") ->  | M32: =IF(Lønmodtager!$A33<>"ÅÅÅ",Lønmodtager!AG33,"") ->  | N32: =IF(Lønmodtager!$A33<>"ÅÅÅ",Lønmodtager!AK33,"") ->  | O32: =IF(Lønmodtager!$A33<>"ÅÅÅ",Lønmodtager!AP33,"") ->  | P32: =IF(Lønmodtager!$A33<>"ÅÅÅ",Lønmodtager!AO33,"") ->  | Q32: =IF(Lønmodtager!$A33<>"ÅÅÅ",Lønmodtager!AQ33,"") ->  | R32: =IF(Lønmodtager!$A33<>"ÅÅÅ",Lønmodtager!AR33,"") -> 
A33: =IF(Lønmodtager!$A34<>"ÅÅÅ",Lønmodtager!A34,"") ->  | B33: =IF(Lønmodtager!$A34<>"ÅÅÅ",Lønmodtager!F34,"") ->  | C33: =IF(Lønmodtager!$A34<>"ÅÅÅ",Lønmodtager!G34,"") ->  | D33: =IF(Lønmodtager!$A34<>"ÅÅÅ",Lønmodtager!H34,"") ->  | E33: =IF(Lønmodtager!$A34<>"ÅÅÅ",Lønmodtager!Q34,"") ->  | F33: =IF(Lønmodtager!$A34<>"ÅÅÅ",Lønmodtager!R34,"") ->  | G33: =IF(Lønmodtager!$A34<>"ÅÅÅ",Lønmodtager!AA34,"") ->  | H33: =IF(Lønmodtager!$A34<>"ÅÅÅ",Lønmodtager!AB34,"") ->  | I33: =IF(Lønmodtager!$A34<>"ÅÅÅ",Lønmodtager!AD34,"") ->  | J33: =IF(Lønmodtager!$A34<>"ÅÅÅ",Lønmodtager!AC34,"") ->  | K33: =IF(Lønmodtager!$A34<>"ÅÅÅ",Lønmodtager!AE34,"") ->  | L33: =IF(Lønmodtager!$A34<>"ÅÅÅ",Lønmodtager!AF34,"") ->  | M33: =IF(Lønmodtager!$A34<>"ÅÅÅ",Lønmodtager!AG34,"") ->  | N33: =IF(Lønmodtager!$A34<>"ÅÅÅ",Lønmodtager!AK34,"") ->  | O33: =IF(Lønmodtager!$A34<>"ÅÅÅ",Lønmodtager!AP34,"") ->  | P33: =IF(Lønmodtager!$A34<>"ÅÅÅ",Lønmodtager!AO34,"") ->  | Q33: =IF(Lønmodtager!$A34<>"ÅÅÅ",Lønmodtager!AQ34,"") ->  | R33: =IF(Lønmodtager!$A34<>"ÅÅÅ",Lønmodtager!AR34,"") -> 
A34: =IF(Lønmodtager!$A35<>"ÅÅÅ",Lønmodtager!A35,"") ->  | B34: =IF(Lønmodtager!$A35<>"ÅÅÅ",Lønmodtager!F35,"") ->  | C34: =IF(Lønmodtager!$A35<>"ÅÅÅ",Lønmodtager!G35,"") ->  | D34: =IF(Lønmodtager!$A35<>"ÅÅÅ",Lønmodtager!H35,"") ->  | E34: =IF(Lønmodtager!$A35<>"ÅÅÅ",Lønmodtager!Q35,"") ->  | F34: =IF(Lønmodtager!$A35<>"ÅÅÅ",Lønmodtager!R35,"") ->  | G34: =IF(Lønmodtager!$A35<>"ÅÅÅ",Lønmodtager!AA35,"") ->  | H34: =IF(Lønmodtager!$A35<>"ÅÅÅ",Lønmodtager!AB35,"") ->  | I34: =IF(Lønmodtager!$A35<>"ÅÅÅ",Lønmodtager!AD35,"") ->  | J34: =IF(Lønmodtager!$A35<>"ÅÅÅ",Lønmodtager!AC35,"") ->  | K34: =IF(Lønmodtager!$A35<>"ÅÅÅ",Lønmodtager!AE35,"") ->  | L34: =IF(Lønmodtager!$A35<>"ÅÅÅ",Lønmodtager!AF35,"") ->  | M34: =IF(Lønmodtager!$A35<>"ÅÅÅ",Lønmodtager!AG35,"") ->  | N34: =IF(Lønmodtager!$A35<>"ÅÅÅ",Lønmodtager!AK35,"") ->  | O34: =IF(Lønmodtager!$A35<>"ÅÅÅ",Lønmodtager!AP35,"") ->  | P34: =IF(Lønmodtager!$A35<>"ÅÅÅ",Lønmodtager!AO35,"") ->  | Q34: =IF(Lønmodtager!$A35<>"ÅÅÅ",Lønmodtager!AQ35,"") ->  | R34: =IF(Lønmodtager!$A35<>"ÅÅÅ",Lønmodtager!AR35,"") -> 
A35: =IF(Lønmodtager!$A36<>"ÅÅÅ",Lønmodtager!A36,"") ->  | B35: =IF(Lønmodtager!$A36<>"ÅÅÅ",Lønmodtager!F36,"") ->  | C35: =IF(Lønmodtager!$A36<>"ÅÅÅ",Lønmodtager!G36,"") ->  | D35: =IF(Lønmodtager!$A36<>"ÅÅÅ",Lønmodtager!H36,"") ->  | E35: =IF(Lønmodtager!$A36<>"ÅÅÅ",Lønmodtager!Q36,"") ->  | F35: =IF(Lønmodtager!$A36<>"ÅÅÅ",Lønmodtager!R36,"") ->  | G35: =IF(Lønmodtager!$A36<>"ÅÅÅ",Lønmodtager!AA36,"") ->  | H35: =IF(Lønmodtager!$A36<>"ÅÅÅ",Lønmodtager!AB36,"") ->  | I35: =IF(Lønmodtager!$A36<>"ÅÅÅ",Lønmodtager!AD36,"") ->  | J35: =IF(Lønmodtager!$A36<>"ÅÅÅ",Lønmodtager!AC36,"") ->  | K35: =IF(Lønmodtager!$A36<>"ÅÅÅ",Lønmodtager!AE36,"") ->  | L35: =IF(Lønmodtager!$A36<>"ÅÅÅ",Lønmodtager!AF36,"") ->  | M35: =IF(Lønmodtager!$A36<>"ÅÅÅ",Lønmodtager!AG36,"") ->  | N35: =IF(Lønmodtager!$A36<>"ÅÅÅ",Lønmodtager!AK36,"") ->  | O35: =IF(Lønmodtager!$A36<>"ÅÅÅ",Lønmodtager!AP36,"") ->  | P35: =IF(Lønmodtager!$A36<>"ÅÅÅ",Lønmodtager!AO36,"") ->  | Q35: =IF(Lønmodtager!$A36<>"ÅÅÅ",Lønmodtager!AQ36,"") ->  | R35: =IF(Lønmodtager!$A36<>"ÅÅÅ",Lønmodtager!AR36,"") -> 
A36: =IF(Lønmodtager!$A37<>"ÅÅÅ",Lønmodtager!A37,"") ->  | B36: =IF(Lønmodtager!$A37<>"ÅÅÅ",Lønmodtager!F37,"") ->  | C36: =IF(Lønmodtager!$A37<>"ÅÅÅ",Lønmodtager!G37,"") ->  | D36: =IF(Lønmodtager!$A37<>"ÅÅÅ",Lønmodtager!H37,"") ->  | E36: =IF(Lønmodtager!$A37<>"ÅÅÅ",Lønmodtager!Q37,"") ->  | F36: =IF(Lønmodtager!$A37<>"ÅÅÅ",Lønmodtager!R37,"") ->  | G36: =IF(Lønmodtager!$A37<>"ÅÅÅ",Lønmodtager!AA37,"") ->  | H36: =IF(Lønmodtager!$A37<>"ÅÅÅ",Lønmodtager!AB37,"") ->  | I36: =IF(Lønmodtager!$A37<>"ÅÅÅ",Lønmodtager!AD37,"") ->  | J36: =IF(Lønmodtager!$A37<>"ÅÅÅ",Lønmodtager!AC37,"") ->  | K36: =IF(Lønmodtager!$A37<>"ÅÅÅ",Lønmodtager!AE37,"") ->  | L36: =IF(Lønmodtager!$A37<>"ÅÅÅ",Lønmodtager!AF37,"") ->  | M36: =IF(Lønmodtager!$A37<>"ÅÅÅ",Lønmodtager!AG37,"") ->  | N36: =IF(Lønmodtager!$A37<>"ÅÅÅ",Lønmodtager!AK37,"") ->  | O36: =IF(Lønmodtager!$A37<>"ÅÅÅ",Lønmodtager!AP37,"") ->  | P36: =IF(Lønmodtager!$A37<>"ÅÅÅ",Lønmodtager!AO37,"") ->  | Q36: =IF(Lønmodtager!$A37<>"ÅÅÅ",Lønmodtager!AQ37,"") ->  | R36: =IF(Lønmodtager!$A37<>"ÅÅÅ",Lønmodtager!AR37,"") -> 
A37: =IF(Lønmodtager!$A38<>"ÅÅÅ",Lønmodtager!A38,"") ->  | B37: =IF(Lønmodtager!$A38<>"ÅÅÅ",Lønmodtager!F38,"") ->  | C37: =IF(Lønmodtager!$A38<>"ÅÅÅ",Lønmodtager!G38,"") ->  | D37: =IF(Lønmodtager!$A38<>"ÅÅÅ",Lønmodtager!H38,"") ->  | E37: =IF(Lønmodtager!$A38<>"ÅÅÅ",Lønmodtager!Q38,"") ->  | F37: =IF(Lønmodtager!$A38<>"ÅÅÅ",Lønmodtager!R38,"") ->  | G37: =IF(Lønmodtager!$A38<>"ÅÅÅ",Lønmodtager!AA38,"") ->  | H37: =IF(Lønmodtager!$A38<>"ÅÅÅ",Lønmodtager!AB38,"") ->  | I37: =IF(Lønmodtager!$A38<>"ÅÅÅ",Lønmodtager!AD38,"") ->  | J37: =IF(Lønmodtager!$A38<>"ÅÅÅ",Lønmodtager!AC38,"") ->  | K37: =IF(Lønmodtager!$A38<>"ÅÅÅ",Lønmodtager!AE38,"") ->  | L37: =IF(Lønmodtager!$A38<>"ÅÅÅ",Lønmodtager!AF38,"") ->  | M37: =IF(Lønmodtager!$A38<>"ÅÅÅ",Lønmodtager!AG38,"") ->  | N37: =IF(Lønmodtager!$A38<>"ÅÅÅ",Lønmodtager!AK38,"") ->  | O37: =IF(Lønmodtager!$A38<>"ÅÅÅ",Lønmodtager!AP38,"") ->  | P37: =IF(Lønmodtager!$A38<>"ÅÅÅ",Lønmodtager!AO38,"") ->  | Q37: =IF(Lønmodtager!$A38<>"ÅÅÅ",Lønmodtager!AQ38,"") ->  | R37: =IF(Lønmodtager!$A38<>"ÅÅÅ",Lønmodtager!AR38,"") -> 
A38: =IF(Lønmodtager!$A39<>"ÅÅÅ",Lønmodtager!A39,"") ->  | B38: =IF(Lønmodtager!$A39<>"ÅÅÅ",Lønmodtager!F39,"") ->  | C38: =IF(Lønmodtager!$A39<>"ÅÅÅ",Lønmodtager!G39,"") ->  | D38: =IF(Lønmodtager!$A39<>"ÅÅÅ",Lønmodtager!H39,"") ->  | E38: =IF(Lønmodtager!$A39<>"ÅÅÅ",Lønmodtager!Q39,"") ->  | F38: =IF(Lønmodtager!$A39<>"ÅÅÅ",Lønmodtager!R39,"") ->  | G38: =IF(Lønmodtager!$A39<>"ÅÅÅ",Lønmodtager!AA39,"") ->  | H38: =IF(Lønmodtager!$A39<>"ÅÅÅ",Lønmodtager!AB39,"") ->  | I38: =IF(Lønmodtager!$A39<>"ÅÅÅ",Lønmodtager!AD39,"") ->  | J38: =IF(Lønmodtager!$A39<>"ÅÅÅ",Lønmodtager!AC39,"") ->  | K38: =IF(Lønmodtager!$A39<>"ÅÅÅ",Lønmodtager!AE39,"") ->  | L38: =IF(Lønmodtager!$A39<>"ÅÅÅ",Lønmodtager!AF39,"") ->  | M38: =IF(Lønmodtager!$A39<>"ÅÅÅ",Lønmodtager!AG39,"") ->  | N38: =IF(Lønmodtager!$A39<>"ÅÅÅ",Lønmodtager!AK39,"") ->  | O38: =IF(Lønmodtager!$A39<>"ÅÅÅ",Lønmodtager!AP39,"") ->  | P38: =IF(Lønmodtager!$A39<>"ÅÅÅ",Lønmodtager!AO39,"") ->  | Q38: =IF(Lønmodtager!$A39<>"ÅÅÅ",Lønmodtager!AQ39,"") ->  | R38: =IF(Lønmodtager!$A39<>"ÅÅÅ",Lønmodtager!AR39,"") -> 
A39: =IF(Lønmodtager!$A40<>"ÅÅÅ",Lønmodtager!A40,"") ->  | B39: =IF(Lønmodtager!$A40<>"ÅÅÅ",Lønmodtager!F40,"") ->  | C39: =IF(Lønmodtager!$A40<>"ÅÅÅ",Lønmodtager!G40,"") ->  | D39: =IF(Lønmodtager!$A40<>"ÅÅÅ",Lønmodtager!H40,"") ->  | E39: =IF(Lønmodtager!$A40<>"ÅÅÅ",Lønmodtager!Q40,"") ->  | F39: =IF(Lønmodtager!$A40<>"ÅÅÅ",Lønmodtager!R40,"") ->  | G39: =IF(Lønmodtager!$A40<>"ÅÅÅ",Lønmodtager!AA40,"") ->  | H39: =IF(Lønmodtager!$A40<>"ÅÅÅ",Lønmodtager!AB40,"") ->  | I39: =IF(Lønmodtager!$A40<>"ÅÅÅ",Lønmodtager!AD40,"") ->  | J39: =IF(Lønmodtager!$A40<>"ÅÅÅ",Lønmodtager!AC40,"") ->  | K39: =IF(Lønmodtager!$A40<>"ÅÅÅ",Lønmodtager!AE40,"") ->  | L39: =IF(Lønmodtager!$A40<>"ÅÅÅ",Lønmodtager!AF40,"") ->  | M39: =IF(Lønmodtager!$A40<>"ÅÅÅ",Lønmodtager!AG40,"") ->  | N39: =IF(Lønmodtager!$A40<>"ÅÅÅ",Lønmodtager!AK40,"") ->  | O39: =IF(Lønmodtager!$A40<>"ÅÅÅ",Lønmodtager!AP40,"") ->  | P39: =IF(Lønmodtager!$A40<>"ÅÅÅ",Lønmodtager!AO40,"") ->  | Q39: =IF(Lønmodtager!$A40<>"ÅÅÅ",Lønmodtager!AQ40,"") ->  | R39: =IF(Lønmodtager!$A40<>"ÅÅÅ",Lønmodtager!AR40,"") -> 
A40: =IF(Lønmodtager!$A41<>"ÅÅÅ",Lønmodtager!A41,"") ->  | B40: =IF(Lønmodtager!$A41<>"ÅÅÅ",Lønmodtager!F41,"") ->  | C40: =IF(Lønmodtager!$A41<>"ÅÅÅ",Lønmodtager!G41,"") ->  | D40: =IF(Lønmodtager!$A41<>"ÅÅÅ",Lønmodtager!H41,"") ->  | E40: =IF(Lønmodtager!$A41<>"ÅÅÅ",Lønmodtager!Q41,"") ->  | F40: =IF(Lønmodtager!$A41<>"ÅÅÅ",Lønmodtager!R41,"") ->  | G40: =IF(Lønmodtager!$A41<>"ÅÅÅ",Lønmodtager!AA41,"") ->  | H40: =IF(Lønmodtager!$A41<>"ÅÅÅ",Lønmodtager!AB41,"") ->  | I40: =IF(Lønmodtager!$A41<>"ÅÅÅ",Lønmodtager!AD41,"") ->  | J40: =IF(Lønmodtager!$A41<>"ÅÅÅ",Lønmodtager!AC41,"") ->  | K40: =IF(Lønmodtager!$A41<>"ÅÅÅ",Lønmodtager!AE41,"") ->  | L40: =IF(Lønmodtager!$A41<>"ÅÅÅ",Lønmodtager!AF41,"") ->  | M40: =IF(Lønmodtager!$A41<>"ÅÅÅ",Lønmodtager!AG41,"") ->  | N40: =IF(Lønmodtager!$A41<>"ÅÅÅ",Lønmodtager!AK41,"") ->  | O40: =IF(Lønmodtager!$A41<>"ÅÅÅ",Lønmodtager!AP41,"") ->  | P40: =IF(Lønmodtager!$A41<>"ÅÅÅ",Lønmodtager!AO41,"") ->  | Q40: =IF(Lønmodtager!$A41<>"ÅÅÅ",Lønmodtager!AQ41,"") ->  | R40: =IF(Lønmodtager!$A41<>"ÅÅÅ",Lønmodtager!AR41,"") -> 
A41: =IF(Lønmodtager!$A42<>"ÅÅÅ",Lønmodtager!A42,"") ->  | B41: =IF(Lønmodtager!$A42<>"ÅÅÅ",Lønmodtager!F42,"") ->  | C41: =IF(Lønmodtager!$A42<>"ÅÅÅ",Lønmodtager!G42,"") ->  | D41: =IF(Lønmodtager!$A42<>"ÅÅÅ",Lønmodtager!H42,"") ->  | E41: =IF(Lønmodtager!$A42<>"ÅÅÅ",Lønmodtager!Q42,"") ->  | F41: =IF(Lønmodtager!$A42<>"ÅÅÅ",Lønmodtager!R42,"") ->  | G41: =IF(Lønmodtager!$A42<>"ÅÅÅ",Lønmodtager!AA42,"") ->  | H41: =IF(Lønmodtager!$A42<>"ÅÅÅ",Lønmodtager!AB42,"") ->  | I41: =IF(Lønmodtager!$A42<>"ÅÅÅ",Lønmodtager!AD42,"") ->  | J41: =IF(Lønmodtager!$A42<>"ÅÅÅ",Lønmodtager!AC42,"") ->  | K41: =IF(Lønmodtager!$A42<>"ÅÅÅ",Lønmodtager!AE42,"") ->  | L41: =IF(Lønmodtager!$A42<>"ÅÅÅ",Lønmodtager!AF42,"") ->  | M41: =IF(Lønmodtager!$A42<>"ÅÅÅ",Lønmodtager!AG42,"") ->  | N41: =IF(Lønmodtager!$A42<>"ÅÅÅ",Lønmodtager!AK42,"") ->  | O41: =IF(Lønmodtager!$A42<>"ÅÅÅ",Lønmodtager!AP42,"") ->  | P41: =IF(Lønmodtager!$A42<>"ÅÅÅ",Lønmodtager!AO42,"") ->  | Q41: =IF(Lønmodtager!$A42<>"ÅÅÅ",Lønmodtager!AQ42,"") ->  | R41: =IF(Lønmodtager!$A42<>"ÅÅÅ",Lønmodtager!AR42,"") -> 
A42: =IF(Lønmodtager!$A43<>"ÅÅÅ",Lønmodtager!A43,"") ->  | B42: =IF(Lønmodtager!$A43<>"ÅÅÅ",Lønmodtager!F43,"") ->  | C42: =IF(Lønmodtager!$A43<>"ÅÅÅ",Lønmodtager!G43,"") ->  | D42: =IF(Lønmodtager!$A43<>"ÅÅÅ",Lønmodtager!H43,"") ->  | E42: =IF(Lønmodtager!$A43<>"ÅÅÅ",Lønmodtager!Q43,"") ->  | F42: =IF(Lønmodtager!$A43<>"ÅÅÅ",Lønmodtager!R43,"") ->  | G42: =IF(Lønmodtager!$A43<>"ÅÅÅ",Lønmodtager!AA43,"") ->  | H42: =IF(Lønmodtager!$A43<>"ÅÅÅ",Lønmodtager!AB43,"") ->  | I42: =IF(Lønmodtager!$A43<>"ÅÅÅ",Lønmodtager!AD43,"") ->  | J42: =IF(Lønmodtager!$A43<>"ÅÅÅ",Lønmodtager!AC43,"") ->  | K42: =IF(Lønmodtager!$A43<>"ÅÅÅ",Lønmodtager!AE43,"") ->  | L42: =IF(Lønmodtager!$A43<>"ÅÅÅ",Lønmodtager!AF43,"") ->  | M42: =IF(Lønmodtager!$A43<>"ÅÅÅ",Lønmodtager!AG43,"") ->  | N42: =IF(Lønmodtager!$A43<>"ÅÅÅ",Lønmodtager!AK43,"") ->  | O42: =IF(Lønmodtager!$A43<>"ÅÅÅ",Lønmodtager!AP43,"") ->  | P42: =IF(Lønmodtager!$A43<>"ÅÅÅ",Lønmodtager!AO43,"") ->  | Q42: =IF(Lønmodtager!$A43<>"ÅÅÅ",Lønmodtager!AQ43,"") ->  | R42: =IF(Lønmodtager!$A43<>"ÅÅÅ",Lønmodtager!AR43,"") -> 
A43: =IF(Lønmodtager!$A44<>"ÅÅÅ",Lønmodtager!A44,"") ->  | B43: =IF(Lønmodtager!$A44<>"ÅÅÅ",Lønmodtager!F44,"") ->  | C43: =IF(Lønmodtager!$A44<>"ÅÅÅ",Lønmodtager!G44,"") ->  | D43: =IF(Lønmodtager!$A44<>"ÅÅÅ",Lønmodtager!H44,"") ->  | E43: =IF(Lønmodtager!$A44<>"ÅÅÅ",Lønmodtager!Q44,"") ->  | F43: =IF(Lønmodtager!$A44<>"ÅÅÅ",Lønmodtager!R44,"") ->  | G43: =IF(Lønmodtager!$A44<>"ÅÅÅ",Lønmodtager!AA44,"") ->  | H43: =IF(Lønmodtager!$A44<>"ÅÅÅ",Lønmodtager!AB44,"") ->  | I43: =IF(Lønmodtager!$A44<>"ÅÅÅ",Lønmodtager!AD44,"") ->  | J43: =IF(Lønmodtager!$A44<>"ÅÅÅ",Lønmodtager!AC44,"") ->  | K43: =IF(Lønmodtager!$A44<>"ÅÅÅ",Lønmodtager!AE44,"") ->  | L43: =IF(Lønmodtager!$A44<>"ÅÅÅ",Lønmodtager!AF44,"") ->  | M43: =IF(Lønmodtager!$A44<>"ÅÅÅ",Lønmodtager!AG44,"") ->  | N43: =IF(Lønmodtager!$A44<>"ÅÅÅ",Lønmodtager!AK44,"") ->  | O43: =IF(Lønmodtager!$A44<>"ÅÅÅ",Lønmodtager!AP44,"") ->  | P43: =IF(Lønmodtager!$A44<>"ÅÅÅ",Lønmodtager!AO44,"") ->  | Q43: =IF(Lønmodtager!$A44<>"ÅÅÅ",Lønmodtager!AQ44,"") ->  | R43: =IF(Lønmodtager!$A44<>"ÅÅÅ",Lønmodtager!AR44,"") -> 
A44: =IF(Lønmodtager!$A45<>"ÅÅÅ",Lønmodtager!A45,"") ->  | B44: =IF(Lønmodtager!$A45<>"ÅÅÅ",Lønmodtager!F45,"") ->  | C44: =IF(Lønmodtager!$A45<>"ÅÅÅ",Lønmodtager!G45,"") ->  | D44: =IF(Lønmodtager!$A45<>"ÅÅÅ",Lønmodtager!H45,"") ->  | E44: =IF(Lønmodtager!$A45<>"ÅÅÅ",Lønmodtager!Q45,"") ->  | F44: =IF(Lønmodtager!$A45<>"ÅÅÅ",Lønmodtager!R45,"") ->  | G44: =IF(Lønmodtager!$A45<>"ÅÅÅ",Lønmodtager!AA45,"") ->  | H44: =IF(Lønmodtager!$A45<>"ÅÅÅ",Lønmodtager!AB45,"") ->  | I44: =IF(Lønmodtager!$A45<>"ÅÅÅ",Lønmodtager!AD45,"") ->  | J44: =IF(Lønmodtager!$A45<>"ÅÅÅ",Lønmodtager!AC45,"") ->  | K44: =IF(Lønmodtager!$A45<>"ÅÅÅ",Lønmodtager!AE45,"") ->  | L44: =IF(Lønmodtager!$A45<>"ÅÅÅ",Lønmodtager!AF45,"") ->  | M44: =IF(Lønmodtager!$A45<>"ÅÅÅ",Lønmodtager!AG45,"") ->  | N44: =IF(Lønmodtager!$A45<>"ÅÅÅ",Lønmodtager!AK45,"") ->  | O44: =IF(Lønmodtager!$A45<>"ÅÅÅ",Lønmodtager!AP45,"") ->  | P44: =IF(Lønmodtager!$A45<>"ÅÅÅ",Lønmodtager!AO45,"") ->  | Q44: =IF(Lønmodtager!$A45<>"ÅÅÅ",Lønmodtager!AQ45,"") ->  | R44: =IF(Lønmodtager!$A45<>"ÅÅÅ",Lønmodtager!AR45,"") -> 
A45: =IF(Lønmodtager!$A46<>"ÅÅÅ",Lønmodtager!A46,"") ->  | B45: =IF(Lønmodtager!$A46<>"ÅÅÅ",Lønmodtager!F46,"") ->  | C45: =IF(Lønmodtager!$A46<>"ÅÅÅ",Lønmodtager!G46,"") ->  | D45: =IF(Lønmodtager!$A46<>"ÅÅÅ",Lønmodtager!H46,"") ->  | E45: =IF(Lønmodtager!$A46<>"ÅÅÅ",Lønmodtager!Q46,"") ->  | F45: =IF(Lønmodtager!$A46<>"ÅÅÅ",Lønmodtager!R46,"") ->  | G45: =IF(Lønmodtager!$A46<>"ÅÅÅ",Lønmodtager!AA46,"") ->  | H45: =IF(Lønmodtager!$A46<>"ÅÅÅ",Lønmodtager!AB46,"") ->  | I45: =IF(Lønmodtager!$A46<>"ÅÅÅ",Lønmodtager!AD46,"") ->  | J45: =IF(Lønmodtager!$A46<>"ÅÅÅ",Lønmodtager!AC46,"") ->  | K45: =IF(Lønmodtager!$A46<>"ÅÅÅ",Lønmodtager!AE46,"") ->  | L45: =IF(Lønmodtager!$A46<>"ÅÅÅ",Lønmodtager!AF46,"") ->  | M45: =IF(Lønmodtager!$A46<>"ÅÅÅ",Lønmodtager!AG46,"") ->  | N45: =IF(Lønmodtager!$A46<>"ÅÅÅ",Lønmodtager!AK46,"") ->  | O45: =IF(Lønmodtager!$A46<>"ÅÅÅ",Lønmodtager!AP46,"") ->  | P45: =IF(Lønmodtager!$A46<>"ÅÅÅ",Lønmodtager!AO46,"") ->  | Q45: =IF(Lønmodtager!$A46<>"ÅÅÅ",Lønmodtager!AQ46,"") ->  | R45: =IF(Lønmodtager!$A46<>"ÅÅÅ",Lønmodtager!AR46,"") -> 
A46: =IF(Lønmodtager!$A47<>"ÅÅÅ",Lønmodtager!A47,"") ->  | B46: =IF(Lønmodtager!$A47<>"ÅÅÅ",Lønmodtager!F47,"") ->  | C46: =IF(Lønmodtager!$A47<>"ÅÅÅ",Lønmodtager!G47,"") ->  | D46: =IF(Lønmodtager!$A47<>"ÅÅÅ",Lønmodtager!H47,"") ->  | E46: =IF(Lønmodtager!$A47<>"ÅÅÅ",Lønmodtager!Q47,"") ->  | F46: =IF(Lønmodtager!$A47<>"ÅÅÅ",Lønmodtager!R47,"") ->  | G46: =IF(Lønmodtager!$A47<>"ÅÅÅ",Lønmodtager!AA47,"") ->  | H46: =IF(Lønmodtager!$A47<>"ÅÅÅ",Lønmodtager!AB47,"") ->  | I46: =IF(Lønmodtager!$A47<>"ÅÅÅ",Lønmodtager!AD47,"") ->  | J46: =IF(Lønmodtager!$A47<>"ÅÅÅ",Lønmodtager!AC47,"") ->  | K46: =IF(Lønmodtager!$A47<>"ÅÅÅ",Lønmodtager!AE47,"") ->  | L46: =IF(Lønmodtager!$A47<>"ÅÅÅ",Lønmodtager!AF47,"") ->  | M46: =IF(Lønmodtager!$A47<>"ÅÅÅ",Lønmodtager!AG47,"") ->  | N46: =IF(Lønmodtager!$A47<>"ÅÅÅ",Lønmodtager!AK47,"") ->  | O46: =IF(Lønmodtager!$A47<>"ÅÅÅ",Lønmodtager!AP47,"") ->  | P46: =IF(Lønmodtager!$A47<>"ÅÅÅ",Lønmodtager!AO47,"") ->  | Q46: =IF(Lønmodtager!$A47<>"ÅÅÅ",Lønmodtager!AQ47,"") ->  | R46: =IF(Lønmodtager!$A47<>"ÅÅÅ",Lønmodtager!AR47,"") -> 
A47: =IF(Lønmodtager!$A48<>"ÅÅÅ",Lønmodtager!A48,"") ->  | B47: =IF(Lønmodtager!$A48<>"ÅÅÅ",Lønmodtager!F48,"") ->  | C47: =IF(Lønmodtager!$A48<>"ÅÅÅ",Lønmodtager!G48,"") ->  | D47: =IF(Lønmodtager!$A48<>"ÅÅÅ",Lønmodtager!H48,"") ->  | E47: =IF(Lønmodtager!$A48<>"ÅÅÅ",Lønmodtager!Q48,"") ->  | F47: =IF(Lønmodtager!$A48<>"ÅÅÅ",Lønmodtager!R48,"") ->  | G47: =IF(Lønmodtager!$A48<>"ÅÅÅ",Lønmodtager!AA48,"") ->  | H47: =IF(Lønmodtager!$A48<>"ÅÅÅ",Lønmodtager!AB48,"") ->  | I47: =IF(Lønmodtager!$A48<>"ÅÅÅ",Lønmodtager!AD48,"") ->  | J47: =IF(Lønmodtager!$A48<>"ÅÅÅ",Lønmodtager!AC48,"") ->  | K47: =IF(Lønmodtager!$A48<>"ÅÅÅ",Lønmodtager!AE48,"") ->  | L47: =IF(Lønmodtager!$A48<>"ÅÅÅ",Lønmodtager!AF48,"") ->  | M47: =IF(Lønmodtager!$A48<>"ÅÅÅ",Lønmodtager!AG48,"") ->  | N47: =IF(Lønmodtager!$A48<>"ÅÅÅ",Lønmodtager!AK48,"") ->  | O47: =IF(Lønmodtager!$A48<>"ÅÅÅ",Lønmodtager!AP48,"") ->  | P47: =IF(Lønmodtager!$A48<>"ÅÅÅ",Lønmodtager!AO48,"") ->  | Q47: =IF(Lønmodtager!$A48<>"ÅÅÅ",Lønmodtager!AQ48,"") ->  | R47: =IF(Lønmodtager!$A48<>"ÅÅÅ",Lønmodtager!AR48,"") -> 
A48: =IF(Lønmodtager!$A49<>"ÅÅÅ",Lønmodtager!A49,"") ->  | B48: =IF(Lønmodtager!$A49<>"ÅÅÅ",Lønmodtager!F49,"") ->  | C48: =IF(Lønmodtager!$A49<>"ÅÅÅ",Lønmodtager!G49,"") ->  | D48: =IF(Lønmodtager!$A49<>"ÅÅÅ",Lønmodtager!H49,"") ->  | E48: =IF(Lønmodtager!$A49<>"ÅÅÅ",Lønmodtager!Q49,"") ->  | F48: =IF(Lønmodtager!$A49<>"ÅÅÅ",Lønmodtager!R49,"") ->  | G48: =IF(Lønmodtager!$A49<>"ÅÅÅ",Lønmodtager!AA49,"") ->  | H48: =IF(Lønmodtager!$A49<>"ÅÅÅ",Lønmodtager!AB49,"") ->  | I48: =IF(Lønmodtager!$A49<>"ÅÅÅ",Lønmodtager!AD49,"") ->  | J48: =IF(Lønmodtager!$A49<>"ÅÅÅ",Lønmodtager!AC49,"") ->  | K48: =IF(Lønmodtager!$A49<>"ÅÅÅ",Lønmodtager!AE49,"") ->  | L48: =IF(Lønmodtager!$A49<>"ÅÅÅ",Lønmodtager!AF49,"") ->  | M48: =IF(Lønmodtager!$A49<>"ÅÅÅ",Lønmodtager!AG49,"") ->  | N48: =IF(Lønmodtager!$A49<>"ÅÅÅ",Lønmodtager!AK49,"") ->  | O48: =IF(Lønmodtager!$A49<>"ÅÅÅ",Lønmodtager!AP49,"") ->  | P48: =IF(Lønmodtager!$A49<>"ÅÅÅ",Lønmodtager!AO49,"") ->  | Q48: =IF(Lønmodtager!$A49<>"ÅÅÅ",Lønmodtager!AQ49,"") ->  | R48: =IF(Lønmodtager!$A49<>"ÅÅÅ",Lønmodtager!AR49,"") -> 
A49: =IF(Lønmodtager!$A50<>"ÅÅÅ",Lønmodtager!A50,"") ->  | B49: =IF(Lønmodtager!$A50<>"ÅÅÅ",Lønmodtager!F50,"") ->  | C49: =IF(Lønmodtager!$A50<>"ÅÅÅ",Lønmodtager!G50,"") ->  | D49: =IF(Lønmodtager!$A50<>"ÅÅÅ",Lønmodtager!H50,"") ->  | E49: =IF(Lønmodtager!$A50<>"ÅÅÅ",Lønmodtager!Q50,"") ->  | F49: =IF(Lønmodtager!$A50<>"ÅÅÅ",Lønmodtager!R50,"") ->  | G49: =IF(Lønmodtager!$A50<>"ÅÅÅ",Lønmodtager!AA50,"") ->  | H49: =IF(Lønmodtager!$A50<>"ÅÅÅ",Lønmodtager!AB50,"") ->  | I49: =IF(Lønmodtager!$A50<>"ÅÅÅ",Lønmodtager!AD50,"") ->  | J49: =IF(Lønmodtager!$A50<>"ÅÅÅ",Lønmodtager!AC50,"") ->  | K49: =IF(Lønmodtager!$A50<>"ÅÅÅ",Lønmodtager!AE50,"") ->  | L49: =IF(Lønmodtager!$A50<>"ÅÅÅ",Lønmodtager!AF50,"") ->  | M49: =IF(Lønmodtager!$A50<>"ÅÅÅ",Lønmodtager!AG50,"") ->  | N49: =IF(Lønmodtager!$A50<>"ÅÅÅ",Lønmodtager!AK50,"") ->  | O49: =IF(Lønmodtager!$A50<>"ÅÅÅ",Lønmodtager!AP50,"") ->  | P49: =IF(Lønmodtager!$A50<>"ÅÅÅ",Lønmodtager!AO50,"") ->  | Q49: =IF(Lønmodtager!$A50<>"ÅÅÅ",Lønmodtager!AQ50,"") ->  | R49: =IF(Lønmodtager!$A50<>"ÅÅÅ",Lønmodtager!AR50,"") -> 
A50: =IF(Lønmodtager!$A51<>"ÅÅÅ",Lønmodtager!A51,"") ->  | B50: =IF(Lønmodtager!$A51<>"ÅÅÅ",Lønmodtager!F51,"") ->  | C50: =IF(Lønmodtager!$A51<>"ÅÅÅ",Lønmodtager!G51,"") ->  | D50: =IF(Lønmodtager!$A51<>"ÅÅÅ",Lønmodtager!H51,"") ->  | E50: =IF(Lønmodtager!$A51<>"ÅÅÅ",Lønmodtager!Q51,"") ->  | F50: =IF(Lønmodtager!$A51<>"ÅÅÅ",Lønmodtager!R51,"") ->  | G50: =IF(Lønmodtager!$A51<>"ÅÅÅ",Lønmodtager!AA51,"") ->  | H50: =IF(Lønmodtager!$A51<>"ÅÅÅ",Lønmodtager!AB51,"") ->  | I50: =IF(Lønmodtager!$A51<>"ÅÅÅ",Lønmodtager!AD51,"") ->  | J50: =IF(Lønmodtager!$A51<>"ÅÅÅ",Lønmodtager!AC51,"") ->  | K50: =IF(Lønmodtager!$A51<>"ÅÅÅ",Lønmodtager!AE51,"") ->  | L50: =IF(Lønmodtager!$A51<>"ÅÅÅ",Lønmodtager!AF51,"") ->  | M50: =IF(Lønmodtager!$A51<>"ÅÅÅ",Lønmodtager!AG51,"") ->  | N50: =IF(Lønmodtager!$A51<>"ÅÅÅ",Lønmodtager!AK51,"") ->  | O50: =IF(Lønmodtager!$A51<>"ÅÅÅ",Lønmodtager!AP51,"") ->  | P50: =IF(Lønmodtager!$A51<>"ÅÅÅ",Lønmodtager!AO51,"") ->  | Q50: =IF(Lønmodtager!$A51<>"ÅÅÅ",Lønmodtager!AQ51,"") ->  | R50: =IF(Lønmodtager!$A51<>"ÅÅÅ",Lønmodtager!AR51,"") -> 
A51: =IF(Lønmodtager!$A52<>"ÅÅÅ",Lønmodtager!A52,"") ->  | B51: =IF(Lønmodtager!$A52<>"ÅÅÅ",Lønmodtager!F52,"") ->  | C51: =IF(Lønmodtager!$A52<>"ÅÅÅ",Lønmodtager!G52,"") ->  | D51: =IF(Lønmodtager!$A52<>"ÅÅÅ",Lønmodtager!H52,"") ->  | E51: =IF(Lønmodtager!$A52<>"ÅÅÅ",Lønmodtager!Q52,"") ->  | F51: =IF(Lønmodtager!$A52<>"ÅÅÅ",Lønmodtager!R52,"") ->  | G51: =IF(Lønmodtager!$A52<>"ÅÅÅ",Lønmodtager!AA52,"") ->  | H51: =IF(Lønmodtager!$A52<>"ÅÅÅ",Lønmodtager!AB52,"") ->  | I51: =IF(Lønmodtager!$A52<>"ÅÅÅ",Lønmodtager!AD52,"") ->  | J51: =IF(Lønmodtager!$A52<>"ÅÅÅ",Lønmodtager!AC52,"") ->  | K51: =IF(Lønmodtager!$A52<>"ÅÅÅ",Lønmodtager!AE52,"") ->  | L51: =IF(Lønmodtager!$A52<>"ÅÅÅ",Lønmodtager!AF52,"") ->  | M51: =IF(Lønmodtager!$A52<>"ÅÅÅ",Lønmodtager!AG52,"") ->  | N51: =IF(Lønmodtager!$A52<>"ÅÅÅ",Lønmodtager!AK52,"") ->  | O51: =IF(Lønmodtager!$A52<>"ÅÅÅ",Lønmodtager!AP52,"") ->  | P51: =IF(Lønmodtager!$A52<>"ÅÅÅ",Lønmodtager!AO52,"") ->  | Q51: =IF(Lønmodtager!$A52<>"ÅÅÅ",Lønmodtager!AQ52,"") ->  | R51: =IF(Lønmodtager!$A52<>"ÅÅÅ",Lønmodtager!AR52,"") -> 
A52: =IF(Lønmodtager!$A53<>"ÅÅÅ",Lønmodtager!A53,"") ->  | B52: =IF(Lønmodtager!$A53<>"ÅÅÅ",Lønmodtager!F53,"") ->  | C52: =IF(Lønmodtager!$A53<>"ÅÅÅ",Lønmodtager!G53,"") ->  | D52: =IF(Lønmodtager!$A53<>"ÅÅÅ",Lønmodtager!H53,"") ->  | E52: =IF(Lønmodtager!$A53<>"ÅÅÅ",Lønmodtager!Q53,"") ->  | F52: =IF(Lønmodtager!$A53<>"ÅÅÅ",Lønmodtager!R53,"") ->  | G52: =IF(Lønmodtager!$A53<>"ÅÅÅ",Lønmodtager!AA53,"") ->  | H52: =IF(Lønmodtager!$A53<>"ÅÅÅ",Lønmodtager!AB53,"") ->  | I52: =IF(Lønmodtager!$A53<>"ÅÅÅ",Lønmodtager!AD53,"") ->  | J52: =IF(Lønmodtager!$A53<>"ÅÅÅ",Lønmodtager!AC53,"") ->  | K52: =IF(Lønmodtager!$A53<>"ÅÅÅ",Lønmodtager!AE53,"") ->  | L52: =IF(Lønmodtager!$A53<>"ÅÅÅ",Lønmodtager!AF53,"") ->  | M52: =IF(Lønmodtager!$A53<>"ÅÅÅ",Lønmodtager!AG53,"") ->  | N52: =IF(Lønmodtager!$A53<>"ÅÅÅ",Lønmodtager!AK53,"") ->  | O52: =IF(Lønmodtager!$A53<>"ÅÅÅ",Lønmodtager!AP53,"") ->  | P52: =IF(Lønmodtager!$A53<>"ÅÅÅ",Lønmodtager!AL53,"") ->  | Q52: =IF(Lønmodtager!$A53<>"ÅÅÅ",Lønmodtager!AQ53,"") ->  | R52: =IF(Lønmodtager!$A53<>"ÅÅÅ",Lønmodtager!AR53,"") -> 
A53: =IF(Lønmodtager!$A54<>"ÅÅÅ",Lønmodtager!A54,"") ->  | B53: =IF(Lønmodtager!$A54<>"ÅÅÅ",Lønmodtager!F54,"") ->  | C53: =IF(Lønmodtager!$A54<>"ÅÅÅ",Lønmodtager!G54,"") ->  | D53: =IF(Lønmodtager!$A54<>"ÅÅÅ",Lønmodtager!H54,"") ->  | E53: =IF(Lønmodtager!$A54<>"ÅÅÅ",Lønmodtager!Q54,"") ->  | F53: =IF(Lønmodtager!$A54<>"ÅÅÅ",Lønmodtager!R54,"") ->  | G53: =IF(Lønmodtager!$A54<>"ÅÅÅ",Lønmodtager!AA54,"") ->  | H53: =IF(Lønmodtager!$A54<>"ÅÅÅ",Lønmodtager!AB54,"") ->  | I53: =IF(Lønmodtager!$A54<>"ÅÅÅ",Lønmodtager!AD54,"") ->  | J53: =IF(Lønmodtager!$A54<>"ÅÅÅ",Lønmodtager!AC54,"") ->  | K53: =IF(Lønmodtager!$A54<>"ÅÅÅ",Lønmodtager!AE54,"") ->  | L53: =IF(Lønmodtager!$A54<>"ÅÅÅ",Lønmodtager!AF54,"") ->  | M53: =IF(Lønmodtager!$A54<>"ÅÅÅ",Lønmodtager!AG54,"") ->  | N53: =IF(Lønmodtager!$A54<>"ÅÅÅ",Lønmodtager!AK54,"") ->  | O53: =IF(Lønmodtager!$A54<>"ÅÅÅ",Lønmodtager!AP54,"") ->  | P53: =IF(Lønmodtager!$A54<>"ÅÅÅ",Lønmodtager!AL54,"") ->  | Q53: =IF(Lønmodtager!$A54<>"ÅÅÅ",Lønmodtager!AQ54,"") ->  | R53: =IF(Lønmodtager!$A54<>"ÅÅÅ",Lønmodtager!AR54,"") -> 
A54: =IF(Lønmodtager!$A55<>"ÅÅÅ",Lønmodtager!A55,"") ->  | B54: =IF(Lønmodtager!$A55<>"ÅÅÅ",Lønmodtager!F55,"") ->  | C54: =IF(Lønmodtager!$A55<>"ÅÅÅ",Lønmodtager!G55,"") ->  | D54: =IF(Lønmodtager!$A55<>"ÅÅÅ",Lønmodtager!H55,"") ->  | E54: =IF(Lønmodtager!$A55<>"ÅÅÅ",Lønmodtager!Q55,"") ->  | F54: =IF(Lønmodtager!$A55<>"ÅÅÅ",Lønmodtager!R55,"") ->  | G54: =IF(Lønmodtager!$A55<>"ÅÅÅ",Lønmodtager!AA55,"") ->  | H54: =IF(Lønmodtager!$A55<>"ÅÅÅ",Lønmodtager!AB55,"") ->  | I54: =IF(Lønmodtager!$A55<>"ÅÅÅ",Lønmodtager!AD55,"") ->  | J54: =IF(Lønmodtager!$A55<>"ÅÅÅ",Lønmodtager!AC55,"") ->  | K54: =IF(Lønmodtager!$A55<>"ÅÅÅ",Lønmodtager!AE55,"") ->  | L54: =IF(Lønmodtager!$A55<>"ÅÅÅ",Lønmodtager!AF55,"") ->  | M54: =IF(Lønmodtager!$A55<>"ÅÅÅ",Lønmodtager!AG55,"") ->  | N54: =IF(Lønmodtager!$A55<>"ÅÅÅ",Lønmodtager!AK55,"") ->  | O54: =IF(Lønmodtager!$A55<>"ÅÅÅ",Lønmodtager!AP55,"") ->  | P54: =IF(Lønmodtager!$A55<>"ÅÅÅ",Lønmodtager!AL55,"") ->  | Q54: =IF(Lønmodtager!$A55<>"ÅÅÅ",Lønmodtager!AQ55,"") ->  | R54: =IF(Lønmodtager!$A55<>"ÅÅÅ",Lønmodtager!AR55,"") -> 
A55: =IF(Lønmodtager!$A56<>"ÅÅÅ",Lønmodtager!A56,"") ->  | B55: =IF(Lønmodtager!$A56<>"ÅÅÅ",Lønmodtager!F56,"") ->  | C55: =IF(Lønmodtager!$A56<>"ÅÅÅ",Lønmodtager!G56,"") ->  | D55: =IF(Lønmodtager!$A56<>"ÅÅÅ",Lønmodtager!H56,"") ->  | E55: =IF(Lønmodtager!$A56<>"ÅÅÅ",Lønmodtager!Q56,"") ->  | F55: =IF(Lønmodtager!$A56<>"ÅÅÅ",Lønmodtager!R56,"") ->  | G55: =IF(Lønmodtager!$A56<>"ÅÅÅ",Lønmodtager!AA56,"") ->  | H55: =IF(Lønmodtager!$A56<>"ÅÅÅ",Lønmodtager!AB56,"") ->  | I55: =IF(Lønmodtager!$A56<>"ÅÅÅ",Lønmodtager!AD56,"") ->  | J55: =IF(Lønmodtager!$A56<>"ÅÅÅ",Lønmodtager!AC56,"") ->  | K55: =IF(Lønmodtager!$A56<>"ÅÅÅ",Lønmodtager!AE56,"") ->  | L55: =IF(Lønmodtager!$A56<>"ÅÅÅ",Lønmodtager!AF56,"") ->  | M55: =IF(Lønmodtager!$A56<>"ÅÅÅ",Lønmodtager!AG56,"") ->  | N55: =IF(Lønmodtager!$A56<>"ÅÅÅ",Lønmodtager!AK56,"") ->  | O55: =IF(Lønmodtager!$A56<>"ÅÅÅ",Lønmodtager!AP56,"") ->  | P55: =IF(Lønmodtager!$A56<>"ÅÅÅ",Lønmodtager!AL56,"") ->  | Q55: =IF(Lønmodtager!$A56<>"ÅÅÅ",Lønmodtager!AQ56,"") ->  | R55: =IF(Lønmodtager!$A56<>"ÅÅÅ",Lønmodtager!AR56,"") -> 
A56: =IF(Lønmodtager!$A57<>"ÅÅÅ",Lønmodtager!A57,"") ->  | B56: =IF(Lønmodtager!$A57<>"ÅÅÅ",Lønmodtager!F57,"") ->  | C56: =IF(Lønmodtager!$A57<>"ÅÅÅ",Lønmodtager!G57,"") ->  | D56: =IF(Lønmodtager!$A57<>"ÅÅÅ",Lønmodtager!H57,"") ->  | E56: =IF(Lønmodtager!$A57<>"ÅÅÅ",Lønmodtager!Q57,"") ->  | F56: =IF(Lønmodtager!$A57<>"ÅÅÅ",Lønmodtager!R57,"") ->  | G56: =IF(Lønmodtager!$A57<>"ÅÅÅ",Lønmodtager!AA57,"") ->  | H56: =IF(Lønmodtager!$A57<>"ÅÅÅ",Lønmodtager!AB57,"") ->  | I56: =IF(Lønmodtager!$A57<>"ÅÅÅ",Lønmodtager!AD57,"") ->  | J56: =IF(Lønmodtager!$A57<>"ÅÅÅ",Lønmodtager!AC57,"") ->  | K56: =IF(Lønmodtager!$A57<>"ÅÅÅ",Lønmodtager!AE57,"") ->  | L56: =IF(Lønmodtager!$A57<>"ÅÅÅ",Lønmodtager!AF57,"") ->  | M56: =IF(Lønmodtager!$A57<>"ÅÅÅ",Lønmodtager!AG57,"") ->  | N56: =IF(Lønmodtager!$A57<>"ÅÅÅ",Lønmodtager!AK57,"") ->  | O56: =IF(Lønmodtager!$A57<>"ÅÅÅ",Lønmodtager!AP57,"") ->  | P56: =IF(Lønmodtager!$A57<>"ÅÅÅ",Lønmodtager!AL57,"") ->  | Q56: =IF(Lønmodtager!$A57<>"ÅÅÅ",Lønmodtager!AQ57,"") ->  | R56: =IF(Lønmodtager!$A57<>"ÅÅÅ",Lønmodtager!AR57,"") -> 
A57: =IF(Lønmodtager!$A58<>"ÅÅÅ",Lønmodtager!A58,"") ->  | B57: =IF(Lønmodtager!$A58<>"ÅÅÅ",Lønmodtager!F58,"") ->  | C57: =IF(Lønmodtager!$A58<>"ÅÅÅ",Lønmodtager!G58,"") ->  | D57: =IF(Lønmodtager!$A58<>"ÅÅÅ",Lønmodtager!H58,"") ->  | E57: =IF(Lønmodtager!$A58<>"ÅÅÅ",Lønmodtager!Q58,"") ->  | F57: =IF(Lønmodtager!$A58<>"ÅÅÅ",Lønmodtager!R58,"") ->  | G57: =IF(Lønmodtager!$A58<>"ÅÅÅ",Lønmodtager!AA58,"") ->  | H57: =IF(Lønmodtager!$A58<>"ÅÅÅ",Lønmodtager!AB58,"") ->  | I57: =IF(Lønmodtager!$A58<>"ÅÅÅ",Lønmodtager!AD58,"") ->  | J57: =IF(Lønmodtager!$A58<>"ÅÅÅ",Lønmodtager!AC58,"") ->  | K57: =IF(Lønmodtager!$A58<>"ÅÅÅ",Lønmodtager!AE58,"") ->  | L57: =IF(Lønmodtager!$A58<>"ÅÅÅ",Lønmodtager!AF58,"") ->  | M57: =IF(Lønmodtager!$A58<>"ÅÅÅ",Lønmodtager!AG58,"") ->  | N57: =IF(Lønmodtager!$A58<>"ÅÅÅ",Lønmodtager!AK58,"") ->  | O57: =IF(Lønmodtager!$A58<>"ÅÅÅ",Lønmodtager!AP58,"") ->  | P57: =IF(Lønmodtager!$A58<>"ÅÅÅ",Lønmodtager!AL58,"") ->  | Q57: =IF(Lønmodtager!$A58<>"ÅÅÅ",Lønmodtager!AQ58,"") ->  | R57: =IF(Lønmodtager!$A58<>"ÅÅÅ",Lønmodtager!AR58,"") -> 
A58: =IF(Lønmodtager!$A59<>"ÅÅÅ",Lønmodtager!A59,"") ->  | B58: =IF(Lønmodtager!$A59<>"ÅÅÅ",Lønmodtager!F59,"") ->  | C58: =IF(Lønmodtager!$A59<>"ÅÅÅ",Lønmodtager!G59,"") ->  | D58: =IF(Lønmodtager!$A59<>"ÅÅÅ",Lønmodtager!H59,"") ->  | E58: =IF(Lønmodtager!$A59<>"ÅÅÅ",Lønmodtager!Q59,"") ->  | F58: =IF(Lønmodtager!$A59<>"ÅÅÅ",Lønmodtager!R59,"") ->  | G58: =IF(Lønmodtager!$A59<>"ÅÅÅ",Lønmodtager!AA59,"") ->  | H58: =IF(Lønmodtager!$A59<>"ÅÅÅ",Lønmodtager!AB59,"") ->  | I58: =IF(Lønmodtager!$A59<>"ÅÅÅ",Lønmodtager!AD59,"") ->  | J58: =IF(Lønmodtager!$A59<>"ÅÅÅ",Lønmodtager!AC59,"") ->  | K58: =IF(Lønmodtager!$A59<>"ÅÅÅ",Lønmodtager!AE59,"") ->  | L58: =IF(Lønmodtager!$A59<>"ÅÅÅ",Lønmodtager!AF59,"") ->  | M58: =IF(Lønmodtager!$A59<>"ÅÅÅ",Lønmodtager!AG59,"") ->  | N58: =IF(Lønmodtager!$A59<>"ÅÅÅ",Lønmodtager!AK59,"") ->  | O58: =IF(Lønmodtager!$A59<>"ÅÅÅ",Lønmodtager!AP59,"") ->  | P58: =IF(Lønmodtager!$A59<>"ÅÅÅ",Lønmodtager!AL59,"") ->  | Q58: =IF(Lønmodtager!$A59<>"ÅÅÅ",Lønmodtager!AQ59,"") ->  | R58: =IF(Lønmodtager!$A59<>"ÅÅÅ",Lønmodtager!AR59,"") -> 
A59: =IF(Lønmodtager!$A60<>"ÅÅÅ",Lønmodtager!A60,"") ->  | B59: =IF(Lønmodtager!$A60<>"ÅÅÅ",Lønmodtager!F60,"") ->  | C59: =IF(Lønmodtager!$A60<>"ÅÅÅ",Lønmodtager!G60,"") ->  | D59: =IF(Lønmodtager!$A60<>"ÅÅÅ",Lønmodtager!H60,"") ->  | E59: =IF(Lønmodtager!$A60<>"ÅÅÅ",Lønmodtager!Q60,"") ->  | F59: =IF(Lønmodtager!$A60<>"ÅÅÅ",Lønmodtager!R60,"") ->  | G59: =IF(Lønmodtager!$A60<>"ÅÅÅ",Lønmodtager!AA60,"") ->  | H59: =IF(Lønmodtager!$A60<>"ÅÅÅ",Lønmodtager!AB60,"") ->  | I59: =IF(Lønmodtager!$A60<>"ÅÅÅ",Lønmodtager!AD60,"") ->  | J59: =IF(Lønmodtager!$A60<>"ÅÅÅ",Lønmodtager!AC60,"") ->  | K59: =IF(Lønmodtager!$A60<>"ÅÅÅ",Lønmodtager!AE60,"") ->  | L59: =IF(Lønmodtager!$A60<>"ÅÅÅ",Lønmodtager!AF60,"") ->  | M59: =IF(Lønmodtager!$A60<>"ÅÅÅ",Lønmodtager!AG60,"") ->  | N59: =IF(Lønmodtager!$A60<>"ÅÅÅ",Lønmodtager!AK60,"") ->  | O59: =IF(Lønmodtager!$A60<>"ÅÅÅ",Lønmodtager!AP60,"") ->  | P59: =IF(Lønmodtager!$A60<>"ÅÅÅ",Lønmodtager!AL60,"") ->  | Q59: =IF(Lønmodtager!$A60<>"ÅÅÅ",Lønmodtager!AQ60,"") ->  | R59: =IF(Lønmodtager!$A60<>"ÅÅÅ",Lønmodtager!AR60,"") -> 
A60: =IF(Lønmodtager!$A61<>"ÅÅÅ",Lønmodtager!A61,"") ->  | B60: =IF(Lønmodtager!$A61<>"ÅÅÅ",Lønmodtager!F61,"") ->  | C60: =IF(Lønmodtager!$A61<>"ÅÅÅ",Lønmodtager!G61,"") ->  | D60: =IF(Lønmodtager!$A61<>"ÅÅÅ",Lønmodtager!H61,"") ->  | E60: =IF(Lønmodtager!$A61<>"ÅÅÅ",Lønmodtager!Q61,"") ->  | F60: =IF(Lønmodtager!$A61<>"ÅÅÅ",Lønmodtager!R61,"") ->  | G60: =IF(Lønmodtager!$A61<>"ÅÅÅ",Lønmodtager!AA61,"") ->  | H60: =IF(Lønmodtager!$A61<>"ÅÅÅ",Lønmodtager!AB61,"") ->  | I60: =IF(Lønmodtager!$A61<>"ÅÅÅ",Lønmodtager!AD61,"") ->  | J60: =IF(Lønmodtager!$A61<>"ÅÅÅ",Lønmodtager!AC61,"") ->  | K60: =IF(Lønmodtager!$A61<>"ÅÅÅ",Lønmodtager!AE61,"") ->  | L60: =IF(Lønmodtager!$A61<>"ÅÅÅ",Lønmodtager!AF61,"") ->  | M60: =IF(Lønmodtager!$A61<>"ÅÅÅ",Lønmodtager!AG61,"") ->  | N60: =IF(Lønmodtager!$A61<>"ÅÅÅ",Lønmodtager!AK61,"") ->  | O60: =IF(Lønmodtager!$A61<>"ÅÅÅ",Lønmodtager!AP61,"") ->  | P60: =IF(Lønmodtager!$A61<>"ÅÅÅ",Lønmodtager!AL61,"") ->  | Q60: =IF(Lønmodtager!$A61<>"ÅÅÅ",Lønmodtager!AQ61,"") ->  | R60: =IF(Lønmodtager!$A61<>"ÅÅÅ",Lønmodtager!AR61,"") -> 
A61: =IF(Lønmodtager!$A62<>"ÅÅÅ",Lønmodtager!A62,"") ->  | B61: =IF(Lønmodtager!$A62<>"ÅÅÅ",Lønmodtager!F62,"") ->  | C61: =IF(Lønmodtager!$A62<>"ÅÅÅ",Lønmodtager!G62,"") ->  | D61: =IF(Lønmodtager!$A62<>"ÅÅÅ",Lønmodtager!H62,"") ->  | E61: =IF(Lønmodtager!$A62<>"ÅÅÅ",Lønmodtager!Q62,"") ->  | F61: =IF(Lønmodtager!$A62<>"ÅÅÅ",Lønmodtager!R62,"") ->  | G61: =IF(Lønmodtager!$A62<>"ÅÅÅ",Lønmodtager!AA62,"") ->  | H61: =IF(Lønmodtager!$A62<>"ÅÅÅ",Lønmodtager!AB62,"") ->  | I61: =IF(Lønmodtager!$A62<>"ÅÅÅ",Lønmodtager!AD62,"") ->  | J61: =IF(Lønmodtager!$A62<>"ÅÅÅ",Lønmodtager!AC62,"") ->  | K61: =IF(Lønmodtager!$A62<>"ÅÅÅ",Lønmodtager!AE62,"") ->  | L61: =IF(Lønmodtager!$A62<>"ÅÅÅ",Lønmodtager!AF62,"") ->  | M61: =IF(Lønmodtager!$A62<>"ÅÅÅ",Lønmodtager!AG62,"") ->  | N61: =IF(Lønmodtager!$A62<>"ÅÅÅ",Lønmodtager!AK62,"") ->  | O61: =IF(Lønmodtager!$A62<>"ÅÅÅ",Lønmodtager!AP62,"") ->  | P61: =IF(Lønmodtager!$A62<>"ÅÅÅ",Lønmodtager!AL62,"") ->  | Q61: =IF(Lønmodtager!$A62<>"ÅÅÅ",Lønmodtager!AQ62,"") ->  | R61: =IF(Lønmodtager!$A62<>"ÅÅÅ",Lønmodtager!AR62,"") -> 
A62: =IF(Lønmodtager!$A63<>"ÅÅÅ",Lønmodtager!A63,"") ->  | B62: =IF(Lønmodtager!$A63<>"ÅÅÅ",Lønmodtager!F63,"") ->  | C62: =IF(Lønmodtager!$A63<>"ÅÅÅ",Lønmodtager!G63,"") ->  | D62: =IF(Lønmodtager!$A63<>"ÅÅÅ",Lønmodtager!H63,"") ->  | E62: =IF(Lønmodtager!$A63<>"ÅÅÅ",Lønmodtager!Q63,"") ->  | F62: =IF(Lønmodtager!$A63<>"ÅÅÅ",Lønmodtager!R63,"") ->  | G62: =IF(Lønmodtager!$A63<>"ÅÅÅ",Lønmodtager!AA63,"") ->  | H62: =IF(Lønmodtager!$A63<>"ÅÅÅ",Lønmodtager!AB63,"") ->  | I62: =IF(Lønmodtager!$A63<>"ÅÅÅ",Lønmodtager!AD63,"") ->  | J62: =IF(Lønmodtager!$A63<>"ÅÅÅ",Lønmodtager!AC63,"") ->  | K62: =IF(Lønmodtager!$A63<>"ÅÅÅ",Lønmodtager!AE63,"") ->  | L62: =IF(Lønmodtager!$A63<>"ÅÅÅ",Lønmodtager!AF63,"") ->  | M62: =IF(Lønmodtager!$A63<>"ÅÅÅ",Lønmodtager!AG63,"") ->  | N62: =IF(Lønmodtager!$A63<>"ÅÅÅ",Lønmodtager!AK63,"") ->  | O62: =IF(Lønmodtager!$A63<>"ÅÅÅ",Lønmodtager!AP63,"") ->  | P62: =IF(Lønmodtager!$A63<>"ÅÅÅ",Lønmodtager!AL63,"") ->  | Q62: =IF(Lønmodtager!$A63<>"ÅÅÅ",Lønmodtager!AQ63,"") ->  | R62: =IF(Lønmodtager!$A63<>"ÅÅÅ",Lønmodtager!AR63,"") -> 
A63: =IF(Lønmodtager!$A64<>"ÅÅÅ",Lønmodtager!A64,"") ->  | B63: =IF(Lønmodtager!$A64<>"ÅÅÅ",Lønmodtager!F64,"") ->  | C63: =IF(Lønmodtager!$A64<>"ÅÅÅ",Lønmodtager!G64,"") ->  | D63: =IF(Lønmodtager!$A64<>"ÅÅÅ",Lønmodtager!H64,"") ->  | E63: =IF(Lønmodtager!$A64<>"ÅÅÅ",Lønmodtager!Q64,"") ->  | F63: =IF(Lønmodtager!$A64<>"ÅÅÅ",Lønmodtager!R64,"") ->  | G63: =IF(Lønmodtager!$A64<>"ÅÅÅ",Lønmodtager!AA64,"") ->  | H63: =IF(Lønmodtager!$A64<>"ÅÅÅ",Lønmodtager!AB64,"") ->  | I63: =IF(Lønmodtager!$A64<>"ÅÅÅ",Lønmodtager!AD64,"") ->  | J63: =IF(Lønmodtager!$A64<>"ÅÅÅ",Lønmodtager!AC64,"") ->  | K63: =IF(Lønmodtager!$A64<>"ÅÅÅ",Lønmodtager!AE64,"") ->  | L63: =IF(Lønmodtager!$A64<>"ÅÅÅ",Lønmodtager!AF64,"") ->  | M63: =IF(Lønmodtager!$A64<>"ÅÅÅ",Lønmodtager!AG64,"") ->  | N63: =IF(Lønmodtager!$A64<>"ÅÅÅ",Lønmodtager!AK64,"") ->  | O63: =IF(Lønmodtager!$A64<>"ÅÅÅ",Lønmodtager!AP64,"") ->  | P63: =IF(Lønmodtager!$A64<>"ÅÅÅ",Lønmodtager!AL64,"") ->  | Q63: =IF(Lønmodtager!$A64<>"ÅÅÅ",Lønmodtager!AQ64,"") ->  | R63: =IF(Lønmodtager!$A64<>"ÅÅÅ",Lønmodtager!AR64,"") -> 
A64: =IF(Lønmodtager!$A65<>"ÅÅÅ",Lønmodtager!A65,"") ->  | B64: =IF(Lønmodtager!$A65<>"ÅÅÅ",Lønmodtager!F65,"") ->  | C64: =IF(Lønmodtager!$A65<>"ÅÅÅ",Lønmodtager!G65,"") ->  | D64: =IF(Lønmodtager!$A65<>"ÅÅÅ",Lønmodtager!H65,"") ->  | E64: =IF(Lønmodtager!$A65<>"ÅÅÅ",Lønmodtager!Q65,"") ->  | F64: =IF(Lønmodtager!$A65<>"ÅÅÅ",Lønmodtager!R65,"") ->  | G64: =IF(Lønmodtager!$A65<>"ÅÅÅ",Lønmodtager!AA65,"") ->  | H64: =IF(Lønmodtager!$A65<>"ÅÅÅ",Lønmodtager!AB65,"") ->  | I64: =IF(Lønmodtager!$A65<>"ÅÅÅ",Lønmodtager!AD65,"") ->  | J64: =IF(Lønmodtager!$A65<>"ÅÅÅ",Lønmodtager!AC65,"") ->  | K64: =IF(Lønmodtager!$A65<>"ÅÅÅ",Lønmodtager!AE65,"") ->  | L64: =IF(Lønmodtager!$A65<>"ÅÅÅ",Lønmodtager!AF65,"") ->  | M64: =IF(Lønmodtager!$A65<>"ÅÅÅ",Lønmodtager!AG65,"") ->  | N64: =IF(Lønmodtager!$A65<>"ÅÅÅ",Lønmodtager!AK65,"") ->  | O64: =IF(Lønmodtager!$A65<>"ÅÅÅ",Lønmodtager!AP65,"") ->  | P64: =IF(Lønmodtager!$A65<>"ÅÅÅ",Lønmodtager!AL65,"") ->  | Q64: =IF(Lønmodtager!$A65<>"ÅÅÅ",Lønmodtager!AQ65,"") ->  | R64: =IF(Lønmodtager!$A65<>"ÅÅÅ",Lønmodtager!AR65,"") -> 
A65: =IF(Lønmodtager!$A66<>"ÅÅÅ",Lønmodtager!A66,"") ->  | B65: =IF(Lønmodtager!$A66<>"ÅÅÅ",Lønmodtager!F66,"") ->  | C65: =IF(Lønmodtager!$A66<>"ÅÅÅ",Lønmodtager!G66,"") ->  | D65: =IF(Lønmodtager!$A66<>"ÅÅÅ",Lønmodtager!H66,"") ->  | E65: =IF(Lønmodtager!$A66<>"ÅÅÅ",Lønmodtager!Q66,"") ->  | F65: =IF(Lønmodtager!$A66<>"ÅÅÅ",Lønmodtager!R66,"") ->  | G65: =IF(Lønmodtager!$A66<>"ÅÅÅ",Lønmodtager!AA66,"") ->  | H65: =IF(Lønmodtager!$A66<>"ÅÅÅ",Lønmodtager!AB66,"") ->  | I65: =IF(Lønmodtager!$A66<>"ÅÅÅ",Lønmodtager!AD66,"") ->  | J65: =IF(Lønmodtager!$A66<>"ÅÅÅ",Lønmodtager!AC66,"") ->  | K65: =IF(Lønmodtager!$A66<>"ÅÅÅ",Lønmodtager!AE66,"") ->  | L65: =IF(Lønmodtager!$A66<>"ÅÅÅ",Lønmodtager!AF66,"") ->  | M65: =IF(Lønmodtager!$A66<>"ÅÅÅ",Lønmodtager!AG66,"") ->  | N65: =IF(Lønmodtager!$A66<>"ÅÅÅ",Lønmodtager!AK66,"") ->  | O65: =IF(Lønmodtager!$A66<>"ÅÅÅ",Lønmodtager!AP66,"") ->  | P65: =IF(Lønmodtager!$A66<>"ÅÅÅ",Lønmodtager!AL66,"") ->  | Q65: =IF(Lønmodtager!$A66<>"ÅÅÅ",Lønmodtager!AQ66,"") ->  | R65: =IF(Lønmodtager!$A66<>"ÅÅÅ",Lønmodtager!AR66,"") -> 
A66: =IF(Lønmodtager!$A67<>"ÅÅÅ",Lønmodtager!A67,"") ->  | B66: =IF(Lønmodtager!$A67<>"ÅÅÅ",Lønmodtager!F67,"") ->  | C66: =IF(Lønmodtager!$A67<>"ÅÅÅ",Lønmodtager!G67,"") ->  | D66: =IF(Lønmodtager!$A67<>"ÅÅÅ",Lønmodtager!H67,"") ->  | E66: =IF(Lønmodtager!$A67<>"ÅÅÅ",Lønmodtager!Q67,"") ->  | F66: =IF(Lønmodtager!$A67<>"ÅÅÅ",Lønmodtager!R67,"") ->  | G66: =IF(Lønmodtager!$A67<>"ÅÅÅ",Lønmodtager!AA67,"") ->  | H66: =IF(Lønmodtager!$A67<>"ÅÅÅ",Lønmodtager!AB67,"") ->  | I66: =IF(Lønmodtager!$A67<>"ÅÅÅ",Lønmodtager!AD67,"") ->  | J66: =IF(Lønmodtager!$A67<>"ÅÅÅ",Lønmodtager!AC67,"") ->  | K66: =IF(Lønmodtager!$A67<>"ÅÅÅ",Lønmodtager!AE67,"") ->  | L66: =IF(Lønmodtager!$A67<>"ÅÅÅ",Lønmodtager!AF67,"") ->  | M66: =IF(Lønmodtager!$A67<>"ÅÅÅ",Lønmodtager!AG67,"") ->  | N66: =IF(Lønmodtager!$A67<>"ÅÅÅ",Lønmodtager!AK67,"") ->  | O66: =IF(Lønmodtager!$A67<>"ÅÅÅ",Lønmodtager!AP67,"") ->  | P66: =IF(Lønmodtager!$A67<>"ÅÅÅ",Lønmodtager!AL67,"") ->  | Q66: =IF(Lønmodtager!$A67<>"ÅÅÅ",Lønmodtager!AQ67,"") ->  | R66: =IF(Lønmodtager!$A67<>"ÅÅÅ",Lønmodtager!AR67,"") -> 
A67: =IF(Lønmodtager!$A68<>"ÅÅÅ",Lønmodtager!A68,"") ->  | B67: =IF(Lønmodtager!$A68<>"ÅÅÅ",Lønmodtager!F68,"") ->  | C67: =IF(Lønmodtager!$A68<>"ÅÅÅ",Lønmodtager!G68,"") ->  | D67: =IF(Lønmodtager!$A68<>"ÅÅÅ",Lønmodtager!H68,"") ->  | E67: =IF(Lønmodtager!$A68<>"ÅÅÅ",Lønmodtager!Q68,"") ->  | F67: =IF(Lønmodtager!$A68<>"ÅÅÅ",Lønmodtager!R68,"") ->  | G67: =IF(Lønmodtager!$A68<>"ÅÅÅ",Lønmodtager!AA68,"") ->  | H67: =IF(Lønmodtager!$A68<>"ÅÅÅ",Lønmodtager!AB68,"") ->  | I67: =IF(Lønmodtager!$A68<>"ÅÅÅ",Lønmodtager!AD68,"") ->  | J67: =IF(Lønmodtager!$A68<>"ÅÅÅ",Lønmodtager!AC68,"") ->  | K67: =IF(Lønmodtager!$A68<>"ÅÅÅ",Lønmodtager!AE68,"") ->  | L67: =IF(Lønmodtager!$A68<>"ÅÅÅ",Lønmodtager!AF68,"") ->  | M67: =IF(Lønmodtager!$A68<>"ÅÅÅ",Lønmodtager!AG68,"") ->  | N67: =IF(Lønmodtager!$A68<>"ÅÅÅ",Lønmodtager!AK68,"") ->  | O67: =IF(Lønmodtager!$A68<>"ÅÅÅ",Lønmodtager!AP68,"") ->  | P67: =IF(Lønmodtager!$A68<>"ÅÅÅ",Lønmodtager!AL68,"") ->  | Q67: =IF(Lønmodtager!$A68<>"ÅÅÅ",Lønmodtager!AQ68,"") ->  | R67: =IF(Lønmodtager!$A68<>"ÅÅÅ",Lønmodtager!AR68,"") -> 
A68: =IF(Lønmodtager!$A69<>"ÅÅÅ",Lønmodtager!A69,"") ->  | B68: =IF(Lønmodtager!$A69<>"ÅÅÅ",Lønmodtager!F69,"") ->  | C68: =IF(Lønmodtager!$A69<>"ÅÅÅ",Lønmodtager!G69,"") ->  | D68: =IF(Lønmodtager!$A69<>"ÅÅÅ",Lønmodtager!H69,"") ->  | E68: =IF(Lønmodtager!$A69<>"ÅÅÅ",Lønmodtager!Q69,"") ->  | F68: =IF(Lønmodtager!$A69<>"ÅÅÅ",Lønmodtager!R69,"") ->  | G68: =IF(Lønmodtager!$A69<>"ÅÅÅ",Lønmodtager!AA69,"") ->  | H68: =IF(Lønmodtager!$A69<>"ÅÅÅ",Lønmodtager!AB69,"") ->  | I68: =IF(Lønmodtager!$A69<>"ÅÅÅ",Lønmodtager!AD69,"") ->  | J68: =IF(Lønmodtager!$A69<>"ÅÅÅ",Lønmodtager!AC69,"") ->  | K68: =IF(Lønmodtager!$A69<>"ÅÅÅ",Lønmodtager!AE69,"") ->  | L68: =IF(Lønmodtager!$A69<>"ÅÅÅ",Lønmodtager!AF69,"") ->  | M68: =IF(Lønmodtager!$A69<>"ÅÅÅ",Lønmodtager!AG69,"") ->  | N68: =IF(Lønmodtager!$A69<>"ÅÅÅ",Lønmodtager!AK69,"") ->  | O68: =IF(Lønmodtager!$A69<>"ÅÅÅ",Lønmodtager!AP69,"") ->  | P68: =IF(Lønmodtager!$A69<>"ÅÅÅ",Lønmodtager!AL69,"") ->  | Q68: =IF(Lønmodtager!$A69<>"ÅÅÅ",Lønmodtager!AQ69,"") ->  | R68: =IF(Lønmodtager!$A69<>"ÅÅÅ",Lønmodtager!AR69,"") -> 
A69: =IF(Lønmodtager!$A70<>"ÅÅÅ",Lønmodtager!A70,"") ->  | B69: =IF(Lønmodtager!$A70<>"ÅÅÅ",Lønmodtager!F70,"") ->  | C69: =IF(Lønmodtager!$A70<>"ÅÅÅ",Lønmodtager!G70,"") ->  | D69: =IF(Lønmodtager!$A70<>"ÅÅÅ",Lønmodtager!H70,"") ->  | E69: =IF(Lønmodtager!$A70<>"ÅÅÅ",Lønmodtager!Q70,"") ->  | F69: =IF(Lønmodtager!$A70<>"ÅÅÅ",Lønmodtager!R70,"") ->  | G69: =IF(Lønmodtager!$A70<>"ÅÅÅ",Lønmodtager!AA70,"") ->  | H69: =IF(Lønmodtager!$A70<>"ÅÅÅ",Lønmodtager!AB70,"") ->  | I69: =IF(Lønmodtager!$A70<>"ÅÅÅ",Lønmodtager!AD70,"") ->  | J69: =IF(Lønmodtager!$A70<>"ÅÅÅ",Lønmodtager!AC70,"") ->  | K69: =IF(Lønmodtager!$A70<>"ÅÅÅ",Lønmodtager!AE70,"") ->  | L69: =IF(Lønmodtager!$A70<>"ÅÅÅ",Lønmodtager!AF70,"") ->  | M69: =IF(Lønmodtager!$A70<>"ÅÅÅ",Lønmodtager!AG70,"") ->  | N69: =IF(Lønmodtager!$A70<>"ÅÅÅ",Lønmodtager!AK70,"") ->  | O69: =IF(Lønmodtager!$A70<>"ÅÅÅ",Lønmodtager!AP70,"") ->  | P69: =IF(Lønmodtager!$A70<>"ÅÅÅ",Lønmodtager!AL70,"") ->  | Q69: =IF(Lønmodtager!$A70<>"ÅÅÅ",Lønmodtager!AQ70,"") ->  | R69: =IF(Lønmodtager!$A70<>"ÅÅÅ",Lønmodtager!AR70,"") -> 
A70: =IF(Lønmodtager!$A71<>"ÅÅÅ",Lønmodtager!A71,"") ->  | B70: =IF(Lønmodtager!$A71<>"ÅÅÅ",Lønmodtager!F71,"") ->  | C70: =IF(Lønmodtager!$A71<>"ÅÅÅ",Lønmodtager!G71,"") ->  | D70: =IF(Lønmodtager!$A71<>"ÅÅÅ",Lønmodtager!H71,"") ->  | E70: =IF(Lønmodtager!$A71<>"ÅÅÅ",Lønmodtager!Q71,"") ->  | F70: =IF(Lønmodtager!$A71<>"ÅÅÅ",Lønmodtager!R71,"") ->  | G70: =IF(Lønmodtager!$A71<>"ÅÅÅ",Lønmodtager!AA71,"") ->  | H70: =IF(Lønmodtager!$A71<>"ÅÅÅ",Lønmodtager!AB71,"") ->  | I70: =IF(Lønmodtager!$A71<>"ÅÅÅ",Lønmodtager!AD71,"") ->  | J70: =IF(Lønmodtager!$A71<>"ÅÅÅ",Lønmodtager!AC71,"") ->  | K70: =IF(Lønmodtager!$A71<>"ÅÅÅ",Lønmodtager!AE71,"") ->  | L70: =IF(Lønmodtager!$A71<>"ÅÅÅ",Lønmodtager!AF71,"") ->  | M70: =IF(Lønmodtager!$A71<>"ÅÅÅ",Lønmodtager!AG71,"") ->  | N70: =IF(Lønmodtager!$A71<>"ÅÅÅ",Lønmodtager!AK71,"") ->  | O70: =IF(Lønmodtager!$A71<>"ÅÅÅ",Lønmodtager!AP71,"") ->  | P70: =IF(Lønmodtager!$A71<>"ÅÅÅ",Lønmodtager!AL71,"") ->  | Q70: =IF(Lønmodtager!$A71<>"ÅÅÅ",Lønmodtager!AQ71,"") ->  | R70: =IF(Lønmodtager!$A71<>"ÅÅÅ",Lønmodtager!AR71,"") -> 
A71: =IF(Lønmodtager!$A72<>"ÅÅÅ",Lønmodtager!A72,"") ->  | B71: =IF(Lønmodtager!$A72<>"ÅÅÅ",Lønmodtager!F72,"") ->  | C71: =IF(Lønmodtager!$A72<>"ÅÅÅ",Lønmodtager!G72,"") ->  | D71: =IF(Lønmodtager!$A72<>"ÅÅÅ",Lønmodtager!H72,"") ->  | E71: =IF(Lønmodtager!$A72<>"ÅÅÅ",Lønmodtager!Q72,"") ->  | F71: =IF(Lønmodtager!$A72<>"ÅÅÅ",Lønmodtager!R72,"") ->  | G71: =IF(Lønmodtager!$A72<>"ÅÅÅ",Lønmodtager!AA72,"") ->  | H71: =IF(Lønmodtager!$A72<>"ÅÅÅ",Lønmodtager!AB72,"") ->  | I71: =IF(Lønmodtager!$A72<>"ÅÅÅ",Lønmodtager!AD72,"") ->  | J71: =IF(Lønmodtager!$A72<>"ÅÅÅ",Lønmodtager!AC72,"") ->  | K71: =IF(Lønmodtager!$A72<>"ÅÅÅ",Lønmodtager!AE72,"") ->  | L71: =IF(Lønmodtager!$A72<>"ÅÅÅ",Lønmodtager!AF72,"") ->  | M71: =IF(Lønmodtager!$A72<>"ÅÅÅ",Lønmodtager!AG72,"") ->  | N71: =IF(Lønmodtager!$A72<>"ÅÅÅ",Lønmodtager!AK72,"") ->  | O71: =IF(Lønmodtager!$A72<>"ÅÅÅ",Lønmodtager!AP72,"") ->  | P71: =IF(Lønmodtager!$A72<>"ÅÅÅ",Lønmodtager!AL72,"") ->  | Q71: =IF(Lønmodtager!$A72<>"ÅÅÅ",Lønmodtager!AQ72,"") ->  | R71: =IF(Lønmodtager!$A72<>"ÅÅÅ",Lønmodtager!AR72,"") -> 
A72: =IF(Lønmodtager!$A73<>"ÅÅÅ",Lønmodtager!A73,"") ->  | B72: =IF(Lønmodtager!$A73<>"ÅÅÅ",Lønmodtager!F73,"") ->  | C72: =IF(Lønmodtager!$A73<>"ÅÅÅ",Lønmodtager!G73,"") ->  | D72: =IF(Lønmodtager!$A73<>"ÅÅÅ",Lønmodtager!H73,"") ->  | E72: =IF(Lønmodtager!$A73<>"ÅÅÅ",Lønmodtager!Q73,"") ->  | F72: =IF(Lønmodtager!$A73<>"ÅÅÅ",Lønmodtager!R73,"") ->  | G72: =IF(Lønmodtager!$A73<>"ÅÅÅ",Lønmodtager!AA73,"") ->  | H72: =IF(Lønmodtager!$A73<>"ÅÅÅ",Lønmodtager!AB73,"") ->  | I72: =IF(Lønmodtager!$A73<>"ÅÅÅ",Lønmodtager!AD73,"") ->  | J72: =IF(Lønmodtager!$A73<>"ÅÅÅ",Lønmodtager!AC73,"") ->  | K72: =IF(Lønmodtager!$A73<>"ÅÅÅ",Lønmodtager!AE73,"") ->  | L72: =IF(Lønmodtager!$A73<>"ÅÅÅ",Lønmodtager!AF73,"") ->  | M72: =IF(Lønmodtager!$A73<>"ÅÅÅ",Lønmodtager!AG73,"") ->  | N72: =IF(Lønmodtager!$A73<>"ÅÅÅ",Lønmodtager!AK73,"") ->  | O72: =IF(Lønmodtager!$A73<>"ÅÅÅ",Lønmodtager!AP73,"") ->  | P72: =IF(Lønmodtager!$A73<>"ÅÅÅ",Lønmodtager!AL73,"") ->  | Q72: =IF(Lønmodtager!$A73<>"ÅÅÅ",Lønmodtager!AQ73,"") ->  | R72: =IF(Lønmodtager!$A73<>"ÅÅÅ",Lønmodtager!AR73,"") -> 
A73: =IF(Lønmodtager!$A74<>"ÅÅÅ",Lønmodtager!A74,"") ->  | B73: =IF(Lønmodtager!$A74<>"ÅÅÅ",Lønmodtager!F74,"") ->  | C73: =IF(Lønmodtager!$A74<>"ÅÅÅ",Lønmodtager!G74,"") ->  | D73: =IF(Lønmodtager!$A74<>"ÅÅÅ",Lønmodtager!H74,"") ->  | E73: =IF(Lønmodtager!$A74<>"ÅÅÅ",Lønmodtager!Q74,"") ->  | F73: =IF(Lønmodtager!$A74<>"ÅÅÅ",Lønmodtager!R74,"") ->  | G73: =IF(Lønmodtager!$A74<>"ÅÅÅ",Lønmodtager!AA74,"") ->  | H73: =IF(Lønmodtager!$A74<>"ÅÅÅ",Lønmodtager!AB74,"") ->  | I73: =IF(Lønmodtager!$A74<>"ÅÅÅ",Lønmodtager!AD74,"") ->  | J73: =IF(Lønmodtager!$A74<>"ÅÅÅ",Lønmodtager!AC74,"") ->  | K73: =IF(Lønmodtager!$A74<>"ÅÅÅ",Lønmodtager!AE74,"") ->  | L73: =IF(Lønmodtager!$A74<>"ÅÅÅ",Lønmodtager!AF74,"") ->  | M73: =IF(Lønmodtager!$A74<>"ÅÅÅ",Lønmodtager!AG74,"") ->  | N73: =IF(Lønmodtager!$A74<>"ÅÅÅ",Lønmodtager!AK74,"") ->  | O73: =IF(Lønmodtager!$A74<>"ÅÅÅ",Lønmodtager!AP74,"") ->  | P73: =IF(Lønmodtager!$A74<>"ÅÅÅ",Lønmodtager!AL74,"") ->  | Q73: =IF(Lønmodtager!$A74<>"ÅÅÅ",Lønmodtager!AQ74,"") ->  | R73: =IF(Lønmodtager!$A74<>"ÅÅÅ",Lønmodtager!AR74,"") -> 
A74: =IF(Lønmodtager!$A75<>"ÅÅÅ",Lønmodtager!A75,"") ->  | B74: =IF(Lønmodtager!$A75<>"ÅÅÅ",Lønmodtager!F75,"") ->  | C74: =IF(Lønmodtager!$A75<>"ÅÅÅ",Lønmodtager!G75,"") ->  | D74: =IF(Lønmodtager!$A75<>"ÅÅÅ",Lønmodtager!H75,"") ->  | E74: =IF(Lønmodtager!$A75<>"ÅÅÅ",Lønmodtager!Q75,"") ->  | F74: =IF(Lønmodtager!$A75<>"ÅÅÅ",Lønmodtager!R75,"") ->  | G74: =IF(Lønmodtager!$A75<>"ÅÅÅ",Lønmodtager!AA75,"") ->  | H74: =IF(Lønmodtager!$A75<>"ÅÅÅ",Lønmodtager!AB75,"") ->  | I74: =IF(Lønmodtager!$A75<>"ÅÅÅ",Lønmodtager!AD75,"") ->  | J74: =IF(Lønmodtager!$A75<>"ÅÅÅ",Lønmodtager!AC75,"") ->  | K74: =IF(Lønmodtager!$A75<>"ÅÅÅ",Lønmodtager!AE75,"") ->  | L74: =IF(Lønmodtager!$A75<>"ÅÅÅ",Lønmodtager!AF75,"") ->  | M74: =IF(Lønmodtager!$A75<>"ÅÅÅ",Lønmodtager!AG75,"") ->  | N74: =IF(Lønmodtager!$A75<>"ÅÅÅ",Lønmodtager!AK75,"") ->  | O74: =IF(Lønmodtager!$A75<>"ÅÅÅ",Lønmodtager!AP75,"") ->  | P74: =IF(Lønmodtager!$A75<>"ÅÅÅ",Lønmodtager!AL75,"") ->  | Q74: =IF(Lønmodtager!$A75<>"ÅÅÅ",Lønmodtager!AQ75,"") ->  | R74: =IF(Lønmodtager!$A75<>"ÅÅÅ",Lønmodtager!AR75,"") -> 
A75: =IF(Lønmodtager!$A76<>"ÅÅÅ",Lønmodtager!A76,"") ->  | B75: =IF(Lønmodtager!$A76<>"ÅÅÅ",Lønmodtager!F76,"") ->  | C75: =IF(Lønmodtager!$A76<>"ÅÅÅ",Lønmodtager!G76,"") ->  | D75: =IF(Lønmodtager!$A76<>"ÅÅÅ",Lønmodtager!H76,"") ->  | E75: =IF(Lønmodtager!$A76<>"ÅÅÅ",Lønmodtager!Q76,"") ->  | F75: =IF(Lønmodtager!$A76<>"ÅÅÅ",Lønmodtager!R76,"") ->  | G75: =IF(Lønmodtager!$A76<>"ÅÅÅ",Lønmodtager!AA76,"") ->  | H75: =IF(Lønmodtager!$A76<>"ÅÅÅ",Lønmodtager!AB76,"") ->  | I75: =IF(Lønmodtager!$A76<>"ÅÅÅ",Lønmodtager!AD76,"") ->  | J75: =IF(Lønmodtager!$A76<>"ÅÅÅ",Lønmodtager!AC76,"") ->  | K75: =IF(Lønmodtager!$A76<>"ÅÅÅ",Lønmodtager!AE76,"") ->  | L75: =IF(Lønmodtager!$A76<>"ÅÅÅ",Lønmodtager!AF76,"") ->  | M75: =IF(Lønmodtager!$A76<>"ÅÅÅ",Lønmodtager!AG76,"") ->  | N75: =IF(Lønmodtager!$A76<>"ÅÅÅ",Lønmodtager!AK76,"") ->  | O75: =IF(Lønmodtager!$A76<>"ÅÅÅ",Lønmodtager!AP76,"") ->  | P75: =IF(Lønmodtager!$A76<>"ÅÅÅ",Lønmodtager!AL76,"") ->  | Q75: =IF(Lønmodtager!$A76<>"ÅÅÅ",Lønmodtager!AQ76,"") ->  | R75: =IF(Lønmodtager!$A76<>"ÅÅÅ",Lønmodtager!AR76,"") -> 
A76: =IF(Lønmodtager!$A77<>"ÅÅÅ",Lønmodtager!A77,"") ->  | B76: =IF(Lønmodtager!$A77<>"ÅÅÅ",Lønmodtager!F77,"") ->  | C76: =IF(Lønmodtager!$A77<>"ÅÅÅ",Lønmodtager!G77,"") ->  | D76: =IF(Lønmodtager!$A77<>"ÅÅÅ",Lønmodtager!H77,"") ->  | E76: =IF(Lønmodtager!$A77<>"ÅÅÅ",Lønmodtager!Q77,"") ->  | F76: =IF(Lønmodtager!$A77<>"ÅÅÅ",Lønmodtager!R77,"") ->  | G76: =IF(Lønmodtager!$A77<>"ÅÅÅ",Lønmodtager!AA77,"") ->  | H76: =IF(Lønmodtager!$A77<>"ÅÅÅ",Lønmodtager!AB77,"") ->  | I76: =IF(Lønmodtager!$A77<>"ÅÅÅ",Lønmodtager!AD77,"") ->  | J76: =IF(Lønmodtager!$A77<>"ÅÅÅ",Lønmodtager!AC77,"") ->  | K76: =IF(Lønmodtager!$A77<>"ÅÅÅ",Lønmodtager!AE77,"") ->  | L76: =IF(Lønmodtager!$A77<>"ÅÅÅ",Lønmodtager!AF77,"") ->  | M76: =IF(Lønmodtager!$A77<>"ÅÅÅ",Lønmodtager!AG77,"") ->  | N76: =IF(Lønmodtager!$A77<>"ÅÅÅ",Lønmodtager!AK77,"") ->  | O76: =IF(Lønmodtager!$A77<>"ÅÅÅ",Lønmodtager!AP77,"") ->  | P76: =IF(Lønmodtager!$A77<>"ÅÅÅ",Lønmodtager!AL77,"") ->  | Q76: =IF(Lønmodtager!$A77<>"ÅÅÅ",Lønmodtager!AQ77,"") ->  | R76: =IF(Lønmodtager!$A77<>"ÅÅÅ",Lønmodtager!AR77,"") -> 
A77: =IF(Lønmodtager!$A78<>"ÅÅÅ",Lønmodtager!A78,"") ->  | B77: =IF(Lønmodtager!$A78<>"ÅÅÅ",Lønmodtager!F78,"") ->  | C77: =IF(Lønmodtager!$A78<>"ÅÅÅ",Lønmodtager!G78,"") ->  | D77: =IF(Lønmodtager!$A78<>"ÅÅÅ",Lønmodtager!H78,"") ->  | E77: =IF(Lønmodtager!$A78<>"ÅÅÅ",Lønmodtager!Q78,"") ->  | F77: =IF(Lønmodtager!$A78<>"ÅÅÅ",Lønmodtager!R78,"") ->  | G77: =IF(Lønmodtager!$A78<>"ÅÅÅ",Lønmodtager!AA78,"") ->  | H77: =IF(Lønmodtager!$A78<>"ÅÅÅ",Lønmodtager!AB78,"") ->  | I77: =IF(Lønmodtager!$A78<>"ÅÅÅ",Lønmodtager!AD78,"") ->  | J77: =IF(Lønmodtager!$A78<>"ÅÅÅ",Lønmodtager!AC78,"") ->  | K77: =IF(Lønmodtager!$A78<>"ÅÅÅ",Lønmodtager!AE78,"") ->  | L77: =IF(Lønmodtager!$A78<>"ÅÅÅ",Lønmodtager!AF78,"") ->  | M77: =IF(Lønmodtager!$A78<>"ÅÅÅ",Lønmodtager!AG78,"") ->  | N77: =IF(Lønmodtager!$A78<>"ÅÅÅ",Lønmodtager!AK78,"") ->  | O77: =IF(Lønmodtager!$A78<>"ÅÅÅ",Lønmodtager!AP78,"") ->  | P77: =IF(Lønmodtager!$A78<>"ÅÅÅ",Lønmodtager!AL78,"") ->  | Q77: =IF(Lønmodtager!$A78<>"ÅÅÅ",Lønmodtager!AQ78,"") ->  | R77: =IF(Lønmodtager!$A78<>"ÅÅÅ",Lønmodtager!AR78,"") -> 
A78: =IF(Lønmodtager!$A79<>"ÅÅÅ",Lønmodtager!A79,"") ->  | B78: =IF(Lønmodtager!$A79<>"ÅÅÅ",Lønmodtager!F79,"") ->  | C78: =IF(Lønmodtager!$A79<>"ÅÅÅ",Lønmodtager!G79,"") ->  | D78: =IF(Lønmodtager!$A79<>"ÅÅÅ",Lønmodtager!H79,"") ->  | E78: =IF(Lønmodtager!$A79<>"ÅÅÅ",Lønmodtager!Q79,"") ->  | F78: =IF(Lønmodtager!$A79<>"ÅÅÅ",Lønmodtager!R79,"") ->  | G78: =IF(Lønmodtager!$A79<>"ÅÅÅ",Lønmodtager!AA79,"") ->  | H78: =IF(Lønmodtager!$A79<>"ÅÅÅ",Lønmodtager!AB79,"") ->  | I78: =IF(Lønmodtager!$A79<>"ÅÅÅ",Lønmodtager!AD79,"") ->  | J78: =IF(Lønmodtager!$A79<>"ÅÅÅ",Lønmodtager!AC79,"") ->  | K78: =IF(Lønmodtager!$A79<>"ÅÅÅ",Lønmodtager!AE79,"") ->  | L78: =IF(Lønmodtager!$A79<>"ÅÅÅ",Lønmodtager!AF79,"") ->  | M78: =IF(Lønmodtager!$A79<>"ÅÅÅ",Lønmodtager!AG79,"") ->  | N78: =IF(Lønmodtager!$A79<>"ÅÅÅ",Lønmodtager!AK79,"") ->  | O78: =IF(Lønmodtager!$A79<>"ÅÅÅ",Lønmodtager!AP79,"") ->  | P78: =IF(Lønmodtager!$A79<>"ÅÅÅ",Lønmodtager!AL79,"") ->  | Q78: =IF(Lønmodtager!$A79<>"ÅÅÅ",Lønmodtager!AQ79,"") ->  | R78: =IF(Lønmodtager!$A79<>"ÅÅÅ",Lønmodtager!AR79,"") -> 
A79: =IF(Lønmodtager!$A80<>"ÅÅÅ",Lønmodtager!A80,"") ->  | B79: =IF(Lønmodtager!$A80<>"ÅÅÅ",Lønmodtager!F80,"") ->  | C79: =IF(Lønmodtager!$A80<>"ÅÅÅ",Lønmodtager!G80,"") ->  | D79: =IF(Lønmodtager!$A80<>"ÅÅÅ",Lønmodtager!H80,"") ->  | E79: =IF(Lønmodtager!$A80<>"ÅÅÅ",Lønmodtager!Q80,"") ->  | F79: =IF(Lønmodtager!$A80<>"ÅÅÅ",Lønmodtager!R80,"") ->  | G79: =IF(Lønmodtager!$A80<>"ÅÅÅ",Lønmodtager!AA80,"") ->  | H79: =IF(Lønmodtager!$A80<>"ÅÅÅ",Lønmodtager!AB80,"") ->  | I79: =IF(Lønmodtager!$A80<>"ÅÅÅ",Lønmodtager!AD80,"") ->  | J79: =IF(Lønmodtager!$A80<>"ÅÅÅ",Lønmodtager!AC80,"") ->  | K79: =IF(Lønmodtager!$A80<>"ÅÅÅ",Lønmodtager!AE80,"") ->  | L79: =IF(Lønmodtager!$A80<>"ÅÅÅ",Lønmodtager!AF80,"") ->  | M79: =IF(Lønmodtager!$A80<>"ÅÅÅ",Lønmodtager!AG80,"") ->  | N79: =IF(Lønmodtager!$A80<>"ÅÅÅ",Lønmodtager!AK80,"") ->  | O79: =IF(Lønmodtager!$A80<>"ÅÅÅ",Lønmodtager!AP80,"") ->  | P79: =IF(Lønmodtager!$A80<>"ÅÅÅ",Lønmodtager!AL80,"") ->  | Q79: =IF(Lønmodtager!$A80<>"ÅÅÅ",Lønmodtager!AQ80,"") ->  | R79: =IF(Lønmodtager!$A80<>"ÅÅÅ",Lønmodtager!AR80,"") -> 
A80: =IF(Lønmodtager!$A81<>"ÅÅÅ",Lønmodtager!A81,"") ->  | B80: =IF(Lønmodtager!$A81<>"ÅÅÅ",Lønmodtager!F81,"") ->  | C80: =IF(Lønmodtager!$A81<>"ÅÅÅ",Lønmodtager!G81,"") ->  | D80: =IF(Lønmodtager!$A81<>"ÅÅÅ",Lønmodtager!H81,"") ->  | E80: =IF(Lønmodtager!$A81<>"ÅÅÅ",Lønmodtager!Q81,"") ->  | F80: =IF(Lønmodtager!$A81<>"ÅÅÅ",Lønmodtager!R81,"") ->  | G80: =IF(Lønmodtager!$A81<>"ÅÅÅ",Lønmodtager!AA81,"") ->  | H80: =IF(Lønmodtager!$A81<>"ÅÅÅ",Lønmodtager!AB81,"") ->  | I80: =IF(Lønmodtager!$A81<>"ÅÅÅ",Lønmodtager!AD81,"") ->  | J80: =IF(Lønmodtager!$A81<>"ÅÅÅ",Lønmodtager!AC81,"") ->  | K80: =IF(Lønmodtager!$A81<>"ÅÅÅ",Lønmodtager!AE81,"") ->  | L80: =IF(Lønmodtager!$A81<>"ÅÅÅ",Lønmodtager!AF81,"") ->  | M80: =IF(Lønmodtager!$A81<>"ÅÅÅ",Lønmodtager!AG81,"") ->  | N80: =IF(Lønmodtager!$A81<>"ÅÅÅ",Lønmodtager!AK81,"") ->  | O80: =IF(Lønmodtager!$A81<>"ÅÅÅ",Lønmodtager!AP81,"") ->  | P80: =IF(Lønmodtager!$A81<>"ÅÅÅ",Lønmodtager!AL81,"") ->  | Q80: =IF(Lønmodtager!$A81<>"ÅÅÅ",Lønmodtager!AQ81,"") ->  | R80: =IF(Lønmodtager!$A81<>"ÅÅÅ",Lønmodtager!AR81,"") -> 
A81: =IF(Lønmodtager!$A82<>"ÅÅÅ",Lønmodtager!A82,"") ->  | B81: =IF(Lønmodtager!$A82<>"ÅÅÅ",Lønmodtager!F82,"") ->  | C81: =IF(Lønmodtager!$A82<>"ÅÅÅ",Lønmodtager!G82,"") ->  | D81: =IF(Lønmodtager!$A82<>"ÅÅÅ",Lønmodtager!H82,"") ->  | E81: =IF(Lønmodtager!$A82<>"ÅÅÅ",Lønmodtager!Q82,"") ->  | F81: =IF(Lønmodtager!$A82<>"ÅÅÅ",Lønmodtager!R82,"") ->  | G81: =IF(Lønmodtager!$A82<>"ÅÅÅ",Lønmodtager!AA82,"") ->  | H81: =IF(Lønmodtager!$A82<>"ÅÅÅ",Lønmodtager!AB82,"") ->  | I81: =IF(Lønmodtager!$A82<>"ÅÅÅ",Lønmodtager!AD82,"") ->  | J81: =IF(Lønmodtager!$A82<>"ÅÅÅ",Lønmodtager!AC82,"") ->  | K81: =IF(Lønmodtager!$A82<>"ÅÅÅ",Lønmodtager!AE82,"") ->  | L81: =IF(Lønmodtager!$A82<>"ÅÅÅ",Lønmodtager!AF82,"") ->  | M81: =IF(Lønmodtager!$A82<>"ÅÅÅ",Lønmodtager!AG82,"") ->  | N81: =IF(Lønmodtager!$A82<>"ÅÅÅ",Lønmodtager!AK82,"") ->  | O81: =IF(Lønmodtager!$A82<>"ÅÅÅ",Lønmodtager!AP82,"") ->  | P81: =IF(Lønmodtager!$A82<>"ÅÅÅ",Lønmodtager!AL82,"") ->  | Q81: =IF(Lønmodtager!$A82<>"ÅÅÅ",Lønmodtager!AQ82,"") ->  | R81: =IF(Lønmodtager!$A82<>"ÅÅÅ",Lønmodtager!AR82,"") -> 
A82: =IF(Lønmodtager!$A83<>"ÅÅÅ",Lønmodtager!A83,"") ->  | B82: =IF(Lønmodtager!$A83<>"ÅÅÅ",Lønmodtager!F83,"") ->  | C82: =IF(Lønmodtager!$A83<>"ÅÅÅ",Lønmodtager!G83,"") ->  | D82: =IF(Lønmodtager!$A83<>"ÅÅÅ",Lønmodtager!H83,"") ->  | E82: =IF(Lønmodtager!$A83<>"ÅÅÅ",Lønmodtager!Q83,"") ->  | F82: =IF(Lønmodtager!$A83<>"ÅÅÅ",Lønmodtager!R83,"") ->  | G82: =IF(Lønmodtager!$A83<>"ÅÅÅ",Lønmodtager!AA83,"") ->  | H82: =IF(Lønmodtager!$A83<>"ÅÅÅ",Lønmodtager!AB83,"") ->  | I82: =IF(Lønmodtager!$A83<>"ÅÅÅ",Lønmodtager!AD83,"") ->  | J82: =IF(Lønmodtager!$A83<>"ÅÅÅ",Lønmodtager!AC83,"") ->  | K82: =IF(Lønmodtager!$A83<>"ÅÅÅ",Lønmodtager!AE83,"") ->  | L82: =IF(Lønmodtager!$A83<>"ÅÅÅ",Lønmodtager!AF83,"") ->  | M82: =IF(Lønmodtager!$A83<>"ÅÅÅ",Lønmodtager!AG83,"") ->  | N82: =IF(Lønmodtager!$A83<>"ÅÅÅ",Lønmodtager!AK83,"") ->  | O82: =IF(Lønmodtager!$A83<>"ÅÅÅ",Lønmodtager!AP83,"") ->  | P82: =IF(Lønmodtager!$A83<>"ÅÅÅ",Lønmodtager!AL83,"") ->  | Q82: =IF(Lønmodtager!$A83<>"ÅÅÅ",Lønmodtager!AQ83,"") ->  | R82: =IF(Lønmodtager!$A83<>"ÅÅÅ",Lønmodtager!AR83,"") -> 
A83: =IF(Lønmodtager!$A84<>"ÅÅÅ",Lønmodtager!A84,"") ->  | B83: =IF(Lønmodtager!$A84<>"ÅÅÅ",Lønmodtager!F84,"") ->  | C83: =IF(Lønmodtager!$A84<>"ÅÅÅ",Lønmodtager!G84,"") ->  | D83: =IF(Lønmodtager!$A84<>"ÅÅÅ",Lønmodtager!H84,"") ->  | E83: =IF(Lønmodtager!$A84<>"ÅÅÅ",Lønmodtager!Q84,"") ->  | F83: =IF(Lønmodtager!$A84<>"ÅÅÅ",Lønmodtager!R84,"") ->  | G83: =IF(Lønmodtager!$A84<>"ÅÅÅ",Lønmodtager!AA84,"") ->  | H83: =IF(Lønmodtager!$A84<>"ÅÅÅ",Lønmodtager!AB84,"") ->  | I83: =IF(Lønmodtager!$A84<>"ÅÅÅ",Lønmodtager!AD84,"") ->  | J83: =IF(Lønmodtager!$A84<>"ÅÅÅ",Lønmodtager!AC84,"") ->  | K83: =IF(Lønmodtager!$A84<>"ÅÅÅ",Lønmodtager!AE84,"") ->  | L83: =IF(Lønmodtager!$A84<>"ÅÅÅ",Lønmodtager!AF84,"") ->  | M83: =IF(Lønmodtager!$A84<>"ÅÅÅ",Lønmodtager!AG84,"") ->  | N83: =IF(Lønmodtager!$A84<>"ÅÅÅ",Lønmodtager!AK84,"") ->  | O83: =IF(Lønmodtager!$A84<>"ÅÅÅ",Lønmodtager!AP84,"") ->  | P83: =IF(Lønmodtager!$A84<>"ÅÅÅ",Lønmodtager!AL84,"") ->  | Q83: =IF(Lønmodtager!$A84<>"ÅÅÅ",Lønmodtager!AQ84,"") ->  | R83: =IF(Lønmodtager!$A84<>"ÅÅÅ",Lønmodtager!AR84,"") -> 
A84: =IF(Lønmodtager!$A85<>"ÅÅÅ",Lønmodtager!A85,"") ->  | B84: =IF(Lønmodtager!$A85<>"ÅÅÅ",Lønmodtager!F85,"") ->  | C84: =IF(Lønmodtager!$A85<>"ÅÅÅ",Lønmodtager!G85,"") ->  | D84: =IF(Lønmodtager!$A85<>"ÅÅÅ",Lønmodtager!H85,"") ->  | E84: =IF(Lønmodtager!$A85<>"ÅÅÅ",Lønmodtager!Q85,"") ->  | F84: =IF(Lønmodtager!$A85<>"ÅÅÅ",Lønmodtager!R85,"") ->  | G84: =IF(Lønmodtager!$A85<>"ÅÅÅ",Lønmodtager!AA85,"") ->  | H84: =IF(Lønmodtager!$A85<>"ÅÅÅ",Lønmodtager!AB85,"") ->  | I84: =IF(Lønmodtager!$A85<>"ÅÅÅ",Lønmodtager!AD85,"") ->  | J84: =IF(Lønmodtager!$A85<>"ÅÅÅ",Lønmodtager!AC85,"") ->  | K84: =IF(Lønmodtager!$A85<>"ÅÅÅ",Lønmodtager!AE85,"") ->  | L84: =IF(Lønmodtager!$A85<>"ÅÅÅ",Lønmodtager!AF85,"") ->  | M84: =IF(Lønmodtager!$A85<>"ÅÅÅ",Lønmodtager!AG85,"") ->  | N84: =IF(Lønmodtager!$A85<>"ÅÅÅ",Lønmodtager!AK85,"") ->  | O84: =IF(Lønmodtager!$A85<>"ÅÅÅ",Lønmodtager!AP85,"") ->  | P84: =IF(Lønmodtager!$A85<>"ÅÅÅ",Lønmodtager!AL85,"") ->  | Q84: =IF(Lønmodtager!$A85<>"ÅÅÅ",Lønmodtager!AQ85,"") ->  | R84: =IF(Lønmodtager!$A85<>"ÅÅÅ",Lønmodtager!AR85,"") -> 
A85: =IF(Lønmodtager!$A86<>"ÅÅÅ",Lønmodtager!A86,"") ->  | B85: =IF(Lønmodtager!$A86<>"ÅÅÅ",Lønmodtager!F86,"") ->  | C85: =IF(Lønmodtager!$A86<>"ÅÅÅ",Lønmodtager!G86,"") ->  | D85: =IF(Lønmodtager!$A86<>"ÅÅÅ",Lønmodtager!H86,"") ->  | E85: =IF(Lønmodtager!$A86<>"ÅÅÅ",Lønmodtager!Q86,"") ->  | F85: =IF(Lønmodtager!$A86<>"ÅÅÅ",Lønmodtager!R86,"") ->  | G85: =IF(Lønmodtager!$A86<>"ÅÅÅ",Lønmodtager!AA86,"") ->  | H85: =IF(Lønmodtager!$A86<>"ÅÅÅ",Lønmodtager!AB86,"") ->  | I85: =IF(Lønmodtager!$A86<>"ÅÅÅ",Lønmodtager!AD86,"") ->  | J85: =IF(Lønmodtager!$A86<>"ÅÅÅ",Lønmodtager!AC86,"") ->  | K85: =IF(Lønmodtager!$A86<>"ÅÅÅ",Lønmodtager!AE86,"") ->  | L85: =IF(Lønmodtager!$A86<>"ÅÅÅ",Lønmodtager!AF86,"") ->  | M85: =IF(Lønmodtager!$A86<>"ÅÅÅ",Lønmodtager!AG86,"") ->  | N85: =IF(Lønmodtager!$A86<>"ÅÅÅ",Lønmodtager!AK86,"") ->  | O85: =IF(Lønmodtager!$A86<>"ÅÅÅ",Lønmodtager!AP86,"") ->  | P85: =IF(Lønmodtager!$A86<>"ÅÅÅ",Lønmodtager!AL86,"") ->  | Q85: =IF(Lønmodtager!$A86<>"ÅÅÅ",Lønmodtager!AQ86,"") ->  | R85: =IF(Lønmodtager!$A86<>"ÅÅÅ",Lønmodtager!AR86,"") -> 
A86: =IF(Lønmodtager!$A87<>"ÅÅÅ",Lønmodtager!A87,"") ->  | B86: =IF(Lønmodtager!$A87<>"ÅÅÅ",Lønmodtager!F87,"") ->  | C86: =IF(Lønmodtager!$A87<>"ÅÅÅ",Lønmodtager!G87,"") ->  | D86: =IF(Lønmodtager!$A87<>"ÅÅÅ",Lønmodtager!H87,"") ->  | E86: =IF(Lønmodtager!$A87<>"ÅÅÅ",Lønmodtager!Q87,"") ->  | F86: =IF(Lønmodtager!$A87<>"ÅÅÅ",Lønmodtager!R87,"") ->  | G86: =IF(Lønmodtager!$A87<>"ÅÅÅ",Lønmodtager!AA87,"") ->  | H86: =IF(Lønmodtager!$A87<>"ÅÅÅ",Lønmodtager!AB87,"") ->  | I86: =IF(Lønmodtager!$A87<>"ÅÅÅ",Lønmodtager!AD87,"") ->  | J86: =IF(Lønmodtager!$A87<>"ÅÅÅ",Lønmodtager!AC87,"") ->  | K86: =IF(Lønmodtager!$A87<>"ÅÅÅ",Lønmodtager!AE87,"") ->  | L86: =IF(Lønmodtager!$A87<>"ÅÅÅ",Lønmodtager!AF87,"") ->  | M86: =IF(Lønmodtager!$A87<>"ÅÅÅ",Lønmodtager!AG87,"") ->  | N86: =IF(Lønmodtager!$A87<>"ÅÅÅ",Lønmodtager!AK87,"") ->  | O86: =IF(Lønmodtager!$A87<>"ÅÅÅ",Lønmodtager!AP87,"") ->  | P86: =IF(Lønmodtager!$A87<>"ÅÅÅ",Lønmodtager!AL87,"") ->  | Q86: =IF(Lønmodtager!$A87<>"ÅÅÅ",Lønmodtager!AQ87,"") ->  | R86: =IF(Lønmodtager!$A87<>"ÅÅÅ",Lønmodtager!AR87,"") -> 
A87: =IF(Lønmodtager!$A88<>"ÅÅÅ",Lønmodtager!A88,"") ->  | B87: =IF(Lønmodtager!$A88<>"ÅÅÅ",Lønmodtager!F88,"") ->  | C87: =IF(Lønmodtager!$A88<>"ÅÅÅ",Lønmodtager!G88,"") ->  | D87: =IF(Lønmodtager!$A88<>"ÅÅÅ",Lønmodtager!H88,"") ->  | E87: =IF(Lønmodtager!$A88<>"ÅÅÅ",Lønmodtager!Q88,"") ->  | F87: =IF(Lønmodtager!$A88<>"ÅÅÅ",Lønmodtager!R88,"") ->  | G87: =IF(Lønmodtager!$A88<>"ÅÅÅ",Lønmodtager!AA88,"") ->  | H87: =IF(Lønmodtager!$A88<>"ÅÅÅ",Lønmodtager!AB88,"") ->  | I87: =IF(Lønmodtager!$A88<>"ÅÅÅ",Lønmodtager!AD88,"") ->  | J87: =IF(Lønmodtager!$A88<>"ÅÅÅ",Lønmodtager!AC88,"") ->  | K87: =IF(Lønmodtager!$A88<>"ÅÅÅ",Lønmodtager!AE88,"") ->  | L87: =IF(Lønmodtager!$A88<>"ÅÅÅ",Lønmodtager!AF88,"") ->  | M87: =IF(Lønmodtager!$A88<>"ÅÅÅ",Lønmodtager!AG88,"") ->  | N87: =IF(Lønmodtager!$A88<>"ÅÅÅ",Lønmodtager!AK88,"") ->  | O87: =IF(Lønmodtager!$A88<>"ÅÅÅ",Lønmodtager!AP88,"") ->  | P87: =IF(Lønmodtager!$A88<>"ÅÅÅ",Lønmodtager!AL88,"") ->  | Q87: =IF(Lønmodtager!$A88<>"ÅÅÅ",Lønmodtager!AQ88,"") ->  | R87: =IF(Lønmodtager!$A88<>"ÅÅÅ",Lønmodtager!AR88,"") -> 
A88: =IF(Lønmodtager!$A89<>"ÅÅÅ",Lønmodtager!A89,"") ->  | B88: =IF(Lønmodtager!$A89<>"ÅÅÅ",Lønmodtager!F89,"") ->  | C88: =IF(Lønmodtager!$A89<>"ÅÅÅ",Lønmodtager!G89,"") ->  | D88: =IF(Lønmodtager!$A89<>"ÅÅÅ",Lønmodtager!H89,"") ->  | E88: =IF(Lønmodtager!$A89<>"ÅÅÅ",Lønmodtager!Q89,"") ->  | F88: =IF(Lønmodtager!$A89<>"ÅÅÅ",Lønmodtager!R89,"") ->  | G88: =IF(Lønmodtager!$A89<>"ÅÅÅ",Lønmodtager!AA89,"") ->  | H88: =IF(Lønmodtager!$A89<>"ÅÅÅ",Lønmodtager!AB89,"") ->  | I88: =IF(Lønmodtager!$A89<>"ÅÅÅ",Lønmodtager!AD89,"") ->  | J88: =IF(Lønmodtager!$A89<>"ÅÅÅ",Lønmodtager!AC89,"") ->  | K88: =IF(Lønmodtager!$A89<>"ÅÅÅ",Lønmodtager!AE89,"") ->  | L88: =IF(Lønmodtager!$A89<>"ÅÅÅ",Lønmodtager!AF89,"") ->  | M88: =IF(Lønmodtager!$A89<>"ÅÅÅ",Lønmodtager!AG89,"") ->  | N88: =IF(Lønmodtager!$A89<>"ÅÅÅ",Lønmodtager!AK89,"") ->  | O88: =IF(Lønmodtager!$A89<>"ÅÅÅ",Lønmodtager!AP89,"") ->  | P88: =IF(Lønmodtager!$A89<>"ÅÅÅ",Lønmodtager!AL89,"") ->  | Q88: =IF(Lønmodtager!$A89<>"ÅÅÅ",Lønmodtager!AQ89,"") ->  | R88: =IF(Lønmodtager!$A89<>"ÅÅÅ",Lønmodtager!AR89,"") -> 
A89: =IF(Lønmodtager!$A90<>"ÅÅÅ",Lønmodtager!A90,"") ->  | B89: =IF(Lønmodtager!$A90<>"ÅÅÅ",Lønmodtager!F90,"") ->  | C89: =IF(Lønmodtager!$A90<>"ÅÅÅ",Lønmodtager!G90,"") ->  | D89: =IF(Lønmodtager!$A90<>"ÅÅÅ",Lønmodtager!H90,"") ->  | E89: =IF(Lønmodtager!$A90<>"ÅÅÅ",Lønmodtager!Q90,"") ->  | F89: =IF(Lønmodtager!$A90<>"ÅÅÅ",Lønmodtager!R90,"") ->  | G89: =IF(Lønmodtager!$A90<>"ÅÅÅ",Lønmodtager!AA90,"") ->  | H89: =IF(Lønmodtager!$A90<>"ÅÅÅ",Lønmodtager!AB90,"") ->  | I89: =IF(Lønmodtager!$A90<>"ÅÅÅ",Lønmodtager!AD90,"") ->  | J89: =IF(Lønmodtager!$A90<>"ÅÅÅ",Lønmodtager!AC90,"") ->  | K89: =IF(Lønmodtager!$A90<>"ÅÅÅ",Lønmodtager!AE90,"") ->  | L89: =IF(Lønmodtager!$A90<>"ÅÅÅ",Lønmodtager!AF90,"") ->  | M89: =IF(Lønmodtager!$A90<>"ÅÅÅ",Lønmodtager!AG90,"") ->  | N89: =IF(Lønmodtager!$A90<>"ÅÅÅ",Lønmodtager!AK90,"") ->  | O89: =IF(Lønmodtager!$A90<>"ÅÅÅ",Lønmodtager!AP90,"") ->  | P89: =IF(Lønmodtager!$A90<>"ÅÅÅ",Lønmodtager!AL90,"") ->  | Q89: =IF(Lønmodtager!$A90<>"ÅÅÅ",Lønmodtager!AQ90,"") ->  | R89: =IF(Lønmodtager!$A90<>"ÅÅÅ",Lønmodtager!AR90,"") -> 
A90: =IF(Lønmodtager!$A91<>"ÅÅÅ",Lønmodtager!A91,"") ->  | B90: =IF(Lønmodtager!$A91<>"ÅÅÅ",Lønmodtager!F91,"") ->  | C90: =IF(Lønmodtager!$A91<>"ÅÅÅ",Lønmodtager!G91,"") ->  | D90: =IF(Lønmodtager!$A91<>"ÅÅÅ",Lønmodtager!H91,"") ->  | E90: =IF(Lønmodtager!$A91<>"ÅÅÅ",Lønmodtager!Q91,"") ->  | F90: =IF(Lønmodtager!$A91<>"ÅÅÅ",Lønmodtager!R91,"") ->  | G90: =IF(Lønmodtager!$A91<>"ÅÅÅ",Lønmodtager!AA91,"") ->  | H90: =IF(Lønmodtager!$A91<>"ÅÅÅ",Lønmodtager!AB91,"") ->  | I90: =IF(Lønmodtager!$A91<>"ÅÅÅ",Lønmodtager!AD91,"") ->  | J90: =IF(Lønmodtager!$A91<>"ÅÅÅ",Lønmodtager!AC91,"") ->  | K90: =IF(Lønmodtager!$A91<>"ÅÅÅ",Lønmodtager!AE91,"") ->  | L90: =IF(Lønmodtager!$A91<>"ÅÅÅ",Lønmodtager!AF91,"") ->  | M90: =IF(Lønmodtager!$A91<>"ÅÅÅ",Lønmodtager!AG91,"") ->  | N90: =IF(Lønmodtager!$A91<>"ÅÅÅ",Lønmodtager!AK91,"") ->  | O90: =IF(Lønmodtager!$A91<>"ÅÅÅ",Lønmodtager!AP91,"") ->  | P90: =IF(Lønmodtager!$A91<>"ÅÅÅ",Lønmodtager!AL91,"") ->  | Q90: =IF(Lønmodtager!$A91<>"ÅÅÅ",Lønmodtager!AQ91,"") ->  | R90: =IF(Lønmodtager!$A91<>"ÅÅÅ",Lønmodtager!AR91,"") -> 
A91: =IF(Lønmodtager!$A92<>"ÅÅÅ",Lønmodtager!A92,"") ->  | B91: =IF(Lønmodtager!$A92<>"ÅÅÅ",Lønmodtager!F92,"") ->  | C91: =IF(Lønmodtager!$A92<>"ÅÅÅ",Lønmodtager!G92,"") ->  | D91: =IF(Lønmodtager!$A92<>"ÅÅÅ",Lønmodtager!H92,"") ->  | E91: =IF(Lønmodtager!$A92<>"ÅÅÅ",Lønmodtager!Q92,"") ->  | F91: =IF(Lønmodtager!$A92<>"ÅÅÅ",Lønmodtager!R92,"") ->  | G91: =IF(Lønmodtager!$A92<>"ÅÅÅ",Lønmodtager!AA92,"") ->  | H91: =IF(Lønmodtager!$A92<>"ÅÅÅ",Lønmodtager!AB92,"") ->  | I91: =IF(Lønmodtager!$A92<>"ÅÅÅ",Lønmodtager!AD92,"") ->  | J91: =IF(Lønmodtager!$A92<>"ÅÅÅ",Lønmodtager!AC92,"") ->  | K91: =IF(Lønmodtager!$A92<>"ÅÅÅ",Lønmodtager!AE92,"") ->  | L91: =IF(Lønmodtager!$A92<>"ÅÅÅ",Lønmodtager!AF92,"") ->  | M91: =IF(Lønmodtager!$A92<>"ÅÅÅ",Lønmodtager!AG92,"") ->  | N91: =IF(Lønmodtager!$A92<>"ÅÅÅ",Lønmodtager!AK92,"") ->  | O91: =IF(Lønmodtager!$A92<>"ÅÅÅ",Lønmodtager!AP92,"") ->  | P91: =IF(Lønmodtager!$A92<>"ÅÅÅ",Lønmodtager!AL92,"") ->  | Q91: =IF(Lønmodtager!$A92<>"ÅÅÅ",Lønmodtager!AQ92,"") ->  | R91: =IF(Lønmodtager!$A92<>"ÅÅÅ",Lønmodtager!AR92,"") -> 
A92: =IF(Lønmodtager!$A93<>"ÅÅÅ",Lønmodtager!A93,"") ->  | B92: =IF(Lønmodtager!$A93<>"ÅÅÅ",Lønmodtager!F93,"") ->  | C92: =IF(Lønmodtager!$A93<>"ÅÅÅ",Lønmodtager!G93,"") ->  | D92: =IF(Lønmodtager!$A93<>"ÅÅÅ",Lønmodtager!H93,"") ->  | E92: =IF(Lønmodtager!$A93<>"ÅÅÅ",Lønmodtager!Q93,"") ->  | F92: =IF(Lønmodtager!$A93<>"ÅÅÅ",Lønmodtager!R93,"") ->  | G92: =IF(Lønmodtager!$A93<>"ÅÅÅ",Lønmodtager!AA93,"") ->  | H92: =IF(Lønmodtager!$A93<>"ÅÅÅ",Lønmodtager!AB93,"") ->  | I92: =IF(Lønmodtager!$A93<>"ÅÅÅ",Lønmodtager!AD93,"") ->  | J92: =IF(Lønmodtager!$A93<>"ÅÅÅ",Lønmodtager!AC93,"") ->  | K92: =IF(Lønmodtager!$A93<>"ÅÅÅ",Lønmodtager!AE93,"") ->  | L92: =IF(Lønmodtager!$A93<>"ÅÅÅ",Lønmodtager!AF93,"") ->  | M92: =IF(Lønmodtager!$A93<>"ÅÅÅ",Lønmodtager!AG93,"") ->  | N92: =IF(Lønmodtager!$A93<>"ÅÅÅ",Lønmodtager!AK93,"") ->  | O92: =IF(Lønmodtager!$A93<>"ÅÅÅ",Lønmodtager!AP93,"") ->  | P92: =IF(Lønmodtager!$A93<>"ÅÅÅ",Lønmodtager!AL93,"") ->  | Q92: =IF(Lønmodtager!$A93<>"ÅÅÅ",Lønmodtager!AQ93,"") ->  | R92: =IF(Lønmodtager!$A93<>"ÅÅÅ",Lønmodtager!AR93,"") -> 
A93: =IF(Lønmodtager!$A94<>"ÅÅÅ",Lønmodtager!A94,"") ->  | B93: =IF(Lønmodtager!$A94<>"ÅÅÅ",Lønmodtager!F94,"") ->  | C93: =IF(Lønmodtager!$A94<>"ÅÅÅ",Lønmodtager!G94,"") ->  | D93: =IF(Lønmodtager!$A94<>"ÅÅÅ",Lønmodtager!H94,"") ->  | E93: =IF(Lønmodtager!$A94<>"ÅÅÅ",Lønmodtager!Q94,"") ->  | F93: =IF(Lønmodtager!$A94<>"ÅÅÅ",Lønmodtager!R94,"") ->  | G93: =IF(Lønmodtager!$A94<>"ÅÅÅ",Lønmodtager!AA94,"") ->  | H93: =IF(Lønmodtager!$A94<>"ÅÅÅ",Lønmodtager!AB94,"") ->  | I93: =IF(Lønmodtager!$A94<>"ÅÅÅ",Lønmodtager!AD94,"") ->  | J93: =IF(Lønmodtager!$A94<>"ÅÅÅ",Lønmodtager!AC94,"") ->  | K93: =IF(Lønmodtager!$A94<>"ÅÅÅ",Lønmodtager!AE94,"") ->  | L93: =IF(Lønmodtager!$A94<>"ÅÅÅ",Lønmodtager!AF94,"") ->  | M93: =IF(Lønmodtager!$A94<>"ÅÅÅ",Lønmodtager!AG94,"") ->  | N93: =IF(Lønmodtager!$A94<>"ÅÅÅ",Lønmodtager!AK94,"") ->  | O93: =IF(Lønmodtager!$A94<>"ÅÅÅ",Lønmodtager!AP94,"") ->  | P93: =IF(Lønmodtager!$A94<>"ÅÅÅ",Lønmodtager!AL94,"") ->  | Q93: =IF(Lønmodtager!$A94<>"ÅÅÅ",Lønmodtager!AQ94,"") ->  | R93: =IF(Lønmodtager!$A94<>"ÅÅÅ",Lønmodtager!AR94,"") -> 
A94: =IF(Lønmodtager!$A95<>"ÅÅÅ",Lønmodtager!A95,"") ->  | B94: =IF(Lønmodtager!$A95<>"ÅÅÅ",Lønmodtager!F95,"") ->  | C94: =IF(Lønmodtager!$A95<>"ÅÅÅ",Lønmodtager!G95,"") ->  | D94: =IF(Lønmodtager!$A95<>"ÅÅÅ",Lønmodtager!H95,"") ->  | E94: =IF(Lønmodtager!$A95<>"ÅÅÅ",Lønmodtager!Q95,"") ->  | F94: =IF(Lønmodtager!$A95<>"ÅÅÅ",Lønmodtager!R95,"") ->  | G94: =IF(Lønmodtager!$A95<>"ÅÅÅ",Lønmodtager!AA95,"") ->  | H94: =IF(Lønmodtager!$A95<>"ÅÅÅ",Lønmodtager!AB95,"") ->  | I94: =IF(Lønmodtager!$A95<>"ÅÅÅ",Lønmodtager!AD95,"") ->  | J94: =IF(Lønmodtager!$A95<>"ÅÅÅ",Lønmodtager!AC95,"") ->  | K94: =IF(Lønmodtager!$A95<>"ÅÅÅ",Lønmodtager!AE95,"") ->  | L94: =IF(Lønmodtager!$A95<>"ÅÅÅ",Lønmodtager!AF95,"") ->  | M94: =IF(Lønmodtager!$A95<>"ÅÅÅ",Lønmodtager!AG95,"") ->  | N94: =IF(Lønmodtager!$A95<>"ÅÅÅ",Lønmodtager!AK95,"") ->  | O94: =IF(Lønmodtager!$A95<>"ÅÅÅ",Lønmodtager!AP95,"") ->  | P94: =IF(Lønmodtager!$A95<>"ÅÅÅ",Lønmodtager!AL95,"") ->  | Q94: =IF(Lønmodtager!$A95<>"ÅÅÅ",Lønmodtager!AQ95,"") ->  | R94: =IF(Lønmodtager!$A95<>"ÅÅÅ",Lønmodtager!AR95,"") -> 
A95: =IF(Lønmodtager!$A96<>"ÅÅÅ",Lønmodtager!A96,"") ->  | B95: =IF(Lønmodtager!$A96<>"ÅÅÅ",Lønmodtager!F96,"") ->  | C95: =IF(Lønmodtager!$A96<>"ÅÅÅ",Lønmodtager!G96,"") ->  | D95: =IF(Lønmodtager!$A96<>"ÅÅÅ",Lønmodtager!H96,"") ->  | E95: =IF(Lønmodtager!$A96<>"ÅÅÅ",Lønmodtager!Q96,"") ->  | F95: =IF(Lønmodtager!$A96<>"ÅÅÅ",Lønmodtager!R96,"") ->  | G95: =IF(Lønmodtager!$A96<>"ÅÅÅ",Lønmodtager!AA96,"") ->  | H95: =IF(Lønmodtager!$A96<>"ÅÅÅ",Lønmodtager!AB96,"") ->  | I95: =IF(Lønmodtager!$A96<>"ÅÅÅ",Lønmodtager!AD96,"") ->  | J95: =IF(Lønmodtager!$A96<>"ÅÅÅ",Lønmodtager!AC96,"") ->  | K95: =IF(Lønmodtager!$A96<>"ÅÅÅ",Lønmodtager!AE96,"") ->  | L95: =IF(Lønmodtager!$A96<>"ÅÅÅ",Lønmodtager!AF96,"") ->  | M95: =IF(Lønmodtager!$A96<>"ÅÅÅ",Lønmodtager!AG96,"") ->  | N95: =IF(Lønmodtager!$A96<>"ÅÅÅ",Lønmodtager!AK96,"") ->  | O95: =IF(Lønmodtager!$A96<>"ÅÅÅ",Lønmodtager!AP96,"") ->  | P95: =IF(Lønmodtager!$A96<>"ÅÅÅ",Lønmodtager!AL96,"") ->  | Q95: =IF(Lønmodtager!$A96<>"ÅÅÅ",Lønmodtager!AQ96,"") ->  | R95: =IF(Lønmodtager!$A96<>"ÅÅÅ",Lønmodtager!AR96,"") -> 
A96: =IF(Lønmodtager!$A97<>"ÅÅÅ",Lønmodtager!A97,"") ->  | B96: =IF(Lønmodtager!$A97<>"ÅÅÅ",Lønmodtager!F97,"") ->  | C96: =IF(Lønmodtager!$A97<>"ÅÅÅ",Lønmodtager!G97,"") ->  | D96: =IF(Lønmodtager!$A97<>"ÅÅÅ",Lønmodtager!H97,"") ->  | E96: =IF(Lønmodtager!$A97<>"ÅÅÅ",Lønmodtager!Q97,"") ->  | F96: =IF(Lønmodtager!$A97<>"ÅÅÅ",Lønmodtager!R97,"") ->  | G96: =IF(Lønmodtager!$A97<>"ÅÅÅ",Lønmodtager!AA97,"") ->  | H96: =IF(Lønmodtager!$A97<>"ÅÅÅ",Lønmodtager!AB97,"") ->  | I96: =IF(Lønmodtager!$A97<>"ÅÅÅ",Lønmodtager!AD97,"") ->  | J96: =IF(Lønmodtager!$A97<>"ÅÅÅ",Lønmodtager!AC97,"") ->  | K96: =IF(Lønmodtager!$A97<>"ÅÅÅ",Lønmodtager!AE97,"") ->  | L96: =IF(Lønmodtager!$A97<>"ÅÅÅ",Lønmodtager!AF97,"") ->  | M96: =IF(Lønmodtager!$A97<>"ÅÅÅ",Lønmodtager!AG97,"") ->  | N96: =IF(Lønmodtager!$A97<>"ÅÅÅ",Lønmodtager!AK97,"") ->  | O96: =IF(Lønmodtager!$A97<>"ÅÅÅ",Lønmodtager!AP97,"") ->  | P96: =IF(Lønmodtager!$A97<>"ÅÅÅ",Lønmodtager!AL97,"") ->  | Q96: =IF(Lønmodtager!$A97<>"ÅÅÅ",Lønmodtager!AQ97,"") ->  | R96: =IF(Lønmodtager!$A97<>"ÅÅÅ",Lønmodtager!AR97,"") -> 
A97: =IF(Lønmodtager!$A98<>"ÅÅÅ",Lønmodtager!A98,"") ->  | B97: =IF(Lønmodtager!$A98<>"ÅÅÅ",Lønmodtager!F98,"") ->  | C97: =IF(Lønmodtager!$A98<>"ÅÅÅ",Lønmodtager!G98,"") ->  | D97: =IF(Lønmodtager!$A98<>"ÅÅÅ",Lønmodtager!H98,"") ->  | E97: =IF(Lønmodtager!$A98<>"ÅÅÅ",Lønmodtager!Q98,"") ->  | F97: =IF(Lønmodtager!$A98<>"ÅÅÅ",Lønmodtager!R98,"") ->  | G97: =IF(Lønmodtager!$A98<>"ÅÅÅ",Lønmodtager!AA98,"") ->  | H97: =IF(Lønmodtager!$A98<>"ÅÅÅ",Lønmodtager!AB98,"") ->  | I97: =IF(Lønmodtager!$A98<>"ÅÅÅ",Lønmodtager!AD98,"") ->  | J97: =IF(Lønmodtager!$A98<>"ÅÅÅ",Lønmodtager!AC98,"") ->  | K97: =IF(Lønmodtager!$A98<>"ÅÅÅ",Lønmodtager!AE98,"") ->  | L97: =IF(Lønmodtager!$A98<>"ÅÅÅ",Lønmodtager!AF98,"") ->  | M97: =IF(Lønmodtager!$A98<>"ÅÅÅ",Lønmodtager!AG98,"") ->  | N97: =IF(Lønmodtager!$A98<>"ÅÅÅ",Lønmodtager!AK98,"") ->  | O97: =IF(Lønmodtager!$A98<>"ÅÅÅ",Lønmodtager!AP98,"") ->  | P97: =IF(Lønmodtager!$A98<>"ÅÅÅ",Lønmodtager!AL98,"") ->  | Q97: =IF(Lønmodtager!$A98<>"ÅÅÅ",Lønmodtager!AQ98,"") ->  | R97: =IF(Lønmodtager!$A98<>"ÅÅÅ",Lønmodtager!AR98,"") -> 
A98: =IF(Lønmodtager!$A99<>"ÅÅÅ",Lønmodtager!A99,"") ->  | B98: =IF(Lønmodtager!$A99<>"ÅÅÅ",Lønmodtager!F99,"") ->  | C98: =IF(Lønmodtager!$A99<>"ÅÅÅ",Lønmodtager!G99,"") ->  | D98: =IF(Lønmodtager!$A99<>"ÅÅÅ",Lønmodtager!H99,"") ->  | E98: =IF(Lønmodtager!$A99<>"ÅÅÅ",Lønmodtager!Q99,"") ->  | F98: =IF(Lønmodtager!$A99<>"ÅÅÅ",Lønmodtager!R99,"") ->  | G98: =IF(Lønmodtager!$A99<>"ÅÅÅ",Lønmodtager!AA99,"") ->  | H98: =IF(Lønmodtager!$A99<>"ÅÅÅ",Lønmodtager!AB99,"") ->  | I98: =IF(Lønmodtager!$A99<>"ÅÅÅ",Lønmodtager!AD99,"") ->  | J98: =IF(Lønmodtager!$A99<>"ÅÅÅ",Lønmodtager!AC99,"") ->  | K98: =IF(Lønmodtager!$A99<>"ÅÅÅ",Lønmodtager!AE99,"") ->  | L98: =IF(Lønmodtager!$A99<>"ÅÅÅ",Lønmodtager!AF99,"") ->  | M98: =IF(Lønmodtager!$A99<>"ÅÅÅ",Lønmodtager!AG99,"") ->  | N98: =IF(Lønmodtager!$A99<>"ÅÅÅ",Lønmodtager!AK99,"") ->  | O98: =IF(Lønmodtager!$A99<>"ÅÅÅ",Lønmodtager!AP99,"") ->  | P98: =IF(Lønmodtager!$A99<>"ÅÅÅ",Lønmodtager!AL99,"") ->  | Q98: =IF(Lønmodtager!$A99<>"ÅÅÅ",Lønmodtager!AQ99,"") ->  | R98: =IF(Lønmodtager!$A99<>"ÅÅÅ",Lønmodtager!AR99,"") -> 
F99: SUM | G99: =SUM(G4:G98) -> 0 | H99: =SUM(H4:H98) -> 0 | I99: =SUM(I4:I98) -> 0 | J99: =SUM(J4:J98) -> 0 | K99: =SUM(K4:K98) -> 0 | L99: =SUM(L4:L98) -> 0 | M99: =SUM(M4:M98) -> 0 | N99: =SUM(N4:N98) -> 0 | O99: =SUM(O4:O98) -> 0 | P99: =SUM(P4:P98) -> 0 | Q99: =SUM(Q4:Q98) -> 0 | R99: =SUM(R4:R98) -> 0

Sheet Startuge (hidden)
B1: Startuge | C1: Startuge | D1: Startuge | E1: Startuge | F1: Startuge | G1: Startuge | H1: År 2000
B2: År 2006 | C2: År 2005 | D2: År 2004 | E2: År 2003 | F2: År 2002 | G2: År 2001
A3: A | B3: 9999 | C3: 9999 | D3: 9999 | E3: 9999 | F3: 9999 | G3: 9999 | H3: 9999
A4: April | B4: 14 | C4: 13 | D4: 14 | E4: 14 | F4: 14 | G4: 14 | H4: 14
A5: August | B5: 31 | C5: 31 | D5: 31 | E5: 31 | F5: 31 | G5: 31 | H5: 31
A6: December | B6: 48 | C6: 48 | D6: 49 | E6: 49 | F6: 49 | G6: 49 | H6: 49
A7: Februar | B7: 5 | C7: 5 | D7: 5 | E7: 5 | F7: 5 | G7: 5 | H7: 5
A8: Januar | B8: 1 | C8: 1 | D8: 1 | E8: 1 | F8: 1 | G8: 1 | H8: 1
A9: Juli | B9: 27 | C9: 26 | D9: 27 | E9: 27 | F9: 27 | G9: 27 | H9: 27
A10: Juni | B10: 22 | C10: 22 | D10: 23 | E10: 22 | F10: 23 | G10: 22 | H10: 22
A11: Maj | B11: 18 | C11: 18 | D11: 18 | E11: 18 | F11: 18 | G11: 18 | H11: 18
A12: Marts | B12: 9 | C12: 9 | D12: 9 | E12: 9 | F12: 9 | G12: 9 | H12: 9
A13: November | B13: 44 | C13: 44 | D13: 44 | E13: 44 | F13: 44 | G13: 44 | H13: 44
A14: Oktober | B14: 40 | C14: 39 | D14: 40 | E14: 40 | F14: 40 | G14: 40 | H14: 40
A15: September | B15: 35 | C15: 35 | D15: 36 | E15: 36 | F15: 36 | G15: 36 | H15: 35
A16: Å | B16: 9999 | C16: 9999 | D16: 9999 | E16: 9999 | F16: 9999 | G16: 9999 | H16: 9999

Sheet Bogføring (hidden)
A1: Dato | B1: Bilagsnummer | C1: Kontonr. | D1: Beløb | E1: Modkonto | G1: Til hver lønseddel afsættes 20 linier (bruges 18 lin)

Sheet Lønmodtager Standard (hidden)
A1: Navne skal indtastes i alfabetisk stigende orden | K1: Løninde- | L1: Ferie- | M1: Antal | AA1: Skal starte i AA
B2: Lønkonto- | C2: Feriekt. | D2: Skyldig | E2: Spc. | J2: Måneds | K2: holdelse | L2: penge | M2: Feriedage | X2: Lønmodt. | AA2: År Til Dato felter | AB2: ="Dagp.godtg. & Sygedp. "&REPT(".",100) -> Dagp.godtg. & Sygedp. .................................................................................................... | AC2: ="AM-bidrag "&REPT(".",100) -> AM-bidrag .................................................................................................... | AE2: ="SP-bidrag "&REPT(".",100) -> SP-bidrag .................................................................................................... | AF2: ="Pensionsbidrag "&REPT(".",100) -> Pensionsbidrag .................................................................................................... | AG2: ="ATP lønm.bid. + arbg.bid."&REPT(".",100) -> ATP lønm.bid. + arbg.bid..................................................................................................... | AH2: ="Feriepenge "&REPT(".",100) -> Feriepenge .................................................................................................... | AI2: ="Udbetalt"&REPT(".",100) -> Udbetalt.................................................................................................... | AJ2: ="Antal gange udb."&REPT(".",100) -> Antal gange udb..................................................................................................... | AK2: ="Skattefri . Beford.-"&REPT(".",100) -> Skattefri . Beford.-.................................................................................................... | AL2: ="Skattefri . Beford.-"&REPT(".",100) -> Skattefri . Beford.-.................................................................................................... | AM2: Lønindeholdelse
A3: Navn | B3: Nummer | C3: Nummer | D3: løn | E3: konto | F3: Adresse | G3: Postnr. Og By | H3: Cpr.nr. | I3: Træk% | J3: fradrag | K3: % | L3: Perioden | M3: Perioden | X3: Række.nr | AA3: ="AM-indkomst"&REPT(".",100) -> AM-indkomst.................................................................................................... | AB3: ="Excl. AM & SP-bid."&REPT(".",100) -> Excl. AM & SP-bid..................................................................................................... | AC3: =" lønmodtager"&REPT(".",100) -> lønmodtager.................................................................................................... | AD3: ="A-skat"&REPT(".",100) -> A-skat.................................................................................................... | AE3: ="lønmodtager"&REPT(".",100) -> lønmodtager.................................................................................................... | AF3: ="lønm. + arb.giver"&REPT(".",100) -> lønm. + arb.giver.................................................................................................... | AG3: ="+ SP-bidrag dagpenge"&REPT(".",100) -> + SP-bidrag dagpenge.................................................................................................... | AH3: ="til betaling"&REPT(".",100) -> til betaling.................................................................................................... | AI3: ="løn"&REPT(".",100) -> løn.................................................................................................... | AJ3: ="Dagpengegodtg."&REPT(".",100) -> Dagpengegodtg..................................................................................................... | AK3: ="godtgørelse kr."&REPT(".",100) -> godtgørelse kr..................................................................................................... | AL3: ="godtgørelse km."&REPT(".",100) -> godtgørelse km..................................................................................................... | AM3: Kr.
A4: 0 : Må ikke slettes | C4: 6923 | D4: 6940 | E4: 6400 | I4: 100% | J4: 0 | X4: 4
A5: Albert | B5: 2200 | C5: 6923 | D5: 6940 | I5: 40 | J5: 1000 | X5: 5
A6: Bent | B6: 2210 | C6: 6923 | D6: 6940 | I6: 45 | J6: 2000 | X6: 6
A7: Gert | B7: 2220 | C7: 6923 | D7: 6940 | I7: 42 | J7: 3000 | X7: 7
A8: Jan | B8: 2230 | C8: 6923 | D8: 6940 | I8: 41 | J8: 3035 | K8: 0.12 | X8: 8
A9: Kurt | B9: 2240 | C9: 6923 | D9: 6940 | I9: 45 | J9: 3700 | X9: 9
A10: Lars | B10: 2250 | C10: 6923 | D10: 6940 | I10: 45 | J10: 3600 | X10: 10
A11: Lone | B11: 2260 | C11: 6923 | D11: 6940 | I11: 45 | J11: 5000 | X11: 11
A12: Michael | B12: 2270 | C12: 6923 | D12: 6940 | I12: 45 | J12: 6000 | X12: 12
A13: Per | B13: 2280 | C13: 6923 | D13: 6940 | I13: 45 | J13: 7000 | X13: 13
A14: Niels | B14: 2290 | C14: 6923 | D14: 6940 | I14: 45 | J14: 7500 | X14: 14
A15: Ole | B15: 2300 | C15: 6923 | D15: 6940 | I15: 45 | J15: 5000 | X15: 15
A16: Preben | B16: 2310 | C16: 6923 | D16: 6940 | I16: 45 | J16: 4000 | X16: 16
A17: Rene | B17: 2320 | C17: 6923 | D17: 6940 | I17: 45 | J17: 3000 | X17: 17
A18: Åse | B18: 2330 | C18: 6923 | D18: 6940 | I18: 45 | J18: 2500 | X18: 18
A19: * : Må ikke slettes, skal være sidste post Indtast Navn i Celle F7 | I19: 100% | J19: 0 | X19: 19
L20: --------------- | X20: 20
L21: =SUM(L4:L20) -> 0 | X21: 21
X22: 22
X23: 23
A24: Stil dig på den linie, hvor den nye lønmodtager skal | X24: 24
A25: indsættes, for at navnene står i stigende orden | X25: 25
A26: Hvis du har brug for en ny linie, så stil dig der, | X26: 26
A27: hvor den nye linie skal være og Tryk ALT+I og Tryk r | X27: 27
A28: Nu skulle der være en ny linie til den nye lønmodtager | X28: 28
X29: 29
A30: HUSK også at indtaste data yderst til højre i regnearket | X30: 30
A31: (Træk% og månedsfradrag fra skattekortet) | X31: 31
X32: 32
A33: Hvis du starter brugen af regnsarket i løbet af året, | X33: 33
A34: så kan År-Til-Dato tal indtastes i kolonnerne AA til AL | X34: 34
X35: 35
X36: 36
X37: 37
X38: 38
X39: 39
X40: 40
X41: 41
X42: 42
X43: 43
X44: 44
X45: 45
X46: 46
X47: 47
X48: 48
X49: 49
X50: 50
X51: 51
X52: 52
X53: 53
X54: 54
X55: 55
X56: 56
X57: 57
X58: 58
X59: 59
X60: 60
X61: 61
X62: 62
X63: 63
X64: 64
X65: 65
X66: 66
X67: 67
X68: 68
X69: 69
X70: 70
X71: 71
X72: 72
X73: 73
X74: 74
X75: 75
X76: 76
X77: 77
X78: 78
X79: 79
X80: 80
X81: 81
X82: 82
X83: 83
X84: 84
X85: 85
X86: 86
X87: 87
X88: 88
X89: 89
X90: 90
X91: 91
X92: 92
X93: 93
X94: 94
X95: 95
X96: 96
X97: 97
X98: 98
X99: 99
X100: 98
X101: 99
X102: 99
X103: 99
X104: 86
X105: 87
X106: 88
X107: 89
X108: 90
X109: 91
X110: 92
X111: 93
X112: 94
X113: 95
X114: 96
X115: 97
X116: 98
X117: 99
